Workbook

Sheet Instructions
A1: Affordability Ratio Calculator (ARC)
A2: Version Release Date: 2/10/2023 (draft tool)
A3: Base Analysis Year: 2022
A4: Introduction This tool allows users to calculate values of the affordability ratio (AR) metric for representative households at the 20th and 50th percentiles of the income distribution,1 referred to as AR20 and AR50, respectively. The tool outputs results at several different levels of geographic specficity, depending on the specific type of AR metric that is of interest. AR can be calculated for a specific industry (electricity, gas, water, or communications), in which case only the essential utility bills associated with that industry are measured as a percentage of the representative households' income net of housing costs and other essential utility bills, or it can be measured for the entire bundle of essential utility bills, in which case the sum of the essential utility bills is expressed as a percentage of households' income net of housing costs. For more information on the methodology and data sources used to calculate this metric, please refer to the Affordability Metrics Framework Revised Staff Proposal.2 This tool identifies the essential service providers associated with each census tract in the state of California, as well as the PUMA that the census tract is associated with. Based on the essential usage bills (pre-populated for a base scenario and several other scenarios, but can be overwritten by the user), as well as the income and housing costs for the representative household based on the PUMA that the census tract belongs to, AR values are calculated for each census tract. For census tracts where multiple service providers are present, the tool calculates AR values for each combination of possible providers. These census tract-level results are then aggregated up to larger geographic areas and weighted average results are computed. 1 The AR metric is calculated for a representative household at a given point in the income distribution for a geographic area known as a Public Use Microdata Area (PUMA). This distribution of incomes is particular to each PUMA and is measured in the Census Bureau’s American Community Survey (ACS). PUMAs are “non-overlapping, statistical geographic areas that partition each state or equivalent entity into geographic areas containing no fewer than 100,000 people each.” There are currently 265 PUMAs in the state of California. By looking at a common income percentile across the different PUMAs in California, the AR metric characterizes the relative wealth of each PUMA to the others. More information on PUMAs can be found on the Census Bureau’s website:
A30: https://www.census.gov/programs-surveys/geography/guidance/geo-areas/pumas.html
A31: 2 https://docs.cpuc.ca.gov/PublishedDocs/Efile/G000/M325/K620/325620620.PDF
A33: Important Note: Do not add, delete, or move any rows or columns in this tool. This will break the macros.
A35: Recommendation for Optimizing Tool Performance This tool contains quite a bit of data and performs a large number of calculations. As such, it can sometimes take a few minutes to perform a task. Please be patient, particularly when running multi-year analyses. To minimize the number of times the tool needs to recalculate all of the formulas, it is highly recommended that users change the calculation settings in Microsoft Excel to "Manual". To do this, click on the "Formulas" menu and select the "Calculation Options" dropdown menu near the right hand side of the menu. If it is not already selected, change this setting to "Manual". Selecting this option means that cell formulas will not automatically re-calculate (for instance, if the essential usage bill is calculated based on an inflation formula and a prior year's value, changing the prior year's value will not automatically update the calculated value). However, the tool will recalculate all cells in the tool when either the single or multi-year analysis is run.
A50: Essential Usage Bill Input The main user-defined input to the ARC is the monthly amount households need to pay for an essential level of usage of electricity, natural gas, water, and communication services. Inputs can be specified for each year in the analysis period (base analysis year plus seven forecast years). The tool comes pre-populated with historical values for the base analysis year, and applies forecasted values of the US average of CPI-U to estimate essential usage bills during the forecast period. Users may overwrite the pre-populated values for any essential service provider for whatever portion of the analysis period that is desired.
A61: Essential Usage Bill Input Geographic Scale by Industry:
A62: Industry | B62: Geographic Scale of Input
A63: Electricity | B63: Utility/Climate Zone
A64: Gas | B64: Utility/Climate Zone
A65: Water | B65: Water System/Ratemaking Area
A66: Communications | B66: Area defined by combination of ILEC Voice and Lowest Cost Broadband
A68: Essential Usage Bill Input Instructions To overwrite the pre-populated essential usage bills, enter the values in the orange colored input tabs: "Electric Input", "Gas Input", "Water Input", and "Comm Input." For the "Electric Input" tab, users will need to specify the essential usage bills for basic service (columns D through K) and all-electric service (columns L through S) separately if any portion of the customers for that climate zone are on an all-electric rate (all-electric rate participation can be specified in column C). The tool will automatically turn the essential usage bill input cells blue if a formula is present, allowing for easy identification of cells that contain hard coded values (unshaded cells) as opposed to cells that contain an inflation calculation using a previous year's input as the basis (blue shaded cells). The tool comes pre-populated with 2022 values hard coded based on historical values, while forecast years use an inflation calculation. Tip: Do not override any cells shaded in gray. Please refer to Input Tabs Cell Color Legend below.
A84: Essential Usage Bill Input Tabs Cell Color Legend
B85: User Input (currently hard coded value, can be overwritten)
B86: User Input (currently calculated value, can be overwritten)
B87: Calculated or Static Cell (do not alter)
A89: Scenario Input This tool allows users to save and load scenarios once essential usage bills have been input. After inputting the desired essential usage bills in the industry-specific input tabs, select the "Scenario Input" tab and enter the desired name for the new scenario in cell C5. Then click on the "Save New Scenario" macro button. The essential usage bills associated with this scenario will be saved to a hidden tab and the name of the new scenario will be added to the list of scenarios saved in this workbook.
A103: The list of saved scenarios can be seen by selecting the dropdown menu in cell C6 of the same tab. The pre-populated values associated with the historical 2021 essential usage bills are saved to the tool as the scenario "2022 Base." Once additional scenarios are saved, they will be added to this dropdown list. Please note that users will still need to save the spreadsheet before closing the file in order to maintain the changes. Scenarios that have been saved previously can be loaded by selecting them from the dropdown menu in cell C6 and clicking on the "Load Selected Scenario" macro button. Doing this will overwrite any essential usage bills currently entered in the industry-specific input tabs.
A117: Scenario Calculation Once the user has finished entering the essential usage bill inputs (and saving the scenario, if so desired), the AR results can be calculated in two different ways: single year or multi-year analysis.
A121: Single Year Analysis To perform a single year analysis, select the year of interest in cell B2 of the "Scenario Input" tab and click on the "Calculate AR for Selected Year" macro button. The calculation may take a few minutes. Single year analysis will output the AR results in the output tabs (blue colored tabs) in the blue shaded cells on the left side. These results will reflect only the selected analysis year (which is displayed at the top of the output tabs for convenience).
A133: Multi-Year Analysis Multi-year analysis is performed by clicking on the "Calculate AR Results for All Years" macro button at the top of the "Scenario Input" tab. This macro runs the AR analysis for each year in the analysis period starting with the base year followed by each subsequent year. After the calculations are complete for each year, the AR values are copied over to the orange shaded cells on the right side of the blue output tabs and the next year's calculations begin. Because the tool is doing eight sets of AR calculations, it can take quite a bit of time to run. Please be patient. When the calculations are complete, the full set of results will be in the orange cells on the right side of each output tab.
A147: Please note that the multi-year analysis outputs (orange shaded cells in the outputs tabs) are only updated when the multi-year analysis is run. If a single year analysis is performed, those results will only be in the blue shaded cells on the left side of the output tabs, while the orange shaded cells will reflect the most recent multi-year analysis that was run. Tip: Please refer to Output Tabs Cell Color Legend below.
A154: Output Tabs Cell Color Legend
B155: AR results for single year analysis (based on analysis year selected in "Scenario Input")
B156: AR results for multi-year analysis
A158: Geographic Scale of Outputs The tool outputs the AR results in the blue output tabs at several different geographic scales depending on the given industry. For each industry, the more granular set of results also includes the estimated number of residential households that are located in each reporting area. These estimates are based on GIS analysis of Census data. They are intended to help the user understand how many customers would be affected by a change in affordability when evaluating results at this more granular level.
A165: Industry | B165: Geographic Scale of Output
A166: Electricity | B166: • Climate Zones broken down by PUMA (Electric PUMA-CZ Results) • Climate Zone (Electric CZ Results)
A167: Gas | B167: • Climate Zones broken down by PUMA (Gas PUMA-CZ Results) • Climate Zone (Gas CZ Results)
A168: Water | B168: • Water System/Ratemaking Area (Water Results)
A169: Communications | B169: • Area defined by combination of ILEC Voice and Lowest Broadband broken down by PUMA (Comm PUMA-Provider Results) • PUMA (Comm PUMA Results)
A170: Bundled (All Services Combined) | B170: • PUMA (PUMA Bundled AR Results)

Sheet Scenario Input
A1: Analysis Year | B1: 2029
A4: Scenario Selector
B5: Name for New Scenario:
B6: Load Existing Scenario: | C6: 2022 Base
A8: Escalators applied to base year inputs (base year = 2022) | Z8: Percentage point changes versus prior year
C9: 2023 | F9: 2024 | I9: 2025 | L9: 2026 | O9: 2027 | R9: 2028 | U9: 2029 | AA9: 2023 | AD9: 2024 | AG9: 2025 | AJ9: 2026 | AM9: 2027 | AP9: 2028 | AS9: 2029
A10: County ID | B10: MSA | C10: CPI-U | D10: CPI-W | E10: Shelter Escalator | F10: CPI-U | G10: CPI-W | H10: Shelter Escalator | I10: CPI-U | J10: CPI-W | K10: Shelter Escalator | L10: CPI-U | M10: CPI-W | N10: Shelter Escalator | O10: CPI-U | P10: CPI-W | Q10: Shelter Escalator | R10: CPI-U | S10: CPI-W | T10: Shelter Escalator | U10: CPI-U | V10: CPI-W | W10: Shelter Escalator | Z10: MSA | AA10: CPI-U | AB10: CPI-W | AC10: Shelter Escalator | AD10: CPI-U | AE10: CPI-W | AF10: Shelter Escalator | AG10: CPI-U | AH10: CPI-W | AI10: Shelter Escalator | AJ10: CPI-U | AK10: CPI-W | AL10: Shelter Escalator | AM10: CPI-U | AN10: CPI-W | AO10: Shelter Escalator | AP10: CPI-U | AQ10: CPI-W | AR10: Shelter Escalator | AS10: CPI-U | AT10: CPI-W | AU10: Shelter Escalator
A11: 037 | B11: LA | C11: =1+VLOOKUP($B11,$Z$11:$AU$15,2,FALSE)/100 -> 1.052291313 | D11: =1+VLOOKUP($B11,$Z$11:$AU$15,3,FALSE)/100 -> 1.044893255 | E11: =1+VLOOKUP($B11,$Z$11:$AU$15,4,FALSE)/100 -> 1.057017331 | F11: =C11*(1+VLOOKUP($B11,$Z$11:$AU$15,5,FALSE)/100) -> 1.089658193 | G11: =D11*(1+VLOOKUP($B11,$Z$11:$AU$15,6,FALSE)/100) -> 1.082948634 | H11: =E11*(1+VLOOKUP($B11,$Z$11:$AU$15,7,FALSE)/100) -> 1.104731919 | I11: =F11*(1+VLOOKUP($B11,$Z$11:$AU$15,8,FALSE)/100) -> 1.124600763 | J11: =G11*(1+VLOOKUP($B11,$Z$11:$AU$15,9,FALSE)/100) -> 1.118295265 | K11: =H11*(1+VLOOKUP($B11,$Z$11:$AU$15,10,FALSE)/100) -> 1.151429324 | L11: =I11*(1+VLOOKUP($B11,$Z$11:$AU$15,11,FALSE)/100) -> 1.159512052 | M11: =J11*(1+VLOOKUP($B11,$Z$11:$AU$15,12,FALSE)/100) -> 1.153520404 | N11: =K11*(1+VLOOKUP($B11,$Z$11:$AU$15,13,FALSE)/100) -> 1.19912315 | O11: =L11*(1+VLOOKUP($B11,$Z$11:$AU$15,14,FALSE)/100) -> 1.20325814 | P11: =M11*(1+VLOOKUP($B11,$Z$11:$AU$15,15,FALSE)/100) -> 1.195465814 | Q11: =N11*(1+VLOOKUP($B11,$Z$11:$AU$15,16,FALSE)/100) -> 1.254837371 | R11: =O11*(1+VLOOKUP($B11,$Z$11:$AU$15,17,FALSE)/100) -> 1.248654681 | S11: =P11*(1+VLOOKUP($B11,$Z$11:$AU$15,18,FALSE)/100) -> 1.238936483 | T11: =Q11*(1+VLOOKUP($B11,$Z$11:$AU$15,19,FALSE)/100) -> 1.313140212 | U11: =R11*(1+VLOOKUP($B11,$Z$11:$AU$15,20,FALSE)/100) -> 1.295763944 | V11: =S11*(1+VLOOKUP($B11,$Z$11:$AU$15,21,FALSE)/100) -> 1.283987874 | W11: =T11*(1+VLOOKUP($B11,$Z$11:$AU$15,22,FALSE)/100) -> 1.374151947 | Z11: LA | AA11: 5.229131327 | AB11: 4.489325476 | AC11: 5.701733126 | AD11: 3.551001438 | AE11: 3.642035135 | AF11: 4.514078106 | AG11: 3.206745932 | AH11: 3.263924986 | AI11: 4.227035014 | AJ11: 3.104327335 | AK11: 3.149896117 | AL11: 4.142140944 | AM11: =AVERAGE(AA11,AD11,AG11,AJ11) -> 3.772801508 | AN11: =AVERAGE(AB11,AE11,AH11,AK11) -> 3.636295429 | AO11: 4.646246798 | AP11: =AM11 -> 3.772801508 | AQ11: =AN11 -> 3.636295429 | AR11: 4.646246798 | AS11: 3.772801508 | AT11: 3.636295429 | AU11: 4.646246798
A12: 059 | B12: LA | C12: =1+VLOOKUP($B12,$Z$11:$AU$15,2,FALSE)/100 -> 1.052291313 | D12: =1+VLOOKUP($B12,$Z$11:$AU$15,3,FALSE)/100 -> 1.044893255 | E12: =1+VLOOKUP($B12,$Z$11:$AU$15,4,FALSE)/100 -> 1.057017331 | F12: =C12*(1+VLOOKUP($B12,$Z$11:$AU$15,5,FALSE)/100) -> 1.089658193 | G12: =D12*(1+VLOOKUP($B12,$Z$11:$AU$15,6,FALSE)/100) -> 1.082948634 | H12: =E12*(1+VLOOKUP($B12,$Z$11:$AU$15,7,FALSE)/100) -> 1.104731919 | I12: =F12*(1+VLOOKUP($B12,$Z$11:$AU$15,8,FALSE)/100) -> 1.124600763 | J12: =G12*(1+VLOOKUP($B12,$Z$11:$AU$15,9,FALSE)/100) -> 1.118295265 | K12: =H12*(1+VLOOKUP($B12,$Z$11:$AU$15,10,FALSE)/100) -> 1.151429324 | L12: =I12*(1+VLOOKUP($B12,$Z$11:$AU$15,11,FALSE)/100) -> 1.159512052 | M12: =J12*(1+VLOOKUP($B12,$Z$11:$AU$15,12,FALSE)/100) -> 1.153520404 | N12: =K12*(1+VLOOKUP($B12,$Z$11:$AU$15,13,FALSE)/100) -> 1.19912315 | O12: =L12*(1+VLOOKUP($B12,$Z$11:$AU$15,14,FALSE)/100) -> 1.20325814 | P12: =M12*(1+VLOOKUP($B12,$Z$11:$AU$15,15,FALSE)/100) -> 1.195465814 | Q12: =N12*(1+VLOOKUP($B12,$Z$11:$AU$15,16,FALSE)/100) -> 1.254837371 | R12: =O12*(1+VLOOKUP($B12,$Z$11:$AU$15,17,FALSE)/100) -> 1.248654681 | S12: =P12*(1+VLOOKUP($B12,$Z$11:$AU$15,18,FALSE)/100) -> 1.238936483 | T12: =Q12*(1+VLOOKUP($B12,$Z$11:$AU$15,19,FALSE)/100) -> 1.313140212 | U12: =R12*(1+VLOOKUP($B12,$Z$11:$AU$15,20,FALSE)/100) -> 1.295763944 | V12: =S12*(1+VLOOKUP($B12,$Z$11:$AU$15,21,FALSE)/100) -> 1.283987874 | W12: =T12*(1+VLOOKUP($B12,$Z$11:$AU$15,22,FALSE)/100) -> 1.374151947 | Z12: Riverside | AA12: 5.797639163 | AB12: 4.295620268 | AC12: 6.997302989 | AD12: 3.858476915 | AE12: 3.889028555 | AF12: 5.338423671 | AG12: 3.301283839 | AH12: 3.329777138 | AI12: 4.559947958 | AJ12: 3.112607471 | AK12: 3.127308799 | AL12: 4.275555414 | AM12: =AVERAGE(AA12,AD12,AG12,AJ12) -> 4.017501847 | AN12: 3.66043369 | AO12: 5.292807508 | AP12: =AM12 -> 4.017501847 | AQ12: =AN12 -> 3.66043369 | AR12: =AO12 -> 5.292807508 | AS12: =AP12 -> 4.017501847 | AT12: =AQ12 -> 3.66043369 | AU12: =AR12 -> 5.292807508
A13: 065 | B13: Riverside | C13: 1.057976392 | D13: 1.042956203 | E13: 1.06997303 | F13: 1.098798166 | G13: 1.083517067 | H13: 1.127092723 | I13: 1.135072613 | J13: 1.119595771 | K13: 1.178487565 | L13: 1.170402968 | M13: 1.154608988 | N13: 1.228874454 | O13: 1.217423929 | P13: 1.196872684 | Q13: 1.293916413 | R13: 1.266333957 | S13: 1.240683415 | T13: 1.362400918 | U13: 1.317208948 | V13: 1.286097809 | W13: 1.434510176 | Z13: SD | AA13: 5.429676754 | AB13: 4.88029693 | AC13: 6.329456424 | AD13: 3.439506466 | AE13: 3.471302767 | AF13: 4.769934006 | AG13: 3.044107897 | AH13: 3.064958418 | AI13: 4.391733702 | AJ13: 2.937942604 | AK13: 2.947871574 | AL13: 4.312378345 | AM13: 3.71280843 | AN13: 3.591107422 | AO13: 4.950875619 | AP13: 3.71280843 | AQ13: 3.591107422 | AR13: 4.950875619 | AS13: 3.71280843 | AT13: 3.591107422 | AU13: 4.950875619
A14: 071 | B14: Riverside | C14: 1.057976392 | D14: 1.042956203 | E14: 1.06997303 | F14: 1.098798166 | G14: 1.083517067 | H14: 1.127092723 | I14: 1.135072613 | J14: 1.119595771 | K14: 1.178487565 | L14: 1.170402968 | M14: 1.154608988 | N14: 1.228874454 | O14: 1.217423929 | P14: 1.196872684 | Q14: 1.293916413 | R14: 1.266333957 | S14: 1.240683415 | T14: 1.362400918 | U14: 1.317208948 | V14: 1.286097809 | W14: 1.434510176 | Z14: SF | AA14: 4.981006155 | AB14: 4.354640425 | AC14: 5.227534759 | AD14: 3.673602952 | AE14: 3.717532302 | AF14: 4.568510838 | AG14: 3.445296011 | AH14: 3.45384085 | AI14: 4.303479486 | AJ14: 3.396724093 | AK14: 3.395792928 | AL14: 4.308316324 | AM14: 3.874157303 | AN14: 3.730451626 | AO14: 4.601960352 | AP14: 3.874157303 | AQ14: 3.730451626 | AR14: 4.601960352 | AS14: 3.874157303 | AT14: 3.730451626 | AU14: 4.601960352
A15: 073 | B15: SD | C15: 1.054296768 | D15: 1.048802969 | E15: 1.063294564 | F15: 1.090559373 | G15: 1.085210096 | H15: 1.114013013 | I15: 1.123757177 | J15: 1.118471334 | K15: 1.162937498 | L15: 1.156772518 | M15: 1.151442433 | N15: 1.213087763 | O15: 1.199721265 | P15: 1.192791967 | Q15: 1.273146229 | R15: 1.244264618 | S15: 1.235626408 | T15: 1.336178116 | U15: 1.290461779 | V15: 1.27999908 | W15: 1.402330632 | Y15: US Avg. | Z15: Other | AA15: 4.658545721 | AB15: 4.148430963 | AC15: 5.868303657 | AD15: 2.57063184 | AE15: 2.556792747 | AF15: 3.66915191 | AG15: 2.316777592 | AH15: 2.298666002 | AI15: 3.187516408 | AJ15: 2.285503413 | AK15: 2.265229068 | AL15: 3.067527952 | AM15: 2.957864641 | AN15: 2.817279695 | AO15: 3.948124982 | AP15: 2.957864641 | AQ15: 2.817279695 | AR15: 3.948124982 | AS15: 2.957864641 | AT15: 2.817279695 | AU15: 3.948124982
A16: 001 | B16: SF | C16: 1.049810062 | D16: 1.043546404 | E16: 1.052275348 | F16: 1.088375915 | G16: 1.082340579 | H16: 1.100348661 | I16: 1.125873687 | J16: 1.1197229 | K16: 1.14770194 | L16: 1.16411651 | M16: 1.157746371 | N16: 1.19714857 | O16: 1.209216214 | P16: 1.200935539 | Q16: 1.252240872 | R16: 1.256063153 | S16: 1.245735859 | T16: 1.309868501 | U16: 1.304725015 | V16: 1.292207432 | W16: 1.37014813
A17: 013 | B17: SF | C17: 1.049810062 | D17: 1.043546404 | E17: 1.052275348 | F17: 1.088375915 | G17: 1.082340579 | H17: 1.100348661 | I17: 1.125873687 | J17: 1.1197229 | K17: 1.14770194 | L17: 1.16411651 | M17: 1.157746371 | N17: 1.19714857 | O17: 1.209216214 | P17: 1.200935539 | Q17: 1.252240872 | R17: 1.256063153 | S17: 1.245735859 | T17: 1.309868501 | U17: 1.304725015 | V17: 1.292207432 | W17: 1.37014813
A18: 041 | B18: SF | C18: 1.049810062 | D18: 1.043546404 | E18: 1.052275348 | F18: 1.088375915 | G18: 1.082340579 | H18: 1.100348661 | I18: 1.125873687 | J18: 1.1197229 | K18: 1.14770194 | L18: 1.16411651 | M18: 1.157746371 | N18: 1.19714857 | O18: 1.209216214 | P18: 1.200935539 | Q18: 1.252240872 | R18: 1.256063153 | S18: 1.245735859 | T18: 1.309868501 | U18: 1.304725015 | V18: 1.292207432 | W18: 1.37014813
A19: 075 | B19: SF | C19: 1.049810062 | D19: 1.043546404 | E19: 1.052275348 | F19: 1.088375915 | G19: 1.082340579 | H19: 1.100348661 | I19: 1.125873687 | J19: 1.1197229 | K19: 1.14770194 | L19: 1.16411651 | M19: 1.157746371 | N19: 1.19714857 | O19: 1.209216214 | P19: 1.200935539 | Q19: 1.252240872 | R19: 1.256063153 | S19: 1.245735859 | T19: 1.309868501 | U19: 1.304725015 | V19: 1.292207432 | W19: 1.37014813
A20: 081 | B20: SF | C20: 1.049810062 | D20: 1.043546404 | E20: 1.052275348 | F20: 1.088375915 | G20: 1.082340579 | H20: 1.100348661 | I20: 1.125873687 | J20: 1.1197229 | K20: 1.14770194 | L20: 1.16411651 | M20: 1.157746371 | N20: 1.19714857 | O20: 1.209216214 | P20: 1.200935539 | Q20: 1.252240872 | R20: 1.256063153 | S20: 1.245735859 | T20: 1.309868501 | U20: 1.304725015 | V20: 1.292207432 | W20: 1.37014813
A21: Other | B21: Other | C21: 1.046585457 | D21: 1.04148431 | E21: 1.058683037 | F21: 1.073489316 | G21: 1.068112905 | H21: 1.097527725 | I21: 1.098359676 | J21: 1.092665253 | K21: 1.132511602 | L21: 1.123462724 | M21: 1.117416624 | N21: 1.167251712 | O21: 1.156693231 | P21: 1.148897376 | Q21: 1.213336268 | R21: 1.190906651 | S21: 1.181265028 | T21: 1.2612403 | U21: 1.226132058 | V21: 1.214544568 | W21: 1.311035644
A24: Effective Escalators (based on selected analysis year)
A25: County ID | B25: MSA | C25: CPI-U | D25: CPI-W | E25: Shelter Escalator
A26: 037 | B26: LA | C26: =IF(selected_forecast_year=2022,1,IF(selected_forecast_year=2023,C11,IF(selected_forecast_year=2024,F11,IF(selected_forecast_year=2025,I11,IF(selected_forecast_year=2026,L11,IF(selected_forecast_year=2027,O11,IF(selected_forecast_year=2028,R11,U11))))))) -> 1.295763944 | D26: =IF(selected_forecast_year=2022,1,IF(selected_forecast_year=2023,D11,IF(selected_forecast_year=2024,G11,IF(selected_forecast_year=2025,J11,IF(selected_forecast_year=2026,M11,IF(selected_forecast_year=2027,P11,IF(selected_forecast_year=2028,S11,V11))))))) -> 1.283987874 | E26: =IF(selected_forecast_year=2022,1,IF(selected_forecast_year=2023,E11,IF(selected_forecast_year=2024,H11,IF(selected_forecast_year=2025,K11,IF(selected_forecast_year=2026,N11,IF(selected_forecast_year=2027,Q11,IF(selected_forecast_year=2028,T11,W11))))))) -> 1.374151947
A27: 059 | B27: LA | C27: 1.295763944 | D27: 1.283987874 | E27: 1.374151947
A28: 065 | B28: Riverside | C28: 1.317208948 | D28: 1.286097809 | E28: 1.434510176
A29: 071 | B29: Riverside | C29: 1.317208948 | D29: 1.286097809 | E29: 1.434510176
A30: 073 | B30: SD | C30: 1.290461779 | D30: 1.27999908 | E30: 1.402330632
A31: 001 | B31: SF | C31: 1.304725015 | D31: 1.292207432 | E31: 1.37014813
A32: 013 | B32: SF | C32: 1.304725015 | D32: 1.292207432 | E32: 1.37014813
A33: 041 | B33: SF | C33: 1.304725015 | D33: 1.292207432 | E33: 1.37014813
A34: 075 | B34: SF | C34: 1.304725015 | D34: 1.292207432 | E34: 1.37014813
A35: 081 | B35: SF | C35: 1.304725015 | D35: 1.292207432 | E35: 1.37014813
A36: Other | B36: Other | C36: 1.226132058 | D36: 1.214544568 | E36: 1.311035644

Sheet Electric Input
D1: Basic Service | L1: All-Electric Service | T1: Weighted Average
A2: Electric Provider and Climate Zone | B2: Regulated | C2: Percentage of Customers on All-Electric Rate | D2: 2022 Essential Usage Bill ($/month) | E2: 2023 Essential Usage Bill ($/month) | F2: 2024 Essential Usage Bill ($/month) | G2: 2025 Essential Usage Bill ($/month) | H2: 2026 Essential Usage Bill ($/month) | I2: 2027 Essential Usage Bill ($/month) | J2: 2028 Essential Usage Bill ($/month) | K2: 2029 Essential Usage Bill ($/month) | L2: 2022 Essential Usage Bill ($/month) | M2: 2023 Essential Usage Bill ($/month) | N2: 2024 Essential Usage Bill ($/month) | O2: 2025 Essential Usage Bill ($/month) | P2: 2026 Essential Usage Bill ($/month) | Q2: 2027 Essential Usage Bill ($/month) | R2: 2028 Essential Usage Bill ($/month) | S2: 2029 Essential Usage Bill ($/month) | T2: 2022 Essential Usage Bill ($/month) | U2: 2023 Essential Usage Bill ($/month) | V2: 2024 Essential Usage Bill ($/month) | W2: 2025 Essential Usage Bill ($/month) | X2: 2026 Essential Usage Bill ($/month) | Y2: 2027 Essential Usage Bill ($/month) | Z2: 2028 Essential Usage Bill ($/month) | AA2: 2029 Essential Usage Bill ($/month)
A3: Aha Macav Power Service | C3: 0 | D3: 54.16241743 | E3: =D3*(1+('Scenario Input'!$AA$15/100)) -> 56.68559841 | F3: =E3*(1+('Scenario Input'!$AD$15/100)) -> 58.14277646 | G3: =F3*(1+('Scenario Input'!$AG$15/100)) -> 59.48981527 | H3: =G3*(1+('Scenario Input'!$AJ$15/100)) -> 60.84945703 | I3: =H3*(1+('Scenario Input'!$AM$15/100)) -> 62.64930161 | J3: =I3*(1+('Scenario Input'!$AP$15/100)) -> 64.50238315 | K3: =J3*(1+('Scenario Input'!$AS$15/100)) -> 66.41027633 | L3: 54.16241743 | M3: =L3*(1+('Scenario Input'!$AA$15/100)) -> 56.68559841 | N3: =M3*(1+('Scenario Input'!$AD$15/100)) -> 58.14277646 | O3: =N3*(1+('Scenario Input'!$AG$15/100)) -> 59.48981527 | P3: =O3*(1+('Scenario Input'!$AJ$15/100)) -> 60.84945703 | Q3: =P3*(1+('Scenario Input'!$AM$15/100)) -> 62.64930161 | R3: =Q3*(1+('Scenario Input'!$AP$15/100)) -> 64.50238315 | S3: =R3*(1+('Scenario Input'!$AS$15/100)) -> 66.41027633 | T3: =(D3*(1-$C3))+(L3*$C3) -> 54.16241743 | U3: =(E3*(1-$C3))+(M3*$C3) -> 56.68559841 | V3: 58.14277646 | W3: 59.48981527 | X3: 60.84945703 | Y3: 62.64930161 | Z3: 64.50238315 | AA3: 66.41027633
A4: Anza Electric Coop Inc | C4: 0 | D4: 76 | E4: =D4*(1+('Scenario Input'!$AA$15/100)) -> 79.54049475 | F4: =E4*(1+('Scenario Input'!$AD$15/100)) -> 81.58518803 | G4: =F4*(1+('Scenario Input'!$AG$15/100)) -> 83.47533539 | H4: =G4*(1+('Scenario Input'!$AJ$15/100)) -> 85.38316703 | I4: =H4*(1+('Scenario Input'!$AM$15/100)) -> 87.90868553 | J4: =I4*(1+('Scenario Input'!$AP$15/100)) -> 90.50890546 | K4: =J4*(1+('Scenario Input'!$AS$15/100)) -> 93.18603637 | L4: 76 | M4: =L4*(1+('Scenario Input'!$AA$15/100)) -> 79.54049475 | N4: =M4*(1+('Scenario Input'!$AD$15/100)) -> 81.58518803 | O4: =N4*(1+('Scenario Input'!$AG$15/100)) -> 83.47533539 | P4: =O4*(1+('Scenario Input'!$AJ$15/100)) -> 85.38316703 | Q4: =P4*(1+('Scenario Input'!$AM$15/100)) -> 87.90868553 | R4: =Q4*(1+('Scenario Input'!$AP$15/100)) -> 90.50890546 | S4: =R4*(1+('Scenario Input'!$AS$15/100)) -> 93.18603637 | T4: =(D4*(1-$C4))+(L4*$C4) -> 76 | U4: =(E4*(1-$C4))+(M4*$C4) -> 79.54049475 | V4: =(F4*(1-$C4))+(N4*$C4) -> 81.58518803 | W4: =(G4*(1-$C4))+(O4*$C4) -> 83.47533539 | X4: =(H4*(1-$C4))+(P4*$C4) -> 85.38316703 | Y4: =(I4*(1-$C4))+(Q4*$C4) -> 87.90868553 | Z4: =(J4*(1-$C4))+(R4*$C4) -> 90.50890546 | AA4: =(K4*(1-$C4))+(S4*$C4) -> 93.18603637
A5: BVES 16 | B5: X | C5: 0.001334843459 | D5: 59.36137977 | E5: =D5*(1+('Scenario Input'!$AA$15/100)) -> 62.12675678 | F5: =E5*(1+('Scenario Input'!$AD$15/100)) -> 63.72380697 | G5: =F5*(1+('Scenario Input'!$AG$15/100)) -> 65.20014585 | H5: =G5*(1+('Scenario Input'!$AJ$15/100)) -> 66.69029741 | I5: =H5*(1+('Scenario Input'!$AM$15/100)) -> 68.66290614 | J5: =I5*(1+('Scenario Input'!$AP$15/100)) -> 70.69386196 | K5: =J5*(1+('Scenario Input'!$AS$15/100)) -> 72.78489071 | L5: 113.2186276 | M5: =L5*(1+('Scenario Input'!$AA$15/100)) -> 118.4929691 | N5: =M5*(1+('Scenario Input'!$AD$15/100)) -> 121.5389871 | O5: =N5*(1+('Scenario Input'!$AG$15/100)) -> 124.3547752 | P5: =O5*(1+('Scenario Input'!$AJ$15/100)) -> 127.1969078 | Q5: =P5*(1+('Scenario Input'!$AM$15/100)) -> 130.9592201 | R5: =Q5*(1+('Scenario Input'!$AP$15/100)) -> 134.8328166 | S5: =R5*(1+('Scenario Input'!$AS$15/100)) -> 138.8209888 | T5: 59.43327076 | U5: 62.20199685 | V5: 63.80098119 | W5: 65.27910802 | X5: 66.77106427 | Y5: 68.74606197 | Z5: 70.77947743 | AA5: 72.87303856
A6: City & County of San Francisco | C6: 0 | D6: 55.9176 | E6: =D6*(1+('Scenario Input'!$AA$15/100)) -> 58.52254696 | F6: =E6*(1+('Scenario Input'!$AD$15/100)) -> 60.02694619 | G6: =F6*(1+('Scenario Input'!$AG$15/100)) -> 61.41763703 | H6: =G6*(1+('Scenario Input'!$AJ$15/100)) -> 62.82133922 | I6: =H6*(1+('Scenario Input'!$AM$15/100)) -> 64.6795094 | J6: =I6*(1+('Scenario Input'!$AP$15/100)) -> 66.59264174 | K6: =J6*(1+('Scenario Input'!$AS$15/100)) -> 68.56236194 | L6: 55.9176 | M6: =L6*(1+('Scenario Input'!$AA$15/100)) -> 58.52254696 | N6: =M6*(1+('Scenario Input'!$AD$15/100)) -> 60.02694619 | O6: =N6*(1+('Scenario Input'!$AG$15/100)) -> 61.41763703 | P6: =O6*(1+('Scenario Input'!$AJ$15/100)) -> 62.82133922 | Q6: =P6*(1+('Scenario Input'!$AM$15/100)) -> 64.6795094 | R6: =Q6*(1+('Scenario Input'!$AP$15/100)) -> 66.59264174 | S6: =R6*(1+('Scenario Input'!$AS$15/100)) -> 68.56236194 | T6: 55.9176 | U6: 58.52254696 | V6: 60.02694619 | W6: 61.41763703 | X6: 62.82133922 | Y6: 64.6795094 | Z6: 66.59264174 | AA6: 68.56236194
A7: City of Alameda | C7: 0 | D7: 51.54185 | E7: =D7*(1+('Scenario Input'!$AA$15/100)) -> 53.94295065 | F7: =E7*(1+('Scenario Input'!$AD$15/100)) -> 55.32962531 | G7: =F7*(1+('Scenario Input'!$AG$15/100)) -> 56.61148967 | H7: =G7*(1+('Scenario Input'!$AJ$15/100)) -> 57.9053472 | I7: =H7*(1+('Scenario Input'!$AM$15/100)) -> 59.61810899 | J7: =I7*(1+('Scenario Input'!$AP$15/100)) -> 61.38153196 | K7: =J7*(1+('Scenario Input'!$AS$15/100)) -> 63.19711459 | L7: 51.54185 | M7: =L7*(1+('Scenario Input'!$AA$15/100)) -> 53.94295065 | N7: =M7*(1+('Scenario Input'!$AD$15/100)) -> 55.32962531 | O7: =N7*(1+('Scenario Input'!$AG$15/100)) -> 56.61148967 | P7: =O7*(1+('Scenario Input'!$AJ$15/100)) -> 57.9053472 | Q7: =P7*(1+('Scenario Input'!$AM$15/100)) -> 59.61810899 | R7: =Q7*(1+('Scenario Input'!$AP$15/100)) -> 61.38153196 | S7: =R7*(1+('Scenario Input'!$AS$15/100)) -> 63.19711459 | T7: 51.54185 | U7: 53.94295065 | V7: 55.32962531 | W7: 56.61148967 | X7: 57.9053472 | Y7: 59.61810899 | Z7: 61.38153196 | AA7: 63.19711459
A8: City of Anaheim - (CA) | C8: 0 | D8: 41.504 | E8: =D8*(1+('Scenario Input'!$AA$15/100)) -> 43.43748282 | F8: =E8*(1+('Scenario Input'!$AD$15/100)) -> 44.55410058 | G8: =F8*(1+('Scenario Input'!$AG$15/100)) -> 45.58632 | H8: =G8*(1+('Scenario Input'!$AJ$15/100)) -> 46.6281969 | I8: =H8*(1+('Scenario Input'!$AM$15/100)) -> 48.00739585 | J8: =I8*(1+('Scenario Input'!$AP$15/100)) -> 49.42738963 | K8: =J8*(1+('Scenario Input'!$AS$15/100)) -> 50.88938492 | L8: 41.504 | M8: =L8*(1+('Scenario Input'!$AA$15/100)) -> 43.43748282 | N8: =M8*(1+('Scenario Input'!$AD$15/100)) -> 44.55410058 | O8: =N8*(1+('Scenario Input'!$AG$15/100)) -> 45.58632 | P8: =O8*(1+('Scenario Input'!$AJ$15/100)) -> 46.6281969 | Q8: =P8*(1+('Scenario Input'!$AM$15/100)) -> 48.00739585 | R8: =Q8*(1+('Scenario Input'!$AP$15/100)) -> 49.42738963 | S8: =R8*(1+('Scenario Input'!$AS$15/100)) -> 50.88938492 | T8: 41.504 | U8: 43.43748282 | V8: 44.55410058 | W8: 45.58632 | X8: 46.6281969 | Y8: 48.00739585 | Z8: 49.42738963 | AA8: 50.88938492
A9: City of Azusa | C9: 0 | D9: 33.075 | E9: =D9*(1+('Scenario Input'!$AA$15/100)) -> 34.615814 | F9: =E9*(1+('Scenario Input'!$AD$15/100)) -> 35.50565913 | G9: =F9*(1+('Scenario Input'!$AG$15/100)) -> 36.32824629 | H9: =G9*(1+('Scenario Input'!$AJ$15/100)) -> 37.1585296 | I9: =H9*(1+('Scenario Input'!$AM$15/100)) -> 38.25762861 | J9: =I9*(1+('Scenario Input'!$AP$15/100)) -> 39.38923747 | K9: =J9*(1+('Scenario Input'!$AS$15/100)) -> 40.5543178 | L9: 33.075 | M9: =L9*(1+('Scenario Input'!$AA$15/100)) -> 34.615814 | N9: =M9*(1+('Scenario Input'!$AD$15/100)) -> 35.50565913 | O9: =N9*(1+('Scenario Input'!$AG$15/100)) -> 36.32824629 | P9: =O9*(1+('Scenario Input'!$AJ$15/100)) -> 37.1585296 | Q9: =P9*(1+('Scenario Input'!$AM$15/100)) -> 38.25762861 | R9: =Q9*(1+('Scenario Input'!$AP$15/100)) -> 39.38923747 | S9: =R9*(1+('Scenario Input'!$AS$15/100)) -> 40.5543178 | T9: 33.075 | U9: 34.615814 | V9: 35.50565913 | W9: 36.32824629 | X9: 37.1585296 | Y9: 38.25762861 | Z9: 39.38923747 | AA9: 40.5543178
A10: City of Banning - (CA) | C10: 0 | D10: 111.394 | E10: =D10*(1+('Scenario Input'!$AA$15/100)) -> 116.5833404 | F10: =E10*(1+('Scenario Input'!$AD$15/100)) -> 119.5802689 | G10: =F10*(1+('Scenario Input'!$AG$15/100)) -> 122.3506778 | H10: =G10*(1+('Scenario Input'!$AJ$15/100)) -> 125.1470067 | I10: =H10*(1+('Scenario Input'!$AM$15/100)) -> 128.8486857 | J10: =I10*(1+('Scenario Input'!$AP$15/100)) -> 132.6598555 | K10: =J10*(1+('Scenario Input'!$AS$15/100)) -> 136.5837544 | L10: 111.394 | M10: =L10*(1+('Scenario Input'!$AA$15/100)) -> 116.5833404 | N10: =M10*(1+('Scenario Input'!$AD$15/100)) -> 119.5802689 | O10: =N10*(1+('Scenario Input'!$AG$15/100)) -> 122.3506778 | P10: =O10*(1+('Scenario Input'!$AJ$15/100)) -> 125.1470067 | Q10: =P10*(1+('Scenario Input'!$AM$15/100)) -> 128.8486857 | R10: =Q10*(1+('Scenario Input'!$AP$15/100)) -> 132.6598555 | S10: =R10*(1+('Scenario Input'!$AS$15/100)) -> 136.5837544 | T10: 111.394 | U10: 116.5833404 | V10: 119.5802689 | W10: 122.3506778 | X10: 125.1470067 | Y10: 128.8486857 | Z10: 132.6598555 | AA10: 136.5837544
A11: City of Biggs | C11: 0 | D11: 67.57 | E11: =D11*(1+('Scenario Input'!$AA$15/100)) -> 70.71777934 | F11: =E11*(1+('Scenario Input'!$AD$15/100)) -> 72.5356731 | G11: =F11*(1+('Scenario Input'!$AG$15/100)) -> 74.21616332 | H11: =G11*(1+('Scenario Input'!$AJ$15/100)) -> 75.91237626 | I11: =H11*(1+('Scenario Input'!$AM$15/100)) -> 78.1577616 | J11: =I11*(1+('Scenario Input'!$AP$15/100)) -> 80.46956239 | K11: =J11*(1+('Scenario Input'!$AS$15/100)) -> 82.84974313 | L11: 67.57 | M11: =L11*(1+('Scenario Input'!$AA$15/100)) -> 70.71777934 | N11: =M11*(1+('Scenario Input'!$AD$15/100)) -> 72.5356731 | O11: =N11*(1+('Scenario Input'!$AG$15/100)) -> 74.21616332 | P11: =O11*(1+('Scenario Input'!$AJ$15/100)) -> 75.91237626 | Q11: =P11*(1+('Scenario Input'!$AM$15/100)) -> 78.1577616 | R11: =Q11*(1+('Scenario Input'!$AP$15/100)) -> 80.46956239 | S11: =R11*(1+('Scenario Input'!$AS$15/100)) -> 82.84974313 | T11: 67.57 | U11: 70.71777934 | V11: 72.5356731 | W11: 74.21616332 | X11: 75.91237626 | Y11: 78.1577616 | Z11: 80.46956239 | AA11: 82.84974313
A12: City of Burbank Water and Power | C12: 0 | D12: 49.57 | E12: =D12*(1+('Scenario Input'!$AA$15/100)) -> 51.87924111 | F12: =E12*(1+('Scenario Input'!$AD$15/100)) -> 53.2128654 | G12: =F12*(1+('Scenario Input'!$AG$15/100)) -> 54.44568915 | H12: =G12*(1+('Scenario Input'!$AJ$15/100)) -> 55.69004723 | I12: =H12*(1+('Scenario Input'!$AM$15/100)) -> 57.33728345 | J12: =I12*(1+('Scenario Input'!$AP$15/100)) -> 59.03324268 | K12: =J12*(1+('Scenario Input'!$AS$15/100)) -> 60.77936609 | L12: 49.57 | M12: =L12*(1+('Scenario Input'!$AA$15/100)) -> 51.87924111 | N12: =M12*(1+('Scenario Input'!$AD$15/100)) -> 53.2128654 | O12: =N12*(1+('Scenario Input'!$AG$15/100)) -> 54.44568915 | P12: =O12*(1+('Scenario Input'!$AJ$15/100)) -> 55.69004723 | Q12: =P12*(1+('Scenario Input'!$AM$15/100)) -> 57.33728345 | R12: =Q12*(1+('Scenario Input'!$AP$15/100)) -> 59.03324268 | S12: =R12*(1+('Scenario Input'!$AS$15/100)) -> 60.77936609 | T12: 49.57 | U12: 51.87924111 | V12: 53.2128654 | W12: 54.44568915 | X12: 55.69004723 | Y12: 57.33728345 | Z12: 59.03324268 | AA12: 60.77936609
A13: City of Colton - (CA) | C13: 0 | D13: 23.075 | E13: =D13*(1+('Scenario Input'!$AA$15/100)) -> 24.14995943 | F13: =E13*(1+('Scenario Input'!$AD$15/100)) -> 24.77076597 | G13: =F13*(1+('Scenario Input'!$AG$15/100)) -> 25.34464953 | H13: =G13*(1+('Scenario Input'!$AJ$15/100)) -> 25.92390236 | I13: =H13*(1+('Scenario Input'!$AM$15/100)) -> 26.6906963 | J13: =I13*(1+('Scenario Input'!$AP$15/100)) -> 27.48017097 | K13: =J13*(1+('Scenario Input'!$AS$15/100)) -> 28.29299723 | L13: 23.075 | M13: =L13*(1+('Scenario Input'!$AA$15/100)) -> 24.14995943 | N13: =M13*(1+('Scenario Input'!$AD$15/100)) -> 24.77076597 | O13: =N13*(1+('Scenario Input'!$AG$15/100)) -> 25.34464953 | P13: =O13*(1+('Scenario Input'!$AJ$15/100)) -> 25.92390236 | Q13: =P13*(1+('Scenario Input'!$AM$15/100)) -> 26.6906963 | R13: =Q13*(1+('Scenario Input'!$AP$15/100)) -> 27.48017097 | S13: =R13*(1+('Scenario Input'!$AS$15/100)) -> 28.29299723 | T13: 23.075 | U13: 24.14995943 | V13: 24.77076597 | W13: 25.34464953 | X13: 25.92390236 | Y13: 26.6906963 | Z13: 27.48017097 | AA13: 28.29299723
A14: City of Corona - (CA) | C14: 0 | D14: 47.34054 | E14: =D14*(1+('Scenario Input'!$AA$15/100)) -> 49.5459207 | F14: =E14*(1+('Scenario Input'!$AD$15/100)) -> 50.81956391 | G14: =F14*(1+('Scenario Input'!$AG$15/100)) -> 51.99694018 | H14: =G14*(1+('Scenario Input'!$AJ$15/100)) -> 53.18533203 | I14: =H14*(1+('Scenario Input'!$AM$15/100)) -> 54.75848216 | J14: =I14*(1+('Scenario Input'!$AP$15/100)) -> 56.37816394 | K14: =J14*(1+('Scenario Input'!$AS$15/100)) -> 58.04575371 | L14: 47.34054 | M14: =L14*(1+('Scenario Input'!$AA$15/100)) -> 49.5459207 | N14: =M14*(1+('Scenario Input'!$AD$15/100)) -> 50.81956391 | O14: =N14*(1+('Scenario Input'!$AG$15/100)) -> 51.99694018 | P14: =O14*(1+('Scenario Input'!$AJ$15/100)) -> 53.18533203 | Q14: =P14*(1+('Scenario Input'!$AM$15/100)) -> 54.75848216 | R14: =Q14*(1+('Scenario Input'!$AP$15/100)) -> 56.37816394 | S14: =R14*(1+('Scenario Input'!$AS$15/100)) -> 58.04575371 | T14: 47.34054 | U14: 49.5459207 | V14: 50.81956391 | W14: 51.99694018 | X14: 53.18533203 | Y14: 54.75848216 | Z14: 56.37816394 | AA14: 58.04575371
A15: City of Glendale - (CA) | C15: 0 | D15: 62.0574 | E15: =D15*(1+('Scenario Input'!$AA$15/100)) -> 64.94837235 | F15: =E15*(1+('Scenario Input'!$AD$15/100)) -> 66.61795589 | G15: =F15*(1+('Scenario Input'!$AG$15/100)) -> 68.16134577 | H15: =G15*(1+('Scenario Input'!$AJ$15/100)) -> 69.71917565 | I15: =H15*(1+('Scenario Input'!$AM$15/100)) -> 71.78137449 | J15: =I15*(1+('Scenario Input'!$AP$15/100)) -> 73.90457039 | K15: =J15*(1+('Scenario Input'!$AS$15/100)) -> 76.09056755 | L15: 62.0574 | M15: =L15*(1+('Scenario Input'!$AA$15/100)) -> 64.94837235 | N15: =M15*(1+('Scenario Input'!$AD$15/100)) -> 66.61795589 | O15: =N15*(1+('Scenario Input'!$AG$15/100)) -> 68.16134577 | P15: =O15*(1+('Scenario Input'!$AJ$15/100)) -> 69.71917565 | Q15: =P15*(1+('Scenario Input'!$AM$15/100)) -> 71.78137449 | R15: =Q15*(1+('Scenario Input'!$AP$15/100)) -> 73.90457039 | S15: =R15*(1+('Scenario Input'!$AS$15/100)) -> 76.09056755 | T15: 62.0574 | U15: 64.94837235 | V15: 66.61795589 | W15: 68.16134577 | X15: 69.71917565 | Y15: 71.78137449 | Z15: 73.90457039 | AA15: 76.09056755
A16: City of Gridley | C16: 0 | D16: 94.4003875 | E16: =D16*(1+('Scenario Input'!$AA$15/100)) -> 98.79807271 | F16: =E16*(1+('Scenario Input'!$AD$15/100)) -> 101.3378074 | G16: =F16*(1+('Scenario Input'!$AG$15/100)) -> 103.685579 | H16: =G16*(1+('Scenario Input'!$AJ$15/100)) -> 106.0553165 | I16: =H16*(1+('Scenario Input'!$AM$15/100)) -> 109.1922892 | J16: =I16*(1+('Scenario Input'!$AP$15/100)) -> 112.4220493 | K16: =J16*(1+('Scenario Input'!$AS$15/100)) -> 115.7473414 | L16: 94.4003875 | M16: =L16*(1+('Scenario Input'!$AA$15/100)) -> 98.79807271 | N16: =M16*(1+('Scenario Input'!$AD$15/100)) -> 101.3378074 | O16: =N16*(1+('Scenario Input'!$AG$15/100)) -> 103.685579 | P16: =O16*(1+('Scenario Input'!$AJ$15/100)) -> 106.0553165 | Q16: =P16*(1+('Scenario Input'!$AM$15/100)) -> 109.1922892 | R16: =Q16*(1+('Scenario Input'!$AP$15/100)) -> 112.4220493 | S16: =R16*(1+('Scenario Input'!$AS$15/100)) -> 115.7473414 | T16: 94.4003875 | U16: 98.79807271 | V16: 101.3378074 | W16: 103.685579 | X16: 106.0553165 | Y16: 109.1922892 | Z16: 112.4220493 | AA16: 115.7473414
A17: City of Healdsburg - (CA) | C17: 0 | D17: 49.8184 | E17: =D17*(1+('Scenario Input'!$AA$15/100)) -> 52.13921294 | F17: =E17*(1+('Scenario Input'!$AD$15/100)) -> 53.47952015 | G17: =F17*(1+('Scenario Input'!$AG$15/100)) -> 54.71852169 | H17: =G17*(1+('Scenario Input'!$AJ$15/100)) -> 55.96911537 | I17: =H17*(1+('Scenario Input'!$AM$15/100)) -> 57.62460604 | J17: =I17*(1+('Scenario Input'!$AP$15/100)) -> 59.32906389 | K17: =J17*(1+('Scenario Input'!$AS$15/100)) -> 61.08393729 | L17: 49.8184 | M17: =L17*(1+('Scenario Input'!$AA$15/100)) -> 52.13921294 | N17: =M17*(1+('Scenario Input'!$AD$15/100)) -> 53.47952015 | O17: =N17*(1+('Scenario Input'!$AG$15/100)) -> 54.71852169 | P17: =O17*(1+('Scenario Input'!$AJ$15/100)) -> 55.96911537 | Q17: =P17*(1+('Scenario Input'!$AM$15/100)) -> 57.62460604 | R17: =Q17*(1+('Scenario Input'!$AP$15/100)) -> 59.32906389 | S17: =R17*(1+('Scenario Input'!$AS$15/100)) -> 61.08393729 | T17: 49.8184 | U17: 52.13921294 | V17: 53.47952015 | W17: 54.71852169 | X17: 55.96911537 | Y17: 57.62460604 | Z17: 59.32906389 | AA17: 61.08393729
A18: City of Industry | C18: 0 | D18: 37.07378 | E18: =D18*(1+('Scenario Input'!$AA$15/100)) -> 38.80087899 | F18: =E18*(1+('Scenario Input'!$AD$15/100)) -> 39.79830674 | G18: =F18*(1+('Scenario Input'!$AG$15/100)) -> 40.72034499 | H18: =G18*(1+('Scenario Input'!$AJ$15/100)) -> 41.65100987 | I18: =H18*(1+('Scenario Input'!$AM$15/100)) -> 42.88299036 | J18: =I18*(1+('Scenario Input'!$AP$15/100)) -> 44.15141117 | K18: =J18*(1+('Scenario Input'!$AS$15/100)) -> 45.45735015 | L18: 37.07378 | M18: =L18*(1+('Scenario Input'!$AA$15/100)) -> 38.80087899 | N18: =M18*(1+('Scenario Input'!$AD$15/100)) -> 39.79830674 | O18: =N18*(1+('Scenario Input'!$AG$15/100)) -> 40.72034499 | P18: =O18*(1+('Scenario Input'!$AJ$15/100)) -> 41.65100987 | Q18: =P18*(1+('Scenario Input'!$AM$15/100)) -> 42.88299036 | R18: =Q18*(1+('Scenario Input'!$AP$15/100)) -> 44.15141117 | S18: =R18*(1+('Scenario Input'!$AS$15/100)) -> 45.45735015 | T18: 37.07378 | U18: 38.80087899 | V18: 39.79830674 | W18: 40.72034499 | X18: 41.65100987 | Y18: 42.88299036 | Z18: 44.15141117 | AA18: 45.45735015
A19: City of Lodi - (CA) | C19: 0 | D19: 72.4608 | E19: =D19*(1+('Scenario Input'!$AA$15/100)) -> 75.8364195 | F19: =E19*(1+('Scenario Input'!$AD$15/100)) -> 77.78589464 | G19: =F19*(1+('Scenario Input'!$AG$15/100)) -> 79.58802082 | H19: =G19*(1+('Scenario Input'!$AJ$15/100)) -> 81.40700775 | I19: =H19*(1+('Scenario Input'!$AM$15/100)) -> 83.81491685 | J19: =I19*(1+('Scenario Input'!$AP$15/100)) -> 86.29404864 | K19: =J19*(1+('Scenario Input'!$AS$15/100)) -> 88.84650979 | L19: 72.4608 | M19: =L19*(1+('Scenario Input'!$AA$15/100)) -> 75.8364195 | N19: =M19*(1+('Scenario Input'!$AD$15/100)) -> 77.78589464 | O19: =N19*(1+('Scenario Input'!$AG$15/100)) -> 79.58802082 | P19: =O19*(1+('Scenario Input'!$AJ$15/100)) -> 81.40700775 | Q19: =P19*(1+('Scenario Input'!$AM$15/100)) -> 83.81491685 | R19: =Q19*(1+('Scenario Input'!$AP$15/100)) -> 86.29404864 | S19: =R19*(1+('Scenario Input'!$AS$15/100)) -> 88.84650979 | T19: 72.4608 | U19: 75.8364195 | V19: 77.78589464 | W19: 79.58802082 | X19: 81.40700775 | Y19: 83.81491685 | Z19: 86.29404864 | AA19: 88.84650979
A20: City of Lompoc - (CA) | C20: 0 | D20: 52.6225 | E20: =D20*(1+('Scenario Input'!$AA$15/100)) -> 55.07394322 | F20: =E20*(1+('Scenario Input'!$AD$15/100)) -> 56.48969154 | G20: =F20*(1+('Scenario Input'!$AG$15/100)) -> 57.79843206 | H20: =G20*(1+('Scenario Input'!$AJ$15/100)) -> 59.11941719 | I20: =H20*(1+('Scenario Input'!$AM$15/100)) -> 60.86808953 | J20: =I20*(1+('Scenario Input'!$AP$15/100)) -> 62.66848523 | K20: =J20*(1+('Scenario Input'!$AS$15/100)) -> 64.5221342 | L20: 52.6225 | M20: =L20*(1+('Scenario Input'!$AA$15/100)) -> 55.07394322 | N20: =M20*(1+('Scenario Input'!$AD$15/100)) -> 56.48969154 | O20: =N20*(1+('Scenario Input'!$AG$15/100)) -> 57.79843206 | P20: =O20*(1+('Scenario Input'!$AJ$15/100)) -> 59.11941719 | Q20: =P20*(1+('Scenario Input'!$AM$15/100)) -> 60.86808953 | R20: =Q20*(1+('Scenario Input'!$AP$15/100)) -> 62.66848523 | S20: =R20*(1+('Scenario Input'!$AS$15/100)) -> 64.5221342 | T20: 52.6225 | U20: 55.07394322 | V20: 56.48969154 | W20: 57.79843206 | X20: 59.11941719 | Y20: 60.86808953 | Z20: 62.66848523 | AA20: 64.5221342
A21: City of Moreno Valley - (CA) | C21: 0 | D21: 84.08468 | E21: =D21*(1+('Scenario Input'!$AA$15/100)) -> 88.00180326 | F21: =E21*(1+('Scenario Input'!$AD$15/100)) -> 90.26400564 | G21: =F21*(1+('Scenario Input'!$AG$15/100)) -> 92.35522189 | H21: =G21*(1+('Scenario Input'!$AJ$15/100)) -> 94.46600364 | I21: =H21*(1+('Scenario Input'!$AM$15/100)) -> 97.26018016 | J21: =I21*(1+('Scenario Input'!$AP$15/100)) -> 100.1370046 | K21: =J21*(1+('Scenario Input'!$AS$15/100)) -> 103.0989217 | L21: 84.08468 | M21: =L21*(1+('Scenario Input'!$AA$15/100)) -> 88.00180326 | N21: =M21*(1+('Scenario Input'!$AD$15/100)) -> 90.26400564 | O21: =N21*(1+('Scenario Input'!$AG$15/100)) -> 92.35522189 | P21: =O21*(1+('Scenario Input'!$AJ$15/100)) -> 94.46600364 | Q21: =P21*(1+('Scenario Input'!$AM$15/100)) -> 97.26018016 | R21: =Q21*(1+('Scenario Input'!$AP$15/100)) -> 100.1370046 | S21: =R21*(1+('Scenario Input'!$AS$15/100)) -> 103.0989217 | T21: 84.08468 | U21: 88.00180326 | V21: 90.26400564 | W21: 92.35522189 | X21: 94.46600364 | Y21: 97.26018016 | Z21: 100.1370046 | AA21: 103.0989217
A22: City of Needles | C22: 0 | D22: 141.87 | E22: =D22*(1+('Scenario Input'!$AA$15/100)) -> 148.4790788 | F22: =E22*(1+('Scenario Input'!$AD$15/100)) -> 152.2959293 | G22: =F22*(1+('Scenario Input'!$AG$15/100)) -> 155.8242873 | H22: =G22*(1+('Scenario Input'!$AJ$15/100)) -> 159.3856567 | I22: =H22*(1+('Scenario Input'!$AM$15/100)) -> 164.1000686 | J22: =I22*(1+('Scenario Input'!$AP$15/100)) -> 168.9539265 | K22: =J22*(1+('Scenario Input'!$AS$15/100)) -> 173.951355 | L22: 141.87 | M22: =L22*(1+('Scenario Input'!$AA$15/100)) -> 148.4790788 | N22: =M22*(1+('Scenario Input'!$AD$15/100)) -> 152.2959293 | O22: =N22*(1+('Scenario Input'!$AG$15/100)) -> 155.8242873 | P22: =O22*(1+('Scenario Input'!$AJ$15/100)) -> 159.3856567 | Q22: =P22*(1+('Scenario Input'!$AM$15/100)) -> 164.1000686 | R22: =Q22*(1+('Scenario Input'!$AP$15/100)) -> 168.9539265 | S22: =R22*(1+('Scenario Input'!$AS$15/100)) -> 173.951355 | T22: 141.87 | U22: 148.4790788 | V22: 152.2959293 | W22: 155.8242873 | X22: 159.3856567 | Y22: 164.1000686 | Z22: 168.9539265 | AA22: 173.951355
A23: City of Palo Alto - (CA) | C23: 0 | D23: 56.03096 | E23: =D23*(1+('Scenario Input'!$AA$15/100)) -> 58.64118789 | F23: =E23*(1+('Scenario Input'!$AD$15/100)) -> 60.14863694 | G23: =F23*(1+('Scenario Input'!$AG$15/100)) -> 61.54214708 | H23: =G23*(1+('Scenario Input'!$AJ$15/100)) -> 62.94869495 | I23: =H23*(1+('Scenario Input'!$AM$15/100)) -> 64.81063214 | J23: =I23*(1+('Scenario Input'!$AP$15/100)) -> 66.72764291 | K23: =J23*(1+('Scenario Input'!$AS$15/100)) -> 68.70135627 | L23: 56.03096 | M23: =L23*(1+('Scenario Input'!$AA$15/100)) -> 58.64118789 | N23: =M23*(1+('Scenario Input'!$AD$15/100)) -> 60.14863694 | O23: =N23*(1+('Scenario Input'!$AG$15/100)) -> 61.54214708 | P23: =O23*(1+('Scenario Input'!$AJ$15/100)) -> 62.94869495 | Q23: =P23*(1+('Scenario Input'!$AM$15/100)) -> 64.81063214 | R23: =Q23*(1+('Scenario Input'!$AP$15/100)) -> 66.72764291 | S23: =R23*(1+('Scenario Input'!$AS$15/100)) -> 68.70135627 | T23: 56.03096 | U23: 58.64118789 | V23: 60.14863694 | W23: 61.54214708 | X23: 62.94869495 | Y23: 64.81063214 | Z23: 66.72764291 | AA23: 68.70135627
A24: City of Pasadena - (CA) | C24: 0 | D24: 61.13 | E24: =D24*(1+('Scenario Input'!$AA$15/100)) -> 63.977769 | F24: =E24*(1+('Scenario Input'!$AD$15/100)) -> 65.6224019 | G24: =F24*(1+('Scenario Input'!$AG$15/100)) -> 67.142727 | H24: =G24*(1+('Scenario Input'!$AJ$15/100)) -> 68.67727632 | I24: =H24*(1+('Scenario Input'!$AM$15/100)) -> 70.70865719 | J24: =I24*(1+('Scenario Input'!$AP$15/100)) -> 72.80012356 | K24: =J24*(1+('Scenario Input'!$AS$15/100)) -> 74.95345268 | L24: 61.13 | M24: =L24*(1+('Scenario Input'!$AA$15/100)) -> 63.977769 | N24: =M24*(1+('Scenario Input'!$AD$15/100)) -> 65.6224019 | O24: =N24*(1+('Scenario Input'!$AG$15/100)) -> 67.142727 | P24: =O24*(1+('Scenario Input'!$AJ$15/100)) -> 68.67727632 | Q24: =P24*(1+('Scenario Input'!$AM$15/100)) -> 70.70865719 | R24: =Q24*(1+('Scenario Input'!$AP$15/100)) -> 72.80012356 | S24: =R24*(1+('Scenario Input'!$AS$15/100)) -> 74.95345268 | T24: 61.13 | U24: 63.977769 | V24: 65.6224019 | W24: 67.142727 | X24: 68.67727632 | Y24: 70.70865719 | Z24: 72.80012356 | AA24: 74.95345268
A25: City of Rancho Cucamonga | C25: 0 | D25: 57.28500073 | E25: =D25*(1+('Scenario Input'!$AA$15/100)) -> 59.95364869 | F25: =E25*(1+('Scenario Input'!$AD$15/100)) -> 61.49483627 | G25: =F25*(1+('Scenario Input'!$AG$15/100)) -> 62.91953485 | H25: =G25*(1+('Scenario Input'!$AJ$15/100)) -> 64.35756297 | I25: =H25*(1+('Scenario Input'!$AM$15/100)) -> 66.26117257 | J25: =I25*(1+('Scenario Input'!$AP$15/100)) -> 68.22108837 | K25: =J25*(1+('Scenario Input'!$AS$15/100)) -> 70.23897582 | L25: 57.28500073 | M25: =L25*(1+('Scenario Input'!$AA$15/100)) -> 59.95364869 | N25: =M25*(1+('Scenario Input'!$AD$15/100)) -> 61.49483627 | O25: =N25*(1+('Scenario Input'!$AG$15/100)) -> 62.91953485 | P25: =O25*(1+('Scenario Input'!$AJ$15/100)) -> 64.35756297 | Q25: =P25*(1+('Scenario Input'!$AM$15/100)) -> 66.26117257 | R25: =Q25*(1+('Scenario Input'!$AP$15/100)) -> 68.22108837 | S25: =R25*(1+('Scenario Input'!$AS$15/100)) -> 70.23897582 | T25: 57.28500073 | U25: 59.95364869 | V25: 61.49483627 | W25: 62.91953485 | X25: 64.35756297 | Y25: 66.26117257 | Z25: 68.22108837 | AA25: 70.23897582
A26: City of Redding - (CA) | C26: 0 | D26: 76.39504 | E26: =D26*(1+('Scenario Input'!$AA$15/100)) -> 79.95393787 | F26: =E26*(1+('Scenario Input'!$AD$15/100)) -> 82.00925925 | G26: =F26*(1+('Scenario Input'!$AG$15/100)) -> 83.90923139 | H26: =G26*(1+('Scenario Input'!$AJ$15/100)) -> 85.82697974 | I26: =H26*(1+('Scenario Input'!$AM$15/100)) -> 88.36562563 | J26: =I26*(1+('Scenario Input'!$AP$15/100)) -> 90.97936122 | K26: =J26*(1+('Scenario Input'!$AS$15/100)) -> 93.67040758 | L26: 76.39504 | M26: =L26*(1+('Scenario Input'!$AA$15/100)) -> 79.95393787 | N26: =M26*(1+('Scenario Input'!$AD$15/100)) -> 82.00925925 | O26: =N26*(1+('Scenario Input'!$AG$15/100)) -> 83.90923139 | P26: =O26*(1+('Scenario Input'!$AJ$15/100)) -> 85.82697974 | Q26: =P26*(1+('Scenario Input'!$AM$15/100)) -> 88.36562563 | R26: =Q26*(1+('Scenario Input'!$AP$15/100)) -> 90.97936122 | S26: =R26*(1+('Scenario Input'!$AS$15/100)) -> 93.67040758 | T26: 76.39504 | U26: 79.95393787 | V26: 82.00925925 | W26: 83.90923139 | X26: 85.82697974 | Y26: 88.36562563 | Z26: 90.97936122 | AA26: 93.67040758
A27: City of Riverside - (CA) | C27: 0 | D27: 80.01151 | E27: =D27*(1+('Scenario Input'!$AA$15/100)) -> 83.73888278 | F27: =E27*(1+('Scenario Input'!$AD$15/100)) -> 85.89150116 | G27: =F27*(1+('Scenario Input'!$AG$15/100)) -> 87.88141621 | H27: =G27*(1+('Scenario Input'!$AJ$15/100)) -> 89.88994898 | I27: =H27*(1+('Scenario Input'!$AM$15/100)) -> 92.54877199 | J27: =I27*(1+('Scenario Input'!$AP$15/100)) -> 95.2862394 | K27: =J27*(1+('Scenario Input'!$AS$15/100)) -> 98.10467738 | L27: 80.01151 | M27: =L27*(1+('Scenario Input'!$AA$15/100)) -> 83.73888278 | N27: =M27*(1+('Scenario Input'!$AD$15/100)) -> 85.89150116 | O27: =N27*(1+('Scenario Input'!$AG$15/100)) -> 87.88141621 | P27: =O27*(1+('Scenario Input'!$AJ$15/100)) -> 89.88994898 | Q27: =P27*(1+('Scenario Input'!$AM$15/100)) -> 92.54877199 | R27: =Q27*(1+('Scenario Input'!$AP$15/100)) -> 95.2862394 | S27: =R27*(1+('Scenario Input'!$AS$15/100)) -> 98.10467738 | T27: 80.01151 | U27: 83.73888278 | V27: 85.89150116 | W27: 87.88141621 | X27: 89.88994898 | Y27: 92.54877199 | Z27: 95.2862394 | AA27: 98.10467738
A28: City of Roseville - (CA) | C28: 0 | D28: 81.55 | E28: =D28*(1+('Scenario Input'!$AA$15/100)) -> 85.34904404 | F28: =E28*(1+('Scenario Input'!$AD$15/100)) -> 87.54305374 | G28: =F28*(1+('Scenario Input'!$AG$15/100)) -> 89.57123159 | H28: =G28*(1+('Scenario Input'!$AJ$15/100)) -> 91.61838514 | I28: =H28*(1+('Scenario Input'!$AM$15/100)) -> 94.32833296 | J28: =I28*(1+('Scenario Input'!$AP$15/100)) -> 97.11843737 | K28: =J28*(1+('Scenario Input'!$AS$15/100)) -> 99.99106929 | L28: 81.55 | M28: =L28*(1+('Scenario Input'!$AA$15/100)) -> 85.34904404 | N28: =M28*(1+('Scenario Input'!$AD$15/100)) -> 87.54305374 | O28: =N28*(1+('Scenario Input'!$AG$15/100)) -> 89.57123159 | P28: =O28*(1+('Scenario Input'!$AJ$15/100)) -> 91.61838514 | Q28: =P28*(1+('Scenario Input'!$AM$15/100)) -> 94.32833296 | R28: =Q28*(1+('Scenario Input'!$AP$15/100)) -> 97.11843737 | S28: =R28*(1+('Scenario Input'!$AS$15/100)) -> 99.99106929 | T28: 81.55 | U28: 85.34904404 | V28: 87.54305374 | W28: 89.57123159 | X28: 91.61838514 | Y28: 94.32833296 | Z28: 97.11843737 | AA28: 99.99106929
A29: City of Santa Clara - (CA) | C29: 0 | D29: 36.96 | E29: =D29*(1+('Scenario Input'!$AA$15/100)) -> 38.6817985 | F29: =E29*(1+('Scenario Input'!$AD$15/100)) -> 39.67616513 | G29: =F29*(1+('Scenario Input'!$AG$15/100)) -> 40.59537363 | H29: =G29*(1+('Scenario Input'!$AJ$15/100)) -> 41.52318228 | I29: =H29*(1+('Scenario Input'!$AM$15/100)) -> 42.75138181 | J29: =I29*(1+('Scenario Input'!$AP$15/100)) -> 44.01590981 | K29: =J29*(1+('Scenario Input'!$AS$15/100)) -> 45.31784085 | L29: 36.96 | M29: =L29*(1+('Scenario Input'!$AA$15/100)) -> 38.6817985 | N29: =M29*(1+('Scenario Input'!$AD$15/100)) -> 39.67616513 | O29: =N29*(1+('Scenario Input'!$AG$15/100)) -> 40.59537363 | P29: =O29*(1+('Scenario Input'!$AJ$15/100)) -> 41.52318228 | Q29: =P29*(1+('Scenario Input'!$AM$15/100)) -> 42.75138181 | R29: =Q29*(1+('Scenario Input'!$AP$15/100)) -> 44.01590981 | S29: =R29*(1+('Scenario Input'!$AS$15/100)) -> 45.31784085 | T29: 36.96 | U29: 38.6817985 | V29: 39.67616513 | W29: 40.59537363 | X29: 41.52318228 | Y29: 42.75138181 | Z29: 44.01590981 | AA29: 45.31784085
A30: City of Shasta Lake - (CA) | C30: 0 | D30: 86.72114 | E30: =D30*(1+('Scenario Input'!$AA$15/100)) -> 90.76108396 | F30: =E30*(1+('Scenario Input'!$AD$15/100)) -> 93.09421728 | G30: =F30*(1+('Scenario Input'!$AG$15/100)) -> 95.25100324 | H30: =G30*(1+('Scenario Input'!$AJ$15/100)) -> 97.42796817 | I30: =H30*(1+('Scenario Input'!$AM$15/100)) -> 100.3097556 | J30: =I30*(1+('Scenario Input'!$AP$15/100)) -> 103.2767824 | K30: =J30*(1+('Scenario Input'!$AS$15/100)) -> 106.3315698 | L30: 86.72114 | M30: =L30*(1+('Scenario Input'!$AA$15/100)) -> 90.76108396 | N30: =M30*(1+('Scenario Input'!$AD$15/100)) -> 93.09421728 | O30: =N30*(1+('Scenario Input'!$AG$15/100)) -> 95.25100324 | P30: =O30*(1+('Scenario Input'!$AJ$15/100)) -> 97.42796817 | Q30: =P30*(1+('Scenario Input'!$AM$15/100)) -> 100.3097556 | R30: =Q30*(1+('Scenario Input'!$AP$15/100)) -> 103.2767824 | S30: =R30*(1+('Scenario Input'!$AS$15/100)) -> 106.3315698 | T30: 86.72114 | U30: 90.76108396 | V30: 93.09421728 | W30: 95.25100324 | X30: 97.42796817 | Y30: 100.3097556 | Z30: 103.2767824 | AA30: 106.3315698
A31: City of Ukiah - (CA) | C31: 0 | D31: 55.03 | E31: =D31*(1+('Scenario Input'!$AA$15/100)) -> 57.59359771 | F31: =E31*(1+('Scenario Input'!$AD$15/100)) -> 59.07411707 | G31: =F31*(1+('Scenario Input'!$AG$15/100)) -> 60.44273298 | H31: =G31*(1+('Scenario Input'!$AJ$15/100)) -> 61.8241537 | I31: =H31*(1+('Scenario Input'!$AM$15/100)) -> 63.65282849 | J31: =I31*(1+('Scenario Input'!$AP$15/100)) -> 65.53559299 | K31: =J31*(1+('Scenario Input'!$AS$15/100)) -> 67.47404712 | L31: 55.03 | M31: =L31*(1+('Scenario Input'!$AA$15/100)) -> 57.59359771 | N31: =M31*(1+('Scenario Input'!$AD$15/100)) -> 59.07411707 | O31: =N31*(1+('Scenario Input'!$AG$15/100)) -> 60.44273298 | P31: =O31*(1+('Scenario Input'!$AJ$15/100)) -> 61.8241537 | Q31: =P31*(1+('Scenario Input'!$AM$15/100)) -> 63.65282849 | R31: =Q31*(1+('Scenario Input'!$AP$15/100)) -> 65.53559299 | S31: =R31*(1+('Scenario Input'!$AS$15/100)) -> 67.47404712 | T31: 55.03 | U31: 57.59359771 | V31: 59.07411707 | W31: 60.44273298 | X31: 61.8241537 | Y31: 63.65282849 | Z31: 65.53559299 | AA31: 67.47404712
A32: City of Vernon | C32: 0 | D32: 31.80354 | E32: =D32*(1+('Scenario Input'!$AA$15/100)) -> 33.28512245 | F32: =E32*(1+('Scenario Input'!$AD$15/100)) -> 34.14076041 | G32: =F32*(1+('Scenario Input'!$AG$15/100)) -> 34.93172589 | H32: =G32*(1+('Scenario Input'!$AJ$15/100)) -> 35.73009168 | I32: =H32*(1+('Scenario Input'!$AM$15/100)) -> 36.78693943 | J32: =I32*(1+('Scenario Input'!$AP$15/100)) -> 37.8750473 | K32: =J32*(1+('Scenario Input'!$AS$15/100)) -> 38.99533994 | L32: 31.80354 | M32: =L32*(1+('Scenario Input'!$AA$15/100)) -> 33.28512245 | N32: =M32*(1+('Scenario Input'!$AD$15/100)) -> 34.14076041 | O32: =N32*(1+('Scenario Input'!$AG$15/100)) -> 34.93172589 | P32: =O32*(1+('Scenario Input'!$AJ$15/100)) -> 35.73009168 | Q32: =P32*(1+('Scenario Input'!$AM$15/100)) -> 36.78693943 | R32: =Q32*(1+('Scenario Input'!$AP$15/100)) -> 37.8750473 | S32: =R32*(1+('Scenario Input'!$AS$15/100)) -> 38.99533994 | T32: 31.80354 | U32: 33.28512245 | V32: 34.14076041 | W32: 34.93172589 | X32: 35.73009168 | Y32: 36.78693943 | Z32: 37.8750473 | AA32: 38.99533994
A33: Imperial Irrigation District | C33: 0 | D33: 55.76545245 | E33: =D33*(1+('Scenario Input'!$AA$15/100)) -> 58.36331154 | F33: =E33*(1+('Scenario Input'!$AD$15/100)) -> 59.86361741 | G33: =F33*(1+('Scenario Input'!$AG$15/100)) -> 61.25052429 | H33: =G33*(1+('Scenario Input'!$AJ$15/100)) -> 62.65040711 | I33: =H33*(1+('Scenario Input'!$AM$15/100)) -> 64.50352135 | J33: =I33*(1+('Scenario Input'!$AP$15/100)) -> 66.4114482 | K33: =J33*(1+('Scenario Input'!$AS$15/100)) -> 68.37580894 | L33: 55.76545245 | M33: =L33*(1+('Scenario Input'!$AA$15/100)) -> 58.36331154 | N33: =M33*(1+('Scenario Input'!$AD$15/100)) -> 59.86361741 | O33: =N33*(1+('Scenario Input'!$AG$15/100)) -> 61.25052429 | P33: =O33*(1+('Scenario Input'!$AJ$15/100)) -> 62.65040711 | Q33: =P33*(1+('Scenario Input'!$AM$15/100)) -> 64.50352135 | R33: =Q33*(1+('Scenario Input'!$AP$15/100)) -> 66.4114482 | S33: =R33*(1+('Scenario Input'!$AS$15/100)) -> 68.37580894 | T33: 55.76545245 | U33: 58.36331154 | V33: 59.86361741 | W33: 61.25052429 | X33: 62.65040711 | Y33: 64.50352135 | Z33: 66.4114482 | AA33: 68.37580894
A34: Kirkwood Meadows Public Utility District | C34: 0 | D34: 172.246 | E34: =D34*(1+('Scenario Input'!$AA$15/100)) -> 180.2701587 | F34: =E34*(1+('Scenario Input'!$AD$15/100)) -> 184.9042408 | G34: =F34*(1+('Scenario Input'!$AG$15/100)) -> 189.1880608 | H34: =G34*(1+('Scenario Input'!$AJ$15/100)) -> 193.5119604 | I34: =H34*(1+('Scenario Input'!$AM$15/100)) -> 199.2357822 | J34: =I34*(1+('Scenario Input'!$AP$15/100)) -> 205.128907 | K34: =J34*(1+('Scenario Input'!$AS$15/100)) -> 211.1963424 | L34: 172.246 | M34: =L34*(1+('Scenario Input'!$AA$15/100)) -> 180.2701587 | N34: =M34*(1+('Scenario Input'!$AD$15/100)) -> 184.9042408 | O34: =N34*(1+('Scenario Input'!$AG$15/100)) -> 189.1880608 | P34: =O34*(1+('Scenario Input'!$AJ$15/100)) -> 193.5119604 | Q34: =P34*(1+('Scenario Input'!$AM$15/100)) -> 199.2357822 | R34: =Q34*(1+('Scenario Input'!$AP$15/100)) -> 205.128907 | S34: =R34*(1+('Scenario Input'!$AS$15/100)) -> 211.1963424 | T34: 172.246 | U34: 180.2701587 | V34: 184.9042408 | W34: 189.1880608 | X34: 193.5119604 | Y34: 199.2357822 | Z34: 205.128907 | AA34: 211.1963424
A35: Lassen Municipal Utility District | C35: 0 | D35: 78.188 | E35: =D35*(1+('Scenario Input'!$AA$15/100)) -> 81.83042373 | F35: =E35*(1+('Scenario Input'!$AD$15/100)) -> 83.93398266 | G35: =F35*(1+('Scenario Input'!$AG$15/100)) -> 85.87854636 | H35: =G35*(1+('Scenario Input'!$AJ$15/100)) -> 87.84130347 | I35: =H35*(1+('Scenario Input'!$AM$15/100)) -> 90.43953032 | J35: =I35*(1+('Scenario Input'!$AP$15/100)) -> 93.11460921 | K35: =J35*(1+('Scenario Input'!$AS$15/100)) -> 95.86881331 | L35: 78.188 | M35: =L35*(1+('Scenario Input'!$AA$15/100)) -> 81.83042373 | N35: =M35*(1+('Scenario Input'!$AD$15/100)) -> 83.93398266 | O35: =N35*(1+('Scenario Input'!$AG$15/100)) -> 85.87854636 | P35: =O35*(1+('Scenario Input'!$AJ$15/100)) -> 87.84130347 | Q35: =P35*(1+('Scenario Input'!$AM$15/100)) -> 90.43953032 | R35: =Q35*(1+('Scenario Input'!$AP$15/100)) -> 93.11460921 | S35: =R35*(1+('Scenario Input'!$AS$15/100)) -> 95.86881331 | T35: 78.188 | U35: 81.83042373 | V35: 83.93398266 | W35: 85.87854636 | X35: 87.84130347 | Y35: 90.43953032 | Z35: 93.11460921 | AA35: 95.86881331
A36: Lathrop Irrigation District | C36: 0 | D36: 86.434 | E36: =D36*(1+('Scenario Input'!$AA$15/100)) -> 90.46056741 | F36: =E36*(1+('Scenario Input'!$AD$15/100)) -> 92.78597556 | G36: =F36*(1+('Scenario Input'!$AG$15/100)) -> 94.93562025 | H36: =G36*(1+('Scenario Input'!$AJ$15/100)) -> 97.10537709 | I36: =H36*(1+('Scenario Input'!$AM$15/100)) -> 99.9776227 | J36: =I36*(1+('Scenario Input'!$AP$15/100)) -> 102.9348255 | K36: =J36*(1+('Scenario Input'!$AS$15/100)) -> 105.9794983 | L36: 86.434 | M36: =L36*(1+('Scenario Input'!$AA$15/100)) -> 90.46056741 | N36: =M36*(1+('Scenario Input'!$AD$15/100)) -> 92.78597556 | O36: =N36*(1+('Scenario Input'!$AG$15/100)) -> 94.93562025 | P36: =O36*(1+('Scenario Input'!$AJ$15/100)) -> 97.10537709 | Q36: =P36*(1+('Scenario Input'!$AM$15/100)) -> 99.9776227 | R36: =Q36*(1+('Scenario Input'!$AP$15/100)) -> 102.9348255 | S36: =R36*(1+('Scenario Input'!$AS$15/100)) -> 105.9794983 | T36: 86.434 | U36: 90.46056741 | V36: 92.78597556 | W36: 94.93562025 | X36: 97.10537709 | Y36: 99.9776227 | Z36: 102.9348255 | AA36: 105.9794983
A37: Liberty 16 | B37: X | C37: 0.1243391713 | D37: 87.90552768 | E37: =D37*(1+('Scenario Input'!$AA$15/100)) -> 92.00064688 | F37: =E37*(1+('Scenario Input'!$AD$15/100)) -> 94.3656448 | G37: =F37*(1+('Scenario Input'!$AG$15/100)) -> 96.55188691 | H37: =G37*(1+('Scenario Input'!$AJ$15/100)) -> 98.75858358 | I37: =H37*(1+('Scenario Input'!$AM$15/100)) -> 101.6797288 | J37: =I37*(1+('Scenario Input'!$AP$15/100)) -> 104.6872776 | K37: =J37*(1+('Scenario Input'!$AS$15/100)) -> 107.7837855 | L37: 121.2973483 | M37: =L37*(1+('Scenario Input'!$AA$15/100)) -> 126.9480407 | N37: =M37*(1+('Scenario Input'!$AD$15/100)) -> 130.2114075 | O37: =N37*(1+('Scenario Input'!$AG$15/100)) -> 133.2281162 | P37: =O37*(1+('Scenario Input'!$AJ$15/100)) -> 136.2730493 | Q37: =P37*(1+('Scenario Input'!$AM$15/100)) -> 140.3038217 | R37: =Q37*(1+('Scenario Input'!$AP$15/100)) -> 144.4538188 | S37: =R37*(1+('Scenario Input'!$AS$15/100)) -> 148.7265672 | T37: 92.05743898 | U37: 96.34597687 | V37: 98.82267722 | W37: 101.1121789 | X37: 103.4231012 | Y37: 106.4822165 | Z37: 109.6318163 | AA37: 112.8745771
A38: Los Angeles Dep of Water & Power | C38: 0 | D38: 97.5925 | E38: =D38*(1+('Scenario Input'!$AA$15/100)) -> 102.1388912 | F38: =E38*(1+('Scenario Input'!$AD$15/100)) -> 104.7645061 | G38: =F38*(1+('Scenario Input'!$AG$15/100)) -> 107.1916667 | H38: =G38*(1+('Scenario Input'!$AJ$15/100)) -> 109.6415359 | I38: =H38*(1+('Scenario Input'!$AM$15/100)) -> 112.8845841 | J38: =I38*(1+('Scenario Input'!$AP$15/100)) -> 116.2235573 | K38: =J38*(1+('Scenario Input'!$AS$15/100)) -> 119.6612928 | L38: 97.5925 | M38: =L38*(1+('Scenario Input'!$AA$15/100)) -> 102.1388912 | N38: =M38*(1+('Scenario Input'!$AD$15/100)) -> 104.7645061 | O38: =N38*(1+('Scenario Input'!$AG$15/100)) -> 107.1916667 | P38: =O38*(1+('Scenario Input'!$AJ$15/100)) -> 109.6415359 | Q38: =P38*(1+('Scenario Input'!$AM$15/100)) -> 112.8845841 | R38: =Q38*(1+('Scenario Input'!$AP$15/100)) -> 116.2235573 | S38: =R38*(1+('Scenario Input'!$AS$15/100)) -> 119.6612928 | T38: 97.5925 | U38: 102.1388912 | V38: 104.7645061 | W38: 107.1916667 | X38: 109.6415359 | Y38: 112.8845841 | Z38: 116.2235573 | AA38: 119.6612928
A39: Merced Irrigation District | C39: 0 | D39: 78.7294 | E39: =D39*(1+('Scenario Input'!$AA$15/100)) -> 82.39704509 | F39: =E39*(1+('Scenario Input'!$AD$15/100)) -> 84.51516977 | G39: =F39*(1+('Scenario Input'!$AG$15/100)) -> 86.47319829 | H39: =G39*(1+('Scenario Input'!$AJ$15/100)) -> 88.44954618 | I39: =H39*(1+('Scenario Input'!$AM$15/100)) -> 91.06576404 | J39: =I39*(1+('Scenario Input'!$AP$15/100)) -> 93.75936607 | K39: =J39*(1+('Scenario Input'!$AS$15/100)) -> 96.53264121 | L39: 78.7294 | M39: =L39*(1+('Scenario Input'!$AA$15/100)) -> 82.39704509 | N39: =M39*(1+('Scenario Input'!$AD$15/100)) -> 84.51516977 | O39: =N39*(1+('Scenario Input'!$AG$15/100)) -> 86.47319829 | P39: =O39*(1+('Scenario Input'!$AJ$15/100)) -> 88.44954618 | Q39: =P39*(1+('Scenario Input'!$AM$15/100)) -> 91.06576404 | R39: =Q39*(1+('Scenario Input'!$AP$15/100)) -> 93.75936607 | S39: =R39*(1+('Scenario Input'!$AS$15/100)) -> 96.53264121 | T39: 78.7294 | U39: 82.39704509 | V39: 84.51516977 | W39: 86.47319829 | X39: 88.44954618 | Y39: 91.06576404 | Z39: 93.75936607 | AA39: 96.53264121
A40: Modesto Irrigation District | C40: 0 | D40: 86.25 | E40: =D40*(1+('Scenario Input'!$AA$15/100)) -> 90.26799568 | F40: =E40*(1+('Scenario Input'!$AD$15/100)) -> 92.58845352 | G40: =F40*(1+('Scenario Input'!$AG$15/100)) -> 94.73352207 | H40: =G40*(1+('Scenario Input'!$AJ$15/100)) -> 96.89865995 | I40: =H40*(1+('Scenario Input'!$AM$15/100)) -> 99.76479115 | J40: =I40*(1+('Scenario Input'!$AP$15/100)) -> 102.7156986 | K40: =J40*(1+('Scenario Input'!$AS$15/100)) -> 105.75389 | L40: 86.25 | M40: =L40*(1+('Scenario Input'!$AA$15/100)) -> 90.26799568 | N40: =M40*(1+('Scenario Input'!$AD$15/100)) -> 92.58845352 | O40: =N40*(1+('Scenario Input'!$AG$15/100)) -> 94.73352207 | P40: =O40*(1+('Scenario Input'!$AJ$15/100)) -> 96.89865995 | Q40: =P40*(1+('Scenario Input'!$AM$15/100)) -> 99.76479115 | R40: =Q40*(1+('Scenario Input'!$AP$15/100)) -> 102.7156986 | S40: =R40*(1+('Scenario Input'!$AS$15/100)) -> 105.75389 | T40: 86.25 | U40: 90.26799568 | V40: 92.58845352 | W40: 94.73352207 | X40: 96.89865995 | Y40: 99.76479115 | Z40: 102.7156986 | AA40: 105.75389
A41: PacCorp DEL NORTE | B41: X | C41: 0.7870019414 | D41: 99.9796447 | E41: =D41*(1+('Scenario Input'!$AA$15/100)) -> 104.6372422 | F41: =E41*(1+('Scenario Input'!$AD$15/100)) -> 107.3270804 | G41: =F41*(1+('Scenario Input'!$AG$15/100)) -> 109.8136102 | H41: =G41*(1+('Scenario Input'!$AJ$15/100)) -> 112.323404 | I41: =H41*(1+('Scenario Input'!$AM$15/100)) -> 115.6457782 | J41: =I41*(1+('Scenario Input'!$AP$15/100)) -> 119.0664238 | K41: =J41*(1+('Scenario Input'!$AS$15/100)) -> 122.5882475 | L41: 124.9559553 | M41: =L41*(1+('Scenario Input'!$AA$15/100)) -> 130.7770856 | N41: =M41*(1+('Scenario Input'!$AD$15/100)) -> 134.1388831 | O41: =N41*(1+('Scenario Input'!$AG$15/100)) -> 137.2465826 | P41: =O41*(1+('Scenario Input'!$AJ$15/100)) -> 140.383358 | Q41: =P41*(1+('Scenario Input'!$AM$15/100)) -> 144.5357077 | R41: =Q41*(1+('Scenario Input'!$AP$15/100)) -> 148.8108783 | S41: =R41*(1+('Scenario Input'!$AS$15/100)) -> 153.2125026 | T41: 119.6360497 | U41: 125.2093497 | V41: 128.4280211 | W41: 131.4034128 | X41: 134.4066422 | Y41: 138.3822088 | Z41: 142.4753672 | AA41: 146.6895957
A42: PacCorp NON-DEL NORTE | B42: X | C42: 0.5663179998 | D42: 90.13505612 | E42: =D42*(1+('Scenario Input'!$AA$15/100)) -> 94.33403892 | F42: =E42*(1+('Scenario Input'!$AD$15/100)) -> 96.75901976 | G42: =F42*(1+('Scenario Input'!$AG$15/100)) -> 99.00071105 | H42: =G42*(1+('Scenario Input'!$AJ$15/100)) -> 101.2633757 | I42: =H42*(1+('Scenario Input'!$AM$15/100)) -> 104.2586093 | J42: =I42*(1+('Scenario Input'!$AP$15/100)) -> 107.3424378 | K42: =J42*(1+('Scenario Input'!$AS$15/100)) -> 110.5174818 | L42: 117.8223149 | M42: =L42*(1+('Scenario Input'!$AA$15/100)) -> 123.3111213 | N42: =M42*(1+('Scenario Input'!$AD$15/100)) -> 126.4809963 | O42: =N42*(1+('Scenario Input'!$AG$15/100)) -> 129.4112797 | P42: =O42*(1+('Scenario Input'!$AJ$15/100)) -> 132.3689789 | Q42: =P42*(1+('Scenario Input'!$AM$15/100)) -> 136.2842741 | R42: =Q42*(1+('Scenario Input'!$AP$15/100)) -> 140.3153784 | S42: =R42*(1+('Scenario Input'!$AS$15/100)) -> 144.4657174 | T42: 105.8148491 | U42: 110.7442823 | V42: 113.59111 | W42: 116.2227634 | X42: 118.8790387 | Y42: 122.3953197 | Z42: 126.0156076 | AA42: 129.7429787
A43: PG&E P | B43: X | C43: 0.5495766022 | D43: 115.4554893 | E43: =D43*(1+('Scenario Input'!$AA$15/100)) -> 120.8340361 | F43: =E43*(1+('Scenario Input'!$AD$15/100)) -> 123.9402343 | G43: =F43*(1+('Scenario Input'!$AG$15/100)) -> 126.8116539 | H43: =G43*(1+('Scenario Input'!$AJ$15/100)) -> 129.7099386 | I43: =H43*(1+('Scenario Input'!$AM$15/100)) -> 133.546583 | J43: =I43*(1+('Scenario Input'!$AP$15/100)) -> 137.4967101 | K43: =J43*(1+('Scenario Input'!$AS$15/100)) -> 141.5636767 | L43: 215.7557889 | M43: =L43*(1+('Scenario Input'!$AA$15/100)) -> 225.806871 | N43: =M43*(1+('Scenario Input'!$AD$15/100)) -> 231.6115343 | O43: =N43*(1+('Scenario Input'!$AG$15/100)) -> 236.9774584 | P43: =O43*(1+('Scenario Input'!$AJ$15/100)) -> 242.3935863 | Q43: =P43*(1+('Scenario Input'!$AM$15/100)) -> 249.5632605 | R43: =Q43*(1+('Scenario Input'!$AP$15/100)) -> 256.945004 | S43: =R43*(1+('Scenario Input'!$AS$15/100)) -> 264.5450894 | T43: 170.5781872 | U43: 178.52465 | V43: 183.1138615 | W43: 187.3562024 | X43: 191.6382348 | Y43: 197.3066344 | Z43: 203.1426976 | AA43: 209.1513836
A44: PG&E Q | B44: X | C44: 0.4904163913 | D44: 103.6324826 | E44: =D44*(1+('Scenario Input'!$AA$15/100)) -> 108.4602491 | F44: =E44*(1+('Scenario Input'!$AD$15/100)) -> 111.2483628 | G44: =F44*(1+('Scenario Input'!$AG$15/100)) -> 113.82574 | H44: =G44*(1+('Scenario Input'!$AJ$15/100)) -> 116.4272311 | I44: =H44*(1+('Scenario Input'!$AM$15/100)) -> 119.870991 | J44: =I44*(1+('Scenario Input'!$AP$15/100)) -> 123.4166127 | K44: =J44*(1+('Scenario Input'!$AS$15/100)) -> 127.0671091 | L44: 194.3465604 | M44: =L44*(1+('Scenario Input'!$AA$15/100)) -> 203.4002838 | N44: =M44*(1+('Scenario Input'!$AD$15/100)) -> 208.6289562 | O44: =N44*(1+('Scenario Input'!$AG$15/100)) -> 213.4624251 | P44: =O44*(1+('Scenario Input'!$AJ$15/100)) -> 218.3411162 | Q44: =P44*(1+('Scenario Input'!$AM$15/100)) -> 224.7993508 | R44: =Q44*(1+('Scenario Input'!$AP$15/100)) -> 231.4486113 | S44: =R44*(1+('Scenario Input'!$AS$15/100)) -> 238.294548 | T44: 148.1201532 | U44: 155.0203983 | V44: 159.005402 | W44: 162.6892036 | X44: 166.4074709 | Y44: 171.3295786 | Z44: 176.3972756 | AA44: 181.6148683
A45: PG&E R | B45: X | C45: 0.1330785689 | D45: 124.7548803 | E45: =D45*(1+('Scenario Input'!$AA$15/100)) -> 130.5666435 | F45: =E45*(1+('Scenario Input'!$AD$15/100)) -> 133.9230312 | G45: =F45*(1+('Scenario Input'!$AG$15/100)) -> 137.02573 | H45: =G45*(1+('Scenario Input'!$AJ$15/100)) -> 140.1574577 | I45: =H45*(1+('Scenario Input'!$AM$15/100)) -> 144.3031256 | J45: =I45*(1+('Scenario Input'!$AP$15/100)) -> 148.5714167 | K45: =J45*(1+('Scenario Input'!$AS$15/100)) -> 152.9659581 | L45: 235.1288046 | M45: =L45*(1+('Scenario Input'!$AA$15/100)) -> 246.0823874 | N45: =M45*(1+('Scenario Input'!$AD$15/100)) -> 252.4082597 | O45: =N45*(1+('Scenario Input'!$AG$15/100)) -> 258.2559976 | P45: =O45*(1+('Scenario Input'!$AJ$15/100)) -> 264.1584473 | Q45: =P45*(1+('Scenario Input'!$AM$15/100)) -> 271.9718966 | R45: =Q45*(1+('Scenario Input'!$AP$15/100)) -> 280.0164572 | S45: =R45*(1+('Scenario Input'!$AS$15/100)) -> 288.2989649 | T45: 139.4432842 | U45: 145.9393134 | V45: 149.6908758 | W45: 153.1588805 | X45: 156.6593319 | Y45: 161.2931029 | Z45: 166.0639346 | AA45: 170.975881
A46: PG&E S | B46: X | C46: 0.1233073401 | D46: 114.8831089 | E46: =D46*(1+('Scenario Input'!$AA$15/100)) -> 120.234991 | F46: =E46*(1+('Scenario Input'!$AD$15/100)) -> 123.32579 | G46: =F46*(1+('Scenario Input'!$AG$15/100)) -> 126.1829743 | H46: =G46*(1+('Scenario Input'!$AJ$15/100)) -> 129.0668905 | I46: =H46*(1+('Scenario Input'!$AM$15/100)) -> 132.8845144 | J46: =I46*(1+('Scenario Input'!$AP$15/100)) -> 136.8150584 | K46: =J46*(1+('Scenario Input'!$AS$15/100)) -> 140.8618627 | L46: 208.9782635 | M46: =L46*(1+('Scenario Input'!$AA$15/100)) -> 218.7136114 | N46: =M46*(1+('Scenario Input'!$AD$15/100)) -> 224.3359331 | O46: =N46*(1+('Scenario Input'!$AG$15/100)) -> 229.5332978 | P46: =O46*(1+('Scenario Input'!$AJ$15/100)) -> 234.7792891 | Q46: =P46*(1+('Scenario Input'!$AM$15/100)) -> 241.7237427 | R46: =Q46*(1+('Scenario Input'!$AP$15/100)) -> 248.8736038 | S46: =R46*(1+('Scenario Input'!$AS$15/100)) -> 256.2349482 | T46: 126.4857321 | U46: 132.3781278 | V46: 135.7810821 | W46: 138.9268278 | X46: 142.1020052 | Y46: 146.3051901 | Z46: 150.6326996 | AA46: 155.088211
A47: PG&E T | B47: X | C47: 0.17410787 | D47: 70.14821928 | E47: =D47*(1+('Scenario Input'!$AA$15/100)) -> 73.41610615 | F47: =E47*(1+('Scenario Input'!$AD$15/100)) -> 75.30336395 | G47: =F47*(1+('Scenario Input'!$AG$15/100)) -> 77.04797541 | H47: =G47*(1+('Scenario Input'!$AJ$15/100)) -> 78.80890952 | I47: =H47*(1+('Scenario Input'!$AM$15/100)) -> 81.13997039 | J47: =I47*(1+('Scenario Input'!$AP$15/100)) -> 83.53998088 | K47: =J47*(1+('Scenario Input'!$AS$15/100)) -> 86.01098044 | L47: 105.6581049 | M47: =L47*(1+('Scenario Input'!$AA$15/100)) -> 110.580236 | N47: =M47*(1+('Scenario Input'!$AD$15/100)) -> 113.4228468 | O47: =N47*(1+('Scenario Input'!$AG$15/100)) -> 116.0506019 | P47: =O47*(1+('Scenario Input'!$AJ$15/100)) -> 118.7029423 | Q47: =P47*(1+('Scenario Input'!$AM$15/100)) -> 122.2140147 | R47: =Q47*(1+('Scenario Input'!$AP$15/100)) -> 125.8289398 | S47: =R47*(1+('Scenario Input'!$AS$15/100)) -> 129.5507895 | T47: 76.33076983 | U47: 79.88667364 | V47: 81.94026591 | W47: 83.83863963 | X47: 85.7547746 | Y47: 88.29128476 | Z47: 90.90282145 | AA47: 93.59160386
A48: PG&E V | B48: X | C48: 0.1528797536 | D48: 75.79797932 | E48: =D48*(1+('Scenario Input'!$AA$15/100)) -> 79.32906284 | F48: =E48*(1+('Scenario Input'!$AD$15/100)) -> 81.36832099 | G48: =F48*(1+('Scenario Input'!$AG$15/100)) -> 83.25344402 | H48: =G48*(1+('Scenario Input'!$AJ$15/100)) -> 85.15620432 | I48: =H48*(1+('Scenario Input'!$AM$15/100)) -> 87.67500958 | J48: =I48*(1+('Scenario Input'!$AP$15/100)) -> 90.26831769 | K48: =J48*(1+('Scenario Input'!$AS$15/100)) -> 92.93833234 | L48: 143.4969698 | M48: =L48*(1+('Scenario Input'!$AA$15/100)) -> 150.1818417 | N48: =M48*(1+('Scenario Input'!$AD$15/100)) -> 154.042464 | O48: =N48*(1+('Scenario Input'!$AG$15/100)) -> 157.6112853 | P48: =O48*(1+('Scenario Input'!$AJ$15/100)) -> 161.2134966 | Q48: =P48*(1+('Scenario Input'!$AM$15/100)) -> 165.9819736 | R48: =Q48*(1+('Scenario Input'!$AP$15/100)) -> 170.8914957 | S48: =R48*(1+('Scenario Input'!$AS$15/100)) -> 175.9462348 | T48: 86.1477843 | U48: 90.16101822 | V48: 92.47872606 | W48: 94.62125247 | X48: 96.78382442 | Y48: 99.64655894 | Z48: 102.5939693 | AA48: 105.62856
A49: PG&E W | B49: X | C49: 0.0754333567 | D49: 125.8154755 | E49: =D49*(1+('Scenario Input'!$AA$15/100)) -> 131.6766469 | F49: =E49*(1+('Scenario Input'!$AD$15/100)) -> 135.0615688 | G49: =F49*(1+('Scenario Input'!$AG$15/100)) -> 138.1906449 | H49: =G49*(1+('Scenario Input'!$AJ$15/100)) -> 141.3489968 | I49: =H49*(1+('Scenario Input'!$AM$15/100)) -> 145.5299088 | J49: =I49*(1+('Scenario Input'!$AP$15/100)) -> 149.8344865 | K49: =J49*(1+('Scenario Input'!$AS$15/100)) -> 154.2663878 | L49: 193.6614897 | M49: =L49*(1+('Scenario Input'!$AA$15/100)) -> 202.6832988 | N49: =M49*(1+('Scenario Input'!$AD$15/100)) -> 207.8935402 | O49: =N49*(1+('Scenario Input'!$AG$15/100)) -> 212.7099711 | P49: =O49*(1+('Scenario Input'!$AJ$15/100)) -> 217.5714648 | Q49: =P49*(1+('Scenario Input'!$AM$15/100)) -> 224.0069342 | R49: =Q49*(1+('Scenario Input'!$AP$15/100)) -> 230.6327561 | S49: =R49*(1+('Scenario Input'!$AS$15/100)) -> 237.4545608 | T49: 130.9333281 | U49: 137.032917 | V49: 140.5555288 | W49: 143.8118878 | X49: 147.0987134 | Y49: 151.4496943 | Z49: 155.9293712 | AA49: 160.541551
A50: PG&E X | B50: X | C50: 0.1533403302 | D50: 94.76775778 | E50: =D50*(1+('Scenario Input'!$AA$15/100)) -> 99.1825571 | F50: =E50*(1+('Scenario Input'!$AD$15/100)) -> 101.7321755 | G50: =F50*(1+('Scenario Input'!$AG$15/100)) -> 104.0890837 | H50: =G50*(1+('Scenario Input'!$AJ$15/100)) -> 106.4680433 | I50: =H50*(1+('Scenario Input'!$AM$15/100)) -> 109.6172239 | J50: =I50*(1+('Scenario Input'!$AP$15/100)) -> 112.859553 | K50: =J50*(1+('Scenario Input'!$AS$15/100)) -> 116.1977858 | L50: 121.0959399 | M50: =L50*(1+('Scenario Input'!$AA$15/100)) -> 126.7372496 | N50: =M50*(1+('Scenario Input'!$AD$15/100)) -> 129.9951977 | O50: =N50*(1+('Scenario Input'!$AG$15/100)) -> 133.0068973 | P50: =O50*(1+('Scenario Input'!$AJ$15/100)) -> 136.0467745 | Q50: =P50*(1+('Scenario Input'!$AM$15/100)) -> 140.0708539 | R50: =Q50*(1+('Scenario Input'!$AP$15/100)) -> 144.2139602 | S50: =R50*(1+('Scenario Input'!$AS$15/100)) -> 148.4796139 | T50: 98.80492991 | U50: 103.4078027 | V50: 106.0660366 | W50: 108.5233508 | X50: 111.0036557 | Y50: 114.2869936 | Z50: 117.6674482 | AA50: 121.147892
A51: PG&E Y | B51: X | C51: 0.6012489613 | D51: 106.4913536 | E51: =D51*(1+('Scenario Input'!$AA$15/100)) -> 111.452302 | F51: =E51*(1+('Scenario Input'!$AD$15/100)) -> 114.3173303 | G51: =F51*(1+('Scenario Input'!$AG$15/100)) -> 116.9658086 | H51: =G51*(1+('Scenario Input'!$AJ$15/100)) -> 119.6390662 | I51: =H51*(1+('Scenario Input'!$AM$15/100)) -> 123.1778278 | J51: =I51*(1+('Scenario Input'!$AP$15/100)) -> 126.8212612 | K51: =J51*(1+('Scenario Input'!$AS$15/100)) -> 130.5724625 | L51: 192.699963 | M51: =L51*(1+('Scenario Input'!$AA$15/100)) -> 201.6769789 | N51: =M51*(1+('Scenario Input'!$AD$15/100)) -> 206.8613516 | O51: =N51*(1+('Scenario Input'!$AG$15/100)) -> 211.653869 | P51: =O51*(1+('Scenario Input'!$AJ$15/100)) -> 216.4912254 | Q51: =P51*(1+('Scenario Input'!$AM$15/100)) -> 222.8947428 | R51: =Q51*(1+('Scenario Input'!$AP$15/100)) -> 229.4876676 | S51: =R51*(1+('Scenario Input'!$AS$15/100)) -> 236.2756022 | T51: 158.3241905 | U51: 165.6997953 | V51: 169.959327 | W51: 173.8969066 | X51: 177.8713263 | Y51: 183.1325194 | Z51: 188.5493314 | AA51: 194.1263654
A52: PG&E Z | B52: X | C52: 0.638029316 | D52: 68.54201791 | E52: =D52*(1+('Scenario Input'!$AA$15/100)) -> 71.73507915 | F52: =E52*(1+('Scenario Input'!$AD$15/100)) -> 73.57912394 | G52: =F52*(1+('Scenario Input'!$AG$15/100)) -> 75.2837886 | H52: =G52*(1+('Scenario Input'!$AJ$15/100)) -> 77.00440215 | I52: =H52*(1+('Scenario Input'!$AM$15/100)) -> 79.28208814 | J52: =I52*(1+('Scenario Input'!$AP$15/100)) -> 81.62714499 | K52: =J52*(1+('Scenario Input'!$AS$15/100)) -> 84.04156545 | L52: 122.1871523 | M52: =L52*(1+('Scenario Input'!$AA$15/100)) -> 127.8792966 | N52: =M52*(1+('Scenario Input'!$AD$15/100)) -> 131.1666026 | O52: =N52*(1+('Scenario Input'!$AG$15/100)) -> 134.205441 | P52: =O52*(1+('Scenario Input'!$AJ$15/100)) -> 137.2727109 | Q52: =P52*(1+('Scenario Input'!$AM$15/100)) -> 141.3330519 | R52: =Q52*(1+('Scenario Input'!$AP$15/100)) -> 145.5134923 | S52: =R52*(1+('Scenario Input'!$AS$15/100)) -> 149.8175844 | T52: 102.7691863 | U52: 107.5567358 | V52: 110.3216235 | W52: 112.8775302 | X52: 115.45735 | Y52: 118.8724221 | Z52: 122.3885075 | AA52: 126.0085938
A53: Pittsburg Power Company | C53: 0.1533403302 | D53: 94.76775778 | E53: =D53*(1+('Scenario Input'!$AA$15/100)) -> 99.1825571 | F53: =E53*(1+('Scenario Input'!$AD$15/100)) -> 101.7321755 | G53: =F53*(1+('Scenario Input'!$AG$15/100)) -> 104.0890837 | H53: =G53*(1+('Scenario Input'!$AJ$15/100)) -> 106.4680433 | I53: =H53*(1+('Scenario Input'!$AM$15/100)) -> 109.6172239 | J53: =I53*(1+('Scenario Input'!$AP$15/100)) -> 112.859553 | K53: =J53*(1+('Scenario Input'!$AS$15/100)) -> 116.1977858 | L53: 121.0959399 | M53: =L53*(1+('Scenario Input'!$AA$15/100)) -> 126.7372496 | N53: =M53*(1+('Scenario Input'!$AD$15/100)) -> 129.9951977 | O53: =N53*(1+('Scenario Input'!$AG$15/100)) -> 133.0068973 | P53: =O53*(1+('Scenario Input'!$AJ$15/100)) -> 136.0467745 | Q53: =P53*(1+('Scenario Input'!$AM$15/100)) -> 140.0708539 | R53: =Q53*(1+('Scenario Input'!$AP$15/100)) -> 144.2139602 | S53: =R53*(1+('Scenario Input'!$AS$15/100)) -> 148.4796139 | T53: 98.80492991 | U53: 103.4078027 | V53: 106.0660366 | W53: 108.5233508 | X53: 111.0036557 | Y53: 114.2869936 | Z53: 117.6674482 | AA53: 121.147892
A54: Plumas-Sierra Rural Elec Coop | C54: 0 | D54: 86.00848 | E54: =D54*(1+('Scenario Input'!$AA$15/100)) -> 90.01522436 | F54: =E54*(1+('Scenario Input'!$AD$15/100)) -> 92.32918438 | G54: =F54*(1+('Scenario Input'!$AG$15/100)) -> 94.46824624 | H54: =G54*(1+('Scenario Input'!$AJ$15/100)) -> 96.62732123 | I54: =H54*(1+('Scenario Input'!$AM$15/100)) -> 99.4854266 | J54: =I54*(1+('Scenario Input'!$AP$15/100)) -> 102.4280709 | K54: =J54*(1+('Scenario Input'!$AS$15/100)) -> 105.4577545 | L54: 86.00848 | M54: =L54*(1+('Scenario Input'!$AA$15/100)) -> 90.01522436 | N54: =M54*(1+('Scenario Input'!$AD$15/100)) -> 92.32918438 | O54: =N54*(1+('Scenario Input'!$AG$15/100)) -> 94.46824624 | P54: =O54*(1+('Scenario Input'!$AJ$15/100)) -> 96.62732123 | Q54: =P54*(1+('Scenario Input'!$AM$15/100)) -> 99.4854266 | R54: =Q54*(1+('Scenario Input'!$AP$15/100)) -> 102.4280709 | S54: =R54*(1+('Scenario Input'!$AS$15/100)) -> 105.4577545 | T54: 86.00848 | U54: 90.01522436 | V54: 92.32918438 | W54: 94.46824624 | X54: 96.62732123 | Y54: 99.4854266 | Z54: 102.4280709 | AA54: 105.4577545
A55: Sacramento Municipal Util Dist | C55: 0 | D55: 76.8731199 | E55: =D55*(1+('Scenario Input'!$AA$15/100)) -> 80.45428934 | F55: =E55*(1+('Scenario Input'!$AD$15/100)) -> 82.52247292 | G55: =F55*(1+('Scenario Input'!$AG$15/100)) -> 84.43433508 | H55: =G55*(1+('Scenario Input'!$AJ$15/100)) -> 86.36408469 | I55: =H55*(1+('Scenario Input'!$AM$15/100)) -> 88.91861741 | J55: =I55*(1+('Scenario Input'!$AP$15/100)) -> 91.54870976 | K55: =J55*(1+('Scenario Input'!$AS$15/100)) -> 94.25659667 | L55: 76.8731199 | M55: =L55*(1+('Scenario Input'!$AA$15/100)) -> 80.45428934 | N55: =M55*(1+('Scenario Input'!$AD$15/100)) -> 82.52247292 | O55: =N55*(1+('Scenario Input'!$AG$15/100)) -> 84.43433508 | P55: =O55*(1+('Scenario Input'!$AJ$15/100)) -> 86.36408469 | Q55: =P55*(1+('Scenario Input'!$AM$15/100)) -> 88.91861741 | R55: =Q55*(1+('Scenario Input'!$AP$15/100)) -> 91.54870976 | S55: =R55*(1+('Scenario Input'!$AS$15/100)) -> 94.25659667 | T55: 76.8731199 | U55: 80.45428934 | V55: 82.52247292 | W55: 84.43433508 | X55: 86.36408469 | Y55: 88.91861741 | Z55: 91.54870976 | AA55: 94.25659667
A56: SCE 10 | B56: X | C56: 0.08890515082 | D56: 98.99109582 | E56: =D56*(1+('Scenario Input'!$AA$15/100)) -> 103.6026413 | F56: =E56*(1+('Scenario Input'!$AD$15/100)) -> 106.2658838 | G56: =F56*(1+('Scenario Input'!$AG$15/100)) -> 108.7278279 | H56: =G56*(1+('Scenario Input'!$AJ$15/100)) -> 111.2128062 | I56: =H56*(1+('Scenario Input'!$AM$15/100)) -> 114.5023304 | J56: =I56*(1+('Scenario Input'!$AP$15/100)) -> 117.8891544 | K56: =J56*(1+('Scenario Input'!$AS$15/100)) -> 121.376156 | L56: 105.9165132 | M56: =L56*(1+('Scenario Input'!$AA$15/100)) -> 110.8506824 | N56: =M56*(1+('Scenario Input'!$AD$15/100)) -> 113.7002453 | O56: =N56*(1+('Scenario Input'!$AG$15/100)) -> 116.3344271 | P56: =O56*(1+('Scenario Input'!$AJ$15/100)) -> 118.9932544 | Q56: =P56*(1+('Scenario Input'!$AM$15/100)) -> 122.5129138 | R56: =Q56*(1+('Scenario Input'!$AP$15/100)) -> 126.13668 | S56: =R56*(1+('Scenario Input'!$AS$15/100)) -> 129.8676322 | T56: 99.6068011 | U56: 104.2470295 | V56: 106.9268368 | W56: 109.4040938 | X56: 111.9045281 | Y56: 115.2145126 | Z56: 118.6224019 | AA56: 122.131092
A57: SCE 13 | B57: X | C57: 0.07174209795 | D57: 108.231992 | E57: =D57*(1+('Scenario Input'!$AA$15/100)) -> 113.2740288 | F57: =E57*(1+('Scenario Input'!$AD$15/100)) -> 116.1858871 | G57: =F57*(1+('Scenario Input'!$AG$15/100)) -> 118.8776557 | H57: =G57*(1+('Scenario Input'!$AJ$15/100)) -> 121.5946086 | I57: =H57*(1+('Scenario Input'!$AM$15/100)) -> 125.1912125 | J57: =I57*(1+('Scenario Input'!$AP$15/100)) -> 128.8941991 | K57: =J57*(1+('Scenario Input'!$AS$15/100)) -> 132.706715 | L57: 156.2771952 | M57: =L57*(1+('Scenario Input'!$AA$15/100)) -> 163.5574398 | N57: =M57*(1+('Scenario Input'!$AD$15/100)) -> 167.7618994 | O57: =N57*(1+('Scenario Input'!$AG$15/100)) -> 171.6485695 | P57: =O57*(1+('Scenario Input'!$AJ$15/100)) -> 175.5716034 | Q57: =P57*(1+('Scenario Input'!$AM$15/100)) -> 180.7647738 | R57: =Q57*(1+('Scenario Input'!$AP$15/100)) -> 186.1115512 | S57: =R57*(1+('Scenario Input'!$AS$15/100)) -> 191.6164789 | T57: 111.6788557 | U57: 116.8814662 | V57: 119.8860584 | W57: 122.6635517 | X57: 125.4670314 | Y57: 129.1781764 | Z57: 132.999092 | AA57: 136.9330251
A58: SCE 14 | B58: X | C58: 0.08354035561 | D58: 97.03355037 | E58: =D58*(1+('Scenario Input'!$AA$15/100)) -> 101.5539027 | F58: =E58*(1+('Scenario Input'!$AD$15/100)) -> 104.1644796 | G58: =F58*(1+('Scenario Input'!$AG$15/100)) -> 106.577739 | H58: =G58*(1+('Scenario Input'!$AJ$15/100)) -> 109.0135768 | I58: =H58*(1+('Scenario Input'!$AM$15/100)) -> 112.2380509 | J58: =I58*(1+('Scenario Input'!$AP$15/100)) -> 115.5579005 | K58: =J58*(1+('Scenario Input'!$AS$15/100)) -> 118.9759468 | L58: 128.9790942 | M58: =L58*(1+('Scenario Input'!$AA$15/100)) -> 134.9876442 | N58: =M58*(1+('Scenario Input'!$AD$15/100)) -> 138.4576796 | O58: =N58*(1+('Scenario Input'!$AG$15/100)) -> 141.6654361 | P58: =O58*(1+('Scenario Input'!$AJ$15/100)) -> 144.9032045 | Q58: =P58*(1+('Scenario Input'!$AM$15/100)) -> 149.1892451 | R58: =Q58*(1+('Scenario Input'!$AP$15/100)) -> 153.6020611 | S58: =R58*(1+('Scenario Input'!$AS$15/100)) -> 158.1454021 | T58: 99.70229245 | U58: 104.3469693 | V58: 107.0293458 | W58: 109.5089776 | X58: 112.0118091 | Y58: 115.3249668 | Z58: 118.7361232 | AA58: 122.248177
A59: SCE 15 | B59: X | C59: 0.1400367881 | D59: 168.7765056 | E59: =D59*(1+('Scenario Input'!$AA$15/100)) -> 176.6390363 | F59: =E59*(1+('Scenario Input'!$AD$15/100)) -> 181.1797756 | G59: =F59*(1+('Scenario Input'!$AG$15/100)) -> 185.3773081 | H59: =G59*(1+('Scenario Input'!$AJ$15/100)) -> 189.6141128 | I59: =H59*(1+('Scenario Input'!$AM$15/100)) -> 195.2226416 | J59: =I59*(1+('Scenario Input'!$AP$15/100)) -> 200.9970631 | K59: =J59*(1+('Scenario Input'!$AS$15/100)) -> 206.9422841 | L59: 133.7209642 | M59: =L59*(1+('Scenario Input'!$AA$15/100)) -> 139.9504164 | N59: =M59*(1+('Scenario Input'!$AD$15/100)) -> 143.5480264 | O59: =N59*(1+('Scenario Input'!$AG$15/100)) -> 146.8737149 | P59: =O59*(1+('Scenario Input'!$AJ$15/100)) -> 150.2305187 | Q59: =P59*(1+('Scenario Input'!$AM$15/100)) -> 154.6741341 | R59: =Q59*(1+('Scenario Input'!$AP$15/100)) -> 159.2491856 | S59: =R59*(1+('Scenario Input'!$AS$15/100)) -> 163.9595609 | T59: 163.8674402 | U59: 171.5012798 | V59: 175.9099463 | W59: 179.9853886 | X59: 184.0989607 | Y59: 189.5443588 | Z59: 195.1508244 | AA59: 200.9231216
A60: SCE 16 | B60: X | C60: 0.1768697936 | D60: 101.1900182 | E60: =D60*(1+('Scenario Input'!$AA$15/100)) -> 105.9040015 | F60: =E60*(1+('Scenario Input'!$AD$15/100)) -> 108.6264035 | G60: =F60*(1+('Scenario Input'!$AG$15/100)) -> 111.1430357 | H60: =G60*(1+('Scenario Input'!$AJ$15/100)) -> 113.6832135 | I60: =H60*(1+('Scenario Input'!$AM$15/100)) -> 117.0458091 | J60: =I60*(1+('Scenario Input'!$AP$15/100)) -> 120.5078657 | K60: =J60*(1+('Scenario Input'!$AS$15/100)) -> 124.0723253 | L60: 122.0565204 | M60: =L60*(1+('Scenario Input'!$AA$15/100)) -> 127.7425792 | N60: =M60*(1+('Scenario Input'!$AD$15/100)) -> 131.0263707 | O60: =N60*(1+('Scenario Input'!$AG$15/100)) -> 134.0619603 | P60: =O60*(1+('Scenario Input'!$AJ$15/100)) -> 137.1259509 | Q60: =P60*(1+('Scenario Input'!$AM$15/100)) -> 141.1819509 | R60: =Q60*(1+('Scenario Input'!$AP$15/100)) -> 145.357922 | S60: =R60*(1+('Scenario Input'!$AS$15/100)) -> 149.6574125 | T60: 104.8806722 | U60: 109.7665862 | V60: 112.5882811 | W60: 115.1967011 | X60: 117.8295257 | Y60: 121.3147635 | Z60: 124.90309 | AA60: 128.5975544
A61: SCE 5 | B61: X | C61: 0.325617284 | D61: 116.403932 | E61: =D61*(1+('Scenario Input'!$AA$15/100)) -> 121.8266624 | F61: =E61*(1+('Scenario Input'!$AD$15/100)) -> 124.9583774 | G61: =F61*(1+('Scenario Input'!$AG$15/100)) -> 127.8533851 | H61: =G61*(1+('Scenario Input'!$AJ$15/100)) -> 130.7754785 | I61: =H61*(1+('Scenario Input'!$AM$15/100)) -> 134.6436402 | J61: =I61*(1+('Scenario Input'!$AP$15/100)) -> 138.6262168 | K61: =J61*(1+('Scenario Input'!$AS$15/100)) -> 142.7265926 | L61: 153.1540895 | M61: =L61*(1+('Scenario Input'!$AA$15/100)) -> 160.2888428 | N61: =M61*(1+('Scenario Input'!$AD$15/100)) -> 164.4092788 | O61: =N61*(1+('Scenario Input'!$AG$15/100)) -> 168.2182761 | P61: =O61*(1+('Scenario Input'!$AJ$15/100)) -> 172.0629106 | Q61: =P61*(1+('Scenario Input'!$AM$15/100)) -> 177.1522985 | R61: =Q61*(1+('Scenario Input'!$AP$15/100)) -> 182.3922237 | S61: =R61*(1+('Scenario Input'!$AS$15/100)) -> 187.7871388 | T61: 128.3704185 | U61: 134.3506131 | V61: 137.8042727 | W61: 140.9968912 | X61: 144.21938 | Y61: 148.4851941 | Z61: 152.8771851 | AA61: 157.3990853
A62: SCE 6 | B62: X | C62: 0.1662288104 | D62: 73.34521943 | E62: =D62*(1+('Scenario Input'!$AA$15/100)) -> 76.76204001 | F62: =E62*(1+('Scenario Input'!$AD$15/100)) -> 78.73530945 | G62: =F62*(1+('Scenario Input'!$AG$15/100)) -> 80.55943146 | H62: =G62*(1+('Scenario Input'!$AJ$15/100)) -> 82.40062001 | I62: =H62*(1+('Scenario Input'!$AM$15/100)) -> 84.83791882 | J62: =I62*(1+('Scenario Input'!$AP$15/100)) -> 87.34730962 | K62: =J62*(1+('Scenario Input'!$AS$15/100)) -> 89.93092481 | L62: 71.83399051 | M62: =L62*(1+('Scenario Input'!$AA$15/100)) -> 75.1804098 | N62: =M62*(1+('Scenario Input'!$AD$15/100)) -> 77.11302136 | O62: =N62*(1+('Scenario Input'!$AG$15/100)) -> 78.89955856 | P62: =O62*(1+('Scenario Input'!$AJ$15/100)) -> 80.70281066 | Q62: =P62*(1+('Scenario Input'!$AM$15/100)) -> 83.08989056 | R62: =Q62*(1+('Scenario Input'!$AP$15/100)) -> 85.54757705 | S62: =R62*(1+('Scenario Input'!$AS$15/100)) -> 88.07795859 | T62: 73.09400964 | U62: 76.4991275 | V62: 78.46563843 | W62: 80.28351276 | X62: 82.11839518 | Y62: 84.54734616 | Z62: 87.04814222 | AA62: 89.62290843
A63: SCE 8 | B63: X | C63: 0.1072509768 | D63: 74.2831776 | E63: =D63*(1+('Scenario Input'!$AA$15/100)) -> 77.74369339 | F63: =E63*(1+('Scenario Input'!$AD$15/100)) -> 79.74219752 | G63: =F63*(1+('Scenario Input'!$AG$15/100)) -> 81.58964689 | H63: =G63*(1+('Scenario Input'!$AJ$15/100)) -> 83.45438105 | I63: =H63*(1+('Scenario Input'!$AM$15/100)) -> 85.92284868 | J63: =I63*(1+('Scenario Input'!$AP$15/100)) -> 88.46433024 | K63: =J63*(1+('Scenario Input'!$AS$15/100)) -> 91.08098539 | L63: 73.62787768 | M63: =L63*(1+('Scenario Input'!$AA$15/100)) -> 77.05786603 | N63: =M63*(1+('Scenario Input'!$AD$15/100)) -> 79.03874006 | O63: =N63*(1+('Scenario Input'!$AG$15/100)) -> 80.86989188 | P63: =O63*(1+('Scenario Input'!$AJ$15/100)) -> 82.71817602 | Q63: =P63*(1+('Scenario Input'!$AM$15/100)) -> 85.1648677 | R63: =Q63*(1+('Scenario Input'!$AP$15/100)) -> 87.68392921 | S63: =R63*(1+('Scenario Input'!$AS$15/100)) -> 90.27750115 | T63: 74.21289604 | U63: 77.67013773 | V63: 79.66675102 | W63: 81.51245246 | X63: 83.37542234 | Y63: 85.84155448 | Z63: 88.38063147 | AA63: 90.99481092
A64: SCE 9 | B64: X | C64: 0.08279485294 | D64: 91.5328889 | E64: =D64*(1+('Scenario Input'!$AA$15/100)) -> 95.79699038 | F64: =E64*(1+('Scenario Input'!$AD$15/100)) -> 98.25957831 | G64: =F64*(1+('Scenario Input'!$AG$15/100)) -> 100.5360342 | H64: =G64*(1+('Scenario Input'!$AJ$15/100)) -> 102.8337887 | I64: =H64*(1+('Scenario Input'!$AM$15/100)) -> 105.875473 | J64: =I64*(1+('Scenario Input'!$AP$15/100)) -> 109.0071262 | K64: =J64*(1+('Scenario Input'!$AS$15/100)) -> 112.2314094 | L64: 86.79492933 | M64: =L64*(1+('Scenario Input'!$AA$15/100)) -> 90.8383108 | N64: =M64*(1+('Scenario Input'!$AD$15/100)) -> 93.17342934 | O64: =N64*(1+('Scenario Input'!$AG$15/100)) -> 95.33205047 | P64: =O64*(1+('Scenario Input'!$AJ$15/100)) -> 97.51086774 | Q64: =P64*(1+('Scenario Input'!$AM$15/100)) -> 100.3951072 | R64: =Q64*(1+('Scenario Input'!$AP$15/100)) -> 103.3646586 | S64: =R64*(1+('Scenario Input'!$AS$15/100)) -> 106.4220453 | T64: 91.14061023 | U64: 95.38643723 | V64: 97.83847136 | W64: 100.1051711 | X64: 102.3930782 | Y64: 105.4217269 | Z64: 108.5399589 | AA64: 111.7504239
A65: SDG&E COASTAL | B65: X | C65: 0.2021512053 | D65: 108.8614671 | E65: =D65*(1+('Scenario Input'!$AA$15/100)) -> 113.9328283 | F65: =E65*(1+('Scenario Input'!$AD$15/100)) -> 116.8616219 | G65: =F65*(1+('Scenario Input'!$AG$15/100)) -> 119.5690457 | H65: =G65*(1+('Scenario Input'!$AJ$15/100)) -> 122.3018004 | I65: =H65*(1+('Scenario Input'!$AM$15/100)) -> 125.9193221 | J65: =I65*(1+('Scenario Input'!$AP$15/100)) -> 129.6438452 | K65: =J65*(1+('Scenario Input'!$AS$15/100)) -> 133.4785346 | L65: 91.13669986 | M65: =L65*(1+('Scenario Input'!$AA$15/100)) -> 95.38234469 | N65: =M65*(1+('Scenario Input'!$AD$15/100)) -> 97.83427361 | O65: =N65*(1+('Scenario Input'!$AG$15/100)) -> 100.1008761 | P65: =O65*(1+('Scenario Input'!$AJ$15/100)) -> 102.3886851 | Q65: =P65*(1+('Scenario Input'!$AM$15/100)) -> 105.4172038 | R65: =Q65*(1+('Scenario Input'!$AP$15/100)) -> 108.535302 | S65: =R65*(1+('Scenario Input'!$AS$15/100)) -> 111.7456293 | T65: 105.278384 | U65: 110.1828257 | V65: 113.0152205 | W65: 115.6335318 | X65: 118.2763401 | Y65: 121.7747942 | Z65: 125.3767277 | AA65: 129.0852016
A66: SDG&E DESERT | B66: X | C66: 0.5020263425 | D66: 155.0579304 | E66: =D66*(1+('Scenario Input'!$AA$15/100)) -> 162.281375 | F66: =E66*(1+('Scenario Input'!$AD$15/100)) -> 166.4530317 | G66: =F66*(1+('Scenario Input'!$AG$15/100)) -> 170.3093782 | H66: =G66*(1+('Scenario Input'!$AJ$15/100)) -> 174.2018048 | I66: =H66*(1+('Scenario Input'!$AM$15/100)) -> 179.3544584 | J66: =I66*(1+('Scenario Input'!$AP$15/100)) -> 184.6595205 | K66: =J66*(1+('Scenario Input'!$AS$15/100)) -> 190.1214992 | L66: 203.6936335 | M66: =L66*(1+('Scenario Input'!$AA$15/100)) -> 213.1827946 | N66: =M66*(1+('Scenario Input'!$AD$15/100)) -> 218.6629393 | O66: =N66*(1+('Scenario Input'!$AG$15/100)) -> 223.7288733 | P66: =O66*(1+('Scenario Input'!$AJ$15/100)) -> 228.8422044 | Q66: =P66*(1+('Scenario Input'!$AM$15/100)) -> 235.611047 | R66: =Q66*(1+('Scenario Input'!$AP$15/100)) -> 242.5801029 | S66: =R66*(1+('Scenario Input'!$AS$15/100)) -> 249.7552939 | T66: 179.4743345 | U66: 187.8352285 | V66: 192.6637807 | W66: 197.127372 | X66: 201.6327248 | Y66: 207.5967478 | Z66: 213.7371786 | AA66: 220.0592351
A67: SDG&E INLAND | B67: X | C67: 0.2222409942 | D67: 118.6180162 | E67: =D67*(1+('Scenario Input'!$AA$15/100)) -> 124.1438907 | F67: =E67*(1+('Scenario Input'!$AD$15/100)) -> 127.3351731 | G67: =F67*(1+('Scenario Input'!$AG$15/100)) -> 130.2852459 | H67: =G67*(1+('Scenario Input'!$AJ$15/100)) -> 133.2629196 | I67: =H67*(1+('Scenario Input'!$AM$15/100)) -> 137.2046564 | J67: =I67*(1+('Scenario Input'!$AP$15/100)) -> 141.2629844 | K67: =J67*(1+('Scenario Input'!$AS$15/100)) -> 145.4413523 | L67: 128.2501132 | M67: =L67*(1+('Scenario Input'!$AA$15/100)) -> 134.2247034 | N67: =M67*(1+('Scenario Input'!$AD$15/100)) -> 137.6751263 | O67: =N67*(1+('Scenario Input'!$AG$15/100)) -> 140.8647528 | P67: =O67*(1+('Scenario Input'!$AJ$15/100)) -> 144.0842216 | Q67: =P67*(1+('Scenario Input'!$AM$15/100)) -> 148.3460378 | R67: =Q67*(1+('Scenario Input'!$AP$15/100)) -> 152.7339128 | S67: =R67*(1+('Scenario Input'!$AS$15/100)) -> 157.2515752 | T67: 120.758663 | U67: 126.3842606 | V67: 129.6331346 | W67: 132.636446 | X67: 135.6678565 | Y67: 139.6807281 | Z67: 143.8122949 | AA67: 148.066068
A68: SDG&E MOUNTAIN | B68: X | C68: 0.3177248589 | D68: 157.5254082 | E68: =D68*(1+('Scenario Input'!$AA$15/100)) -> 164.8638013 | F68: =E68*(1+('Scenario Input'!$AD$15/100)) -> 169.1018427 | G68: =F68*(1+('Scenario Input'!$AG$15/100)) -> 173.0195563 | H68: =G68*(1+('Scenario Input'!$AJ$15/100)) -> 176.9739242 | I68: =H68*(1+('Scenario Input'!$AM$15/100)) -> 182.2085733 | J68: =I68*(1+('Scenario Input'!$AP$15/100)) -> 187.5980563 | K68: =J68*(1+('Scenario Input'!$AS$15/100)) -> 193.1469528 | L68: 229.5338665 | M68: =L68*(1+('Scenario Input'!$AA$15/100)) -> 240.2268066 | N68: =M68*(1+('Scenario Input'!$AD$15/100)) -> 246.4021534 | O68: =N68*(1+('Scenario Input'!$AG$15/100)) -> 252.1107432 | P68: =O68*(1+('Scenario Input'!$AJ$15/100)) -> 257.8727429 | Q68: =P68*(1+('Scenario Input'!$AM$15/100)) -> 265.5002696 | R68: =Q68*(1+('Scenario Input'!$AP$15/100)) -> 273.3534082 | S68: =R68*(1+('Scenario Input'!$AS$15/100)) -> 281.438832 | T68: =(D68*(1-$C68))+(L68*$C68) -> 180.4042854 | U68: =(E68*(1-$C68))+(M68*$C68) -> 188.8085015 | V68: =(F68*(1-$C68))+(N68*$C68) -> 193.662073 | W68: =(G68*(1-$C68))+(O68*$C68) -> 198.1487925 | X68: =(H68*(1-$C68))+(P68*$C68) -> 202.6774899 | Y68: =(I68*(1-$C68))+(Q68*$C68) -> 208.6724157 | Z68: =(J68*(1-$C68))+(R68*$C68) -> 214.8446633 | AA68: =(K68*(1-$C68))+(S68*$C68) -> 221.1994777
A69: Shelter Cove Resort Improvement District | C69: 0 | D69: 275.16 | E69: =D69*(1+('Scenario Input'!$AA$15/100)) -> 287.9784544 | F69: =E69*(1+('Scenario Input'!$AD$15/100)) -> 295.3813202 | G69: =F69*(1+('Scenario Input'!$AG$15/100)) -> 302.2246485 | H69: =G69*(1+('Scenario Input'!$AJ$15/100)) -> 309.1320031 | I69: =H69*(1+('Scenario Input'!$AM$15/100)) -> 318.2757094 | J69: =I69*(1+('Scenario Input'!$AP$15/100)) -> 327.689874 | K69: =J69*(1+('Scenario Input'!$AS$15/100)) -> 337.3824969 | L69: 275.16 | M69: =L69*(1+('Scenario Input'!$AA$15/100)) -> 287.9784544 | N69: =M69*(1+('Scenario Input'!$AD$15/100)) -> 295.3813202 | O69: =N69*(1+('Scenario Input'!$AG$15/100)) -> 302.2246485 | P69: =O69*(1+('Scenario Input'!$AJ$15/100)) -> 309.1320031 | Q69: =P69*(1+('Scenario Input'!$AM$15/100)) -> 318.2757094 | R69: =Q69*(1+('Scenario Input'!$AP$15/100)) -> 327.689874 | S69: =R69*(1+('Scenario Input'!$AS$15/100)) -> 337.3824969 | T69: 275.16 | U69: 287.9784544 | V69: 295.3813202 | W69: 302.2246485 | X69: 309.1320031 | Y69: 318.2757094 | Z69: 327.689874 | AA69: 337.3824969
A70: Surprise Valley Electrification | C70: 0 | D70: 31.4132 | E70: =D70*(1+('Scenario Input'!$AA$15/100)) -> 32.87659828 | F70: =E70*(1+('Scenario Input'!$AD$15/100)) -> 33.72173459 | G70: =F70*(1+('Scenario Input'!$AG$15/100)) -> 34.50299218 | H70: =G70*(1+('Scenario Input'!$AJ$15/100)) -> 35.29155924 | I70: =H70*(1+('Scenario Input'!$AM$15/100)) -> 36.33543579 | J70: =I70*(1+('Scenario Input'!$AP$15/100)) -> 37.4101888 | K70: =J70*(1+('Scenario Input'!$AS$15/100)) -> 38.51673155 | L70: 31.4132 | M70: =L70*(1+('Scenario Input'!$AA$15/100)) -> 32.87659828 | N70: =M70*(1+('Scenario Input'!$AD$15/100)) -> 33.72173459 | O70: =N70*(1+('Scenario Input'!$AG$15/100)) -> 34.50299218 | P70: =O70*(1+('Scenario Input'!$AJ$15/100)) -> 35.29155924 | Q70: =P70*(1+('Scenario Input'!$AM$15/100)) -> 36.33543579 | R70: =Q70*(1+('Scenario Input'!$AP$15/100)) -> 37.4101888 | S70: =R70*(1+('Scenario Input'!$AS$15/100)) -> 38.51673155 | T70: 31.4132 | U70: 32.87659828 | V70: 33.72173459 | W70: 34.50299218 | X70: 35.29155924 | Y70: 36.33543579 | Z70: 37.4101888 | AA70: 38.51673155
A71: Trinity Public Utility District | C71: 0 | D71: 47.91106 | E71: =D71*(1+('Scenario Input'!$AA$15/100)) -> 50.14301864 | F71: =E71*(1+('Scenario Input'!$AD$15/100)) -> 51.43201104 | G71: =F71*(1+('Scenario Input'!$AG$15/100)) -> 52.62357634 | H71: =G71*(1+('Scenario Input'!$AJ$15/100)) -> 53.82628998 | I71: =H71*(1+('Scenario Input'!$AM$15/100)) -> 55.41839878 | J71: =I71*(1+('Scenario Input'!$AP$15/100)) -> 57.0576 | K71: =J71*(1+('Scenario Input'!$AS$15/100)) -> 58.74528658 | L71: 47.91106 | M71: =L71*(1+('Scenario Input'!$AA$15/100)) -> 50.14301864 | N71: =M71*(1+('Scenario Input'!$AD$15/100)) -> 51.43201104 | O71: =N71*(1+('Scenario Input'!$AG$15/100)) -> 52.62357634 | P71: =O71*(1+('Scenario Input'!$AJ$15/100)) -> 53.82628998 | Q71: =P71*(1+('Scenario Input'!$AM$15/100)) -> 55.41839878 | R71: =Q71*(1+('Scenario Input'!$AP$15/100)) -> 57.0576 | S71: =R71*(1+('Scenario Input'!$AS$15/100)) -> 58.74528658 | T71: 47.91106 | U71: 50.14301864 | V71: 51.43201104 | W71: 52.62357634 | X71: 53.82628998 | Y71: 55.41839878 | Z71: 57.0576 | AA71: 58.74528658
A72: Truckee Donner P U D | C72: 0 | D72: 47.8276 | E72: =D72*(1+('Scenario Input'!$AA$15/100)) -> 50.05567061 | F72: =E72*(1+('Scenario Input'!$AD$15/100)) -> 51.34241762 | G72: =F72*(1+('Scenario Input'!$AG$15/100)) -> 52.53190725 | H72: =G72*(1+('Scenario Input'!$AJ$15/100)) -> 53.73252578 | I72: =H72*(1+('Scenario Input'!$AM$15/100)) -> 55.32186116 | J72: =I72*(1+('Scenario Input'!$AP$15/100)) -> 56.95820693 | K72: =J72*(1+('Scenario Input'!$AS$15/100)) -> 58.64295359 | L72: 47.8276 | M72: =L72*(1+('Scenario Input'!$AA$15/100)) -> 50.05567061 | N72: =M72*(1+('Scenario Input'!$AD$15/100)) -> 51.34241762 | O72: =N72*(1+('Scenario Input'!$AG$15/100)) -> 52.53190725 | P72: =O72*(1+('Scenario Input'!$AJ$15/100)) -> 53.73252578 | Q72: =P72*(1+('Scenario Input'!$AM$15/100)) -> 55.32186116 | R72: =Q72*(1+('Scenario Input'!$AP$15/100)) -> 56.95820693 | S72: =R72*(1+('Scenario Input'!$AS$15/100)) -> 58.64295359 | T72: 47.8276 | U72: 50.05567061 | V72: 51.34241762 | W72: 52.53190725 | X72: 53.73252578 | Y72: 55.32186116 | Z72: 56.95820693 | AA72: 58.64295359
A73: Turlock Irrigation District | C73: 0 | D73: 90.01 | E73: =D73*(1+('Scenario Input'!$AA$15/100)) -> 94.203157 | F73: =E73*(1+('Scenario Input'!$AD$15/100)) -> 96.62477335 | G73: =F73*(1+('Scenario Input'!$AG$15/100)) -> 98.86335445 | H73: =G73*(1+('Scenario Input'!$AJ$15/100)) -> 101.1228798 | I73: =H73*(1+('Scenario Input'!$AM$15/100)) -> 104.1139577 | J73: =I73*(1+('Scenario Input'!$AP$15/100)) -> 107.1935076 | K73: =J73*(1+('Scenario Input'!$AS$15/100)) -> 110.3641465 | L73: 90.01 | M73: =L73*(1+('Scenario Input'!$AA$15/100)) -> 94.203157 | N73: =M73*(1+('Scenario Input'!$AD$15/100)) -> 96.62477335 | O73: =N73*(1+('Scenario Input'!$AG$15/100)) -> 98.86335445 | P73: =O73*(1+('Scenario Input'!$AJ$15/100)) -> 101.1228798 | Q73: =P73*(1+('Scenario Input'!$AM$15/100)) -> 104.1139577 | R73: =Q73*(1+('Scenario Input'!$AP$15/100)) -> 107.1935076 | S73: =R73*(1+('Scenario Input'!$AS$15/100)) -> 110.3641465 | T73: 90.01 | U73: 94.203157 | V73: 96.62477335 | W73: 98.86335445 | X73: 101.1228798 | Y73: 104.1139577 | Z73: 107.1935076 | AA73: 110.3641465
A74: Valley Electric Assn, Inc | C74: 0 | D74: 77.58956 | E74: =D74*(1+('Scenario Input'!$AA$15/100)) -> 81.20410513 | F74: =E74*(1+('Scenario Input'!$AD$15/100)) -> 83.29156371 | G74: =F74*(1+('Scenario Input'!$AG$15/100)) -> 85.22124399 | H74: =G74*(1+('Scenario Input'!$AJ$15/100)) -> 87.16897843 | I74: =H74*(1+('Scenario Input'!$AM$15/100)) -> 89.74731882 | J74: =I74*(1+('Scenario Input'!$AP$15/100)) -> 92.40192303 | K74: =J74*(1+('Scenario Input'!$AS$15/100)) -> 95.13504684 | L74: 77.58956 | M74: =L74*(1+('Scenario Input'!$AA$15/100)) -> 81.20410513 | N74: =M74*(1+('Scenario Input'!$AD$15/100)) -> 83.29156371 | O74: =N74*(1+('Scenario Input'!$AG$15/100)) -> 85.22124399 | P74: =O74*(1+('Scenario Input'!$AJ$15/100)) -> 87.16897843 | Q74: =P74*(1+('Scenario Input'!$AM$15/100)) -> 89.74731882 | R74: =Q74*(1+('Scenario Input'!$AP$15/100)) -> 92.40192303 | S74: =R74*(1+('Scenario Input'!$AS$15/100)) -> 95.13504684 | T74: 77.58956 | U74: 81.20410513 | V74: 83.29156371 | W74: 85.22124399 | X74: 87.16897843 | Y74: 89.74731882 | Z74: 92.40192303 | AA74: 95.13504684

Sheet Gas Input
A1: Gas Provider and Climate Zone | B1: 2022 Essential Usage Bill ($/month) | C1: 2023 Essential Usage Bill ($/month) | D1: 2024 Essential Usage Bill ($/month) | E1: 2025 Essential Usage Bill ($/month) | F1: 2026 Essential Usage Bill ($/month) | G1: 2027 Essential Usage Bill ($/month) | H1: 2028 Essential Usage Bill ($/month) | I1: 2029 Essential Usage Bill ($/month)
A2: City of Coalinga | B2: 55.9 | C2: =B2*(1+('Scenario Input'!$AA$15/100)) -> 58.50412706 | D2: =C2*(1+('Scenario Input'!$AD$15/100)) -> 60.00805278 | E2: =D2*(1+('Scenario Input'!$AG$15/100)) -> 61.3983059 | F2: =E2*(1+('Scenario Input'!$AJ$15/100)) -> 62.80156627 | G2: =F2*(1+('Scenario Input'!$AM$15/100)) -> 64.6591516 | H2: =G2*(1+('Scenario Input'!$AP$15/100)) -> 66.57168178 | I2: =H2*(1+('Scenario Input'!$AS$15/100)) -> 68.54078201
A3: City of Palo Alto Ultilities | B3: 67.12 | C3: =B3*(1+('Scenario Input'!$AA$15/100)) -> 70.24681589 | D3: =C3*(1+('Scenario Input'!$AD$15/100)) -> 72.0526029 | E3: =D3*(1+('Scenario Input'!$AG$15/100)) -> 73.72190146 | F3: =E3*(1+('Scenario Input'!$AJ$15/100)) -> 75.40681804 | G3: =F3*(1+('Scenario Input'!$AM$15/100)) -> 77.63724964 | H3: =G3*(1+('Scenario Input'!$AP$15/100)) -> 79.9336544 | I3: =H3*(1+('Scenario Input'!$AS$15/100)) -> 82.2979837
A4: City of Susanville | B4: 95.17 | C4: =B4*(1+('Scenario Input'!$AA$15/100)) -> 99.60353796 | D4: =C4*(1+('Scenario Input'!$AD$15/100)) -> 102.1639782 | E4: =D4*(1+('Scenario Input'!$AG$15/100)) -> 104.5308904 | F4: =E4*(1+('Scenario Input'!$AJ$15/100)) -> 106.9199474 | G4: =F4*(1+('Scenario Input'!$AM$15/100)) -> 110.0824948 | H4: =G4*(1+('Scenario Input'!$AP$15/100)) -> 113.338586 | I4: =H4*(1+('Scenario Input'!$AS$15/100)) -> 116.6909879
A5: City of Vernon Gas System | B5: 64.19 | C5: =B5*(1+('Scenario Input'!$AA$15/100)) -> 67.1803205 | D5: =C5*(1+('Scenario Input'!$AD$15/100)) -> 68.90727921 | E5: =D5*(1+('Scenario Input'!$AG$15/100)) -> 70.50370761 | F5: =E5*(1+('Scenario Input'!$AJ$15/100)) -> 72.11507225 | G5: =F5*(1+('Scenario Input'!$AM$15/100)) -> 74.24813848 | H5: =G5*(1+('Scenario Input'!$AP$15/100)) -> 76.44429791 | I5: =H5*(1+('Scenario Input'!$AS$15/100)) -> 78.70541677
A6: Island Energy | B6: 67.12 | C6: =B6*(1+('Scenario Input'!$AA$15/100)) -> 70.24681589 | D6: =C6*(1+('Scenario Input'!$AD$15/100)) -> 72.0526029 | E6: =D6*(1+('Scenario Input'!$AG$15/100)) -> 73.72190146 | F6: =E6*(1+('Scenario Input'!$AJ$15/100)) -> 75.40681804 | G6: =F6*(1+('Scenario Input'!$AM$15/100)) -> 77.63724964 | H6: =G6*(1+('Scenario Input'!$AP$15/100)) -> 79.9336544 | I6: =H6*(1+('Scenario Input'!$AS$15/100)) -> 82.2979837
A7: Long Beach Gas & Oil | B7: 64.19 | C7: =B7*(1+('Scenario Input'!$AA$15/100)) -> 67.1803205 | D7: =C7*(1+('Scenario Input'!$AD$15/100)) -> 68.90727921 | E7: =D7*(1+('Scenario Input'!$AG$15/100)) -> 70.50370761 | F7: =E7*(1+('Scenario Input'!$AJ$15/100)) -> 72.11507225 | G7: =F7*(1+('Scenario Input'!$AM$15/100)) -> 74.24813848 | H7: =G7*(1+('Scenario Input'!$AP$15/100)) -> 76.44429791 | I7: =H7*(1+('Scenario Input'!$AS$15/100)) -> 78.70541677
A8: PG&E P | B8: 72.27843478 | C8: =B8*(1+('Scenario Input'!$AA$15/100)) -> 75.64555871 | D8: =C8*(1+('Scenario Input'!$AD$15/100)) -> 77.59012753 | E8: =D8*(1+('Scenario Input'!$AG$15/100)) -> 79.38771821 | F8: =E8*(1+('Scenario Input'!$AJ$15/100)) -> 81.20212722 | G8: =F8*(1+('Scenario Input'!$AM$15/100)) -> 83.60397623 | H8: =G8*(1+('Scenario Input'!$AP$15/100)) -> 86.07686869 | I8: =H8*(1+('Scenario Input'!$AS$15/100)) -> 88.62290595
A9: PG&E Q | B9: 69.7922445 | C9: =B9*(1+('Scenario Input'!$AA$15/100)) -> 73.04354812 | D9: =C9*(1+('Scenario Input'!$AD$15/100)) -> 74.92122883 | E9: =D9*(1+('Scenario Input'!$AG$15/100)) -> 76.65698707 | F9: =E9*(1+('Scenario Input'!$AJ$15/100)) -> 78.40898513 | G9: =F9*(1+('Scenario Input'!$AM$15/100)) -> 80.72821677 | H9: =G9*(1+('Scenario Input'!$AP$15/100)) -> 83.11604815 | I9: =H9*(1+('Scenario Input'!$AS$15/100)) -> 85.57450835
A10: PG&E R | B10: 55.89556229 | C10: =B10*(1+('Scenario Input'!$AA$15/100)) -> 58.49948262 | D10: =C10*(1+('Scenario Input'!$AD$15/100)) -> 60.00328894 | E10: =D10*(1+('Scenario Input'!$AG$15/100)) -> 61.39343169 | F10: =E10*(1+('Scenario Input'!$AJ$15/100)) -> 62.79658067 | G10: =F10*(1+('Scenario Input'!$AM$15/100)) -> 64.65401853 | H10: =G10*(1+('Scenario Input'!$AP$15/100)) -> 66.56639688 | I10: =H10*(1+('Scenario Input'!$AS$15/100)) -> 68.5353408
A11: PG&E S | B11: 60.92474456 | C11: =B11*(1+('Scenario Input'!$AA$15/100)) -> 63.76295164 | D11: =C11*(1+('Scenario Input'!$AD$15/100)) -> 65.40206237 | E11: =D11*(1+('Scenario Input'!$AG$15/100)) -> 66.9172827 | F11: =E11*(1+('Scenario Input'!$AJ$15/100)) -> 68.44667948 | G11: =F11*(1+('Scenario Input'!$AM$15/100)) -> 70.47123961 | H11: =G11*(1+('Scenario Input'!$AP$15/100)) -> 72.55568349 | I11: =H11*(1+('Scenario Input'!$AS$15/100)) -> 74.7017824
A12: PG&E T | B12: 63.16367859 | C12: =B12*(1+('Scenario Input'!$AA$15/100)) -> 66.10618743 | D12: =C12*(1+('Scenario Input'!$AD$15/100)) -> 67.80553413 | E12: =D12*(1+('Scenario Input'!$AG$15/100)) -> 69.37643756 | F12: =E12*(1+('Scenario Input'!$AJ$15/100)) -> 70.9620384 | G12: =F12*(1+('Scenario Input'!$AM$15/100)) -> 73.06099945 | H12: =G12*(1+('Scenario Input'!$AP$15/100)) -> 75.22204492 | I12: =H12*(1+('Scenario Input'!$AS$15/100)) -> 77.44701118
A13: PG&E V | B13: 68.02389746 | C13: =B13*(1+('Scenario Input'!$AA$15/100)) -> 71.19282182 | D13: =C13*(1+('Scenario Input'!$AD$15/100)) -> 73.02292717 | E13: =D13*(1+('Scenario Input'!$AG$15/100)) -> 74.71470598 | F13: =E13*(1+('Scenario Input'!$AJ$15/100)) -> 76.42231314 | G13: =F13*(1+('Scenario Input'!$AM$15/100)) -> 78.68278172 | H13: =G13*(1+('Scenario Input'!$AP$15/100)) -> 81.0101119 | I13: =H13*(1+('Scenario Input'!$AS$15/100)) -> 83.40628135
A14: PG&E W | B14: 53.82576655 | C14: =B14*(1+('Scenario Input'!$AA$15/100)) -> 56.3332645 | D14: =C14*(1+('Scenario Input'!$AD$15/100)) -> 57.78138533 | E14: =D14*(1+('Scenario Input'!$AG$15/100)) -> 59.12005152 | F14: =E14*(1+('Scenario Input'!$AJ$15/100)) -> 60.47124231 | G14: =F14*(1+('Scenario Input'!$AM$15/100)) -> 62.25989981 | H14: =G14*(1+('Scenario Input'!$AP$15/100)) -> 64.10146337 | I14: =H14*(1+('Scenario Input'!$AS$15/100)) -> 65.99749789
A15: PG&E X | B15: 67.12443686 | C15: =B15*(1+('Scenario Input'!$AA$15/100)) -> 70.25145944 | D15: =C15*(1+('Scenario Input'!$AD$15/100)) -> 72.05736582 | E15: =D15*(1+('Scenario Input'!$AG$15/100)) -> 73.72677473 | F15: =E15*(1+('Scenario Input'!$AJ$15/100)) -> 75.41180268 | G15: =F15*(1+('Scenario Input'!$AM$15/100)) -> 77.64238173 | H15: =G15*(1+('Scenario Input'!$AP$15/100)) -> 79.93893829 | I15: =H15*(1+('Scenario Input'!$AS$15/100)) -> 82.30342388
A16: PG&E Y | B16: 95.16736213 | C16: =B16*(1+('Scenario Input'!$AA$15/100)) -> 99.6007772 | D16: =C16*(1+('Scenario Input'!$AD$15/100)) -> 102.1611465 | E16: =D16*(1+('Scenario Input'!$AG$15/100)) -> 104.527993 | F16: =E16*(1+('Scenario Input'!$AJ$15/100)) -> 106.9169839 | G16: =F16*(1+('Scenario Input'!$AM$15/100)) -> 110.0794436 | H16: =G16*(1+('Scenario Input'!$AP$15/100)) -> 113.3354445 | I16: =H16*(1+('Scenario Input'!$AS$15/100)) -> 116.6877535
A17: SCG 1 | B17: 64.18552462 | C17: =B17*(1+('Scenario Input'!$AA$15/100)) -> 67.17563663 | D17: =C17*(1+('Scenario Input'!$AD$15/100)) -> 68.90247493 | E17: =D17*(1+('Scenario Input'!$AG$15/100)) -> 70.49879203 | F17: =E17*(1+('Scenario Input'!$AJ$15/100)) -> 72.11004433 | G17: =F17*(1+('Scenario Input'!$AM$15/100)) -> 74.24296184 | H17: =G17*(1+('Scenario Input'!$AP$15/100)) -> 76.43896815 | I17: =H17*(1+('Scenario Input'!$AS$15/100)) -> 78.69992936
A18: SCG 2 | B18: 67.81841365 | C18: =B18*(1+('Scenario Input'!$AA$15/100)) -> 70.97776545 | D18: =C18*(1+('Scenario Input'!$AD$15/100)) -> 72.80234249 | E18: =D18*(1+('Scenario Input'!$AG$15/100)) -> 74.48901085 | F18: =E18*(1+('Scenario Input'!$AJ$15/100)) -> 76.19145974 | G18: =F18*(1+('Scenario Input'!$AM$15/100)) -> 78.44509998 | H18: =G18*(1+('Scenario Input'!$AP$15/100)) -> 80.76539986 | I18: =H18*(1+('Scenario Input'!$AS$15/100)) -> 83.15433106
A19: SCG 3 | B19: 98.83557982 | C19: =B19*(1+('Scenario Input'!$AA$15/100)) -> 103.4398805 | D19: =C19*(1+('Scenario Input'!$AD$15/100)) -> 106.098939 | E19: =D19*(1+('Scenario Input'!$AG$15/100)) -> 108.5570154 | F19: =E19*(1+('Scenario Input'!$AJ$15/100)) -> 111.0380897 | G19: =F19*(1+('Scenario Input'!$AM$15/100)) -> 114.3224461 | H19: =G19*(1+('Scenario Input'!$AP$15/100)) -> 117.7039493 | I19: =H19*(1+('Scenario Input'!$AS$15/100)) -> 121.1854728
A20: SDG&E COASTAL | B20: 70.49501645 | C20: =B20*(1+('Scenario Input'!$AA$15/100)) -> 73.77905902 | D20: =C20*(1+('Scenario Input'!$AD$15/100)) -> 75.675647 | E20: =D20*(1+('Scenario Input'!$AG$15/100)) -> 77.42888344 | F20: =E20*(1+('Scenario Input'!$AJ$15/100)) -> 79.19852321 | G20: =F20*(1+('Scenario Input'!$AM$15/100)) -> 81.54110832 | H20: =G20*(1+('Scenario Input'!$AP$15/100)) -> 83.95298394 | I20: =H20*(1+('Scenario Input'!$AS$15/100)) -> 86.43619956
A21: SDG&E DESERT | B21: 70.49501645 | C21: =B21*(1+('Scenario Input'!$AA$15/100)) -> 73.77905902 | D21: =C21*(1+('Scenario Input'!$AD$15/100)) -> 75.675647 | E21: =D21*(1+('Scenario Input'!$AG$15/100)) -> 77.42888344 | F21: =E21*(1+('Scenario Input'!$AJ$15/100)) -> 79.19852321 | G21: =F21*(1+('Scenario Input'!$AM$15/100)) -> 81.54110832 | H21: =G21*(1+('Scenario Input'!$AP$15/100)) -> 83.95298394 | I21: =H21*(1+('Scenario Input'!$AS$15/100)) -> 86.43619956
A22: SDG&E INLAND | B22: 70.49501645 | C22: =B22*(1+('Scenario Input'!$AA$15/100)) -> 73.77905902 | D22: =C22*(1+('Scenario Input'!$AD$15/100)) -> 75.675647 | E22: =D22*(1+('Scenario Input'!$AG$15/100)) -> 77.42888344 | F22: =E22*(1+('Scenario Input'!$AJ$15/100)) -> 79.19852321 | G22: =F22*(1+('Scenario Input'!$AM$15/100)) -> 81.54110832 | H22: =G22*(1+('Scenario Input'!$AP$15/100)) -> 83.95298394 | I22: =H22*(1+('Scenario Input'!$AS$15/100)) -> 86.43619956
A23: SDG&E MOUNTAIN | B23: 70.49501645 | C23: =B23*(1+('Scenario Input'!$AA$15/100)) -> 73.77905902 | D23: =C23*(1+('Scenario Input'!$AD$15/100)) -> 75.675647 | E23: =D23*(1+('Scenario Input'!$AG$15/100)) -> 77.42888344 | F23: =E23*(1+('Scenario Input'!$AJ$15/100)) -> 79.19852321 | G23: =F23*(1+('Scenario Input'!$AM$15/100)) -> 81.54110832 | H23: =G23*(1+('Scenario Input'!$AP$15/100)) -> 83.95298394 | I23: =H23*(1+('Scenario Input'!$AS$15/100)) -> 86.43619956
A24: SWG_Barstow | B24: 67.16285427 | C24: =B24*(1+('Scenario Input'!$AA$15/100)) -> 70.29166654 | D24: =C24*(1+('Scenario Input'!$AD$15/100)) -> 72.0986065 | E24: =D24*(1+('Scenario Input'!$AG$15/100)) -> 73.76897086 | F24: =E24*(1+('Scenario Input'!$AJ$15/100)) -> 75.45496321 | G24: =F24*(1+('Scenario Input'!$AM$15/100)) -> 77.68681888 | H24: =G24*(1+('Scenario Input'!$AP$15/100)) -> 79.98468983 | I24: =H24*(1+('Scenario Input'!$AS$15/100)) -> 82.35052869
A25: SWG_Victorville | B25: 67.94742859 | C25: =B25*(1+('Scenario Input'!$AA$15/100)) -> 71.11279062 | D25: =C25*(1+('Scenario Input'!$AD$15/100)) -> 72.94083866 | E25: =D25*(1+('Scenario Input'!$AG$15/100)) -> 74.63071566 | F25: =E25*(1+('Scenario Input'!$AJ$15/100)) -> 76.33640321 | G25: =F25*(1+('Scenario Input'!$AM$15/100)) -> 78.59433069 | H25: =G25*(1+('Scenario Input'!$AP$15/100)) -> 80.91904461 | I25: =H25*(1+('Scenario Input'!$AS$15/100)) -> 83.31252042
A26: SWG_Big_Bear | B26: 85.34332 | C26: =B26*(1+('Scenario Input'!$AA$15/100)) -> 89.31907758 | D26: =C26*(1+('Scenario Input'!$AD$15/100)) -> 91.61514223 | E26: =D26*(1+('Scenario Input'!$AG$15/100)) -> 93.73766131 | F26: =E26*(1+('Scenario Input'!$AJ$15/100)) -> 95.88003876 | G26: =F26*(1+('Scenario Input'!$AM$15/100)) -> 98.71604053 | H26: =G26*(1+('Scenario Input'!$AP$15/100)) -> 101.6359274 | I26: =H26*(1+('Scenario Input'!$AS$15/100)) -> 104.6421805
A27: SWG_NLT | B27: 107.2810819 | C27: =B27*(1+('Scenario Input'!$AA$15/100)) -> 112.2788202 | D27: =C27*(1+('Scenario Input'!$AD$15/100)) -> 115.1650953 | E27: =D27*(1+('Scenario Input'!$AG$15/100)) -> 117.8332144 | F27: =E27*(1+('Scenario Input'!$AJ$15/100)) -> 120.5262965 | G27: =F27*(1+('Scenario Input'!$AM$15/100)) -> 124.0913012 | H27: =G27*(1+('Scenario Input'!$AP$15/100)) -> 127.7617539 | I27: =H27*(1+('Scenario Input'!$AS$15/100)) -> 131.5407737
A28: SWG_Truckee | B28: 117.9694575 | C28: =B28*(1+('Scenario Input'!$AA$15/100)) -> 123.4651187 | D28: =C28*(1+('Scenario Input'!$AD$15/100)) -> 126.6389523 | E28: =D28*(1+('Scenario Input'!$AG$15/100)) -> 129.5728952 | F28: =E28*(1+('Scenario Input'!$AJ$15/100)) -> 132.5342881 | G28: =F28*(1+('Scenario Input'!$AM$15/100)) -> 136.454473 | H28: =G28*(1+('Scenario Input'!$AP$15/100)) -> 140.4906116 | I28: =H28*(1+('Scenario Input'!$AS$15/100)) -> 144.6461337
A29: SWG_SLT | B29: 106.9077447 | C29: =B29*(1+('Scenario Input'!$AA$15/100)) -> 111.8880908 | D29: =C29*(1+('Scenario Input'!$AD$15/100)) -> 114.7643217 | E29: =D29*(1+('Scenario Input'!$AG$15/100)) -> 117.4231558 | F29: =E29*(1+('Scenario Input'!$AJ$15/100)) -> 120.106866 | G29: =F29*(1+('Scenario Input'!$AM$15/100)) -> 123.6594646 | H29: =G29*(1+('Scenario Input'!$AP$15/100)) -> 127.3171441 | I29: =H29*(1+('Scenario Input'!$AS$15/100)) -> 131.0830129
A30: SWG_Needles | B30: 35.05088139 | C30: =B30*(1+('Scenario Input'!$AA$15/100)) -> 36.68374273 | D30: =C30*(1+('Scenario Input'!$AD$15/100)) -> 37.6267467 | E30: =D30*(1+('Scenario Input'!$AG$15/100)) -> 38.49847473 | F30: =E30*(1+('Scenario Input'!$AJ$15/100)) -> 39.37835869 | G30: =F30*(1+('Scenario Input'!$AM$15/100)) -> 40.54311723 | H30: =G30*(1+('Scenario Input'!$AP$15/100)) -> 41.74232776 | I30: =H30*(1+('Scenario Input'!$AS$15/100)) -> 42.97700932

Sheet Water Input
A1: PWSID | B1: Name | C1: 2022 Essential Usage Bill ($/month) | D1: 2023 Essential Usage Bill ($/month) | E1: 2024 Essential Usage Bill ($/month) | F1: 2025 Essential Usage Bill ($/month) | G1: 2026 Essential Usage Bill ($/month) | H1: 2027 Essential Usage Bill ($/month) | I1: 2028 Essential Usage Bill ($/month) | J1: 2029 Essential Usage Bill ($/month)
A2: CWS_Bakersfield | B2: CALIFORNIA WATER SERVICE - BAKERSFIELD | C2: 33.5 | D2: =C2*(1+('Scenario Input'!$AA$15/100)) -> 35.06061282 | E2: =D2*(1+('Scenario Input'!$AD$15/100)) -> 35.96189209 | F2: =E2*(1+('Scenario Input'!$AG$15/100)) -> 36.79504915 | G2: =F2*(1+('Scenario Input'!$AJ$15/100)) -> 37.63600125 | H2: =G2*(1+('Scenario Input'!$AM$15/100)) -> 38.74922323 | I2: =H2*(1+('Scenario Input'!$AP$15/100)) -> 39.8953728 | J2: =I2*(1+('Scenario Input'!$AS$15/100)) -> 41.07542393
A3: CWS_Bay_Area | B3: CALIFORNIA WATER SERVICE - BAY AREA REGION | C3: 71.57 | D3: =C3*(1+('Scenario Input'!$AA$15/100)) -> 74.90412117 | E3: =D3*(1+('Scenario Input'!$AD$15/100)) -> 76.82963036 | F3: =E3*(1+('Scenario Input'!$AG$15/100)) -> 78.60960202 | G3: =F3*(1+('Scenario Input'!$AJ$15/100)) -> 80.40622716 | H3: =G3*(1+('Scenario Input'!$AM$15/100)) -> 82.78453452 | I3: =H3*(1+('Scenario Input'!$AP$15/100)) -> 85.233189 | J3: =I3*(1+('Scenario Input'!$AS$15/100)) -> 87.75427136
A4: CWS_BearGulch | B4: CALIFORNIA WATER SERVICE - BEAR GULCH | C4: 82.12 | D4: =C4*(1+('Scenario Input'!$AA$15/100)) -> 85.94559775 | E4: =D4*(1+('Scenario Input'!$AD$15/100)) -> 88.15494265 | F4: =E4*(1+('Scenario Input'!$AG$15/100)) -> 90.1972966 | G4: =F4*(1+('Scenario Input'!$AJ$15/100)) -> 92.2587589 | H4: =G4*(1+('Scenario Input'!$AM$15/100)) -> 94.9876481 | I4: =H4*(1+('Scenario Input'!$AP$15/100)) -> 97.79725416 | J4: =I4*(1+('Scenario Input'!$AS$15/100)) -> 100.6899646
A5: CWS_Chico | B5: CALIFORNIA WATER SERVICE - CHICO | C5: 29.25 | D5: =C5*(1+('Scenario Input'!$AA$15/100)) -> 30.61262462 | E5: =D5*(1+('Scenario Input'!$AD$15/100)) -> 31.3995625 | F5: =E5*(1+('Scenario Input'!$AG$15/100)) -> 32.12702053 | G5: =F5*(1+('Scenario Input'!$AJ$15/100)) -> 32.86128468 | H5: =G5*(1+('Scenario Input'!$AM$15/100)) -> 33.833277 | I5: =H5*(1+('Scenario Input'!$AP$15/100)) -> 34.83401954 | J5: =I5*(1+('Scenario Input'!$AS$15/100)) -> 35.86436268
A6: CWS_Dixon | B6: CALIFORNIA WATER SERVICE - DIXON | C6: 72.46 | D6: =C6*(1+('Scenario Input'!$AA$15/100)) -> 75.83558223 | E6: =D6*(1+('Scenario Input'!$AD$15/100)) -> 77.78503585 | F6: =E6*(1+('Scenario Input'!$AG$15/100)) -> 79.58714213 | G6: =F6*(1+('Scenario Input'!$AJ$15/100)) -> 81.40610898 | H6: =G6*(1+('Scenario Input'!$AM$15/100)) -> 83.8139915 | I6: =H6*(1+('Scenario Input'!$AP$15/100)) -> 86.29309592 | J6: =I6*(1+('Scenario Input'!$AS$15/100)) -> 88.84552889
A7: CWS_Dominguez | B7: CALIFORNIA WATER SERVICE - DOMINGUEZ | C7: 49.15 | D7: =C7*(1+('Scenario Input'!$AA$15/100)) -> 51.43967522 | E7: =D7*(1+('Scenario Input'!$AD$15/100)) -> 52.76199989 | F7: =E7*(1+('Scenario Input'!$AG$15/100)) -> 53.98437808 | G7: =F7*(1+('Scenario Input'!$AJ$15/100)) -> 55.21819289 | H7: =G7*(1+('Scenario Input'!$AM$15/100)) -> 56.85147229 | I7: =H7*(1+('Scenario Input'!$AP$15/100)) -> 58.53306189 | J7: =I7*(1+('Scenario Input'!$AS$15/100)) -> 60.26439063
A8: CWS_EastLA | B8: CALIFORNIA WATER SERVICE - EAST LA | C8: 54.86 | D8: =C8*(1+('Scenario Input'!$AA$15/100)) -> 57.41567818 | E8: =D8*(1+('Scenario Input'!$AD$15/100)) -> 58.89162389 | F8: =E8*(1+('Scenario Input'!$AG$15/100)) -> 60.25601183 | G8: =F8*(1+('Scenario Input'!$AJ$15/100)) -> 61.63316504 | H8: =G8*(1+('Scenario Input'!$AM$15/100)) -> 63.45619064 | I8: =H8*(1+('Scenario Input'!$AP$15/100)) -> 65.33313886 | J8: =I8*(1+('Scenario Input'!$AS$15/100)) -> 67.26560468
A9: CWS_HermosaRedondo | B9: CALIFORNIA WATER SERVICE - HERMOSA REDONDO | C9: 52.62 | D9: =C9*(1+('Scenario Input'!$AA$15/100)) -> 55.07132676 | E9: =D9*(1+('Scenario Input'!$AD$15/100)) -> 56.48700782 | F9: =E9*(1+('Scenario Input'!$AG$15/100)) -> 57.79568616 | G9: =F9*(1+('Scenario Input'!$AJ$15/100)) -> 59.11660854 | H9: =G9*(1+('Scenario Input'!$AM$15/100)) -> 60.8651978 | I9: =H9*(1+('Scenario Input'!$AP$15/100)) -> 62.66550796 | J9: =I9*(1+('Scenario Input'!$AS$15/100)) -> 64.51906887
A10: CWS_KernValley | B10: CALIFORNIA WATER SERVICE - KERN VALLEY | C10: 111.69 | D10: =C10*(1+('Scenario Input'!$AA$15/100)) -> 116.8931297 | E10: =D10*(1+('Scenario Input'!$AD$15/100)) -> 119.8980217 | F10: =E10*(1+('Scenario Input'!$AG$15/100)) -> 122.6757922 | G10: =F10*(1+('Scenario Input'!$AJ$15/100)) -> 125.4795516 | H10: =G10*(1+('Scenario Input'!$AM$15/100)) -> 129.1910669 | I10: =H10*(1+('Scenario Input'!$AP$15/100)) -> 133.0123638 | J10: =I10*(1+('Scenario Input'!$AS$15/100)) -> 136.9466895
A11: CWS_Livermore | B11: CALIFORNIA WATER SERVICE - LIVERMORE | C11: 60.01 | D11: =C11*(1+('Scenario Input'!$AA$15/100)) -> 62.80559329 | E11: =D11*(1+('Scenario Input'!$AD$15/100)) -> 64.42009387 | F11: =E11*(1+('Scenario Input'!$AG$15/100)) -> 65.91256416 | G11: =F11*(1+('Scenario Input'!$AJ$15/100)) -> 67.41899807 | H11: =G11*(1+('Scenario Input'!$AM$15/100)) -> 69.41316077 | I11: =H11*(1+('Scenario Input'!$AP$15/100)) -> 71.46630811 | J11: =I11*(1+('Scenario Input'!$AS$15/100)) -> 73.58018477
A12: CWS_LosAltos | B12: CALIFORNIA WATER SERVICE - LOS ALTOS | C12: 68.25 | D12: =C12*(1+('Scenario Input'!$AA$15/100)) -> 71.42945745 | E12: =D12*(1+('Scenario Input'!$AD$15/100)) -> 73.26564583 | F12: =E12*(1+('Scenario Input'!$AG$15/100)) -> 74.9630479 | G12: =F12*(1+('Scenario Input'!$AJ$15/100)) -> 76.67633091 | H12: =G12*(1+('Scenario Input'!$AM$15/100)) -> 78.94431299 | I12: =H12*(1+('Scenario Input'!$AP$15/100)) -> 81.27937892 | J12: =I12*(1+('Scenario Input'!$AS$15/100)) -> 83.68351293
A13: CWS_Marysville | B13: CALIFORNIA WATER SERVICE - MARYSVILLE | C13: 47.14 | D13: =C13*(1+('Scenario Input'!$AA$15/100)) -> 49.33603845 | E13: =D13*(1+('Scenario Input'!$AD$15/100)) -> 50.60428637 | F13: =E13*(1+('Scenario Input'!$AG$15/100)) -> 51.77667513 | G13: =F13*(1+('Scenario Input'!$AJ$15/100)) -> 52.96003281 | H13: =G13*(1+('Scenario Input'!$AM$15/100)) -> 54.52651889 | I13: =H13*(1+('Scenario Input'!$AP$15/100)) -> 56.13933952 | J13: =I13*(1+('Scenario Input'!$AS$15/100)) -> 57.79986519
A14: CWS_Monterey | B14: CALIFORNIA WATER SERVICE - SALINAS | C14: 39.24 | D14: =C14*(1+('Scenario Input'!$AA$15/100)) -> 41.06801334 | E14: =D14*(1+('Scenario Input'!$AD$15/100)) -> 42.12372077 | F14: =E14*(1+('Scenario Input'!$AG$15/100)) -> 43.09963369 | G14: =F14*(1+('Scenario Input'!$AJ$15/100)) -> 44.08467729 | H14: =G14*(1+('Scenario Input'!$AM$15/100)) -> 45.38864237 | I14: =H14*(1+('Scenario Input'!$AP$15/100)) -> 46.73117698 | J14: =I14*(1+('Scenario Input'!$AS$15/100)) -> 48.11342194
A15: CWS_Oroville | B15: CALIFORNIA WATER SERVICE - OROVILLE | C15: 48.52 | D15: =C15*(1+('Scenario Input'!$AA$15/100)) -> 50.78032638 | E15: =D15*(1+('Scenario Input'!$AD$15/100)) -> 52.08570162 | F15: =E15*(1+('Scenario Input'!$AG$15/100)) -> 53.29241149 | G15: =F15*(1+('Scenario Input'!$AJ$15/100)) -> 54.51041137 | H15: =G15*(1+('Scenario Input'!$AM$15/100)) -> 56.12275555 | I15: =H15*(1+('Scenario Input'!$AP$15/100)) -> 57.7827907 | J15: =I15*(1+('Scenario Input'!$AS$15/100)) -> 59.49192743
A16: CWS_Selma | B16: CALIFORNIA WATER SERVICE - SELMA | C16: 35.45 | D16: =C16*(1+('Scenario Input'!$AA$15/100)) -> 37.10145446 | E16: =D16*(1+('Scenario Input'!$AD$15/100)) -> 38.05519626 | F16: =E16*(1+('Scenario Input'!$AG$15/100)) -> 38.93685052 | G16: =F16*(1+('Scenario Input'!$AJ$15/100)) -> 39.82675357 | H16: =G16*(1+('Scenario Input'!$AM$15/100)) -> 41.00477503 | I16: =H16*(1+('Scenario Input'!$AP$15/100)) -> 42.21764077 | J16: =I16*(1+('Scenario Input'!$AS$15/100)) -> 43.46638144
A17: CWS_Stockton | B17: CALIFORNIA WATER SERVICE - STOCKTON | C17: 51.59 | D17: =C17*(1+('Scenario Input'!$AA$15/100)) -> 53.99334374 | E17: =D17*(1+('Scenario Input'!$AD$15/100)) -> 55.38131382 | F17: =E17*(1+('Scenario Input'!$AG$15/100)) -> 56.66437569 | G17: =F17*(1+('Scenario Input'!$AJ$15/100)) -> 57.95944193 | H17: =G17*(1+('Scenario Input'!$AM$15/100)) -> 59.67380377 | I17: =H17*(1+('Scenario Input'!$AP$15/100)) -> 61.43887411 | J17: =I17*(1+('Scenario Input'!$AS$15/100)) -> 63.25615285
A18: CWS_Visalia | B18: CALIFORNIA WATER SERVICE - VISALIA | C18: 19.79 | D18: =C18*(1+('Scenario Input'!$AA$15/100)) -> 20.7119262 | E18: =D18*(1+('Scenario Input'!$AD$15/100)) -> 21.24435357 | F18: =E18*(1+('Scenario Input'!$AG$15/100)) -> 21.73653799 | G18: =F18*(1+('Scenario Input'!$AJ$15/100)) -> 22.23332731 | H18: =G18*(1+('Scenario Input'!$AM$15/100)) -> 22.89095904 | I18: =H18*(1+('Scenario Input'!$AP$15/100)) -> 23.56804262 | J18: =I18*(1+('Scenario Input'!$AS$15/100)) -> 24.26515342
A19: CWS_Westlake | B19: CALIFORNIA WATER SERVICE - WESTLAKE | C19: 58.54 | D19: =C19*(1+('Scenario Input'!$AA$15/100)) -> 61.26711267 | E19: =D19*(1+('Scenario Input'!$AD$15/100)) -> 62.84206457 | F19: =E19*(1+('Scenario Input'!$AG$15/100)) -> 64.29797544 | G19: =F19*(1+('Scenario Input'!$AJ$15/100)) -> 65.76750786 | H19: =G19*(1+('Scenario Input'!$AM$15/100)) -> 67.71282172 | I19: =H19*(1+('Scenario Input'!$AP$15/100)) -> 69.71567534 | J19: =I19*(1+('Scenario Input'!$AS$15/100)) -> 71.77777065
A20: CWS_Willows | B20: CALIFORNIA WATER SERVICE - WILLOWS | C20: 61.48 | D20: =C20*(1+('Scenario Input'!$AA$15/100)) -> 64.34407391 | E20: =D20*(1+('Scenario Input'!$AD$15/100)) -> 65.99812316 | F20: =E20*(1+('Scenario Input'!$AG$15/100)) -> 67.52715289 | G20: =F20*(1+('Scenario Input'!$AJ$15/100)) -> 69.07048827 | H20: =G20*(1+('Scenario Input'!$AM$15/100)) -> 71.11349982 | I20: =H20*(1+('Scenario Input'!$AP$15/100)) -> 73.21694089 | J20: =I20*(1+('Scenario Input'!$AS$15/100)) -> 75.3825989
A21: GreatOaks | B21: GREAT OAKS WATER COMPANY | C21: 44.65 | D21: =C21*(1+('Scenario Input'!$AA$15/100)) -> 46.73004066 | E21: =D21*(1+('Scenario Input'!$AD$15/100)) -> 47.93129797 | F21: =E21*(1+('Scenario Input'!$AG$15/100)) -> 49.04175954 | G21: =F21*(1+('Scenario Input'!$AJ$15/100)) -> 50.16261063 | H21: =G21*(1+('Scenario Input'!$AM$15/100)) -> 51.64635275 | I21: =H21*(1+('Scenario Input'!$AP$15/100)) -> 53.17398196 | J21: =I21*(1+('Scenario Input'!$AS$15/100)) -> 54.74679637
A22: GSWC_ArdenCordova | B22: GOLDEN STATE - ARDEN-CORDOVA | C22: 27.23 | D22: =C22*(1+('Scenario Input'!$AA$15/100)) -> 28.498522 | E22: =D22*(1+('Scenario Input'!$AD$15/100)) -> 29.23111408 | F22: =E22*(1+('Scenario Input'!$AG$15/100)) -> 29.90833398 | G22: =F22*(1+('Scenario Input'!$AJ$15/100)) -> 30.59188998 | H22: =G22*(1+('Scenario Input'!$AM$15/100)) -> 31.49675667 | I22: =H22*(1+('Scenario Input'!$AP$15/100)) -> 32.4283881 | J22: =I22*(1+('Scenario Input'!$AS$15/100)) -> 33.38757593
A23: GSWC_BayPoint | B23: GOLDEN STATE - BAY POINT | C23: 64.11 | D23: =C23*(1+('Scenario Input'!$AA$15/100)) -> 67.09659366 | E23: =D23*(1+('Scenario Input'!$AD$15/100)) -> 68.82140006 | F23: =E23*(1+('Scenario Input'!$AG$15/100)) -> 70.41583884 | G23: =F23*(1+('Scenario Input'!$AJ$15/100)) -> 72.02519524 | H23: =G23*(1+('Scenario Input'!$AM$15/100)) -> 74.15560302 | I23: =H23*(1+('Scenario Input'!$AP$15/100)) -> 76.34902538 | J23: =I23*(1+('Scenario Input'!$AS$15/100)) -> 78.60732621
A24: GSWC_ClearLake | B24: GOLDEN STATE - CLEARLAKE | C24: 104.42 | D24: =C24*(1+('Scenario Input'!$AA$15/100)) -> 109.2844534 | E24: =D24*(1+('Scenario Input'!$AD$15/100)) -> 112.0937544 | F24: =E24*(1+('Scenario Input'!$AG$15/100)) -> 114.6907174 | G24: =F24*(1+('Scenario Input'!$AJ$15/100)) -> 117.3119776 | H24: =G24*(1+('Scenario Input'!$AM$15/100)) -> 120.7819071 | I24: =H24*(1+('Scenario Input'!$AP$15/100)) -> 124.3544725 | J24: =I24*(1+('Scenario Input'!$AS$15/100)) -> 128.0327094
A25: GSWC_LosOsos | B25: GOLDEN STATE - LOS OSOS | C25: 92.4 | D25: =C25*(1+('Scenario Input'!$AA$15/100)) -> 96.70449625 | E25: =D25*(1+('Scenario Input'!$AD$15/100)) -> 99.19041282 | F25: =E25*(1+('Scenario Input'!$AG$15/100)) -> 101.4884341 | G25: =F25*(1+('Scenario Input'!$AJ$15/100)) -> 103.8079557 | H25: =G25*(1+('Scenario Input'!$AM$15/100)) -> 106.8784545 | I25: =H25*(1+('Scenario Input'!$AP$15/100)) -> 110.0397745 | J25: =I25*(1+('Scenario Input'!$AS$15/100)) -> 113.2946021
A26: GSWC_SantaMaria | B26: GOLDEN STATE - SANTA MARIA | C26: 42.47 | D26: =C26*(1+('Scenario Input'!$AA$15/100)) -> 44.44848437 | E26: =D26*(1+('Scenario Input'!$AD$15/100)) -> 45.59109126 | F26: =E26*(1+('Scenario Input'!$AG$15/100)) -> 46.64733545 | G26: =F26*(1+('Scenario Input'!$AJ$15/100)) -> 47.71346189 | H26: =G26*(1+('Scenario Input'!$AM$15/100)) -> 49.12476151 | I26: =H26*(1+('Scenario Input'!$AP$15/100)) -> 50.57780546 | J26: =I26*(1+('Scenario Input'!$AS$15/100)) -> 52.07382848
A27: GSWC_SimiValley | B27: GOLDEN STATE - SIMI VALLEY | C27: 47.27 | D27: =C27*(1+('Scenario Input'!$AA$15/100)) -> 49.47209456 | E27: =D27*(1+('Scenario Input'!$AD$15/100)) -> 50.74383998 | F27: =E27*(1+('Scenario Input'!$AG$15/100)) -> 51.91946189 | G27: =F27*(1+('Scenario Input'!$AJ$15/100)) -> 53.10608296 | H27: =G27*(1+('Scenario Input'!$AM$15/100)) -> 54.67688901 | I27: =H27*(1+('Scenario Input'!$AP$15/100)) -> 56.29415738 | J27: =I27*(1+('Scenario Input'!$AS$15/100)) -> 57.95926236
A28: GSWC_Region3 | B28: GOLDEN STATE - REGION 3 | C28: 42.81 | D28: =C28*(1+('Scenario Input'!$AA$15/100)) -> 44.80432342 | E28: =D28*(1+('Scenario Input'!$AD$15/100)) -> 45.95607763 | F28: =E28*(1+('Scenario Input'!$AG$15/100)) -> 47.02077774 | G28: =F28*(1+('Scenario Input'!$AJ$15/100)) -> 48.09543922 | H28: =G28*(1+('Scenario Input'!$AM$15/100)) -> 49.51803721 | I28: =H28*(1+('Scenario Input'!$AP$15/100)) -> 50.98271372 | J28: =I28*(1+('Scenario Input'!$AS$15/100)) -> 52.49071338
A29: LU_MesaCrest | B29: LIBERTY UTILITIES - MESA CREST | C29: 56.41 | D29: =C29*(1+('Scenario Input'!$AA$15/100)) -> 59.03788564 | E29: =D29*(1+('Scenario Input'!$AD$15/100)) -> 60.55553233 | F29: =E29*(1+('Scenario Input'!$AG$15/100)) -> 61.95846933 | G29: =F29*(1+('Scenario Input'!$AJ$15/100)) -> 63.37453226 | H29: =G29*(1+('Scenario Input'!$AM$15/100)) -> 65.24906514 | I29: =H29*(1+('Scenario Input'!$AP$15/100)) -> 67.17904417 | J29: =I29*(1+('Scenario Input'!$AS$15/100)) -> 69.16610936
A30: LU_Park | B30: LIBERTY UTILITIES - PARK | C30: 66.34 | D30: =C30*(1+('Scenario Input'!$AA$15/100)) -> 69.43047923 | E30: =D30*(1+('Scenario Input'!$AD$15/100)) -> 71.21528124 | F30: =E30*(1+('Scenario Input'!$AG$15/100)) -> 72.86518091 | G30: =F30*(1+('Scenario Input'!$AJ$15/100)) -> 74.53051711 | H30: =G30*(1+('Scenario Input'!$AM$15/100)) -> 76.73502892 | I30: =H30*(1+('Scenario Input'!$AP$15/100)) -> 79.00474721 | J30: =I30*(1+('Scenario Input'!$AS$15/100)) -> 81.3416007
A31: LU_Yermo | B31: LIBERTY UTILITIES - YERMO | C31: 66.34 | D31: =C31*(1+('Scenario Input'!$AA$15/100)) -> 69.43047923 | E31: =D31*(1+('Scenario Input'!$AD$15/100)) -> 71.21528124 | F31: =E31*(1+('Scenario Input'!$AG$15/100)) -> 72.86518091 | G31: =F31*(1+('Scenario Input'!$AJ$15/100)) -> 74.53051711 | H31: =G31*(1+('Scenario Input'!$AM$15/100)) -> 76.73502892 | I31: =H31*(1+('Scenario Input'!$AP$15/100)) -> 79.00474721 | J31: =I31*(1+('Scenario Input'!$AS$15/100)) -> 81.3416007
A32: SWS_SJH | B32: SUBURBAN WATER SYSTEMS-SAN JOSE | C32: 44.5 | D32: =C32*(1+('Scenario Input'!$AA$15/100)) -> 46.57305285 | E32: =D32*(1+('Scenario Input'!$AD$15/100)) -> 47.77027457 | F32: =E32*(1+('Scenario Input'!$AG$15/100)) -> 48.87700559 | G32: =F32*(1+('Scenario Input'!$AJ$15/100)) -> 49.99409122 | H32: =G32*(1+('Scenario Input'!$AM$15/100)) -> 51.47284877 | I32: =H32*(1+('Scenario Input'!$AP$15/100)) -> 52.99534596 | J32: =I32*(1+('Scenario Input'!$AS$15/100)) -> 54.56287656
A33: SWS_WLM | B33: SUBURBAN WATER SYSTEMS-WHITTER,LA MIRADA | C33: 44.26 | D33: =C33*(1+('Scenario Input'!$AA$15/100)) -> 46.32187234 | E33: =D33*(1+('Scenario Input'!$AD$15/100)) -> 47.51263714 | F33: =E33*(1+('Scenario Input'!$AG$15/100)) -> 48.61339927 | G33: =F33*(1+('Scenario Input'!$AJ$15/100)) -> 49.72446017 | H33: =G33*(1+('Scenario Input'!$AM$15/100)) -> 51.19524239 | I33: =H33*(1+('Scenario Input'!$AP$15/100)) -> 52.70952836 | J33: =I33*(1+('Scenario Input'!$AS$15/100)) -> 54.26860487
A34: SGVWC_Fontana | B34: SAN GABRIEL VALLEY - FONTANA | C34: 46.57 | D34: =C34*(1+('Scenario Input'!$AA$15/100)) -> 48.73948474 | E34: =D34*(1+('Scenario Input'!$AD$15/100)) -> 49.99239746 | F34: =E34*(1+('Scenario Input'!$AG$15/100)) -> 51.15061012 | G34: =F34*(1+('Scenario Input'!$AJ$15/100)) -> 52.31965906 | H34: =G34*(1+('Scenario Input'!$AM$15/100)) -> 53.86720375 | I34: =H34*(1+('Scenario Input'!$AP$15/100)) -> 55.46052273 | J34: =I34*(1+('Scenario Input'!$AS$15/100)) -> 57.10096992
A35: SGVWC_LA | B35: SAN GABRIEL VALLEY - LA | C35: 53.42 | D35: =C35*(1+('Scenario Input'!$AA$15/100)) -> 55.90859512 | E35: =D35*(1+('Scenario Input'!$AD$15/100)) -> 57.34579927 | F35: =E35*(1+('Scenario Input'!$AG$15/100)) -> 58.6743739 | G35: =F35*(1+('Scenario Input'!$AJ$15/100)) -> 60.01537872 | H35: =G35*(1+('Scenario Input'!$AM$15/100)) -> 61.79055238 | I35: =H35*(1+('Scenario Input'!$AP$15/100)) -> 63.61823328 | J35: =I35*(1+('Scenario Input'!$AS$15/100)) -> 65.49997451
A36: SanJoseWater | B36: San Jose Water Company | C36: 75.73 | D36: =C36*(1+('Scenario Input'!$AA$15/100)) -> 79.25791667 | E36: =D36*(1+('Scenario Input'!$AD$15/100)) -> 81.29534592 | F36: =E36*(1+('Scenario Input'!$AG$15/100)) -> 83.17877827 | G36: =F36*(1+('Scenario Input'!$AJ$15/100)) -> 85.07983209 | H36: =G36*(1+('Scenario Input'!$AM$15/100)) -> 87.59637836 | I36: =H36*(1+('Scenario Input'!$AP$15/100)) -> 90.18736066 | J36: =I36*(1+('Scenario Input'!$AS$15/100)) -> 92.85498072
A37: LU_AV | B37: LIBERTY UTILITIES - APPLE VALLEY | C37: 56.41 | D37: =C37*(1+('Scenario Input'!$AA$15/100)) -> 59.03788564 | E37: =D37*(1+('Scenario Input'!$AD$15/100)) -> 60.55553233 | F37: =E37*(1+('Scenario Input'!$AG$15/100)) -> 61.95846933 | G37: =F37*(1+('Scenario Input'!$AJ$15/100)) -> 63.37453226 | H37: =G37*(1+('Scenario Input'!$AM$15/100)) -> 65.24906514 | I37: =H37*(1+('Scenario Input'!$AP$15/100)) -> 67.17904417 | J37: =I37*(1+('Scenario Input'!$AS$15/100)) -> 69.16610936
A38: GSWC_Region2 | B38: GOLDEN STATE - REGION 2 | C38: 50.15 | D38: =C38*(1+('Scenario Input'!$AA$15/100)) -> 52.48626068 | E38: =D38*(1+('Scenario Input'!$AD$15/100)) -> 53.83548921 | F38: =E38*(1+('Scenario Input'!$AG$15/100)) -> 55.08273776 | G38: =F38*(1+('Scenario Input'!$AJ$15/100)) -> 56.34165561 | H38: =G38*(1+('Scenario Input'!$AM$15/100)) -> 58.00816552 | I38: =H38*(1+('Scenario Input'!$AP$15/100)) -> 59.72396854 | J38: =I38*(1+('Scenario Input'!$AS$15/100)) -> 61.49052268
A39: CWS_LAV_AV | B39: CALIFORNIA WATER SERVICE - ANTELOPE VALLEY | C39: 68.25 | D39: =C39*(1+('Scenario Input'!$AA$15/100)) -> 71.42945745 | E39: =D39*(1+('Scenario Input'!$AD$15/100)) -> 73.26564583 | F39: =E39*(1+('Scenario Input'!$AG$15/100)) -> 74.9630479 | G39: =F39*(1+('Scenario Input'!$AJ$15/100)) -> 76.67633091 | H39: =G39*(1+('Scenario Input'!$AM$15/100)) -> 78.94431299 | I39: =H39*(1+('Scenario Input'!$AP$15/100)) -> 81.27937892 | J39: =I39*(1+('Scenario Input'!$AS$15/100)) -> 83.68351293
A40: CWS_LAV_PV | B40: CALIFORNIA WATER SERVICE - PALOS VERDES | C40: 71.9 | D40: =C40*(1+('Scenario Input'!$AA$15/100)) -> 75.24949437 | E40: =D40*(1+('Scenario Input'!$AD$15/100)) -> 77.18388184 | F40: =E40*(1+('Scenario Input'!$AG$15/100)) -> 78.97206071 | G40: =F40*(1+('Scenario Input'!$AJ$15/100)) -> 80.77696986 | H40: =G40*(1+('Scenario Input'!$AM$15/100)) -> 83.16624329 | I40: =H40*(1+('Scenario Input'!$AP$15/100)) -> 85.62618819 | J40: =I40*(1+('Scenario Input'!$AS$15/100)) -> 88.15889494
A41: CalAm_BH | B41: CALIFORNIA AMERICAN WATER - BALDWIN HILLS | C41: 48.43 | D41: =C41*(1+('Scenario Input'!$AA$15/100)) -> 50.68613369 | E41: =D41*(1+('Scenario Input'!$AD$15/100)) -> 51.98908758 | F41: =E41*(1+('Scenario Input'!$AG$15/100)) -> 53.19355912 | G41: =F41*(1+('Scenario Input'!$AJ$15/100)) -> 54.40929972 | H41: =G41*(1+('Scenario Input'!$AM$15/100)) -> 56.01865316 | I41: =H41*(1+('Scenario Input'!$AP$15/100)) -> 57.6756091 | J41: =I41*(1+('Scenario Input'!$AS$15/100)) -> 59.38157555
A42: CalAm_CS | B42: CALIFORNIA AMERICAN WATER - CENTRAL SATELLITE | C42: 63.97 | D42: =C42*(1+('Scenario Input'!$AA$15/100)) -> 66.9500717 | E42: =D42*(1+('Scenario Input'!$AD$15/100)) -> 68.67111156 | F42: =E42*(1+('Scenario Input'!$AG$15/100)) -> 70.26206848 | G42: =F42*(1+('Scenario Input'!$AJ$15/100)) -> 71.86791046 | H42: =G42*(1+('Scenario Input'!$AM$15/100)) -> 73.99366597 | I42: =H42*(1+('Scenario Input'!$AP$15/100)) -> 76.18229845 | J42: =I42*(1+('Scenario Input'!$AS$15/100)) -> 78.43566772
A43: CalAm_DT | B43: CALIFORNIA AMERICAN WATER - DUARTE | C43: 45.38 | D43: =C43*(1+('Scenario Input'!$AA$15/100)) -> 47.49404805 | E43: =D43*(1+('Scenario Input'!$AD$15/100)) -> 48.71494517 | F43: =E43*(1+('Scenario Input'!$AG$15/100)) -> 49.8435621 | G43: =F43*(1+('Scenario Input'!$AJ$15/100)) -> 50.98273842 | H43: =G43*(1+('Scenario Input'!$AM$15/100)) -> 52.49073881 | I43: =H43*(1+('Scenario Input'!$AP$15/100)) -> 54.04334381 | J43: =I43*(1+('Scenario Input'!$AS$15/100)) -> 55.64187277
A44: CalAm_EP | B44: CALIFORNIA AMERICAN WATER - EAST PASADENA | C44: 36.7 | D44: =C44*(1+('Scenario Input'!$AA$15/100)) -> 38.40968628 | E44: =D44*(1+('Scenario Input'!$AD$15/100)) -> 39.3970579 | F44: =E44*(1+('Scenario Input'!$AG$15/100)) -> 40.30980011 | G44: =F44*(1+('Scenario Input'!$AJ$15/100)) -> 41.23108197 | H44: =G44*(1+('Scenario Input'!$AM$15/100)) -> 42.45064157 | I44: =H44*(1+('Scenario Input'!$AP$15/100)) -> 43.70627408 | J44: =I44*(1+('Scenario Input'!$AS$15/100)) -> 44.99904651
A45: CalAm_FRV | B45: CALIFORNIA AMERICAN WATER - FRUITRIDGE | C45: 55.64 | D45: =C45*(1+('Scenario Input'!$AA$15/100)) -> 58.23201484 | E45: =D45*(1+('Scenario Input'!$AD$15/100)) -> 59.72894555 | F45: =E45*(1+('Scenario Input'!$AG$15/100)) -> 61.11273238 | G45: =F45*(1+('Scenario Input'!$AJ$15/100)) -> 62.50946596 | H45: =G45*(1+('Scenario Input'!$AM$15/100)) -> 64.35841136 | I45: =H45*(1+('Scenario Input'!$AP$15/100)) -> 66.26204605 | J45: =I45*(1+('Scenario Input'!$AS$15/100)) -> 68.22198768
A46: CalAm_HILL | B46: CALIFORNIA AMERICAN WATER - HILLVIEW | C46: 89.09 | D46: =C46*(1+('Scenario Input'!$AA$15/100)) -> 93.24029838 | E46: =D46*(1+('Scenario Input'!$AD$15/100)) -> 95.63716318 | F46: =E46*(1+('Scenario Input'!$AG$15/100)) -> 97.85286355 | G46: =F46*(1+('Scenario Input'!$AJ$15/100)) -> 100.0892941 | H46: =G46*(1+('Scenario Input'!$AM$15/100)) -> 103.0497999 | I46: =H46*(1+('Scenario Input'!$AP$15/100)) -> 106.0978735 | J46: =I46*(1+('Scenario Input'!$AS$15/100)) -> 109.236105
A47: CalAm_LKD | B47: CALIFORNIA AMERICAN WATER - LARKFIELD | C47: 59.88 | D47: =C47*(1+('Scenario Input'!$AA$15/100)) -> 62.66953718 | E47: =D47*(1+('Scenario Input'!$AD$15/100)) -> 64.28054025 | F47: =E47*(1+('Scenario Input'!$AG$15/100)) -> 65.76977741 | G47: =F47*(1+('Scenario Input'!$AJ$15/100)) -> 67.27294791 | H47: =G47*(1+('Scenario Input'!$AM$15/100)) -> 69.26279065 | I47: =H47*(1+('Scenario Input'!$AP$15/100)) -> 71.31149025 | J47: =I47*(1+('Scenario Input'!$AS$15/100)) -> 73.4207876
A48: CalAm_MEAD | B48: CALIFORNIA AMERICAN WATER - MEADOWBROOK | C48: 31.43 | D48: =C48*(1+('Scenario Input'!$AA$15/100)) -> 32.89418092 | E48: =D48*(1+('Scenario Input'!$AD$15/100)) -> 33.73976921 | F48: =E48*(1+('Scenario Input'!$AG$15/100)) -> 34.52144462 | G48: =F48*(1+('Scenario Input'!$AJ$15/100)) -> 35.31043342 | H48: =G48*(1+('Scenario Input'!$AM$15/100)) -> 36.35486824 | I48: =H48*(1+('Scenario Input'!$AP$15/100)) -> 37.43019603 | J48: =I48*(1+('Scenario Input'!$AS$15/100)) -> 38.53733057
A49: CalAm_MON | B49: CALIFORNIA AMERICAN WATER - MONTEREY | C49: 137.82 | D49: =C49*(1+('Scenario Input'!$AA$15/100)) -> 144.2404077 | E49: =D49*(1+('Scenario Input'!$AD$15/100)) -> 147.9482976 | F49: =E49*(1+('Scenario Input'!$AG$15/100)) -> 151.3759306 | G49: =F49*(1+('Scenario Input'!$AJ$15/100)) -> 154.8356326 | H49: =G49*(1+('Scenario Input'!$AM$15/100)) -> 159.4154611 | I49: =H49*(1+('Scenario Input'!$AP$15/100)) -> 164.1307546 | J49: =I49*(1+('Scenario Input'!$AS$15/100)) -> 168.9855202
A50: CalAm_RIO | B50: CALIFORNIA AMERICAN WATER - RIO PLAZA | C50: 41.43 | D50: =C50*(1+('Scenario Input'!$AA$15/100)) -> 43.36003549 | E50: =D50*(1+('Scenario Input'!$AD$15/100)) -> 44.47466237 | F50: =E50*(1+('Scenario Input'!$AG$15/100)) -> 45.50504138 | G50: =F50*(1+('Scenario Input'!$AJ$15/100)) -> 46.54506066 | H50: =G50*(1+('Scenario Input'!$AM$15/100)) -> 47.92180055 | I50: =H50*(1+('Scenario Input'!$AP$15/100)) -> 49.33926254 | J50: =I50*(1+('Scenario Input'!$AS$15/100)) -> 50.79865114
A51: CalAm_Sac | B51: CALIFORNIA AMERICAN WATER - SACRAMENTO | C51: 42.67 | D51: =C51*(1+('Scenario Input'!$AA$15/100)) -> 44.65780146 | E51: =D51*(1+('Scenario Input'!$AD$15/100)) -> 45.80578912 | F51: =E51*(1+('Scenario Input'!$AG$15/100)) -> 46.86700738 | G51: =F51*(1+('Scenario Input'!$AJ$15/100)) -> 47.93815443 | H51: =G51*(1+('Scenario Input'!$AM$15/100)) -> 49.35610015 | I51: =H51*(1+('Scenario Input'!$AP$15/100)) -> 50.81598679 | J51: =I51*(1+('Scenario Input'!$AS$15/100)) -> 52.31905489
A52: CalAm_SAN | B52: CALIFORNIA AMERICAN WATER - SAN DIEGO | C52: 62.52 | D52: =C52*(1+('Scenario Input'!$AA$15/100)) -> 65.43252278 | E52: =D52*(1+('Scenario Input'!$AD$15/100)) -> 67.11455205 | F52: =E52*(1+('Scenario Input'!$AG$15/100)) -> 68.66944695 | G52: =F52*(1+('Scenario Input'!$AJ$15/100)) -> 70.23888951 | H52: =G52*(1+('Scenario Input'!$AM$15/100)) -> 72.31646078 | I52: =H52*(1+('Scenario Input'!$AP$15/100)) -> 74.45548381 | J52: =I52*(1+('Scenario Input'!$AS$15/100)) -> 76.65777624
A53: CalAm_SM | B53: CALIFORNIA AMERICAN WATER - SAN MARINO | C53: 45.83 | D53: =C53*(1+('Scenario Input'!$AA$15/100)) -> 47.9650115 | E53: =D53*(1+('Scenario Input'!$AD$15/100)) -> 49.19801536 | F53: =E53*(1+('Scenario Input'!$AG$15/100)) -> 50.33782396 | G53: =F53*(1+('Scenario Input'!$AJ$15/100)) -> 51.48829664 | H53: =G53*(1+('Scenario Input'!$AM$15/100)) -> 53.01125076 | I53: =H53*(1+('Scenario Input'!$AP$15/100)) -> 54.57925181 | J53: =I53*(1+('Scenario Input'!$AS$15/100)) -> 56.1936322
A54: CalAm_VEN | B54: CALIFORNIA AMERICAN WATER - VENTURA | C54: 51.91 | D54: =C54*(1+('Scenario Input'!$AA$15/100)) -> 54.32825108 | E54: =D54*(1+('Scenario Input'!$AD$15/100)) -> 55.7248304 | F54: =E54*(1+('Scenario Input'!$AG$15/100)) -> 57.01585079 | G54: =F54*(1+('Scenario Input'!$AJ$15/100)) -> 58.31895 | H54: =G54*(1+('Scenario Input'!$AM$15/100)) -> 60.04394561 | I54: =H54*(1+('Scenario Input'!$AP$15/100)) -> 61.81996424 | J54: =I54*(1+('Scenario Input'!$AS$15/100)) -> 63.64851511
A55: CA1100445 | B55: ORLAND MOBILE H.P. | C55: 32.25820796 | D55: =C55*(1+('Scenario Input'!$AA$15/100)) -> 33.76097133 | E55: =D55*(1+('Scenario Input'!$AD$15/100)) -> 34.62884161 | F55: =E55*(1+('Scenario Input'!$AG$15/100)) -> 35.43111485 | G55: =F55*(1+('Scenario Input'!$AJ$15/100)) -> 36.24089419 | H55: =G55*(1+('Scenario Input'!$AM$15/100)) -> 37.31285078 | I55: =H55*(1+('Scenario Input'!$AP$15/100)) -> 38.4165144 | J55: =I55*(1+('Scenario Input'!$AS$15/100)) -> 39.5528229
A56: CA5201140 | B56: ANTOINETTE MUTUAL WATER CO | C56: 36.04311335 | D56: =C56*(1+('Scenario Input'!$AA$15/100)) -> 37.72219827 | E56: =D56*(1+('Scenario Input'!$AD$15/100)) -> 38.69189711 | F56: =E56*(1+('Scenario Input'!$AG$15/100)) -> 39.58830231 | G56: =F56*(1+('Scenario Input'!$AJ$15/100)) -> 40.49309431 | H56: =G56*(1+('Scenario Input'!$AM$15/100)) -> 41.69082523 | I56: =H56*(1+('Scenario Input'!$AP$15/100)) -> 42.92398341 | J56: =I56*(1+('Scenario Input'!$AS$15/100)) -> 44.19361673
A57: CA4400692 | B57: ALLAN LANE WATER ASSOCIATION | C57: 118.9541695 | D57: =C57*(1+('Scenario Input'!$AA$15/100)) -> 124.4957039 | E57: =D57*(1+('Scenario Input'!$AD$15/100)) -> 127.6960301 | F57: =E57*(1+('Scenario Input'!$AG$15/100)) -> 130.6544631 | G57: =F57*(1+('Scenario Input'!$AJ$15/100)) -> 133.6405753 | H57: =G57*(1+('Scenario Input'!$AM$15/100)) -> 137.5934826 | I57: =H57*(1+('Scenario Input'!$AP$15/100)) -> 141.6633116 | J57: =I57*(1+('Scenario Input'!$AS$15/100)) -> 145.8535206
A58: CA3301943 | B58: PLANTATION ON THE LAKE PARK | C58: 26.49433775 | D58: =C58*(1+('Scenario Input'!$AA$15/100)) -> 27.72858859 | E58: =D58*(1+('Scenario Input'!$AD$15/100)) -> 28.44138851 | F58: =E58*(1+('Scenario Input'!$AG$15/100)) -> 29.10031223 | G58: =F58*(1+('Scenario Input'!$AJ$15/100)) -> 29.76540086 | H58: =G58*(1+('Scenario Input'!$AM$15/100)) -> 30.64582113 | I58: =H58*(1+('Scenario Input'!$AP$15/100)) -> 31.55228303 | J58: =I58*(1+('Scenario Input'!$AS$15/100)) -> 32.48555686
A59: CA3400101 | B59: HOOD WATER MAINTENCE DIST [SWS] | C59: 22.99059676 | D59: =C59*(1+('Scenario Input'!$AA$15/100)) -> 24.06162422 | E59: =D59*(1+('Scenario Input'!$AD$15/100)) -> 24.68015999 | F59: =E59*(1+('Scenario Input'!$AG$15/100)) -> 25.25194441 | G59: =F59*(1+('Scenario Input'!$AJ$15/100)) -> 25.82907846 | H59: =G59*(1+('Scenario Input'!$AM$15/100)) -> 26.59306764 | I59: =H59*(1+('Scenario Input'!$AP$15/100)) -> 27.37965458 | J59: =I59*(1+('Scenario Input'!$AS$15/100)) -> 28.1895077
A60: CA0310005 | B60: PINE GROVE COMM SERV DIST | C60: 49.47412049 | D60: =C60*(1+('Scenario Input'!$AA$15/100)) -> 51.77889501 | E60: =D60*(1+('Scenario Input'!$AD$15/100)) -> 53.10993977 | F60: =E60*(1+('Scenario Input'!$AG$15/100)) -> 54.34037896 | G60: =F60*(1+('Scenario Input'!$AJ$15/100)) -> 55.58233017 | H60: =G60*(1+('Scenario Input'!$AM$15/100)) -> 57.22638026 | I60: =H60*(1+('Scenario Input'!$AP$15/100)) -> 58.91905913 | J60: =I60*(1+('Scenario Input'!$AS$15/100)) -> 60.66180515
A61: CA1210007 | B61: DEL ORO WATER CO-FERNDALE | C61: 74.78973056 | D61: =C61*(1+('Scenario Input'!$AA$15/100)) -> 78.27384435 | E61: =D61*(1+('Scenario Input'!$AD$15/100)) -> 80.28597672 | F61: =E61*(1+('Scenario Input'!$AG$15/100)) -> 82.14602423 | G61: =F61*(1+('Scenario Input'!$AJ$15/100)) -> 84.02347442 | H61: =G61*(1+('Scenario Input'!$AM$15/100)) -> 86.50877506 | I61: =H61*(1+('Scenario Input'!$AP$15/100)) -> 89.06758753 | J61: =I61*(1+('Scenario Input'!$AS$15/100)) -> 91.70208621
A62: CA3700041 | B62: BARRETT LAKE MH AND RV LLC | C62: 22.70943236 | D62: =C62*(1+('Scenario Input'!$AA$15/100)) -> 23.76736165 | E62: =D62*(1+('Scenario Input'!$AD$15/100)) -> 24.37833301 | F62: =E62*(1+('Scenario Input'!$AG$15/100)) -> 24.94312477 | G62: =F62*(1+('Scenario Input'!$AJ$15/100)) -> 25.51320074 | H62: =G62*(1+('Scenario Input'!$AM$15/100)) -> 26.26784668 | I62: =H62*(1+('Scenario Input'!$AP$15/100)) -> 27.04481403 | J62: =I62*(1+('Scenario Input'!$AS$15/100)) -> 27.84476302
A63: CA3910020 | B63: STOCKTON VERDE MOBILE HOME PARK | C63: 36.82172246 | D63: =C63*(1+('Scenario Input'!$AA$15/100)) -> 38.53707924 | E63: =D63*(1+('Scenario Input'!$AD$15/100)) -> 39.52772567 | F63: =E63*(1+('Scenario Input'!$AG$15/100)) -> 40.44349516 | G63: =F63*(1+('Scenario Input'!$AJ$15/100)) -> 41.36783262 | H63: =G63*(1+('Scenario Input'!$AM$15/100)) -> 42.59143711 | I63: =H63*(1+('Scenario Input'!$AP$15/100)) -> 43.85123417 | J63: =I63*(1+('Scenario Input'!$AS$15/100)) -> 45.14829432
A64: CA3900927 | B64: SPRING CREEK ESTATES PWS | C64: 55.77869147 | D64: =C64*(1+('Scenario Input'!$AA$15/100)) -> 58.37716732 | E64: =D64*(1+('Scenario Input'!$AD$15/100)) -> 59.87782937 | F64: =E64*(1+('Scenario Input'!$AG$15/100)) -> 61.2650655 | G64: =F64*(1+('Scenario Input'!$AJ$15/100)) -> 62.66528066 | H64: =G64*(1+('Scenario Input'!$AM$15/100)) -> 64.51883484 | I64: =H64*(1+('Scenario Input'!$AP$15/100)) -> 66.42721465 | J64: =I64*(1+('Scenario Input'!$AS$15/100)) -> 68.39204174
A65: CA3900586 | B65: B&G MOBILE HOME PARK LLC WS | C65: 49.98237921 | D65: =C65*(1+('Scenario Input'!$AA$15/100)) -> 52.3108312 | E65: =D65*(1+('Scenario Input'!$AD$15/100)) -> 53.65555008 | F65: =E65*(1+('Scenario Input'!$AG$15/100)) -> 54.89862985 | G65: =F65*(1+('Scenario Input'!$AJ$15/100)) -> 56.1533399 | H65: =G65*(1+('Scenario Input'!$AM$15/100)) -> 57.81427969 | I65: =H65*(1+('Scenario Input'!$AP$15/100)) -> 59.52434783 | J65: =I65*(1+('Scenario Input'!$AS$15/100)) -> 61.28499746
A66: CA3510002 | B66: SAN JUAN BAUTISTA, CITY OF | C66: 185.0494317 | D66: =C66*(1+('Scenario Input'!$AA$15/100)) -> 193.670044 | E66: =D66*(1+('Scenario Input'!$AD$15/100)) -> 198.6485878 | F66: =E66*(1+('Scenario Input'!$AG$15/100)) -> 203.2508338 | G66: =F66*(1+('Scenario Input'!$AJ$15/100)) -> 207.8961386 | H66: =G66*(1+('Scenario Input'!$AM$15/100)) -> 214.0454249 | I66: =H66*(1+('Scenario Input'!$AP$15/100)) -> 220.3765989 | J66: =I66*(1+('Scenario Input'!$AS$15/100)) -> 226.8950404
A67: CA5200534 | B67: PASKENTA COMM. SERVICES DIST. | C67: 69.20969861 | D67: =C67*(1+('Scenario Input'!$AA$15/100)) -> 72.43386406 | E67: =D67*(1+('Scenario Input'!$AD$15/100)) -> 74.29587203 | F67: =E67*(1+('Scenario Input'!$AG$15/100)) -> 76.01714215 | G67: =F67*(1+('Scenario Input'!$AJ$15/100)) -> 77.75451653 | H67: =G67*(1+('Scenario Input'!$AM$15/100)) -> 80.05438988 | I67: =H67*(1+('Scenario Input'!$AP$15/100)) -> 82.42229037 | J67: =I67*(1+('Scenario Input'!$AS$15/100)) -> 84.86023015
A68: CA2810007 | B68: TOWN OF YOUNTVILLE | C68: 88.05852746 | D68: =C68*(1+('Scenario Input'!$AA$15/100)) -> 92.16077423 | E68: =D68*(1+('Scenario Input'!$AD$15/100)) -> 94.52988843 | F68: =E68*(1+('Scenario Input'!$AG$15/100)) -> 96.71993571 | G68: =F68*(1+('Scenario Input'!$AJ$15/100)) -> 98.93047314 | H68: =G68*(1+('Scenario Input'!$AM$15/100)) -> 101.8567026 | I68: =H68*(1+('Scenario Input'!$AP$15/100)) -> 104.869486 | J68: =I68*(1+('Scenario Input'!$AS$15/100)) -> 107.9713835
A69: CA5000433 | B69: OID-OAKDALE RURAL WATER SYSTEM #1 | C69: 25.11014378 | D69: =C69*(1+('Scenario Input'!$AA$15/100)) -> 26.2799113 | E69: =D69*(1+('Scenario Input'!$AD$15/100)) -> 26.95547107 | F69: =E69*(1+('Scenario Input'!$AG$15/100)) -> 27.57996939 | G69: =F69*(1+('Scenario Input'!$AJ$15/100)) -> 28.21031053 | H69: =G69*(1+('Scenario Input'!$AM$15/100)) -> 29.04473333 | I69: =H69*(1+('Scenario Input'!$AP$15/100)) -> 29.90383723 | J69: =I69*(1+('Scenario Input'!$AS$15/100)) -> 30.78835225
A70: CA4400526 | B70: BIG REDWOOD PARK WATER | C70: 73.31902446 | D70: =C70*(1+('Scenario Input'!$AA$15/100)) -> 76.73462474 | E70: =D70*(1+('Scenario Input'!$AD$15/100)) -> 78.70718944 | F70: =E70*(1+('Scenario Input'!$AG$15/100)) -> 80.53065996 | G70: =F70*(1+('Scenario Input'!$AJ$15/100)) -> 82.37119095 | H70: =G70*(1+('Scenario Input'!$AM$15/100)) -> 84.80761928 | I70: =H70*(1+('Scenario Input'!$AP$15/100)) -> 87.31611386 | J70: =I70*(1+('Scenario Input'!$AS$15/100)) -> 89.89880632
A71: CA3600399 | B71: PARADISE MOBILE ESTATES | C71: 21.62803082 | D71: =C71*(1+('Scenario Input'!$AA$15/100)) -> 22.63558252 | E71: =D71*(1+('Scenario Input'!$AD$15/100)) -> 23.21746001 | F71: =E71*(1+('Scenario Input'!$AG$15/100)) -> 23.75535692 | G71: =F71*(1+('Scenario Input'!$AJ$15/100)) -> 24.29828641 | H71: =G71*(1+('Scenario Input'!$AM$15/100)) -> 25.01699684 | I71: =H71*(1+('Scenario Input'!$AP$15/100)) -> 25.75696574 | J71: =I71*(1+('Scenario Input'!$AS$15/100)) -> 26.51882192
A72: CA3400179 | B72: MC CLELLAN MHP | C72: 21.62803082 | D72: =C72*(1+('Scenario Input'!$AA$15/100)) -> 22.63558252 | E72: =D72*(1+('Scenario Input'!$AD$15/100)) -> 23.21746001 | F72: =E72*(1+('Scenario Input'!$AG$15/100)) -> 23.75535692 | G72: =F72*(1+('Scenario Input'!$AJ$15/100)) -> 24.29828641 | H72: =G72*(1+('Scenario Input'!$AM$15/100)) -> 25.01699684 | I72: =H72*(1+('Scenario Input'!$AP$15/100)) -> 25.75696574 | J72: =I72*(1+('Scenario Input'!$AS$15/100)) -> 26.51882192
A73: CA3010068 | B73: EAST ORANGE COUNTY WD - RZ | C73: 52.27495048 | D73: =C73*(1+('Scenario Input'!$AA$15/100)) -> 54.71020295 | E73: =D73*(1+('Scenario Input'!$AD$15/100)) -> 56.11660085 | F73: =E73*(1+('Scenario Input'!$AG$15/100)) -> 57.41669768 | G73: =F73*(1+('Scenario Input'!$AJ$15/100)) -> 58.72895826 | H73: =G73*(1+('Scenario Input'!$AM$15/100)) -> 60.46608135 | I73: =H73*(1+('Scenario Input'!$AP$15/100)) -> 62.2545862 | J73: =I73*(1+('Scenario Input'!$AS$15/100)) -> 64.09599259
A74: CA3600087 | B74: DEER LODGE WATER SYSTEM | C74: 74.73566048 | D74: =C74*(1+('Scenario Input'!$AA$15/100)) -> 78.21725539 | E74: =D74*(1+('Scenario Input'!$AD$15/100)) -> 80.22793307 | F74: =E74*(1+('Scenario Input'!$AG$15/100)) -> 82.08663584 | G74: =F74*(1+('Scenario Input'!$AJ$15/100)) -> 83.96272871 | H74: =G74*(1+('Scenario Input'!$AM$15/100)) -> 86.44623257 | I74: =H74*(1+('Scenario Input'!$AP$15/100)) -> 89.00319512 | J74: =I74*(1+('Scenario Input'!$AS$15/100)) -> 91.63578916
A75: CA1500494 | B75: WILSON ROAD WATER COMMUNITY | C75: 54.07007704 | D75: =C75*(1+('Scenario Input'!$AA$15/100)) -> 56.5889563 | E75: =D75*(1+('Scenario Input'!$AD$15/100)) -> 58.04365003 | F75: =E75*(1+('Scenario Input'!$AG$15/100)) -> 59.3883923 | G75: =F75*(1+('Scenario Input'!$AJ$15/100)) -> 60.74571604 | H75: =G75*(1+('Scenario Input'!$AM$15/100)) -> 62.54249209 | I75: =H75*(1+('Scenario Input'!$AP$15/100)) -> 64.39241435 | J75: =I75*(1+('Scenario Input'!$AS$15/100)) -> 66.29705481
A76: CA5400744 | B76: EAST THREE RIVERS MUTUAL WATER CORP | C76: 43.25606163 | D76: =C76*(1+('Scenario Input'!$AA$15/100)) -> 45.27116504 | E76: =D76*(1+('Scenario Input'!$AD$15/100)) -> 46.43492002 | F76: =E76*(1+('Scenario Input'!$AG$15/100)) -> 47.51071384 | G76: =F76*(1+('Scenario Input'!$AJ$15/100)) -> 48.59657283 | H76: =G76*(1+('Scenario Input'!$AM$15/100)) -> 50.03399367 | I76: =H76*(1+('Scenario Input'!$AP$15/100)) -> 51.51393148 | J76: =I76*(1+('Scenario Input'!$AS$15/100)) -> 53.03764385
A77: CA4400557 | B77: ST FRANCIS TRACT WATER SYSTEM | C77: 108.1401541 | D77: =C77*(1+('Scenario Input'!$AA$15/100)) -> 113.1779126 | E77: =D77*(1+('Scenario Input'!$AD$15/100)) -> 116.0873001 | F77: =E77*(1+('Scenario Input'!$AG$15/100)) -> 118.7767846 | G77: =F77*(1+('Scenario Input'!$AJ$15/100)) -> 121.4914321 | H77: =G77*(1+('Scenario Input'!$AM$15/100)) -> 125.0849842 | I77: =H77*(1+('Scenario Input'!$AP$15/100)) -> 128.7848287 | J77: =I77*(1+('Scenario Input'!$AS$15/100)) -> 132.5941096
A78: CA5210002 | B78: GERBER LAS FLORES CSD | C78: 38.82231531 | D78: =C78*(1+('Scenario Input'!$AA$15/100)) -> 40.63087062 | E78: =D78*(1+('Scenario Input'!$AD$15/100)) -> 41.67534072 | F78: =E78*(1+('Scenario Input'!$AG$15/100)) -> 42.64086567 | G78: =F78*(1+('Scenario Input'!$AJ$15/100)) -> 43.61542411 | H78: =G78*(1+('Scenario Input'!$AM$15/100)) -> 44.90550932 | I78: =H78*(1+('Scenario Input'!$AP$15/100)) -> 46.2337535 | J78: =I78*(1+('Scenario Input'!$AS$15/100)) -> 47.60128535
A79: CA2900502 | B79: FLORISTON WATER SYSTEM | C79: 108.1401541 | D79: =C79*(1+('Scenario Input'!$AA$15/100)) -> 113.1779126 | E79: =D79*(1+('Scenario Input'!$AD$15/100)) -> 116.0873001 | F79: =E79*(1+('Scenario Input'!$AG$15/100)) -> 118.7767846 | G79: =F79*(1+('Scenario Input'!$AJ$15/100)) -> 121.4914321 | H79: =G79*(1+('Scenario Input'!$AM$15/100)) -> 125.0849842 | I79: =H79*(1+('Scenario Input'!$AP$15/100)) -> 128.7848287 | J79: =I79*(1+('Scenario Input'!$AS$15/100)) -> 132.5941096
A80: CA1010062 | B80: FCWWD #18/MIRA BELLA | C80: 79.309989 | D80: =C80*(1+('Scenario Input'!$AA$15/100)) -> 83.0046811 | E80: =D80*(1+('Scenario Input'!$AD$15/100)) -> 85.13842586 | F80: =E80*(1+('Scenario Input'!$AG$15/100)) -> 87.11089383 | G80: =F80*(1+('Scenario Input'!$AJ$15/100)) -> 89.10181628 | H80: =G80*(1+('Scenario Input'!$AM$15/100)) -> 91.7373274 | I80: =H80*(1+('Scenario Input'!$AP$15/100)) -> 94.45079337 | J80: =I80*(1+('Scenario Input'!$AS$15/100)) -> 97.24451999
A81: CA3310052 | B81: LAKE HEMET-GARNER VALLEY | C81: 52.23169442 | D81: =C81*(1+('Scenario Input'!$AA$15/100)) -> 54.66493178 | E81: =D81*(1+('Scenario Input'!$AD$15/100)) -> 56.07016593 | F81: =E81*(1+('Scenario Input'!$AG$15/100)) -> 57.36918697 | G81: =F81*(1+('Scenario Input'!$AJ$15/100)) -> 58.68036169 | H81: =G81*(1+('Scenario Input'!$AM$15/100)) -> 60.41604736 | I81: =H81*(1+('Scenario Input'!$AP$15/100)) -> 62.20307226 | J81: =I81*(1+('Scenario Input'!$AS$15/100)) -> 64.04295494
A82: CA5200535 | B82: LIVE OAK ACRES MWC INC. | C82: 59.47708474 | D82: =C82*(1+('Scenario Input'!$AA$15/100)) -> 62.24785193 | E82: =D82*(1+('Scenario Input'!$AD$15/100)) -> 63.84801503 | F82: =E82*(1+('Scenario Input'!$AG$15/100)) -> 65.32723153 | G82: =F82*(1+('Scenario Input'!$AJ$15/100)) -> 66.82028764 | H82: =G82*(1+('Scenario Input'!$AM$15/100)) -> 68.7967413 | I82: =H82*(1+('Scenario Input'!$AP$15/100)) -> 70.83165579 | J82: =I82*(1+('Scenario Input'!$AS$15/100)) -> 72.92676029
A83: CA0400008 | B83: GRAN MUTUAL WATER CO | C83: 46.85712876 | D83: =C83*(1+('Scenario Input'!$AA$15/100)) -> 49.03998953 | E83: =D83*(1+('Scenario Input'!$AD$15/100)) -> 50.30062711 | F83: =E83*(1+('Scenario Input'!$AG$15/100)) -> 51.46598077 | G83: =F83*(1+('Scenario Input'!$AJ$15/100)) -> 52.64223752 | H83: =G83*(1+('Scenario Input'!$AM$15/100)) -> 54.19932365 | I83: =H83*(1+('Scenario Input'!$AP$15/100)) -> 55.80246628 | J83: =I83*(1+('Scenario Input'!$AS$15/100)) -> 57.4530277
A84: CA3900596 | B84: VILLA CEREZOS | C84: 27.03503852 | D84: =C84*(1+('Scenario Input'!$AA$15/100)) -> 28.29447815 | E84: =D84*(1+('Scenario Input'!$AD$15/100)) -> 29.02182501 | F84: =E84*(1+('Scenario Input'!$AG$15/100)) -> 29.69419615 | G84: =F84*(1+('Scenario Input'!$AJ$15/100)) -> 30.37285802 | H84: =G84*(1+('Scenario Input'!$AM$15/100)) -> 31.27124605 | I84: =H84*(1+('Scenario Input'!$AP$15/100)) -> 32.19620718 | J84: =I84*(1+('Scenario Input'!$AS$15/100)) -> 33.1485274
A85: CA5010010 | B85: MODESTO, CITY OF | C85: 52.93460542 | D85: =C85*(1+('Scenario Input'!$AA$15/100)) -> 55.40058822 | E85: =D85*(1+('Scenario Input'!$AD$15/100)) -> 56.82473338 | F85: =E85*(1+('Scenario Input'!$AG$15/100)) -> 58.14123607 | G85: =F85*(1+('Scenario Input'!$AJ$15/100)) -> 59.470056 | H85: =G85*(1+('Scenario Input'!$AM$15/100)) -> 61.22909976 | I85: =H85*(1+('Scenario Input'!$AP$15/100)) -> 63.04017365 | J85: =I85*(1+('Scenario Input'!$AS$15/100)) -> 64.90481666
A86: CA1910158 | B86: STERLING MUTUAL WATER COMPANY | C86: 59.47708474 | D86: =C86*(1+('Scenario Input'!$AA$15/100)) -> 62.24785193 | E86: =D86*(1+('Scenario Input'!$AD$15/100)) -> 63.84801503 | F86: =E86*(1+('Scenario Input'!$AG$15/100)) -> 65.32723153 | G86: =F86*(1+('Scenario Input'!$AJ$15/100)) -> 66.82028764 | H86: =G86*(1+('Scenario Input'!$AM$15/100)) -> 68.7967413 | I86: =H86*(1+('Scenario Input'!$AP$15/100)) -> 70.83165579 | J86: =I86*(1+('Scenario Input'!$AS$15/100)) -> 72.92676029
A87: CA1800512 | B87: CLEAR CREEK CSD-WESTWOOD | C87: 42.44501047 | D87: =C87*(1+('Scenario Input'!$AA$15/100)) -> 44.42233069 | E87: =D87*(1+('Scenario Input'!$AD$15/100)) -> 45.56426527 | F87: =E87*(1+('Scenario Input'!$AG$15/100)) -> 46.61988796 | G87: =F87*(1+('Scenario Input'!$AJ$15/100)) -> 47.68538709 | H87: =G87*(1+('Scenario Input'!$AM$15/100)) -> 49.09585629 | I87: =H87*(1+('Scenario Input'!$AP$15/100)) -> 50.54804527 | J87: =I87*(1+('Scenario Input'!$AS$15/100)) -> 52.04318802
A88: CA1110001 | B88: CITY OF ORLAND | C88: 37.63277362 | D88: =C88*(1+('Scenario Input'!$AA$15/100)) -> 39.38591358 | E88: =D88*(1+('Scenario Input'!$AD$15/100)) -> 40.39838042 | F88: =E88*(1+('Scenario Input'!$AG$15/100)) -> 41.33432104 | G88: =F88*(1+('Scenario Input'!$AJ$15/100)) -> 42.27901836 | H88: =G88*(1+('Scenario Input'!$AM$15/100)) -> 43.5295745 | I88: =H88*(1+('Scenario Input'!$AP$15/100)) -> 44.81712039 | J88: =I88*(1+('Scenario Input'!$AS$15/100)) -> 46.14275015
A89: CA3301031 | B89: BANNING HTS. MUTUAL WATER CO. | C89: 24.60188505 | D89: =C89*(1+('Scenario Input'!$AA$15/100)) -> 25.74797512 | E89: =D89*(1+('Scenario Input'!$AD$15/100)) -> 26.40986076 | F89: =E89*(1+('Scenario Input'!$AG$15/100)) -> 27.0217185 | G89: =F89*(1+('Scenario Input'!$AJ$15/100)) -> 27.6393008 | H89: =G89*(1+('Scenario Input'!$AM$15/100)) -> 28.4568339 | I89: =H89*(1+('Scenario Input'!$AP$15/100)) -> 29.29854853 | J89: =I89*(1+('Scenario Input'!$AS$15/100)) -> 30.16515994
A90: CA4010027 | B90: NACIMIENTO WATER COMPANY | C90: 171.7373787 | D90: =C90*(1+('Scenario Input'!$AA$15/100)) -> 179.737843 | E90: =D90*(1+('Scenario Input'!$AD$15/100)) -> 184.3582412 | F90: =E90*(1+('Scenario Input'!$AG$15/100)) -> 188.6294116 | G90: =F90*(1+('Scenario Input'!$AJ$15/100)) -> 192.9405433 | H90: =G90*(1+('Scenario Input'!$AM$15/100)) -> 198.6474634 | I90: =H90*(1+('Scenario Input'!$AP$15/100)) -> 204.5231865 | J90: =I90*(1+('Scenario Input'!$AS$15/100)) -> 210.5727055
A91: CA4700521 | B91: SISKIYOU CO.SERVICE AREA #5/CARRICK | C91: 47.88446022 | D91: =C91*(1+('Scenario Input'!$AA$15/100)) -> 50.1151797 | E91: =D91*(1+('Scenario Input'!$AD$15/100)) -> 51.40345646 | F91: =E91*(1+('Scenario Input'!$AG$15/100)) -> 52.59436022 | G91: =F91*(1+('Scenario Input'!$AJ$15/100)) -> 53.79640612 | H91: =G91*(1+('Scenario Input'!$AM$15/100)) -> 55.387631 | I91: =H91*(1+('Scenario Input'!$AP$15/100)) -> 57.02592215 | J91: =I91*(1+('Scenario Input'!$AS$15/100)) -> 58.71267174
A92: CA4400558 | B92: SAN ANDREAS MUTUAL WATER CO | C92: 59.07696617 | D92: =C92*(1+('Scenario Input'!$AA$15/100)) -> 61.82909365 | E92: =D92*(1+('Scenario Input'!$AD$15/100)) -> 63.41849202 | F92: =E92*(1+('Scenario Input'!$AG$15/100)) -> 64.88775743 | G92: =F92*(1+('Scenario Input'!$AJ$15/100)) -> 66.37076934 | H92: =G92*(1+('Scenario Input'!$AM$15/100)) -> 68.33392686 | I92: =H92*(1+('Scenario Input'!$AP$15/100)) -> 70.35515192 | J92: =I92*(1+('Scenario Input'!$AS$15/100)) -> 72.43616208
A93: CA0510009 | B93: BLUE LAKE SPRINGS MUT WTR | C93: 79.26673294 | D93: =C93*(1+('Scenario Input'!$AA$15/100)) -> 82.95940993 | E93: =D93*(1+('Scenario Input'!$AD$15/100)) -> 85.09199094 | F93: =E93*(1+('Scenario Input'!$AG$15/100)) -> 87.06338312 | G93: =F93*(1+('Scenario Input'!$AJ$15/100)) -> 89.05321971 | H93: =G93*(1+('Scenario Input'!$AM$15/100)) -> 91.68729341 | I93: =H93*(1+('Scenario Input'!$AP$15/100)) -> 94.39927944 | J93: =I93*(1+('Scenario Input'!$AS$15/100)) -> 97.19148235
A94: CA1900636 | B94: EL RANCHO MOBILE HOME PARK | C94: 25.86712485 | D94: =C94*(1+('Scenario Input'!$AA$15/100)) -> 27.07215669 | E94: =D94*(1+('Scenario Input'!$AD$15/100)) -> 27.76808217 | F94: =E94*(1+('Scenario Input'!$AG$15/100)) -> 28.41140688 | G94: =F94*(1+('Scenario Input'!$AJ$15/100)) -> 29.06075055 | H94: =G94*(1+('Scenario Input'!$AM$15/100)) -> 29.92032822 | I94: =H94*(1+('Scenario Input'!$AP$15/100)) -> 30.80533103 | J94: =I94*(1+('Scenario Input'!$AS$15/100)) -> 31.71651102
A95: CA4400528 | B95: LAUREL COMMUNITY LEAGUE | C95: 54.07007704 | D95: =C95*(1+('Scenario Input'!$AA$15/100)) -> 56.5889563 | E95: =D95*(1+('Scenario Input'!$AD$15/100)) -> 58.04365003 | F95: =E95*(1+('Scenario Input'!$AG$15/100)) -> 59.3883923 | G95: =F95*(1+('Scenario Input'!$AJ$15/100)) -> 60.74571604 | H95: =G95*(1+('Scenario Input'!$AM$15/100)) -> 62.54249209 | I95: =H95*(1+('Scenario Input'!$AP$15/100)) -> 64.39241435 | J95: =I95*(1+('Scenario Input'!$AS$15/100)) -> 66.29705481
A96: CA1810004 | B96: LEAVITT LAKE CSD | C96: 65.88979588 | D96: =C96*(1+('Scenario Input'!$AA$15/100)) -> 68.95930214 | E96: =D96*(1+('Scenario Input'!$AD$15/100)) -> 70.73199192 | F96: =E96*(1+('Scenario Input'!$AG$15/100)) -> 72.37069486 | G96: =F96*(1+('Scenario Input'!$AJ$15/100)) -> 74.02472956 | H96: =G96*(1+('Scenario Input'!$AM$15/100)) -> 76.21428086 | I96: =H96*(1+('Scenario Input'!$AP$15/100)) -> 78.46859613 | J96: =I96*(1+('Scenario Input'!$AS$15/100)) -> 80.78959099
A97: CA4610001 | B97: CITY OF LOYALTON | C97: 55.84357556 | D97: =C97*(1+('Scenario Input'!$AA$15/100)) -> 58.44507406 | E97: =D97*(1+('Scenario Input'!$AD$15/100)) -> 59.94748175 | F97: =E97*(1+('Scenario Input'!$AG$15/100)) -> 61.33633157 | G97: =F97*(1+('Scenario Input'!$AJ$15/100)) -> 62.73817552 | H97: =G97*(1+('Scenario Input'!$AM$15/100)) -> 64.59388583 | I97: =H97*(1+('Scenario Input'!$AP$15/100)) -> 66.50448554 | J97: =I97*(1+('Scenario Input'!$AS$15/100)) -> 68.47159821
A98: CA1900303 | B98: LLANO MUTUAL WATER COMPANY | C98: 46.47863822 | D98: =C98*(1+('Scenario Input'!$AA$15/100)) -> 48.64386683 | E98: =D98*(1+('Scenario Input'!$AD$15/100)) -> 49.89432156 | F98: =E98*(1+('Scenario Input'!$AG$15/100)) -> 51.05026202 | G98: =F98*(1+('Scenario Input'!$AJ$15/100)) -> 52.21701751 | H98: =G98*(1+('Scenario Input'!$AM$15/100)) -> 53.7615262 | I98: =H98*(1+('Scenario Input'!$AP$15/100)) -> 55.35171938 | J98: =I98*(1+('Scenario Input'!$AS$15/100)) -> 56.98894831
A99: CA4000808 | B99: MONTE SERENO MUTUAL BENEFIT WATER | C99: 281.1644006 | D99: =C99*(1+('Scenario Input'!$AA$15/100)) -> 294.2625727 | E99: =D99*(1+('Scenario Input'!$AD$15/100)) -> 301.8269801 | F99: =E99*(1+('Scenario Input'!$AG$15/100)) -> 308.81964 | G99: =F99*(1+('Scenario Input'!$AJ$15/100)) -> 315.8777234 | H99: =G99*(1+('Scenario Input'!$AM$15/100)) -> 325.2209589 | I99: =H99*(1+('Scenario Input'!$AP$15/100)) -> 334.8405546 | J99: =I99*(1+('Scenario Input'!$AS$15/100)) -> 344.744685
A100: CA3500576 | B100: AROMAS HILLS MUTUAL WATER ASSOCIATION | C100: 162.2102311 | D100: =C100*(1+('Scenario Input'!$AA$15/100)) -> 169.7668689 | E100: =D100*(1+('Scenario Input'!$AD$15/100)) -> 174.1309501 | F100: =E100*(1+('Scenario Input'!$AG$15/100)) -> 178.1651769 | G100: =F100*(1+('Scenario Input'!$AJ$15/100)) -> 182.2371481 | H100: =G100*(1+('Scenario Input'!$AM$15/100)) -> 187.6274763 | I100: =H100*(1+('Scenario Input'!$AP$15/100)) -> 193.1772431 | J100: =I100*(1+('Scenario Input'!$AS$15/100)) -> 198.8911644
A101: CA0610004 | B101: CITY OF WILLIAMS | C101: 38.78987327 | D101: =C101*(1+('Scenario Input'!$AA$15/100)) -> 40.59691725 | E101: =D101*(1+('Scenario Input'!$AD$15/100)) -> 41.64051453 | F101: =E101*(1+('Scenario Input'!$AG$15/100)) -> 42.60523264 | G101: =F101*(1+('Scenario Input'!$AJ$15/100)) -> 43.57897668 | H101: =G101*(1+('Scenario Input'!$AM$15/100)) -> 44.86798383 | I101: =H101*(1+('Scenario Input'!$AP$15/100)) -> 46.19511806 | J101: =I101*(1+('Scenario Input'!$AS$15/100)) -> 47.56150712
A102: CA5500092 | B102: PONDEROSA MOBILE HOME PARK | C102: 20.22220881 | D102: =C102*(1+('Scenario Input'!$AA$15/100)) -> 21.16426966 | E102: =D102*(1+('Scenario Input'!$AD$15/100)) -> 21.70832511 | F102: =E102*(1+('Scenario Input'!$AG$15/100)) -> 22.21125872 | G102: =F102*(1+('Scenario Input'!$AJ$15/100)) -> 22.7188978 | H102: =G102*(1+('Scenario Input'!$AM$15/100)) -> 23.39089204 | I102: =H102*(1+('Scenario Input'!$AP$15/100)) -> 24.08276297 | J102: =I102*(1+('Scenario Input'!$AS$15/100)) -> 24.7950985
A103: CA1900808 | B103: LANCASTER WATER COMPANY | C103: 550.3252441 | D103: =C103*(1+('Scenario Input'!$AA$15/100)) -> 575.9623972 | E103: =D103*(1+('Scenario Input'!$AD$15/100)) -> 590.76827 | F103: =E103*(1+('Scenario Input'!$AG$15/100)) -> 604.4550569 | G103: =F103*(1+('Scenario Input'!$AJ$15/100)) -> 618.2698978 | H103: =G103*(1+('Scenario Input'!$AM$15/100)) -> 636.5574845 | I103: =H103*(1+('Scenario Input'!$AP$15/100)) -> 655.3859933 | J103: =I103*(1+('Scenario Input'!$AS$15/100)) -> 674.7714238
A104: CA1210020 | B104: FIELDBROOK GLENDALE C.S.D. | C104: 71.64285207 | D104: =C104*(1+('Scenario Input'!$AA$15/100)) -> 74.98036709 | E104: =D104*(1+('Scenario Input'!$AD$15/100)) -> 76.90783628 | F104: =E104*(1+('Scenario Input'!$AG$15/100)) -> 78.6896198 | G104: =F104*(1+('Scenario Input'!$AJ$15/100)) -> 80.48807375 | H104: =G104*(1+('Scenario Input'!$AM$15/100)) -> 82.86880202 | I104: =H104*(1+('Scenario Input'!$AP$15/100)) -> 85.31994902 | J104: =I104*(1+('Scenario Input'!$AS$15/100)) -> 87.84359762
A105: CA1710003 | B105: HIGHLANDS MUTUAL WATER COMPANY | C105: 90.29702865 | D105: =C105*(1+('Scenario Input'!$AA$15/100)) -> 94.50355702 | E105: =D105*(1+('Scenario Input'!$AD$15/100)) -> 96.93289554 | F105: =E105*(1+('Scenario Input'!$AG$15/100)) -> 99.17861515 | G105: =F105*(1+('Scenario Input'!$AJ$15/100)) -> 101.4453458 | H105: =G105*(1+('Scenario Input'!$AM$15/100)) -> 104.4459618 | I105: =H105*(1+('Scenario Input'!$AP$15/100)) -> 107.535332 | J105: =I105*(1+('Scenario Input'!$AS$15/100)) -> 110.7160815
A106: CA3010064 | B106: CITY OF WESTMINSTER | C106: 18.63254855 | D106: =C106*(1+('Scenario Input'!$AA$15/100)) -> 19.50055434 | E106: =D106*(1+('Scenario Input'!$AD$15/100)) -> 20.0018418 | F106: =E106*(1+('Scenario Input'!$AG$15/100)) -> 20.46523999 | G106: =F106*(1+('Scenario Input'!$AJ$15/100)) -> 20.93297375 | H106: =G106*(1+('Scenario Input'!$AM$15/100)) -> 21.55214278 | I106: =H106*(1+('Scenario Input'!$AP$15/100)) -> 22.18962599 | J106: =I106*(1+('Scenario Input'!$AS$15/100)) -> 22.84596509
A107: CA5500116 | B107: PEPPERMINT CREEK MHP | C107: 47.5167837 | D107: =C107*(1+('Scenario Input'!$AA$15/100)) -> 49.73037479 | E107: =D107*(1+('Scenario Input'!$AD$15/100)) -> 51.00875964 | F107: =E107*(1+('Scenario Input'!$AG$15/100)) -> 52.19051916 | G107: =F107*(1+('Scenario Input'!$AJ$15/100)) -> 53.38333525 | H107: =G107*(1+('Scenario Input'!$AM$15/100)) -> 54.96234205 | I107: =H107*(1+('Scenario Input'!$AP$15/100)) -> 56.58805373 | J107: =I107*(1+('Scenario Input'!$AS$15/100)) -> 58.26185177
A108: CA5310003 | B108: TRINITY CENTER M.W.C. . | C108: 64.88409245 | D108: =C108*(1+('Scenario Input'!$AA$15/100)) -> 67.90674756 | E108: =D108*(1+('Scenario Input'!$AD$15/100)) -> 69.65238003 | F108: =E108*(1+('Scenario Input'!$AG$15/100)) -> 71.26607076 | G108: =F108*(1+('Scenario Input'!$AJ$15/100)) -> 72.89485924 | H108: =G108*(1+('Scenario Input'!$AM$15/100)) -> 75.05099051 | I108: =H108*(1+('Scenario Input'!$AP$15/100)) -> 77.27089722 | J108: =I108*(1+('Scenario Input'!$AS$15/100)) -> 79.55646577
A109: CA1910013 | B109: BELLFLOWER - SOMERSET MWC | C109: 35.12392204 | D109: =C109*(1+('Scenario Input'!$AA$15/100)) -> 36.76018601 | E109: =D109*(1+('Scenario Input'!$AD$15/100)) -> 37.70515506 | F109: =E109*(1+('Scenario Input'!$AG$15/100)) -> 38.57869964 | G109: =F109*(1+('Scenario Input'!$AJ$15/100)) -> 39.46041714 | H109: =G109*(1+('Scenario Input'!$AM$15/100)) -> 40.62760286 | I109: =H109*(1+('Scenario Input'!$AP$15/100)) -> 41.82931236 | J109: =I109*(1+('Scenario Input'!$AS$15/100)) -> 43.0665668
A110: CA3310002 | B110: BEAUMONT CHERRY VALLEY WD | C110: 10.95459761 | D110: =C110*(1+('Scenario Input'!$AA$15/100)) -> 11.46492255 | E110: =D110*(1+('Scenario Input'!$AD$15/100)) -> 11.7596435 | F110: =E110*(1+('Scenario Input'!$AG$15/100)) -> 12.03208828 | G110: =F110*(1+('Scenario Input'!$AJ$15/100)) -> 12.30708207 | H110: =G110*(1+('Scenario Input'!$AM$15/100)) -> 12.6711089 | I110: =H110*(1+('Scenario Input'!$AP$15/100)) -> 13.04590315 | J110: =I110*(1+('Scenario Input'!$AS$15/100)) -> 13.4317833
A111: CA3610053 | B111: WESTERN HEIGHTS WATER COMPANY | C111: 67.03608151 | D111: =C111*(1+('Scenario Input'!$AA$15/100)) -> 70.15898802 | E111: =D111*(1+('Scenario Input'!$AD$15/100)) -> 71.9625173 | F111: =E111*(1+('Scenario Input'!$AG$15/100)) -> 73.62972878 | G111: =F111*(1+('Scenario Input'!$AJ$15/100)) -> 75.31253874 | H111: =G111*(1+('Scenario Input'!$AM$15/100)) -> 77.5401817 | I111: =H111*(1+('Scenario Input'!$AP$15/100)) -> 79.83371531 | J111: =I111*(1+('Scenario Input'!$AS$15/100)) -> 82.19508855
A112: CA4700686 | B112: SUN MOUNTAIN M.W.C. | C112: 34.33449892 | D112: =C112*(1+('Scenario Input'!$AA$15/100)) -> 35.93398725 | E112: =D112*(1+('Scenario Input'!$AD$15/100)) -> 36.85771777 | F112: =E112*(1+('Scenario Input'!$AG$15/100)) -> 37.71162911 | G112: =F112*(1+('Scenario Input'!$AJ$15/100)) -> 38.57352968 | H112: =G112*(1+('Scenario Input'!$AM$15/100)) -> 39.71448248 | I112: =H112*(1+('Scenario Input'!$AP$15/100)) -> 40.88918311 | J112: =I112*(1+('Scenario Input'!$AS$15/100)) -> 42.0986298
A113: CA1500459 | B113: LAKE OF THE WOODS MOBILE VILLAGE | C113: 42.17466009 | D113: =C113*(1+('Scenario Input'!$AA$15/100)) -> 44.13938591 | E113: =D113*(1+('Scenario Input'!$AD$15/100)) -> 45.27404702 | F113: =E113*(1+('Scenario Input'!$AG$15/100)) -> 46.322946 | G113: =F113*(1+('Scenario Input'!$AJ$15/100)) -> 47.38165851 | H113: =G113*(1+('Scenario Input'!$AM$15/100)) -> 48.78314383 | I113: =H113*(1+('Scenario Input'!$AP$15/100)) -> 50.22608319 | J113: =I113*(1+('Scenario Input'!$AS$15/100)) -> 51.71170275
A114: CA2310002 | B114: ROGINA WATER COMPANY INC. | C114: 41.4825631 | D114: =C114*(1+('Scenario Input'!$AA$15/100)) -> 43.41504727 | E114: =D114*(1+('Scenario Input'!$AD$15/100)) -> 44.5310883 | F114: =E114*(1+('Scenario Input'!$AG$15/100)) -> 45.56277458 | G114: =F114*(1+('Scenario Input'!$AJ$15/100)) -> 46.60411334 | H114: =G114*(1+('Scenario Input'!$AM$15/100)) -> 47.98259993 | I114: =H114*(1+('Scenario Input'!$AP$15/100)) -> 49.40186029 | J114: =I114*(1+('Scenario Input'!$AS$15/100)) -> 50.86310045
A115: CA3301588 | B115: ROYAL CARRIZO HOA | C115: 75.46019951 | D115: =C115*(1+('Scenario Input'!$AA$15/100)) -> 78.97554741 | E115: =D115*(1+('Scenario Input'!$AD$15/100)) -> 81.00571798 | F115: =E115*(1+('Scenario Input'!$AG$15/100)) -> 82.8824403 | G115: =F115*(1+('Scenario Input'!$AJ$15/100)) -> 84.7767213 | H115: =G115*(1+('Scenario Input'!$AM$15/100)) -> 87.28430196 | I115: =H115*(1+('Scenario Input'!$AP$15/100)) -> 89.86605347 | J115: =I115*(1+('Scenario Input'!$AS$15/100)) -> 92.52416969
A116: CA3310033 | B116: SANTA ANA RIVER WATER COMPANY | C116: 56.21125209 | D116: =C116*(1+('Scenario Input'!$AA$15/100)) -> 58.82987897 | E116: =D116*(1+('Scenario Input'!$AD$15/100)) -> 60.34217857 | F116: =E116*(1+('Scenario Input'!$AG$15/100)) -> 61.74017264 | G116: =F116*(1+('Scenario Input'!$AJ$15/100)) -> 63.15124639 | H116: =G116*(1+('Scenario Input'!$AM$15/100)) -> 65.01917478 | I116: =H116*(1+('Scenario Input'!$AP$15/100)) -> 66.94235396 | J116: =I116*(1+('Scenario Input'!$AS$15/100)) -> 68.92241818
A117: CA5400728 | B117: GRIER MUTUAL WATER COMPANY | C117: 22.52559409 | D117: =C117*(1+('Scenario Input'!$AA$15/100)) -> 23.57495919 | E117: =D117*(1+('Scenario Input'!$AD$15/100)) -> 24.1809846 | F117: =E117*(1+('Scenario Input'!$AG$15/100)) -> 24.74120423 | G117: =F117*(1+('Scenario Input'!$AJ$15/100)) -> 25.3066653 | H117: =G117*(1+('Scenario Input'!$AM$15/100)) -> 26.05520221 | I117: =H117*(1+('Scenario Input'!$AP$15/100)) -> 26.82587982 | J117: =I117*(1+('Scenario Input'!$AS$15/100)) -> 27.61935303
A118: CA0310004 | B118: PLYMOUTH, CITY OF | C118: 65.84653982 | D118: =C118*(1+('Scenario Input'!$AA$15/100)) -> 68.91403098 | E118: =D118*(1+('Scenario Input'!$AD$15/100)) -> 70.685557 | F118: =E118*(1+('Scenario Input'!$AG$15/100)) -> 72.32318415 | G118: =F118*(1+('Scenario Input'!$AJ$15/100)) -> 73.97613299 | H118: =G118*(1+('Scenario Input'!$AM$15/100)) -> 76.16424687 | I118: =H118*(1+('Scenario Input'!$AP$15/100)) -> 78.4170822 | J118: =I118*(1+('Scenario Input'!$AS$15/100)) -> 80.73655335
A119: CA2000509 | B119: CASCADEL MUTUAL WATER SYSTEM | C119: 73.14600022 | D119: =C119*(1+('Scenario Input'!$AA$15/100)) -> 76.55354008 | E119: =D119*(1+('Scenario Input'!$AD$15/100)) -> 78.52144976 | F119: =E119*(1+('Scenario Input'!$AG$15/100)) -> 80.34061711 | G119: =F119*(1+('Scenario Input'!$AJ$15/100)) -> 82.17680465 | H119: =G119*(1+('Scenario Input'!$AM$15/100)) -> 84.6074833 | I119: =H119*(1+('Scenario Input'!$AP$15/100)) -> 87.11005814 | J119: =I119*(1+('Scenario Input'!$AS$15/100)) -> 89.68665574
A120: CA0400090 | B120: MOUNTAIN VILLAGE HOMEOWNER'S ASSOC | C120: 92.2219234 | D120: =C120*(1+('Scenario Input'!$AA$15/100)) -> 96.51812386 | E120: =D120*(1+('Scenario Input'!$AD$15/100)) -> 98.99924948 | F120: =E120*(1+('Scenario Input'!$AG$15/100)) -> 101.2928419 | G120: =F120*(1+('Scenario Input'!$AJ$15/100)) -> 103.6078933 | H120: =G120*(1+('Scenario Input'!$AM$15/100)) -> 106.6724745 | I120: =H120*(1+('Scenario Input'!$AP$15/100)) -> 109.8277019 | J120: =I120*(1+('Scenario Input'!$AS$15/100)) -> 113.0762567
A121: CA1100404 | B121: DEL ORO WC - BLACK BUTTE DISTRICT | C121: 45.899007 | D121: =C121*(1+('Scenario Input'!$AA$15/100)) -> 48.03723322 | E121: =D121*(1+('Scenario Input'!$AD$15/100)) -> 49.27209363 | F121: =E121*(1+('Scenario Input'!$AG$15/100)) -> 50.41361846 | G121: =F121*(1+('Scenario Input'!$AJ$15/100)) -> 51.56582343 | H121: =G121*(1+('Scenario Input'!$AM$15/100)) -> 53.09107069 | I121: =H121*(1+('Scenario Input'!$AP$15/100)) -> 54.6614327 | J121: =I121*(1+('Scenario Input'!$AS$15/100)) -> 56.27824389
A122: CA2110005 | B122: BOLINAS COMMUNITY PUD | C122: 134.4506536 | D122: =C122*(1+('Scenario Input'!$AA$15/100)) -> 140.7140987 | E122: =D122*(1+('Scenario Input'!$AD$15/100)) -> 144.3313402 | F122: =E122*(1+('Scenario Input'!$AG$15/100)) -> 147.6751763 | G122: =F122*(1+('Scenario Input'!$AJ$15/100)) -> 151.0502975 | H122: =G122*(1+('Scenario Input'!$AM$15/100)) -> 155.5181608 | I122: =H122*(1+('Scenario Input'!$AP$15/100)) -> 160.1181775 | J122: =I122*(1+('Scenario Input'!$AS$15/100)) -> 164.8542565
A123: CA4510001 | B123: CITY OF ANDERSON | C123: 13.30123895 | D123: =C123*(1+('Scenario Input'!$AA$15/100)) -> 13.92088325 | E123: =D123*(1+('Scenario Input'!$AD$15/100)) -> 14.27873791 | F123: =E123*(1+('Scenario Input'!$AG$15/100)) -> 14.60954451 | G123: =F123*(1+('Scenario Input'!$AJ$15/100)) -> 14.94344615 | H123: =G123*(1+('Scenario Input'!$AM$15/100)) -> 15.38545305 | I123: =H123*(1+('Scenario Input'!$AP$15/100)) -> 15.84053393 | J123: =I123*(1+('Scenario Input'!$AS$15/100)) -> 16.30907548
A124: CA1910019 | B124: CERRITOS - CITY, WATER DEPT. | C124: 29.25191168 | D124: =C124*(1+('Scenario Input'!$AA$15/100)) -> 30.61462536 | E124: =D124*(1+('Scenario Input'!$AD$15/100)) -> 31.40161466 | F124: =E124*(1+('Scenario Input'!$AG$15/100)) -> 32.12912024 | G124: =F124*(1+('Scenario Input'!$AJ$15/100)) -> 32.86343238 | H124: =G124*(1+('Scenario Input'!$AM$15/100)) -> 33.83548822 | I124: =H124*(1+('Scenario Input'!$AP$15/100)) -> 34.83629616 | J124: =I124*(1+('Scenario Input'!$AS$15/100)) -> 35.86670665
A125: CA5200504 | B125: CITY OF TEHAMA | C125: 37.09207285 | D125: =C125*(1+('Scenario Input'!$AA$15/100)) -> 38.82002402 | E125: =D125*(1+('Scenario Input'!$AD$15/100)) -> 39.81794392 | F125: =E125*(1+('Scenario Input'!$AG$15/100)) -> 40.74043712 | G125: =F125*(1+('Scenario Input'!$AJ$15/100)) -> 41.6715612 | H125: =G125*(1+('Scenario Input'!$AM$15/100)) -> 42.90414958 | I125: =H125*(1+('Scenario Input'!$AP$15/100)) -> 44.17319625 | J125: =I125*(1+('Scenario Input'!$AS$15/100)) -> 45.4797796
A126: CA4000568 | B126: SAN SIMEON CSD | C126: 129.3031822 | D126: =C126*(1+('Scenario Input'!$AA$15/100)) -> 135.3268301 | E126: =D126*(1+('Scenario Input'!$AD$15/100)) -> 138.8055847 | F126: =E126*(1+('Scenario Input'!$AG$15/100)) -> 142.0214014 | G126: =F126*(1+('Scenario Input'!$AJ$15/100)) -> 145.2673053 | H126: =G126*(1+('Scenario Input'!$AM$15/100)) -> 149.5641156 | I126: =H126*(1+('Scenario Input'!$AP$15/100)) -> 153.9880197 | J126: =I126*(1+('Scenario Input'!$AS$15/100)) -> 158.5427769
A127: CA4810008 | B127: CITY OF VACAVILLE | C127: 34.49670915 | D127: =C127*(1+('Scenario Input'!$AA$15/100)) -> 36.10375412 | E127: =D127*(1+('Scenario Input'!$AD$15/100)) -> 37.03184872 | F127: =E127*(1+('Scenario Input'!$AG$15/100)) -> 37.88979429 | G127: =F127*(1+('Scenario Input'!$AJ$15/100)) -> 38.75576683 | H127: =G127*(1+('Scenario Input'!$AM$15/100)) -> 39.90210995 | I127: =H127*(1+('Scenario Input'!$AP$15/100)) -> 41.08236036 | J127: =I127*(1+('Scenario Input'!$AS$15/100)) -> 42.29752097
A128: CA1510021 | B128: WASCO, CITY OF | C128: 30.92808407 | D128: =C128*(1+('Scenario Input'!$AA$15/100)) -> 32.368883 | E128: =D128*(1+('Scenario Input'!$AD$15/100)) -> 33.20096781 | F128: =E128*(1+('Scenario Input'!$AG$15/100)) -> 33.9701604 | G128: =F128*(1+('Scenario Input'!$AJ$15/100)) -> 34.74654957 | H128: =G128*(1+('Scenario Input'!$AM$15/100)) -> 35.77430548 | I128: =H128*(1+('Scenario Input'!$AP$15/100)) -> 36.83246101 | J128: =I128*(1+('Scenario Input'!$AS$15/100)) -> 37.92191535
A129: CA0910013 | B129: GEORGETOWN DIVIDE PUD | C129: 41.66640137 | D129: =C129*(1+('Scenario Input'!$AA$15/100)) -> 43.60744972 | E129: =D129*(1+('Scenario Input'!$AD$15/100)) -> 44.72843671 | F129: =E129*(1+('Scenario Input'!$AG$15/100)) -> 45.76469511 | G129: =F129*(1+('Scenario Input'!$AJ$15/100)) -> 46.81064878 | H129: =G129*(1+('Scenario Input'!$AM$15/100)) -> 48.19524441 | I129: =H129*(1+('Scenario Input'!$AP$15/100)) -> 49.6207945 | J129: =I129*(1+('Scenario Input'!$AS$15/100)) -> 51.08851043
A130: CA4100539 | B130: KINGS MOUNTAIN PARK MUTUAL | C130: 871.2744074 | D130: =C130*(1+('Scenario Input'!$AA$15/100)) -> 911.863124 | E130: =D130*(1+('Scenario Input'!$AD$15/100)) -> 935.3037678 | F130: =E130*(1+('Scenario Input'!$AG$15/100)) -> 956.9726759 | G130: =F130*(1+('Scenario Input'!$AJ$15/100)) -> 978.8443191 | H130: =G130*(1+('Scenario Input'!$AM$15/100)) -> 1007.797209 | I130: =H130*(1+('Scenario Input'!$AP$15/100)) -> 1037.606486 | J130: =I130*(1+('Scenario Input'!$AS$15/100)) -> 1068.297482
A131: CA4100582 | B131: COUNTY SERVICE AREA 11 | C131: 22.7418744 | D131: =C131*(1+('Scenario Input'!$AA$15/100)) -> 23.80131502 | E131: =D131*(1+('Scenario Input'!$AD$15/100)) -> 24.4131592 | F131: =E131*(1+('Scenario Input'!$AG$15/100)) -> 24.9787578 | G131: =F131*(1+('Scenario Input'!$AJ$15/100)) -> 25.54964816 | H131: =G131*(1+('Scenario Input'!$AM$15/100)) -> 26.30537217 | I131: =H131*(1+('Scenario Input'!$AP$15/100)) -> 27.08344948 | J131: =I131*(1+('Scenario Input'!$AS$15/100)) -> 27.88454125
A132: CA4110020 | B132: PALO ALTO PARK MUTUAL WATER COMPANY | C132: 81.10511556 | D132: =C132*(1+('Scenario Input'!$AA$15/100)) -> 84.88343445 | E132: =D132*(1+('Scenario Input'!$AD$15/100)) -> 87.06547504 | F132: =E132*(1+('Scenario Input'!$AG$15/100)) -> 89.08258846 | G132: =F132*(1+('Scenario Input'!$AJ$15/100)) -> 91.11857405 | H132: =G132*(1+('Scenario Input'!$AM$15/100)) -> 93.81373814 | I132: =H132*(1+('Scenario Input'!$AP$15/100)) -> 96.58862153 | J132: =I132*(1+('Scenario Input'!$AS$15/100)) -> 99.44558221
A133: CA1510028 | B133: MIL POTRERO MWC | C133: 43.7967624 | D133: =C133*(1+('Scenario Input'!$AA$15/100)) -> 45.8370546 | E133: =D133*(1+('Scenario Input'!$AD$15/100)) -> 47.01535652 | F133: =E133*(1+('Scenario Input'!$AG$15/100)) -> 48.10459777 | G133: =F133*(1+('Scenario Input'!$AJ$15/100)) -> 49.20402999 | H133: =G133*(1+('Scenario Input'!$AM$15/100)) -> 50.65941859 | I133: =H133*(1+('Scenario Input'!$AP$15/100)) -> 52.15785563 | J133: =I133*(1+('Scenario Input'!$AS$15/100)) -> 53.70061439
A134: CA2700511 | B134: NORMCO WC | C134: 95.92031666 | D134: =C134*(1+('Scenario Input'!$AA$15/100)) -> 100.3888085 | E134: =D134*(1+('Scenario Input'!$AD$15/100)) -> 102.9694351 | F134: =E134*(1+('Scenario Input'!$AG$15/100)) -> 105.3550079 | G134: =F134*(1+('Scenario Input'!$AJ$15/100)) -> 107.7629002 | H134: =G134*(1+('Scenario Input'!$AM$15/100)) -> 110.950381 | I134: =H134*(1+('Scenario Input'!$AP$15/100)) -> 114.2321431 | J134: =I134*(1+('Scenario Input'!$AS$15/100)) -> 117.6109752
A135: CA4110001 | B135: MID-PENINSULA WATER DISTRICT | C135: 80.54278676 | D135: =C135*(1+('Scenario Input'!$AA$15/100)) -> 84.2949093 | E135: =D135*(1+('Scenario Input'!$AD$15/100)) -> 86.46182108 | F135: =E135*(1+('Scenario Input'!$AG$15/100)) -> 88.46494918 | G135: =F135*(1+('Scenario Input'!$AJ$15/100)) -> 90.48681861 | H135: =G135*(1+('Scenario Input'!$AM$15/100)) -> 93.16329622 | I135: =H135*(1+('Scenario Input'!$AP$15/100)) -> 95.91894042 | J135: =I135*(1+('Scenario Input'!$AS$15/100)) -> 98.75609284
A136: CA1510015 | B136: OILDALE MWC | C136: 29.66284426 | D136: =C136*(1+('Scenario Input'!$AA$15/100)) -> 31.04470142 | E136: =D136*(1+('Scenario Input'!$AD$15/100)) -> 31.8427464 | F136: =E136*(1+('Scenario Input'!$AG$15/100)) -> 32.58047202 | G136: =F136*(1+('Scenario Input'!$AJ$15/100)) -> 33.32509982 | H136: =G136*(1+('Scenario Input'!$AM$15/100)) -> 34.31081116 | I136: =H136*(1+('Scenario Input'!$AP$15/100)) -> 35.32567851 | J136: =I136*(1+('Scenario Input'!$AS$15/100)) -> 36.37056427
A137: CA1400036 | B137: KEELER COMMUNITY SERVICE DISTRICT | C137: 37.84905393 | D137: =C137*(1+('Scenario Input'!$AA$15/100)) -> 39.61226941 | E137: =D137*(1+('Scenario Input'!$AD$15/100)) -> 40.63055502 | F137: =E137*(1+('Scenario Input'!$AG$15/100)) -> 41.57187461 | G137: =F137*(1+('Scenario Input'!$AJ$15/100)) -> 42.52200123 | H137: =G137*(1+('Scenario Input'!$AM$15/100)) -> 43.77974446 | I137: =H137*(1+('Scenario Input'!$AP$15/100)) -> 45.07469005 | J137: =I137*(1+('Scenario Input'!$AS$15/100)) -> 46.40793837
A138: CA3110041 | B138: MIDWAY HEIGHTS C. W. D. | C138: 77.78521283 | D138: =C138*(1+('Scenario Input'!$AA$15/100)) -> 81.40887253 | E138: =D138*(1+('Scenario Input'!$AD$15/100)) -> 83.50159493 | F138: =E138*(1+('Scenario Input'!$AG$15/100)) -> 85.43614117 | G138: =F138*(1+('Scenario Input'!$AJ$15/100)) -> 87.38878709 | H138: =G138*(1+('Scenario Input'!$AM$15/100)) -> 89.97362912 | I138: =H138*(1+('Scenario Input'!$AP$15/100)) -> 92.63492729 | J138: =I138*(1+('Scenario Input'!$AS$15/100)) -> 95.37494305
A139: CA3610016 | B139: GLEN MARTIN MWC | C139: 54.52426568 | D139: =C139*(1+('Scenario Input'!$AA$15/100)) -> 57.06430353 | E139: =D139*(1+('Scenario Input'!$AD$15/100)) -> 58.53121669 | F139: =E139*(1+('Scenario Input'!$AG$15/100)) -> 59.8872548 | G139: =F139*(1+('Scenario Input'!$AJ$15/100)) -> 61.25598005 | H139: =G139*(1+('Scenario Input'!$AM$15/100)) -> 63.06784903 | I139: =H139*(1+('Scenario Input'!$AP$15/100)) -> 64.93331063 | J139: =I139*(1+('Scenario Input'!$AS$15/100)) -> 66.85395007
A140: CA4900603 | B140: RIEBLI MUTUAL WATER COMPANY | C140: 68.48515958 | D140: =C140*(1+('Scenario Input'!$AA$15/100)) -> 71.67557205 | E140: =D140*(1+('Scenario Input'!$AD$15/100)) -> 73.51808712 | F140: =E140*(1+('Scenario Input'!$AG$15/100)) -> 75.22133769 | G140: =F140*(1+('Scenario Input'!$AJ$15/100)) -> 76.94052393 | H140: =G140*(1+('Scenario Input'!$AM$15/100)) -> 79.21632048 | I140: =H140*(1+('Scenario Input'!$AP$15/100)) -> 81.55943202 | J140: =I140*(1+('Scenario Input'!$AS$15/100)) -> 83.97184962
A141: CA3510001 | B141: HOLLISTER, CITY OF | C141: 36.30264972 | D141: =C141*(1+('Scenario Input'!$AA$15/100)) -> 37.99382526 | E141: =D141*(1+('Scenario Input'!$AD$15/100)) -> 38.97050663 | F141: =E141*(1+('Scenario Input'!$AG$15/100)) -> 39.87336659 | G141: =F141*(1+('Scenario Input'!$AJ$15/100)) -> 40.78467375 | H141: =G141*(1+('Scenario Input'!$AM$15/100)) -> 41.99102919 | I141: =H141*(1+('Scenario Input'!$AP$15/100)) -> 43.233067 | J141: =I141*(1+('Scenario Input'!$AS$15/100)) -> 44.5118426
A142: CA1910018 | B142: BELLFLOWER MUNICIPAL WATER SYSTEM | C142: 39.20080585 | D142: =C142*(1+('Scenario Input'!$AA$15/100)) -> 41.02699332 | E142: =D142*(1+('Scenario Input'!$AD$15/100)) -> 42.08164627 | F142: =E142*(1+('Scenario Input'!$AG$15/100)) -> 43.05658442 | G142: =F142*(1+('Scenario Input'!$AJ$15/100)) -> 44.04064413 | H142: =G142*(1+('Scenario Input'!$AM$15/100)) -> 45.34330677 | I142: =H142*(1+('Scenario Input'!$AP$15/100)) -> 46.68450041 | J142: =I142*(1+('Scenario Input'!$AS$15/100)) -> 48.06536474
A143: CA5410010 | B143: PORTERVILLE, CITY OF | C143: 31.94460151 | D143: =C143*(1+('Scenario Input'!$AA$15/100)) -> 33.43275538 | E143: =D143*(1+('Scenario Input'!$AD$15/100)) -> 34.29218844 | F143: =E143*(1+('Scenario Input'!$AG$15/100)) -> 35.08666217 | G143: =F143*(1+('Scenario Input'!$AJ$15/100)) -> 35.88856903 | H143: =G143*(1+('Scenario Input'!$AM$15/100)) -> 36.95010433 | I143: =H143*(1+('Scenario Input'!$AP$15/100)) -> 38.0430384 | J143: =I143*(1+('Scenario Input'!$AS$15/100)) -> 39.16829998
A144: CA0400003 | B144: HARTLEY MUTUAL WATER SYSTEM | C144: 60.38546204 | D144: =C144*(1+('Scenario Input'!$AA$15/100)) -> 63.19854639 | E144: =D144*(1+('Scenario Input'!$AD$15/100)) -> 64.82314835 | F144: =E144*(1+('Scenario Input'!$AG$15/100)) -> 66.32495652 | G144: =F144*(1+('Scenario Input'!$AJ$15/100)) -> 67.84081567 | H144: =G144*(1+('Scenario Input'!$AM$15/100)) -> 69.84745517 | I144: =H144*(1+('Scenario Input'!$AP$15/100)) -> 71.91344835 | J144: =I144*(1+('Scenario Input'!$AS$15/100)) -> 74.04055081
A145: CA1400026 | B145: RAWSON CREEK MUTUAL WATER COMPANY | C145: 54.07007704 | D145: =C145*(1+('Scenario Input'!$AA$15/100)) -> 56.5889563 | E145: =D145*(1+('Scenario Input'!$AD$15/100)) -> 58.04365003 | F145: =E145*(1+('Scenario Input'!$AG$15/100)) -> 59.3883923 | G145: =F145*(1+('Scenario Input'!$AJ$15/100)) -> 60.74571604 | H145: =G145*(1+('Scenario Input'!$AM$15/100)) -> 62.54249209 | I145: =H145*(1+('Scenario Input'!$AP$15/100)) -> 64.39241435 | J145: =I145*(1+('Scenario Input'!$AS$15/100)) -> 66.29705481
A146: CA3301115 | B146: CHIRIACO SUMMIT WATER DIST. | C146: 121.419765 | D146: =C146*(1+('Scenario Input'!$AA$15/100)) -> 127.0761603 | E146: =D146*(1+('Scenario Input'!$AD$15/100)) -> 130.3428205 | F146: =E146*(1+('Scenario Input'!$AG$15/100)) -> 133.3625738 | G146: =F146*(1+('Scenario Input'!$AJ$15/100)) -> 136.4105799 | H146: =G146*(1+('Scenario Input'!$AM$15/100)) -> 140.4454202 | I146: =H146*(1+('Scenario Input'!$AP$15/100)) -> 144.5996057 | J146: =I146*(1+('Scenario Input'!$AS$15/100)) -> 148.8766663
A147: CA3610117 | B147: DEVORE WC | C147: 41.78535553 | D147: =C147*(1+('Scenario Input'!$AA$15/100)) -> 43.73194543 | E147: =D147*(1+('Scenario Input'!$AD$15/100)) -> 44.85613274 | F147: =E147*(1+('Scenario Input'!$AG$15/100)) -> 45.89534957 | G147: =F147*(1+('Scenario Input'!$AJ$15/100)) -> 46.94428935 | H147: =G147*(1+('Scenario Input'!$AM$15/100)) -> 48.33283789 | I147: =H147*(1+('Scenario Input'!$AP$15/100)) -> 49.76245781 | J147: =I147*(1+('Scenario Input'!$AS$15/100)) -> 51.23436396
A148: CA0310021 | B148: AWA - CAMANCHE VILLAGE | C148: 58.52545139 | D148: =C148*(1+('Scenario Input'!$AA$15/100)) -> 61.2518863 | E148: =D148*(1+('Scenario Input'!$AD$15/100)) -> 62.82644679 | F148: =E148*(1+('Scenario Input'!$AG$15/100)) -> 64.28199583 | G148: =F148*(1+('Scenario Input'!$AJ$15/100)) -> 65.75116304 | H148: =G148*(1+('Scenario Input'!$AM$15/100)) -> 67.69599344 | I148: =H148*(1+('Scenario Input'!$AP$15/100)) -> 69.69834929 | J148: =I148*(1+('Scenario Input'!$AS$15/100)) -> 71.75993212
A149: CA2702198 | B149: FOOTHILL ESTATES WS | C149: 39.36301608 | D149: =C149*(1+('Scenario Input'!$AA$15/100)) -> 41.19676018 | E149: =D149*(1+('Scenario Input'!$AD$15/100)) -> 42.25577722 | F149: =E149*(1+('Scenario Input'!$AG$15/100)) -> 43.2347496 | G149: =F149*(1+('Scenario Input'!$AJ$15/100)) -> 44.22288127 | H149: =G149*(1+('Scenario Input'!$AM$15/100)) -> 45.53093424 | I149: =H149*(1+('Scenario Input'!$AP$15/100)) -> 46.87767765 | J149: =I149*(1+('Scenario Input'!$AS$15/100)) -> 48.2642559
A150: CA4510007 | B150: COTTONWOOD WATER DISTRICT | C150: 40.01185701 | D150: =C150*(1+('Scenario Input'!$AA$15/100)) -> 41.87582766 | E150: =D150*(1+('Scenario Input'!$AD$15/100)) -> 42.95230102 | F150: =E150*(1+('Scenario Input'!$AG$15/100)) -> 43.9474103 | G150: =F150*(1+('Scenario Input'!$AJ$15/100)) -> 44.95182987 | H150: =G150*(1+('Scenario Input'!$AM$15/100)) -> 46.28144415 | I150: =H150*(1+('Scenario Input'!$AP$15/100)) -> 47.65038662 | J150: =I150*(1+('Scenario Input'!$AS$15/100)) -> 49.05982056
A151: CA4910009 | B151: SANTA ROSA, CITY OF | C151: 36.06474138 | D151: =C151*(1+('Scenario Input'!$AA$15/100)) -> 37.74483385 | E151: =D151*(1+('Scenario Input'!$AD$15/100)) -> 38.71511457 | F151: =E151*(1+('Scenario Input'!$AG$15/100)) -> 39.61205767 | G151: =F151*(1+('Scenario Input'!$AJ$15/100)) -> 40.5173926 | H151: =G151*(1+('Scenario Input'!$AM$15/100)) -> 41.71584223 | I151: =H151*(1+('Scenario Input'!$AP$15/100)) -> 42.94974037 | J151: =I151*(1+('Scenario Input'!$AS$15/100)) -> 44.22013556
A152: CA4910013 | B152: VALLEY OF THE MOON WATER DISTRICT | C152: 27.06748056 | D152: =C152*(1+('Scenario Input'!$AA$15/100)) -> 28.32843152 | E152: =D152*(1+('Scenario Input'!$AD$15/100)) -> 29.0566512 | F152: =E152*(1+('Scenario Input'!$AG$15/100)) -> 29.72982919 | G152: =F152*(1+('Scenario Input'!$AJ$15/100)) -> 30.40930545 | H152: =G152*(1+('Scenario Input'!$AM$15/100)) -> 31.30877154 | I152: =H152*(1+('Scenario Input'!$AP$15/100)) -> 32.23484262 | J152: =I152*(1+('Scenario Input'!$AS$15/100)) -> 33.18830564
A153: CA4900793 | B153: VINEHILL VISTAS MUTUAL WATER COMPANY | C153: 54.07007704 | D153: =C153*(1+('Scenario Input'!$AA$15/100)) -> 56.5889563 | E153: =D153*(1+('Scenario Input'!$AD$15/100)) -> 58.04365003 | F153: =E153*(1+('Scenario Input'!$AG$15/100)) -> 59.3883923 | G153: =F153*(1+('Scenario Input'!$AJ$15/100)) -> 60.74571604 | H153: =G153*(1+('Scenario Input'!$AM$15/100)) -> 62.54249209 | I153: =H153*(1+('Scenario Input'!$AP$15/100)) -> 64.39241435 | J153: =I153*(1+('Scenario Input'!$AS$15/100)) -> 66.29705481
A154: CA3110009 | B154: MEADOW VISTA CWD | C154: 86.78247365 | D154: =C154*(1+('Scenario Input'!$AA$15/100)) -> 90.82527486 | E154: =D154*(1+('Scenario Input'!$AD$15/100)) -> 93.16005829 | F154: =E154*(1+('Scenario Input'!$AG$15/100)) -> 95.31836965 | G154: =F154*(1+('Scenario Input'!$AJ$15/100)) -> 97.49687424 | H154: =G154*(1+('Scenario Input'!$AM$15/100)) -> 100.3806998 | I154: =H154*(1+('Scenario Input'!$AP$15/100)) -> 103.349825 | J154: =I154*(1+('Scenario Input'!$AS$15/100)) -> 106.406773
A155: CA1502569 | B155: FIRST MUTUAL WATER SYSTEM | C155: 32.44204622 | D155: =C155*(1+('Scenario Input'!$AA$15/100)) -> 33.95337378 | E155: =D155*(1+('Scenario Input'!$AD$15/100)) -> 34.82619002 | F155: =E155*(1+('Scenario Input'!$AG$15/100)) -> 35.63303538 | G155: =F155*(1+('Scenario Input'!$AJ$15/100)) -> 36.44742962 | H155: =G155*(1+('Scenario Input'!$AM$15/100)) -> 37.52549526 | I155: =H155*(1+('Scenario Input'!$AP$15/100)) -> 38.63544861 | J155: =I155*(1+('Scenario Input'!$AS$15/100)) -> 39.77823288
A156: CA1900563 | B156: SUNDALE MUTUAL WATER COMPANY A, B | C156: 70.29110015 | D156: =C156*(1+('Scenario Input'!$AA$15/100)) -> 73.56564319 | E156: =D156*(1+('Scenario Input'!$AD$15/100)) -> 75.45674503 | F156: =E156*(1+('Scenario Input'!$AG$15/100)) -> 77.20490999 | G156: =F156*(1+('Scenario Input'!$AJ$15/100)) -> 78.96943085 | H156: =G156*(1+('Scenario Input'!$AM$15/100)) -> 81.30523972 | I156: =H156*(1+('Scenario Input'!$AP$15/100)) -> 83.71013866 | J156: =I156*(1+('Scenario Input'!$AS$15/100)) -> 86.18617125
A157: CA3610060 | B157: BDVWA - GOAT MOUNTAIN ID | C157: 43.2344336 | D157: =C157*(1+('Scenario Input'!$AA$15/100)) -> 45.24852946 | E157: =D157*(1+('Scenario Input'!$AD$15/100)) -> 46.41170256 | F157: =E157*(1+('Scenario Input'!$AG$15/100)) -> 47.48695849 | G157: =F157*(1+('Scenario Input'!$AJ$15/100)) -> 48.57227454 | H157: =G157*(1+('Scenario Input'!$AM$15/100)) -> 50.00897668 | I157: =H157*(1+('Scenario Input'!$AP$15/100)) -> 51.48817452 | J157: =I157*(1+('Scenario Input'!$AS$15/100)) -> 53.01112502
A158: CA3310048 | B158: COACHELLA VWD: I.D. NO. 8 | C158: 23.89897405 | D158: =C158*(1+('Scenario Input'!$AA$15/100)) -> 25.01231868 | E158: =D158*(1+('Scenario Input'!$AD$15/100)) -> 25.65529331 | F158: =E158*(1+('Scenario Input'!$AG$15/100)) -> 26.2496694 | G158: =F158*(1+('Scenario Input'!$AJ$15/100)) -> 26.84960649 | H158: =G158*(1+('Scenario Input'!$AM$15/100)) -> 27.6437815 | I158: =H158*(1+('Scenario Input'!$AP$15/100)) -> 28.46144714 | J158: =I158*(1+('Scenario Input'!$AS$15/100)) -> 29.30329823
A159: CA3901159 | B159: WILKINSON MANOR A-ZONE PWS | C159: 125.7129291 | D159: =C159*(1+('Scenario Input'!$AA$15/100)) -> 131.5693234 | E159: =D159*(1+('Scenario Input'!$AD$15/100)) -> 134.9514863 | F159: =E159*(1+('Scenario Input'!$AG$15/100)) -> 138.0780121 | G159: =F159*(1+('Scenario Input'!$AJ$15/100)) -> 141.2337898 | H159: =G159*(1+('Scenario Input'!$AM$15/100)) -> 145.4112941 | I159: =H159*(1+('Scenario Input'!$AP$15/100)) -> 149.7123634 | J159: =I159*(1+('Scenario Input'!$AS$15/100)) -> 154.1406524
A160: CA1500561 | B160: ROUND MOUNTAIN WATER COMPANY | C160: 135.1751926 | D160: =C160*(1+('Scenario Input'!$AA$15/100)) -> 141.4723907 | E160: =D160*(1+('Scenario Input'!$AD$15/100)) -> 145.1091251 | F160: =E160*(1+('Scenario Input'!$AG$15/100)) -> 148.4709808 | G160: =F160*(1+('Scenario Input'!$AJ$15/100)) -> 151.8642901 | H160: =G160*(1+('Scenario Input'!$AM$15/100)) -> 156.3562302 | I160: =H160*(1+('Scenario Input'!$AP$15/100)) -> 160.9810359 | J160: =I160*(1+('Scenario Input'!$AS$15/100)) -> 165.742637
A161: CA3400169 | B161: SPINDRIFT MARINA | C161: 108.1401541 | D161: =C161*(1+('Scenario Input'!$AA$15/100)) -> 113.1779126 | E161: =D161*(1+('Scenario Input'!$AD$15/100)) -> 116.0873001 | F161: =E161*(1+('Scenario Input'!$AG$15/100)) -> 118.7767846 | G161: =F161*(1+('Scenario Input'!$AJ$15/100)) -> 121.4914321 | H161: =G161*(1+('Scenario Input'!$AM$15/100)) -> 125.0849842 | I161: =H161*(1+('Scenario Input'!$AP$15/100)) -> 128.7848287 | J161: =I161*(1+('Scenario Input'!$AS$15/100)) -> 132.5941096
A162: CA5610015 | B162: VENTURA CWWD NO. 19 - SOMIS | C162: 17.78905535 | D162: =C162*(1+('Scenario Input'!$AA$15/100)) -> 18.61776662 | E162: =D162*(1+('Scenario Input'!$AD$15/100)) -> 19.09636086 | F162: =E162*(1+('Scenario Input'!$AG$15/100)) -> 19.53878107 | G162: =F162*(1+('Scenario Input'!$AJ$15/100)) -> 19.98534058 | H162: =G162*(1+('Scenario Input'!$AM$15/100)) -> 20.5764799 | I162: =H162*(1+('Scenario Input'!$AP$15/100)) -> 21.18510432 | J162: =I162*(1+('Scenario Input'!$AS$15/100)) -> 21.81173103
A163: CA5400553 | B163: DEL ORO TRAVER DISTRICT | C163: 82.42442544 | D163: =C163*(1+('Scenario Input'!$AA$15/100)) -> 86.26420498 | E163: =D163*(1+('Scenario Input'!$AD$15/100)) -> 88.4817401 | F163: =E163*(1+('Scenario Input'!$AG$15/100)) -> 90.53166523 | G163: =F163*(1+('Scenario Input'!$AJ$15/100)) -> 92.60076953 | H163: =G163*(1+('Scenario Input'!$AM$15/100)) -> 95.33977495 | I163: =H163*(1+('Scenario Input'!$AP$15/100)) -> 98.15979644 | J163: =I163*(1+('Scenario Input'!$AS$15/100)) -> 101.0632303
A164: CA1510022 | B164: WEST KERN WATER DISTRICT | C164: 14.96659732 | D164: =C164*(1+('Scenario Input'!$AA$15/100)) -> 15.6638231 | E164: =D164*(1+('Scenario Input'!$AD$15/100)) -> 16.06648233 | F164: =E164*(1+('Scenario Input'!$AG$15/100)) -> 16.43870699 | G164: =F164*(1+('Scenario Input'!$AJ$15/100)) -> 16.8144142 | H164: =G164*(1+('Scenario Input'!$AM$15/100)) -> 17.31176181 | I164: =H164*(1+('Scenario Input'!$AP$15/100)) -> 17.82382029 | J164: =I164*(1+('Scenario Input'!$AS$15/100)) -> 18.35102477
A165: CA1310008 | B165: WESTMORLAND, CITY OF | C165: 59.7258071 | D165: =C165*(1+('Scenario Input'!$AA$15/100)) -> 62.50816113 | E165: =D165*(1+('Scenario Input'!$AD$15/100)) -> 64.11501582 | F165: =E165*(1+('Scenario Input'!$AG$15/100)) -> 65.60041814 | G165: =F165*(1+('Scenario Input'!$AJ$15/100)) -> 67.09971793 | H165: =G165*(1+('Scenario Input'!$AM$15/100)) -> 69.08443677 | I165: =H165*(1+('Scenario Input'!$AP$15/100)) -> 71.12786089 | J165: =I165*(1+('Scenario Input'!$AS$15/100)) -> 73.23172674
A166: CA3310020 | B166: INDIO WATER AUTHORITY | C166: 30.39819731 | D166: =C166*(1+('Scenario Input'!$AA$15/100)) -> 31.81431123 | E166: =D166*(1+('Scenario Input'!$AD$15/100)) -> 32.63214004 | F166: =E166*(1+('Scenario Input'!$AG$15/100)) -> 33.38815415 | G166: =F166*(1+('Scenario Input'!$AJ$15/100)) -> 34.15124156 | H166: =G166*(1+('Scenario Input'!$AM$15/100)) -> 35.16138905 | I166: =H166*(1+('Scenario Input'!$AP$15/100)) -> 36.20141535 | J166: =I166*(1+('Scenario Input'!$AS$15/100)) -> 37.27220421
A167: CA5402038 | B167: PATTERSON TRACT CSD | C167: 53.59426036 | D167: =C167*(1+('Scenario Input'!$AA$15/100)) -> 56.09097348 | E167: =D167*(1+('Scenario Input'!$AD$15/100)) -> 57.53286591 | F167: =E167*(1+('Scenario Input'!$AG$15/100)) -> 58.86577445 | G167: =F167*(1+('Scenario Input'!$AJ$15/100)) -> 60.21115374 | H167: =G167*(1+('Scenario Input'!$AM$15/100)) -> 61.99211816 | I167: =H167*(1+('Scenario Input'!$AP$15/100)) -> 63.82576111 | J167: =I167*(1+('Scenario Input'!$AS$15/100)) -> 65.71364073
A168: CA5400647 | B168: YOKOHL MUTUAL WATER CO | C168: 54.07007704 | D168: =C168*(1+('Scenario Input'!$AA$15/100)) -> 56.5889563 | E168: =D168*(1+('Scenario Input'!$AD$15/100)) -> 58.04365003 | F168: =E168*(1+('Scenario Input'!$AG$15/100)) -> 59.3883923 | G168: =F168*(1+('Scenario Input'!$AJ$15/100)) -> 60.74571604 | H168: =G168*(1+('Scenario Input'!$AM$15/100)) -> 62.54249209 | I168: =H168*(1+('Scenario Input'!$AP$15/100)) -> 64.39241435 | J168: =I168*(1+('Scenario Input'!$AS$15/100)) -> 66.29705481
A169: CA4210017 | B169: VANDENBERG VILLAGE COMM. SERV. DIST. | C169: 35.27531826 | D169: =C169*(1+('Scenario Input'!$AA$15/100)) -> 36.91863509 | E169: =D169*(1+('Scenario Input'!$AD$15/100)) -> 37.86767728 | F169: =E169*(1+('Scenario Input'!$AG$15/100)) -> 38.74498714 | G169: =F169*(1+('Scenario Input'!$AJ$15/100)) -> 39.63050514 | H169: =G169*(1+('Scenario Input'!$AM$15/100)) -> 40.80272184 | I169: =H169*(1+('Scenario Input'!$AP$15/100)) -> 42.00961112 | J169: =I169*(1+('Scenario Input'!$AS$15/100)) -> 43.25219856
A170: CA3210011 | B170: PLUMAS EUREKA CSD | C170: 14.54485072 | D170: =C170*(1+('Scenario Input'!$AA$15/100)) -> 15.22242924 | E170: =D170*(1+('Scenario Input'!$AD$15/100)) -> 15.61374186 | F170: =E170*(1+('Scenario Input'!$AG$15/100)) -> 15.97547753 | G170: =F170*(1+('Scenario Input'!$AJ$15/100)) -> 16.34059761 | H170: =G170*(1+('Scenario Input'!$AM$15/100)) -> 16.82393037 | I170: =H170*(1+('Scenario Input'!$AP$15/100)) -> 17.32155946 | J170: =I170*(1+('Scenario Input'!$AS$15/100)) -> 17.83390774
A171: CA3600025 | B171: BAR-LEN MWC | C171: 81.10511556 | D171: =C171*(1+('Scenario Input'!$AA$15/100)) -> 84.88343445 | E171: =D171*(1+('Scenario Input'!$AD$15/100)) -> 87.06547504 | F171: =E171*(1+('Scenario Input'!$AG$15/100)) -> 89.08258846 | G171: =F171*(1+('Scenario Input'!$AJ$15/100)) -> 91.11857405 | H171: =G171*(1+('Scenario Input'!$AM$15/100)) -> 93.81373814 | I171: =H171*(1+('Scenario Input'!$AP$15/100)) -> 96.58862153 | J171: =I171*(1+('Scenario Input'!$AS$15/100)) -> 99.44558221
A172: CA3110004 | B172: CITY OF LINCOLN | C172: 48.38190493 | D172: =C172*(1+('Scenario Input'!$AA$15/100)) -> 50.6357981 | E172: =D172*(1+('Scenario Input'!$AD$15/100)) -> 51.93745804 | F172: =E172*(1+('Scenario Input'!$AG$15/100)) -> 53.14073343 | G172: =F172*(1+('Scenario Input'!$AJ$15/100)) -> 54.35526671 | H172: =G172*(1+('Scenario Input'!$AM$15/100)) -> 55.96302192 | I172: =H172*(1+('Scenario Input'!$AP$15/100)) -> 57.61833236 | J172: =I172*(1+('Scenario Input'!$AS$15/100)) -> 59.32260464
A173: CA5110007 | B173: SUTTER COMMUNITY S.D. | C173: 22.59047819 | D173: =C173*(1+('Scenario Input'!$AA$15/100)) -> 23.64286594 | E173: =D173*(1+('Scenario Input'!$AD$15/100)) -> 24.25063698 | F173: =E173*(1+('Scenario Input'!$AG$15/100)) -> 24.8124703 | G173: =F173*(1+('Scenario Input'!$AJ$15/100)) -> 25.37956016 | H173: =G173*(1+('Scenario Input'!$AM$15/100)) -> 26.1302532 | I173: =H173*(1+('Scenario Input'!$AP$15/100)) -> 26.90315072 | J173: =I173*(1+('Scenario Input'!$AS$15/100)) -> 27.6989095
A174: CA4900521 | B174: GILL CREEK MUTUAL WATER COMPANY | C174: 48.31702084 | D174: =C174*(1+('Scenario Input'!$AA$15/100)) -> 50.56789135 | E174: =D174*(1+('Scenario Input'!$AD$15/100)) -> 51.86780566 | F174: =E174*(1+('Scenario Input'!$AG$15/100)) -> 53.06946736 | G174: =F174*(1+('Scenario Input'!$AJ$15/100)) -> 54.28237185 | H174: =G174*(1+('Scenario Input'!$AM$15/100)) -> 55.88797093 | I174: =H174*(1+('Scenario Input'!$AP$15/100)) -> 57.54106146 | J174: =I174*(1+('Scenario Input'!$AS$15/100)) -> 59.24304818
A175: CA3610011 | B175: CEDARPINES PARK MWC | C175: 62.5374511 | D175: =C175*(1+('Scenario Input'!$AA$15/100)) -> 65.45078685 | E175: =D175*(1+('Scenario Input'!$AD$15/100)) -> 67.13328562 | F175: =E175*(1+('Scenario Input'!$AG$15/100)) -> 68.68861454 | G175: =F175*(1+('Scenario Input'!$AJ$15/100)) -> 70.25849517 | H175: =G175*(1+('Scenario Input'!$AM$15/100)) -> 72.33664635 | I175: =H175*(1+('Scenario Input'!$AP$15/100)) -> 74.47626644 | J175: =I175*(1+('Scenario Input'!$AS$15/100)) -> 76.67917359
A176: CA4000222 | B176: AVILA BEACH COMMUNITY SERVICES DISTRICT | C176: 89.0642309 | D176: =C176*(1+('Scenario Input'!$AA$15/100)) -> 93.21332881 | E176: =D176*(1+('Scenario Input'!$AD$15/100)) -> 95.60950032 | F176: =E176*(1+('Scenario Input'!$AG$15/100)) -> 97.8245598 | G176: =F176*(1+('Scenario Input'!$AJ$15/100)) -> 100.0603435 | H176: =G176*(1+('Scenario Input'!$AM$15/100)) -> 103.019993 | I176: =H176*(1+('Scenario Input'!$AP$15/100)) -> 106.0671849 | J176: =I176*(1+('Scenario Input'!$AS$15/100)) -> 109.2045087
A177: CA2010011 | B177: MADERA CO SA1-INDIAN LAKES | C177: 61.14244311 | D177: =C177*(1+('Scenario Input'!$AA$15/100)) -> 63.99079178 | E177: =D177*(1+('Scenario Input'!$AD$15/100)) -> 65.63575945 | F177: =E177*(1+('Scenario Input'!$AG$15/100)) -> 67.15639402 | G177: =F177*(1+('Scenario Input'!$AJ$15/100)) -> 68.69125569 | H177: =G177*(1+('Scenario Input'!$AM$15/100)) -> 70.72305006 | I177: =H177*(1+('Scenario Input'!$AP$15/100)) -> 72.81494215 | J177: =I177*(1+('Scenario Input'!$AS$15/100)) -> 74.96870958
A178: CA4900673 | B178: ATHENA TERRACE MUTUAL WATER COMPANY | C178: 124.3611772 | D178: =C178*(1+('Scenario Input'!$AA$15/100)) -> 130.1545995 | E178: =D178*(1+('Scenario Input'!$AD$15/100)) -> 133.5003951 | F178: =E178*(1+('Scenario Input'!$AG$15/100)) -> 136.5933023 | G178: =F178*(1+('Scenario Input'!$AJ$15/100)) -> 139.7151469 | H178: =G178*(1+('Scenario Input'!$AM$15/100)) -> 143.8477318 | I178: =H178*(1+('Scenario Input'!$AP$15/100)) -> 148.102553 | J178: =I178*(1+('Scenario Input'!$AS$15/100)) -> 152.4832261
A179: CA1910044 | B179: GLENDORA-CITY, WATER DEPT. | C179: 51.40982925 | D179: =C179*(1+('Scenario Input'!$AA$15/100)) -> 53.80477965 | E179: =D179*(1+('Scenario Input'!$AD$15/100)) -> 55.18790244 | F179: =E179*(1+('Scenario Input'!$AG$15/100)) -> 56.4664834 | G179: =F179*(1+('Scenario Input'!$AJ$15/100)) -> 57.75702681 | H179: =G179*(1+('Scenario Input'!$AM$15/100)) -> 59.46540148 | I179: =H179*(1+('Scenario Input'!$AP$15/100)) -> 61.22430757 | J179: =I179*(1+('Scenario Input'!$AS$15/100)) -> 63.03523971
A180: CA1000267 | B180: KINGS CANYON MOBILE HOME PARK | C180: 21.62803082 | D180: =C180*(1+('Scenario Input'!$AA$15/100)) -> 22.63558252 | E180: =D180*(1+('Scenario Input'!$AD$15/100)) -> 23.21746001 | F180: =E180*(1+('Scenario Input'!$AG$15/100)) -> 23.75535692 | G180: =F180*(1+('Scenario Input'!$AJ$15/100)) -> 24.29828641 | H180: =G180*(1+('Scenario Input'!$AM$15/100)) -> 25.01699684 | I180: =H180*(1+('Scenario Input'!$AP$15/100)) -> 25.75696574 | J180: =I180*(1+('Scenario Input'!$AS$15/100)) -> 26.51882192
A181: CA2700547 | B181: DESMOND RD WS #03 | C181: 19.82209024 | D181: =C181*(1+('Scenario Input'!$AA$15/100)) -> 20.74551138 | E181: =D181*(1+('Scenario Input'!$AD$15/100)) -> 21.2788021 | F181: =E181*(1+('Scenario Input'!$AG$15/100)) -> 21.77178462 | G181: =F181*(1+('Scenario Input'!$AJ$15/100)) -> 22.2693795 | H181: =G181*(1+('Scenario Input'!$AM$15/100)) -> 22.9280776 | I181: =H181*(1+('Scenario Input'!$AP$15/100)) -> 23.6062591 | J181: =I181*(1+('Scenario Input'!$AS$15/100)) -> 24.30450029
A182: CA3301511 | B182: PINYON CREST HOA | C182: 46.12177571 | D182: =C182*(1+('Scenario Input'!$AA$15/100)) -> 48.27037972 | E182: =D182*(1+('Scenario Input'!$AD$15/100)) -> 49.51123347 | F182: =E182*(1+('Scenario Input'!$AG$15/100)) -> 50.65829863 | G182: =F182*(1+('Scenario Input'!$AJ$15/100)) -> 51.81609578 | H182: =G182*(1+('Scenario Input'!$AM$15/100)) -> 53.34874575 | I182: =H182*(1+('Scenario Input'!$AP$15/100)) -> 54.92672944 | J182: =I182*(1+('Scenario Input'!$AS$15/100)) -> 56.55138775
A183: CA3310046 | B183: FARM MUTUAL W.C. (THE) | C183: 50.17703149 | D183: =C183*(1+('Scenario Input'!$AA$15/100)) -> 52.51455144 | E183: =D183*(1+('Scenario Input'!$AD$15/100)) -> 53.86450722 | F183: =E183*(1+('Scenario Input'!$AG$15/100)) -> 55.11242806 | G183: =F183*(1+('Scenario Input'!$AJ$15/100)) -> 56.37202448 | H183: =G183*(1+('Scenario Input'!$AM$15/100)) -> 58.03943266 | I183: =H183*(1+('Scenario Input'!$AP$15/100)) -> 59.75616052 | J183: =I183*(1+('Scenario Input'!$AS$15/100)) -> 61.52366686
A184: CA4900798 | B184: MOUNTAIN VIEW MOBILE ESTATES, LLC | C184: 20.39523306 | D184: =C184*(1+('Scenario Input'!$AA$15/100)) -> 21.34535432 | E184: =D184*(1+('Scenario Input'!$AD$15/100)) -> 21.89406479 | F184: =E184*(1+('Scenario Input'!$AG$15/100)) -> 22.40130158 | G184: =F184*(1+('Scenario Input'!$AJ$15/100)) -> 22.91328409 | H184: =G184*(1+('Scenario Input'!$AM$15/100)) -> 23.59102802 | I184: =H184*(1+('Scenario Input'!$AP$15/100)) -> 24.28881869 | J184: =I184*(1+('Scenario Input'!$AS$15/100)) -> 25.00724907
A185: CA3301180 | B185: ANZA MUTUAL WATER COMPANY | C185: 71.37250169 | D185: =C185*(1+('Scenario Input'!$AA$15/100)) -> 74.69742231 | E185: =D185*(1+('Scenario Input'!$AD$15/100)) -> 76.61761803 | F185: =E185*(1+('Scenario Input'!$AG$15/100)) -> 78.39267784 | G185: =F185*(1+('Scenario Input'!$AJ$15/100)) -> 80.18434517 | H185: =G185*(1+('Scenario Input'!$AM$15/100)) -> 82.55608956 | I185: =H185*(1+('Scenario Input'!$AP$15/100)) -> 84.99798694 | J185: =I185*(1+('Scenario Input'!$AS$15/100)) -> 87.51211235
A186: CA4900608 | B186: SIX ACRES WATER COMPANY | C186: 27.03503852 | D186: =C186*(1+('Scenario Input'!$AA$15/100)) -> 28.29447815 | E186: =D186*(1+('Scenario Input'!$AD$15/100)) -> 29.02182501 | F186: =E186*(1+('Scenario Input'!$AG$15/100)) -> 29.69419615 | G186: =F186*(1+('Scenario Input'!$AJ$15/100)) -> 30.37285802 | H186: =G186*(1+('Scenario Input'!$AM$15/100)) -> 31.27124605 | I186: =H186*(1+('Scenario Input'!$AP$15/100)) -> 32.19620718 | J186: =I186*(1+('Scenario Input'!$AS$15/100)) -> 33.1485274
A187: CA0310019 | B187: AWA LA MEL HEIGHTS #3 | C187: 74.00030743 | D187: =C187*(1+('Scenario Input'!$AA$15/100)) -> 77.44764559 | E187: =D187*(1+('Scenario Input'!$AD$15/100)) -> 79.43853943 | F187: =E187*(1+('Scenario Input'!$AG$15/100)) -> 81.27895371 | G187: =F187*(1+('Scenario Input'!$AJ$15/100)) -> 83.13658697 | H187: =G187*(1+('Scenario Input'!$AM$15/100)) -> 85.59565468 | I187: =H187*(1+('Scenario Input'!$AP$15/100)) -> 88.12745828 | J187: =I187*(1+('Scenario Input'!$AS$15/100)) -> 90.73414921
A188: CA2000552 | B188: MD 24 TEAFORD MEADOW LAKES | C188: 55.60566723 | D188: =C188*(1+('Scenario Input'!$AA$15/100)) -> 58.19608266 | E188: =D188*(1+('Scenario Input'!$AD$15/100)) -> 59.69208969 | F188: =E188*(1+('Scenario Input'!$AG$15/100)) -> 61.07502264 | G188: =F188*(1+('Scenario Input'!$AJ$15/100)) -> 62.47089437 | H188: =G188*(1+('Scenario Input'!$AM$15/100)) -> 64.31869887 | I188: =H188*(1+('Scenario Input'!$AP$15/100)) -> 66.22115892 | J188: =I188*(1+('Scenario Input'!$AS$15/100)) -> 68.17989116
A189: CA3310078 | B189: WEST PALM SPRINGS VILLAGE | C189: 29.59796017 | D189: =C189*(1+('Scenario Input'!$AA$15/100)) -> 30.97679468 | E189: =D189*(1+('Scenario Input'!$AD$15/100)) -> 31.77309402 | F189: =E189*(1+('Scenario Input'!$AG$15/100)) -> 32.50920595 | G189: =F189*(1+('Scenario Input'!$AJ$15/100)) -> 33.25220496 | H189: =G189*(1+('Scenario Input'!$AM$15/100)) -> 34.23576017 | I189: =H189*(1+('Scenario Input'!$AP$15/100)) -> 35.24840762 | J189: =I189*(1+('Scenario Input'!$AS$15/100)) -> 36.2910078
A190: CA3110025 | B190: PLACER CWA - FOOTHILL | C190: 25.79142675 | D190: =C190*(1+('Scenario Input'!$AA$15/100)) -> 26.99293215 | E190: =D190*(1+('Scenario Input'!$AD$15/100)) -> 27.68682106 | F190: =E190*(1+('Scenario Input'!$AG$15/100)) -> 28.32826313 | G190: =F190*(1+('Scenario Input'!$AJ$15/100)) -> 28.97570655 | H190: =G190*(1+('Scenario Input'!$AM$15/100)) -> 29.83276873 | I190: =H190*(1+('Scenario Input'!$AP$15/100)) -> 30.71518165 | J190: =I190*(1+('Scenario Input'!$AS$15/100)) -> 31.62369514
A191: CA5410038 | B191: TERRA BELLA IRRIGATION DISTRICT - TBT | C191: 423.6174256 | D191: =C191*(1+('Scenario Input'!$AA$15/100)) -> 443.351837 | E191: =D191*(1+('Scenario Input'!$AD$15/100)) -> 454.7487805 | F191: =E191*(1+('Scenario Input'!$AG$15/100)) -> 465.2842983 | G191: =F191*(1+('Scenario Input'!$AJ$15/100)) -> 475.9183869 | H191: =G191*(1+('Scenario Input'!$AM$15/100)) -> 489.9954085 | I191: =H191*(1+('Scenario Input'!$AP$15/100)) -> 504.4888095 | J191: =I191*(1+('Scenario Input'!$AS$15/100)) -> 519.4109056
A192: CA1910051 | B192: INGLEWOOD- CITY, WATER DEPT. | C192: 43.18036352 | D192: =C192*(1+('Scenario Input'!$AA$15/100)) -> 45.1919405 | E192: =D192*(1+('Scenario Input'!$AD$15/100)) -> 46.35365891 | F192: =E192*(1+('Scenario Input'!$AG$15/100)) -> 47.42757009 | G192: =F192*(1+('Scenario Input'!$AJ$15/100)) -> 48.51152883 | H192: =G192*(1+('Scenario Input'!$AM$15/100)) -> 49.94643419 | I192: =H192*(1+('Scenario Input'!$AP$15/100)) -> 51.4237821 | J192: =I192*(1+('Scenario Input'!$AS$15/100)) -> 52.94482797
A193: CA4010028 | B193: SLO CSA NO. 16 - SHANDON | C193: 77.08230182 | D193: =C193*(1+('Scenario Input'!$AA$15/100)) -> 80.6732161 | E193: =D193*(1+('Scenario Input'!$AD$15/100)) -> 82.74702748 | F193: =E193*(1+('Scenario Input'!$AG$15/100)) -> 84.66409207 | G193: =F193*(1+('Scenario Input'!$AJ$15/100)) -> 86.59909278 | H193: =G193*(1+('Scenario Input'!$AM$15/100)) -> 89.16057673 | I193: =H193*(1+('Scenario Input'!$AP$15/100)) -> 91.7978259 | J193: =I193*(1+('Scenario Input'!$AS$15/100)) -> 94.51308133
A194: CA3301577 | B194: CSA 62 | C194: 112.2494799 | D194: =C194*(1+('Scenario Input'!$AA$15/100)) -> 117.4786733 | E194: =D194*(1+('Scenario Input'!$AD$15/100)) -> 120.4986175 | F194: =E194*(1+('Scenario Input'!$AG$15/100)) -> 123.2903024 | G194: =F194*(1+('Scenario Input'!$AJ$15/100)) -> 126.1081065 | H194: =G194*(1+('Scenario Input'!$AM$15/100)) -> 129.8382136 | I194: =H194*(1+('Scenario Input'!$AP$15/100)) -> 133.6786522 | J194: =I194*(1+('Scenario Input'!$AS$15/100)) -> 137.6326858
A195: CA2700638 | B195: MAHER RD WS #05 | C195: 37.84905393 | D195: =C195*(1+('Scenario Input'!$AA$15/100)) -> 39.61226941 | E195: =D195*(1+('Scenario Input'!$AD$15/100)) -> 40.63055502 | F195: =E195*(1+('Scenario Input'!$AG$15/100)) -> 41.57187461 | G195: =F195*(1+('Scenario Input'!$AJ$15/100)) -> 42.52200123 | H195: =G195*(1+('Scenario Input'!$AM$15/100)) -> 43.77974446 | I195: =H195*(1+('Scenario Input'!$AP$15/100)) -> 45.07469005 | J195: =I195*(1+('Scenario Input'!$AS$15/100)) -> 46.40793837
A196: CA5301101 | B196: TREASURE CREEK WOODS MWC | C196: 51.36657319 | D196: =C196*(1+('Scenario Input'!$AA$15/100)) -> 53.75950848 | E196: =D196*(1+('Scenario Input'!$AD$15/100)) -> 55.14146752 | F196: =E196*(1+('Scenario Input'!$AG$15/100)) -> 56.41897269 | G196: =F196*(1+('Scenario Input'!$AJ$15/100)) -> 57.70843023 | H196: =G196*(1+('Scenario Input'!$AM$15/100)) -> 59.41536749 | I196: =H196*(1+('Scenario Input'!$AP$15/100)) -> 61.17279363 | J196: =I196*(1+('Scenario Input'!$AS$15/100)) -> 62.98220207
A197: CA5805001 | B197: PLUMAS LAKE | C197: 21.08733004 | D197: =C197*(1+('Scenario Input'!$AA$15/100)) -> 22.06969296 | E197: =D197*(1+('Scenario Input'!$AD$15/100)) -> 22.63702351 | F197: =E197*(1+('Scenario Input'!$AG$15/100)) -> 23.161473 | G197: =F197*(1+('Scenario Input'!$AJ$15/100)) -> 23.69082925 | H197: =G197*(1+('Scenario Input'!$AM$15/100)) -> 24.39157192 | I197: =H197*(1+('Scenario Input'!$AP$15/100)) -> 25.1130416 | J197: =I197*(1+('Scenario Input'!$AS$15/100)) -> 25.85585138
A198: CA5601134 | B198: ELKINS RANCH | C198: 127.6053818 | D198: =C198*(1+('Scenario Input'!$AA$15/100)) -> 133.5499369 | E198: =D198*(1+('Scenario Input'!$AD$15/100)) -> 136.9830141 | F198: =E198*(1+('Scenario Input'!$AG$15/100)) -> 140.1566058 | G198: =F198*(1+('Scenario Input'!$AJ$15/100)) -> 143.3598898 | H198: =G198*(1+('Scenario Input'!$AM$15/100)) -> 147.6002813 | I198: =H198*(1+('Scenario Input'!$AP$15/100)) -> 151.9660979 | J198: =I198*(1+('Scenario Input'!$AS$15/100)) -> 156.4610493
A199: CA1010035 | B199: DEL REY COMMUNITY SERV DIST | C199: 26.33212752 | D199: =C199*(1+('Scenario Input'!$AA$15/100)) -> 27.55882172 | E199: =D199*(1+('Scenario Input'!$AD$15/100)) -> 28.26725756 | F199: =E199*(1+('Scenario Input'!$AG$15/100)) -> 28.92214705 | G199: =F199*(1+('Scenario Input'!$AJ$15/100)) -> 29.58316371 | H199: =G199*(1+('Scenario Input'!$AM$15/100)) -> 30.45819365 | I199: =H199*(1+('Scenario Input'!$AP$15/100)) -> 31.35910579 | J199: =I199*(1+('Scenario Input'!$AS$15/100)) -> 32.28666569
A200: CA2710008 | B200: GREENFIELD, CITY OF | C200: 24.09362633 | D200: =C200*(1+('Scenario Input'!$AA$15/100)) -> 25.21603893 | E200: =D200*(1+('Scenario Input'!$AD$15/100)) -> 25.86425045 | F200: =E200*(1+('Scenario Input'!$AG$15/100)) -> 26.46346761 | G200: =F200*(1+('Scenario Input'!$AJ$15/100)) -> 27.06829107 | H200: =G200*(1+('Scenario Input'!$AM$15/100)) -> 27.86893448 | I200: =H200*(1+('Scenario Input'!$AP$15/100)) -> 28.69325984 | J200: =I200*(1+('Scenario Input'!$AS$15/100)) -> 29.54196762
... 1406 more rows

Sheet Comm Input
A1: Communications Provider ID | B1: Communication Provider Names (Broadband, Voice) | C1: 2022 Essential Usage Bill ($/month) | D1: 2023 Essential Usage Bill ($/month) | E1: 2024 Essential Usage Bill ($/month) | F1: 2025 Essential Usage Bill ($/month) | G1: 2026 Essential Usage Bill ($/month) | H1: 2027 Essential Usage Bill ($/month) | I1: 2028 Essential Usage Bill ($/month) | J1: 2029 Essential Usage Bill ($/month)
A2: 1 | C2: 0 | D2: =C2*(1+('Scenario Input'!$AA$15/100)) -> 0 | E2: =D2*(1+('Scenario Input'!$AD$15/100)) -> 0 | F2: =E2*(1+('Scenario Input'!$AG$15/100)) -> 0 | G2: =F2*(1+('Scenario Input'!$AJ$15/100)) -> 0 | H2: =G2*(1+('Scenario Input'!$AM$15/100)) -> 0 | I2: =H2*(1+('Scenario Input'!$AP$15/100)) -> 0 | J2: =I2*(1+('Scenario Input'!$AS$15/100)) -> 0
A3: 2 | B3: , AT&T California | C3: 31.90134545 | D3: =C3*(1+('Scenario Input'!$AA$15/100)) -> 33.38748422 | E3: =D3*(1+('Scenario Input'!$AD$15/100)) -> 34.24575352 | F3: =E3*(1+('Scenario Input'!$AG$15/100)) -> 35.03915146 | G3: =F3*(1+('Scenario Input'!$AJ$15/100)) -> 35.83997246 | H3: =G3*(1+('Scenario Input'!$AM$15/100)) -> 36.90007033 | I3: =H3*(1+('Scenario Input'!$AP$15/100)) -> 37.99152447 | J3: =I3*(1+('Scenario Input'!$AS$15/100)) -> 39.11526234
A4: 3 | B4: , Cal-Ore | C4: 27.03503852 | D4: =C4*(1+('Scenario Input'!$AA$15/100)) -> 28.29447815 | E4: =D4*(1+('Scenario Input'!$AD$15/100)) -> 29.02182501 | F4: =E4*(1+('Scenario Input'!$AG$15/100)) -> 29.69419615 | G4: =F4*(1+('Scenario Input'!$AJ$15/100)) -> 30.37285802 | H4: =G4*(1+('Scenario Input'!$AM$15/100)) -> 31.27124605 | I4: =H4*(1+('Scenario Input'!$AP$15/100)) -> 32.19620718 | J4: =I4*(1+('Scenario Input'!$AS$15/100)) -> 33.1485274
A5: 4 | B5: , Calaveras | C5: 27.03503852 | D5: =C5*(1+('Scenario Input'!$AA$15/100)) -> 28.29447815 | E5: =D5*(1+('Scenario Input'!$AD$15/100)) -> 29.02182501 | F5: =E5*(1+('Scenario Input'!$AG$15/100)) -> 29.69419615 | G5: =F5*(1+('Scenario Input'!$AJ$15/100)) -> 30.37285802 | H5: =G5*(1+('Scenario Input'!$AM$15/100)) -> 31.27124605 | I5: =H5*(1+('Scenario Input'!$AP$15/100)) -> 32.19620718 | J5: =I5*(1+('Scenario Input'!$AS$15/100)) -> 33.1485274
A6: 5 | B6: , Ducor | C6: 27.03503852 | D6: =C6*(1+('Scenario Input'!$AA$15/100)) -> 28.29447815 | E6: =D6*(1+('Scenario Input'!$AD$15/100)) -> 29.02182501 | F6: =E6*(1+('Scenario Input'!$AG$15/100)) -> 29.69419615 | G6: =F6*(1+('Scenario Input'!$AJ$15/100)) -> 30.37285802 | H6: =G6*(1+('Scenario Input'!$AM$15/100)) -> 31.27124605 | I6: =H6*(1+('Scenario Input'!$AP$15/100)) -> 32.19620718 | J6: =I6*(1+('Scenario Input'!$AS$15/100)) -> 33.1485274
A7: 6 | B7: , Foresthill | C7: 27.03503852 | D7: =C7*(1+('Scenario Input'!$AA$15/100)) -> 28.29447815 | E7: =D7*(1+('Scenario Input'!$AD$15/100)) -> 29.02182501 | F7: =E7*(1+('Scenario Input'!$AG$15/100)) -> 29.69419615 | G7: =F7*(1+('Scenario Input'!$AJ$15/100)) -> 30.37285802 | H7: =G7*(1+('Scenario Input'!$AM$15/100)) -> 31.27124605 | I7: =H7*(1+('Scenario Input'!$AP$15/100)) -> 32.19620718 | J7: =I7*(1+('Scenario Input'!$AS$15/100)) -> 33.1485274
A8: 7 | B8: , Frontier | C8: 24.33153467 | D8: =C8*(1+('Scenario Input'!$AA$15/100)) -> 25.46503033 | E8: =D8*(1+('Scenario Input'!$AD$15/100)) -> 26.11964251 | F8: =E8*(1+('Scenario Input'!$AG$15/100)) -> 26.72477654 | G8: =F8*(1+('Scenario Input'!$AJ$15/100)) -> 27.33557222 | H8: =G8*(1+('Scenario Input'!$AM$15/100)) -> 28.14412144 | I8: =H8*(1+('Scenario Input'!$AP$15/100)) -> 28.97658646 | J8: =I8*(1+('Scenario Input'!$AS$15/100)) -> 29.83367466
A9: 8 | B9: , Frontier - Citizens | C9: 24.33153467 | D9: =C9*(1+('Scenario Input'!$AA$15/100)) -> 25.46503033 | E9: =D9*(1+('Scenario Input'!$AD$15/100)) -> 26.11964251 | F9: =E9*(1+('Scenario Input'!$AG$15/100)) -> 26.72477654 | G9: =F9*(1+('Scenario Input'!$AJ$15/100)) -> 27.33557222 | H9: =G9*(1+('Scenario Input'!$AM$15/100)) -> 28.14412144 | I9: =H9*(1+('Scenario Input'!$AP$15/100)) -> 28.97658646 | J9: =I9*(1+('Scenario Input'!$AS$15/100)) -> 29.83367466
A10: 9 | B10: , Kerman | C10: 24.41804679 | D10: =C10*(1+('Scenario Input'!$AA$15/100)) -> 25.55557266 | E10: =D10*(1+('Scenario Input'!$AD$15/100)) -> 26.21251235 | F10: =E10*(1+('Scenario Input'!$AG$15/100)) -> 26.81979796 | G10: =F10*(1+('Scenario Input'!$AJ$15/100)) -> 27.43276536 | H10: =G10*(1+('Scenario Input'!$AM$15/100)) -> 28.24418943 | I10: =H10*(1+('Scenario Input'!$AP$15/100)) -> 29.07961432 | J10: =I10*(1+('Scenario Input'!$AS$15/100)) -> 29.93974995
A11: 10 | B11: , Pinnacles | C11: 27.03503852 | D11: =C11*(1+('Scenario Input'!$AA$15/100)) -> 28.29447815 | E11: =D11*(1+('Scenario Input'!$AD$15/100)) -> 29.02182501 | F11: =E11*(1+('Scenario Input'!$AG$15/100)) -> 29.69419615 | G11: =F11*(1+('Scenario Input'!$AJ$15/100)) -> 30.37285802 | H11: =G11*(1+('Scenario Input'!$AM$15/100)) -> 31.27124605 | I11: =H11*(1+('Scenario Input'!$AP$15/100)) -> 32.19620718 | J11: =I11*(1+('Scenario Input'!$AS$15/100)) -> 33.1485274
A12: 11 | B12: , Ponderosa | C12: 27.03503852 | D12: =C12*(1+('Scenario Input'!$AA$15/100)) -> 28.29447815 | E12: =D12*(1+('Scenario Input'!$AD$15/100)) -> 29.02182501 | F12: =E12*(1+('Scenario Input'!$AG$15/100)) -> 29.69419615 | G12: =F12*(1+('Scenario Input'!$AJ$15/100)) -> 30.37285802 | H12: =G12*(1+('Scenario Input'!$AM$15/100)) -> 31.27124605 | I12: =H12*(1+('Scenario Input'!$AP$15/100)) -> 32.19620718 | J12: =I12*(1+('Scenario Input'!$AS$15/100)) -> 33.1485274
A13: 12 | B13: , Sierra | C13: 27.03503852 | D13: =C13*(1+('Scenario Input'!$AA$15/100)) -> 28.29447815 | E13: =D13*(1+('Scenario Input'!$AD$15/100)) -> 29.02182501 | F13: =E13*(1+('Scenario Input'!$AG$15/100)) -> 29.69419615 | G13: =F13*(1+('Scenario Input'!$AJ$15/100)) -> 30.37285802 | H13: =G13*(1+('Scenario Input'!$AM$15/100)) -> 31.27124605 | I13: =H13*(1+('Scenario Input'!$AP$15/100)) -> 32.19620718 | J13: =I13*(1+('Scenario Input'!$AS$15/100)) -> 33.1485274
A14: 13 | B14: , Siskiyou | C14: 25.95363698 | D14: =C14*(1+('Scenario Input'!$AA$15/100)) -> 27.16269902 | E14: =D14*(1+('Scenario Input'!$AD$15/100)) -> 27.86095201 | F14: =E14*(1+('Scenario Input'!$AG$15/100)) -> 28.50642831 | G14: =F14*(1+('Scenario Input'!$AJ$15/100)) -> 29.1579437 | H14: =G14*(1+('Scenario Input'!$AM$15/100)) -> 30.0203962 | I14: =H14*(1+('Scenario Input'!$AP$15/100)) -> 30.90835889 | J14: =I14*(1+('Scenario Input'!$AS$15/100)) -> 31.82258631
A15: 14 | B15: , Surewest | C15: 25.11014378 | D15: =C15*(1+('Scenario Input'!$AA$15/100)) -> 26.2799113 | E15: =D15*(1+('Scenario Input'!$AD$15/100)) -> 26.95547107 | F15: =E15*(1+('Scenario Input'!$AG$15/100)) -> 27.57996939 | G15: =F15*(1+('Scenario Input'!$AJ$15/100)) -> 28.21031053 | H15: =G15*(1+('Scenario Input'!$AM$15/100)) -> 29.04473333 | I15: =H15*(1+('Scenario Input'!$AP$15/100)) -> 29.90383723 | J15: =I15*(1+('Scenario Input'!$AS$15/100)) -> 30.78835225
A16: 15 | B16: , TDS Telecom | C16: 17.35649473 | D16: =C16*(1+('Scenario Input'!$AA$15/100)) -> 18.16505497 | E16: =D16*(1+('Scenario Input'!$AD$15/100)) -> 18.63201166 | F16: =E16*(1+('Scenario Input'!$AG$15/100)) -> 19.06367393 | G16: =F16*(1+('Scenario Input'!$AJ$15/100)) -> 19.49937485 | H16: =G16*(1+('Scenario Input'!$AM$15/100)) -> 20.07613996 | I16: =H16*(1+('Scenario Input'!$AP$15/100)) -> 20.66996501 | J16: =I16*(1+('Scenario Input'!$AS$15/100)) -> 21.28135459
A17: 16 | B17: , TDS Telecom - Horn | C17: 17.35649473 | D17: =C17*(1+('Scenario Input'!$AA$15/100)) -> 18.16505497 | E17: =D17*(1+('Scenario Input'!$AD$15/100)) -> 18.63201166 | F17: =E17*(1+('Scenario Input'!$AG$15/100)) -> 19.06367393 | G17: =F17*(1+('Scenario Input'!$AJ$15/100)) -> 19.49937485 | H17: =G17*(1+('Scenario Input'!$AM$15/100)) -> 20.07613996 | I17: =H17*(1+('Scenario Input'!$AP$15/100)) -> 20.66996501 | J17: =I17*(1+('Scenario Input'!$AS$15/100)) -> 21.28135459
A18: 17 | B18: , TDS Telecom - HV | C18: 18.22161596 | D18: =C18*(1+('Scenario Input'!$AA$15/100)) -> 19.07047827 | E18: =D18*(1+('Scenario Input'!$AD$15/100)) -> 19.56071006 | F18: =E18*(1+('Scenario Input'!$AG$15/100)) -> 20.01388821 | G18: =F18*(1+('Scenario Input'!$AJ$15/100)) -> 20.4713063 | H18: =G18*(1+('Scenario Input'!$AM$15/100)) -> 21.07681984 | I18: =H18*(1+('Scenario Input'!$AP$15/100)) -> 21.70024364 | J18: =I18*(1+('Scenario Input'!$AS$15/100)) -> 22.34210747
A19: 18 | B19: , TDS Telecom - WH | C19: 18.92452696 | D19: =C19*(1+('Scenario Input'!$AA$15/100)) -> 19.8061347 | E19: =D19*(1+('Scenario Input'!$AD$15/100)) -> 20.31527751 | F19: =E19*(1+('Scenario Input'!$AG$15/100)) -> 20.78593731 | G19: =F19*(1+('Scenario Input'!$AJ$15/100)) -> 21.26100061 | H19: =G19*(1+('Scenario Input'!$AM$15/100)) -> 21.88987223 | I19: =H19*(1+('Scenario Input'!$AP$15/100)) -> 22.53734502 | J19: =I19*(1+('Scenario Input'!$AS$15/100)) -> 23.20396918
A20: 19 | B20: , Volcano | C20: 25.95363698 | D20: =C20*(1+('Scenario Input'!$AA$15/100)) -> 27.16269902 | E20: =D20*(1+('Scenario Input'!$AD$15/100)) -> 27.86095201 | F20: =E20*(1+('Scenario Input'!$AG$15/100)) -> 28.50642831 | G20: =F20*(1+('Scenario Input'!$AJ$15/100)) -> 29.1579437 | H20: =G20*(1+('Scenario Input'!$AM$15/100)) -> 30.0203962 | I20: =H20*(1+('Scenario Input'!$AP$15/100)) -> 30.90835889 | J20: =I20*(1+('Scenario Input'!$AS$15/100)) -> 31.82258631
A21: 20 | B21: 101Netlink, | C21: 81.10511556 | D21: =C21*(1+('Scenario Input'!$AA$15/100)) -> 84.88343445 | E21: =D21*(1+('Scenario Input'!$AD$15/100)) -> 87.06547504 | F21: =E21*(1+('Scenario Input'!$AG$15/100)) -> 89.08258846 | G21: =F21*(1+('Scenario Input'!$AJ$15/100)) -> 91.11857405 | H21: =G21*(1+('Scenario Input'!$AM$15/100)) -> 93.81373814 | I21: =H21*(1+('Scenario Input'!$AP$15/100)) -> 96.58862153 | J21: =I21*(1+('Scenario Input'!$AS$15/100)) -> 99.44558221
A22: 21 | B22: 101Netlink, AT&T California | C22: 113.006461 | D22: =C22*(1+('Scenario Input'!$AA$15/100)) -> 118.2709187 | E22: =D22*(1+('Scenario Input'!$AD$15/100)) -> 121.3112286 | F22: =E22*(1+('Scenario Input'!$AG$15/100)) -> 124.1217399 | G22: =F22*(1+('Scenario Input'!$AJ$15/100)) -> 126.9585465 | H22: =G22*(1+('Scenario Input'!$AM$15/100)) -> 130.7138085 | I22: =H22*(1+('Scenario Input'!$AP$15/100)) -> 134.580146 | J22: =I22*(1+('Scenario Input'!$AS$15/100)) -> 138.5608445
A23: 22 | B23: 101Netlink, Frontier | C23: 105.4366502 | D23: =C23*(1+('Scenario Input'!$AA$15/100)) -> 110.3484648 | E23: =D23*(1+('Scenario Input'!$AD$15/100)) -> 113.1851176 | F23: =E23*(1+('Scenario Input'!$AG$15/100)) -> 115.807365 | G23: =F23*(1+('Scenario Input'!$AJ$15/100)) -> 118.4541463 | H23: =G23*(1+('Scenario Input'!$AM$15/100)) -> 121.9578596 | I23: =H23*(1+('Scenario Input'!$AP$15/100)) -> 125.565208 | J23: =I23*(1+('Scenario Input'!$AS$15/100)) -> 129.2792569
A24: 23 | B24: 101Netlink, Frontier - Citizens | C24: 105.4366502 | D24: =C24*(1+('Scenario Input'!$AA$15/100)) -> 110.3484648 | E24: =D24*(1+('Scenario Input'!$AD$15/100)) -> 113.1851176 | F24: =E24*(1+('Scenario Input'!$AG$15/100)) -> 115.807365 | G24: =F24*(1+('Scenario Input'!$AJ$15/100)) -> 118.4541463 | H24: =G24*(1+('Scenario Input'!$AM$15/100)) -> 121.9578596 | I24: =H24*(1+('Scenario Input'!$AP$15/100)) -> 125.565208 | J24: =I24*(1+('Scenario Input'!$AS$15/100)) -> 129.2792569
A25: 24 | B25: Aan Chuuphan, | C25: 220.6059143 | D25: =C25*(1+('Scenario Input'!$AA$15/100)) -> 230.8829417 | E25: =D25*(1+('Scenario Input'!$AD$15/100)) -> 236.8180921 | F25: =E25*(1+('Scenario Input'!$AG$15/100)) -> 242.3046406 | G25: =F25*(1+('Scenario Input'!$AJ$15/100)) -> 247.8425214 | H25: =G25*(1+('Scenario Input'!$AM$15/100)) -> 255.1733677 | I25: =H25*(1+('Scenario Input'!$AP$15/100)) -> 262.7210506 | J25: =I25*(1+('Scenario Input'!$AS$15/100)) -> 270.4919836
A26: 25 | B26: Aan Chuuphan, Frontier | C26: 244.937449 | D26: =C26*(1+('Scenario Input'!$AA$15/100)) -> 256.347972 | E26: =D26*(1+('Scenario Input'!$AD$15/100)) -> 262.9377346 | F26: =E26*(1+('Scenario Input'!$AG$15/100)) -> 269.0294171 | G26: =F26*(1+('Scenario Input'!$AJ$15/100)) -> 275.1780936 | H26: =G26*(1+('Scenario Input'!$AM$15/100)) -> 283.3174892 | I26: =H26*(1+('Scenario Input'!$AP$15/100)) -> 291.697637 | J26: =I26*(1+('Scenario Input'!$AS$15/100)) -> 300.3256583
A27: 26 | B27: AeroSurf, AT&T California | C27: 139.9874295 | D27: =C27*(1+('Scenario Input'!$AA$15/100)) -> 146.5088079 | E27: =D27*(1+('Scenario Input'!$AD$15/100)) -> 150.2750099 | F27: =E27*(1+('Scenario Input'!$AG$15/100)) -> 153.7565477 | G27: =F27*(1+('Scenario Input'!$AJ$15/100)) -> 157.2706588 | H27: =G27*(1+('Scenario Input'!$AM$15/100)) -> 161.922512 | I27: =H27*(1+('Scenario Input'!$AP$15/100)) -> 166.7119608 | J27: =I27*(1+('Scenario Input'!$AS$15/100)) -> 171.6430749
A28: 27 | B28: AeroSurf, Frontier | C28: 132.4176187 | D28: =C28*(1+('Scenario Input'!$AA$15/100)) -> 138.586354 | E28: =D28*(1+('Scenario Input'!$AD$15/100)) -> 142.1488989 | F28: =E28*(1+('Scenario Input'!$AG$15/100)) -> 145.4421728 | G28: =F28*(1+('Scenario Input'!$AJ$15/100)) -> 148.7662586 | H28: =G28*(1+('Scenario Input'!$AM$15/100)) -> 153.1665631 | I28: =H28*(1+('Scenario Input'!$AP$15/100)) -> 157.6970227 | J28: =I28*(1+('Scenario Input'!$AS$15/100)) -> 162.3614872
A29: 28 | B29: AFES Network Services LLC, AT&T California | C29: 680.7422699 | D29: =C29*(1+('Scenario Input'!$AA$15/100)) -> 712.4549598 | E29: =D29*(1+('Scenario Input'!$AD$15/100)) -> 730.7695538 | F29: =E29*(1+('Scenario Input'!$AG$15/100)) -> 747.6998591 | G29: =F29*(1+('Scenario Input'!$AJ$15/100)) -> 764.7885649 | H29: =G29*(1+('Scenario Input'!$AM$15/100)) -> 787.4099754 | I29: =H29*(1+('Scenario Input'!$AP$15/100)) -> 810.7004967 | J29: =I29*(1+('Scenario Input'!$AS$15/100)) -> 834.67992
A30: 29 | B30: AFES Network Services LLC, Frontier | C30: 673.1724591 | D30: =C30*(1+('Scenario Input'!$AA$15/100)) -> 704.5325059 | E30: =D30*(1+('Scenario Input'!$AD$15/100)) -> 722.6434428 | F30: =E30*(1+('Scenario Input'!$AG$15/100)) -> 739.3854842 | G30: =F30*(1+('Scenario Input'!$AJ$15/100)) -> 756.2841647 | H30: =G30*(1+('Scenario Input'!$AM$15/100)) -> 778.6540266 | I30: =H30*(1+('Scenario Input'!$AP$15/100)) -> 801.6855587 | J30: =I30*(1+('Scenario Input'!$AS$15/100)) -> 825.3983324
A31: 30 | B31: AFES Network Services LLC, Frontier - Citizens | C31: 673.1724591 | D31: =C31*(1+('Scenario Input'!$AA$15/100)) -> 704.5325059 | E31: =D31*(1+('Scenario Input'!$AD$15/100)) -> 722.6434428 | F31: =E31*(1+('Scenario Input'!$AG$15/100)) -> 739.3854842 | G31: =F31*(1+('Scenario Input'!$AJ$15/100)) -> 756.2841647 | H31: =G31*(1+('Scenario Input'!$AM$15/100)) -> 778.6540266 | I31: =H31*(1+('Scenario Input'!$AP$15/100)) -> 801.6855587 | J31: =I31*(1+('Scenario Input'!$AS$15/100)) -> 825.3983324
A32: 31 | B32: Antelecom Inc., | C32: 69.15562853 | D32: =C32*(1+('Scenario Input'!$AA$15/100)) -> 72.3772751 | E32: =D32*(1+('Scenario Input'!$AD$15/100)) -> 74.23782838 | F32: =E32*(1+('Scenario Input'!$AG$15/100)) -> 75.95775376 | G32: =F32*(1+('Scenario Input'!$AJ$15/100)) -> 77.69377081 | H32: =G32*(1+('Scenario Input'!$AM$15/100)) -> 79.99184739 | I32: =H32*(1+('Scenario Input'!$AP$15/100)) -> 82.35789796 | J32: =I32*(1+('Scenario Input'!$AS$15/100)) -> 84.7939331
A33: 32 | B33: Antelecom Inc., AT&T California | C33: 101.056974 | D33: =C33*(1+('Scenario Input'!$AA$15/100)) -> 105.7647593 | E33: =D33*(1+('Scenario Input'!$AD$15/100)) -> 108.4835819 | F33: =E33*(1+('Scenario Input'!$AG$15/100)) -> 110.9969052 | G33: =F33*(1+('Scenario Input'!$AJ$15/100)) -> 113.5337433 | H33: =G33*(1+('Scenario Input'!$AM$15/100)) -> 116.8919177 | I33: =H33*(1+('Scenario Input'!$AP$15/100)) -> 120.3494224 | J33: =I33*(1+('Scenario Input'!$AS$15/100)) -> 123.9091954
A34: 33 | B34: Antelecom Inc., Frontier | C34: 93.4871632 | D34: =C34*(1+('Scenario Input'!$AA$15/100)) -> 97.84230544 | E34: =D34*(1+('Scenario Input'!$AD$15/100)) -> 100.3574709 | F34: =E34*(1+('Scenario Input'!$AG$15/100)) -> 102.6825303 | G34: =F34*(1+('Scenario Input'!$AJ$15/100)) -> 105.029343 | H34: =G34*(1+('Scenario Input'!$AM$15/100)) -> 108.1359688 | I34: =H34*(1+('Scenario Input'!$AP$15/100)) -> 111.3344844 | J34: =I34*(1+('Scenario Input'!$AS$15/100)) -> 114.6276078
A35: 34 | B35: Applied Technology Group Inc, | C35: 160.047428 | D35: =C35*(1+('Scenario Input'!$AA$15/100)) -> 167.5033106 | E35: =D35*(1+('Scenario Input'!$AD$15/100)) -> 171.8092041 | F35: =E35*(1+('Scenario Input'!$AG$15/100)) -> 175.7896412 | G35: =F35*(1+('Scenario Input'!$AJ$15/100)) -> 179.8073195 | H35: =G35*(1+('Scenario Input'!$AM$15/100)) -> 185.1257766 | I35: =H35*(1+('Scenario Input'!$AP$15/100)) -> 190.6015465 | J35: =I35*(1+('Scenario Input'!$AS$15/100)) -> 196.2392822
A36: 35 | B36: Applied Technology Group Inc, AT&T California | C36: 191.9487735 | D36: =C36*(1+('Scenario Input'!$AA$15/100)) -> 200.8907949 | E36: =D36*(1+('Scenario Input'!$AD$15/100)) -> 206.0549576 | F36: =E36*(1+('Scenario Input'!$AG$15/100)) -> 210.8287927 | G36: =F36*(1+('Scenario Input'!$AJ$15/100)) -> 215.6472919 | H36: =G36*(1+('Scenario Input'!$AM$15/100)) -> 222.0258469 | I36: =H36*(1+('Scenario Input'!$AP$15/100)) -> 228.5930709 | J36: =I36*(1+('Scenario Input'!$AS$15/100)) -> 235.3545446
A37: 36 | B37: Applied Technology Group Inc, Frontier | C37: 184.3789627 | D37: =C37*(1+('Scenario Input'!$AA$15/100)) -> 192.968341 | E37: =D37*(1+('Scenario Input'!$AD$15/100)) -> 197.9288466 | F37: =E37*(1+('Scenario Input'!$AG$15/100)) -> 202.5144178 | G37: =F37*(1+('Scenario Input'!$AJ$15/100)) -> 207.1428917 | H37: =G37*(1+('Scenario Input'!$AM$15/100)) -> 213.269898 | I37: =H37*(1+('Scenario Input'!$AP$15/100)) -> 219.5781329 | J37: =I37*(1+('Scenario Input'!$AS$15/100)) -> 226.0729569
A38: 37 | B38: AT&T California, | C38: 75.69810785 | D38: =C38*(1+('Scenario Input'!$AA$15/100)) -> 79.22453882 | E38: =D38*(1+('Scenario Input'!$AD$15/100)) -> 81.26111004 | F38: =E38*(1+('Scenario Input'!$AG$15/100)) -> 83.14374922 | G38: =F38*(1+('Scenario Input'!$AJ$15/100)) -> 85.04400245 | H38: =G38*(1+('Scenario Input'!$AM$15/100)) -> 87.55948893 | I38: =H38*(1+('Scenario Input'!$AP$15/100)) -> 90.14938009 | J38: =I38*(1+('Scenario Input'!$AS$15/100)) -> 92.81587673
A39: 38 | B39: AT&T California, AT&T California | C39: 107.5994533 | D39: =C39*(1+('Scenario Input'!$AA$15/100)) -> 112.612023 | E39: =D39*(1+('Scenario Input'!$AD$15/100)) -> 115.5068636 | F39: =E39*(1+('Scenario Input'!$AG$15/100)) -> 118.1829007 | G39: =F39*(1+('Scenario Input'!$AJ$15/100)) -> 120.8839749 | H39: =G39*(1+('Scenario Input'!$AM$15/100)) -> 124.4595593 | I39: =H39*(1+('Scenario Input'!$AP$15/100)) -> 128.1409046 | J39: =I39*(1+('Scenario Input'!$AS$15/100)) -> 131.9311391
A40: 39 | B40: AT&T California, Ducor | C40: 102.7331464 | D40: =C40*(1+('Scenario Input'!$AA$15/100)) -> 107.519017 | E40: =D40*(1+('Scenario Input'!$AD$15/100)) -> 110.282935 | F40: =E40*(1+('Scenario Input'!$AG$15/100)) -> 112.8379454 | G40: =F40*(1+('Scenario Input'!$AJ$15/100)) -> 115.4168605 | H40: =G40*(1+('Scenario Input'!$AM$15/100)) -> 118.830735 | I40: =H40*(1+('Scenario Input'!$AP$15/100)) -> 122.3455873 | J40: =I40*(1+('Scenario Input'!$AS$15/100)) -> 125.9644041
A41: 40 | B41: AT&T California, Foresthill | C41: 102.7331464 | D41: =C41*(1+('Scenario Input'!$AA$15/100)) -> 107.519017 | E41: =D41*(1+('Scenario Input'!$AD$15/100)) -> 110.282935 | F41: =E41*(1+('Scenario Input'!$AG$15/100)) -> 112.8379454 | G41: =F41*(1+('Scenario Input'!$AJ$15/100)) -> 115.4168605 | H41: =G41*(1+('Scenario Input'!$AM$15/100)) -> 118.830735 | I41: =H41*(1+('Scenario Input'!$AP$15/100)) -> 122.3455873 | J41: =I41*(1+('Scenario Input'!$AS$15/100)) -> 125.9644041
A42: 41 | B42: AT&T California, Frontier | C42: 100.0296425 | D42: =C42*(1+('Scenario Input'!$AA$15/100)) -> 104.6895692 | E42: =D42*(1+('Scenario Input'!$AD$15/100)) -> 107.3807525 | F42: =E42*(1+('Scenario Input'!$AG$15/100)) -> 109.8685258 | G42: =F42*(1+('Scenario Input'!$AJ$15/100)) -> 112.3795747 | H42: =G42*(1+('Scenario Input'!$AM$15/100)) -> 115.7036104 | I42: =H42*(1+('Scenario Input'!$AP$15/100)) -> 119.1259666 | J42: =I42*(1+('Scenario Input'!$AS$15/100)) -> 122.6495514
A43: 42 | B43: AT&T California, Frontier - Citizens | C43: 100.0296425 | D43: =C43*(1+('Scenario Input'!$AA$15/100)) -> 104.6895692 | E43: =D43*(1+('Scenario Input'!$AD$15/100)) -> 107.3807525 | F43: =E43*(1+('Scenario Input'!$AG$15/100)) -> 109.8685258 | G43: =F43*(1+('Scenario Input'!$AJ$15/100)) -> 112.3795747 | H43: =G43*(1+('Scenario Input'!$AM$15/100)) -> 115.7036104 | I43: =H43*(1+('Scenario Input'!$AP$15/100)) -> 119.1259666 | J43: =I43*(1+('Scenario Input'!$AS$15/100)) -> 122.6495514
A44: 43 | B44: AT&T California, Surewest | C44: 100.8082516 | D44: =C44*(1+('Scenario Input'!$AA$15/100)) -> 105.5044501 | E44: =D44*(1+('Scenario Input'!$AD$15/100)) -> 108.2165811 | F44: =E44*(1+('Scenario Input'!$AG$15/100)) -> 110.7237186 | G44: =F44*(1+('Scenario Input'!$AJ$15/100)) -> 113.254313 | H44: =G44*(1+('Scenario Input'!$AM$15/100)) -> 116.6042223 | I44: =H44*(1+('Scenario Input'!$AP$15/100)) -> 120.0532173 | J44: =I44*(1+('Scenario Input'!$AS$15/100)) -> 123.604229
A45: 44 | B45: AT&T California, TDS Telecom - HV | C45: 93.91972381 | D45: =C45*(1+('Scenario Input'!$AA$15/100)) -> 98.29501709 | E45: =D45*(1+('Scenario Input'!$AD$15/100)) -> 100.8218201 | F45: =E45*(1+('Scenario Input'!$AG$15/100)) -> 103.1576374 | G45: =F45*(1+('Scenario Input'!$AJ$15/100)) -> 105.5153088 | H45: =G45*(1+('Scenario Input'!$AM$15/100)) -> 108.6363088 | I45: =H45*(1+('Scenario Input'!$AP$15/100)) -> 111.8496237 | J45: =I45*(1+('Scenario Input'!$AS$15/100)) -> 115.1579842
A46: 45 | B46: AT&T California, Volcano | C46: 101.6517448 | D46: =C46*(1+('Scenario Input'!$AA$15/100)) -> 106.3872378 | E46: =D46*(1+('Scenario Input'!$AD$15/100)) -> 109.122062 | F46: =E46*(1+('Scenario Input'!$AG$15/100)) -> 111.6501775 | G46: =F46*(1+('Scenario Input'!$AJ$15/100)) -> 114.2019461 | H46: =G46*(1+('Scenario Input'!$AM$15/100)) -> 117.5798851 | I46: =H46*(1+('Scenario Input'!$AP$15/100)) -> 121.057739 | J46: =I46*(1+('Scenario Input'!$AS$15/100)) -> 124.638463
A47: 46 | B47: AT&T California, 50, | C47: 64.88409245 | D47: =C47*(1+('Scenario Input'!$AA$15/100)) -> 67.90674756 | E47: =D47*(1+('Scenario Input'!$AD$15/100)) -> 69.65238003 | F47: =E47*(1+('Scenario Input'!$AG$15/100)) -> 71.26607076 | G47: =F47*(1+('Scenario Input'!$AJ$15/100)) -> 72.89485924 | H47: =G47*(1+('Scenario Input'!$AM$15/100)) -> 75.05099051 | I47: =H47*(1+('Scenario Input'!$AP$15/100)) -> 77.27089722 | J47: =I47*(1+('Scenario Input'!$AS$15/100)) -> 79.55646577
A48: 47 | B48: AT&T California, 50, AT&T California | C48: 96.7854379 | D48: =C48*(1+('Scenario Input'!$AA$15/100)) -> 101.2942318 | E48: =D48*(1+('Scenario Input'!$AD$15/100)) -> 103.8981335 | F48: =E48*(1+('Scenario Input'!$AG$15/100)) -> 106.3052222 | G48: =F48*(1+('Scenario Input'!$AJ$15/100)) -> 108.7348317 | H48: =G48*(1+('Scenario Input'!$AM$15/100)) -> 111.9510608 | I48: =H48*(1+('Scenario Input'!$AP$15/100)) -> 115.2624217 | J48: =I48*(1+('Scenario Input'!$AS$15/100)) -> 118.6717281
A49: 48 | B49: AT&T California, 50, Frontier | C49: 89.21562711 | D49: =C49*(1+('Scenario Input'!$AA$15/100)) -> 93.37177789 | E49: =D49*(1+('Scenario Input'!$AD$15/100)) -> 95.77202254 | F49: =E49*(1+('Scenario Input'!$AG$15/100)) -> 97.9908473 | G49: =F49*(1+('Scenario Input'!$AJ$15/100)) -> 100.2304315 | H49: =G49*(1+('Scenario Input'!$AM$15/100)) -> 103.195112 | I49: =H49*(1+('Scenario Input'!$AP$15/100)) -> 106.2474837 | J49: =I49*(1+('Scenario Input'!$AS$15/100)) -> 109.3901404
A50: 49 | B50: AT&T California, 50, Frontier - Citizens | C50: 89.21562711 | D50: =C50*(1+('Scenario Input'!$AA$15/100)) -> 93.37177789 | E50: =D50*(1+('Scenario Input'!$AD$15/100)) -> 95.77202254 | F50: =E50*(1+('Scenario Input'!$AG$15/100)) -> 97.9908473 | G50: =F50*(1+('Scenario Input'!$AJ$15/100)) -> 100.2304315 | H50: =G50*(1+('Scenario Input'!$AM$15/100)) -> 103.195112 | I50: =H50*(1+('Scenario Input'!$AP$15/100)) -> 106.2474837 | J50: =I50*(1+('Scenario Input'!$AS$15/100)) -> 109.3901404
A51: 50 | B51: AT&T California, 50, Surewest | C51: 89.99423622 | D51: =C51*(1+('Scenario Input'!$AA$15/100)) -> 94.18665886 | E51: =D51*(1+('Scenario Input'!$AD$15/100)) -> 96.6078511 | F51: =E51*(1+('Scenario Input'!$AG$15/100)) -> 98.84604015 | G51: =F51*(1+('Scenario Input'!$AJ$15/100)) -> 101.1051698 | H51: =G51*(1+('Scenario Input'!$AM$15/100)) -> 104.0957238 | I51: =H51*(1+('Scenario Input'!$AP$15/100)) -> 107.1747344 | J51: =I51*(1+('Scenario Input'!$AS$15/100)) -> 110.344818
A52: 51 | B52: AT&T California, 50, TDS Telecom - HV | C52: 83.10570841 | D52: =C52*(1+('Scenario Input'!$AA$15/100)) -> 86.97722583 | E52: =D52*(1+('Scenario Input'!$AD$15/100)) -> 89.21309009 | F52: =E52*(1+('Scenario Input'!$AG$15/100)) -> 91.27995897 | G52: =F52*(1+('Scenario Input'!$AJ$15/100)) -> 93.36616555 | H52: =G52*(1+('Scenario Input'!$AM$15/100)) -> 96.12781035 | I52: =H52*(1+('Scenario Input'!$AP$15/100)) -> 98.97114086 | J52: =I52*(1+('Scenario Input'!$AS$15/100)) -> 101.8985732
A53: 52 | B53: AT&T California, 70, | C53: 64.87327843 | D53: =C53*(1+('Scenario Input'!$AA$15/100)) -> 67.89542977 | E53: =D53*(1+('Scenario Input'!$AD$15/100)) -> 69.6407713 | F53: =E53*(1+('Scenario Input'!$AG$15/100)) -> 71.25419309 | G53: =F53*(1+('Scenario Input'!$AJ$15/100)) -> 72.8827101 | H53: =G53*(1+('Scenario Input'!$AM$15/100)) -> 75.03848201 | I53: =H53*(1+('Scenario Input'!$AP$15/100)) -> 77.25801874 | J53: =I53*(1+('Scenario Input'!$AS$15/100)) -> 79.54320636
A54: 53 | B54: AT&T California, 70, AT&T California | C54: 96.77462388 | D54: =C54*(1+('Scenario Input'!$AA$15/100)) -> 101.282914 | E54: =D54*(1+('Scenario Input'!$AD$15/100)) -> 103.8865248 | F54: =E54*(1+('Scenario Input'!$AG$15/100)) -> 106.2933445 | G54: =F54*(1+('Scenario Input'!$AJ$15/100)) -> 108.7226826 | H54: =G54*(1+('Scenario Input'!$AM$15/100)) -> 111.9385523 | I54: =H54*(1+('Scenario Input'!$AP$15/100)) -> 115.2495432 | J54: =I54*(1+('Scenario Input'!$AS$15/100)) -> 118.6584687
A55: 54 | B55: AT&T California, 70, Calaveras | C55: 91.90831695 | D55: =C55*(1+('Scenario Input'!$AA$15/100)) -> 96.18990791 | E55: =D55*(1+('Scenario Input'!$AD$15/100)) -> 98.66259631 | F55: =E55*(1+('Scenario Input'!$AG$15/100)) -> 100.9483892 | G55: =F55*(1+('Scenario Input'!$AJ$15/100)) -> 103.2555681 | H55: =G55*(1+('Scenario Input'!$AM$15/100)) -> 106.3097281 | I55: =H55*(1+('Scenario Input'!$AP$15/100)) -> 109.4542259 | J55: =I55*(1+('Scenario Input'!$AS$15/100)) -> 112.6917338
A56: 55 | B56: AT&T California, 70, Ducor | C56: 91.90831695 | D56: =C56*(1+('Scenario Input'!$AA$15/100)) -> 96.18990791 | E56: =D56*(1+('Scenario Input'!$AD$15/100)) -> 98.66259631 | F56: =E56*(1+('Scenario Input'!$AG$15/100)) -> 100.9483892 | G56: =F56*(1+('Scenario Input'!$AJ$15/100)) -> 103.2555681 | H56: =G56*(1+('Scenario Input'!$AM$15/100)) -> 106.3097281 | I56: =H56*(1+('Scenario Input'!$AP$15/100)) -> 109.4542259 | J56: =I56*(1+('Scenario Input'!$AS$15/100)) -> 112.6917338
A57: 56 | B57: AT&T California, 70, Foresthill | C57: 91.90831695 | D57: =C57*(1+('Scenario Input'!$AA$15/100)) -> 96.18990791 | E57: =D57*(1+('Scenario Input'!$AD$15/100)) -> 98.66259631 | F57: =E57*(1+('Scenario Input'!$AG$15/100)) -> 100.9483892 | G57: =F57*(1+('Scenario Input'!$AJ$15/100)) -> 103.2555681 | H57: =G57*(1+('Scenario Input'!$AM$15/100)) -> 106.3097281 | I57: =H57*(1+('Scenario Input'!$AP$15/100)) -> 109.4542259 | J57: =I57*(1+('Scenario Input'!$AS$15/100)) -> 112.6917338
A58: 57 | B58: AT&T California, 70, Frontier | C58: 89.2048131 | D58: =C58*(1+('Scenario Input'!$AA$15/100)) -> 93.3604601 | E58: =D58*(1+('Scenario Input'!$AD$15/100)) -> 95.76041381 | F58: =E58*(1+('Scenario Input'!$AG$15/100)) -> 97.97896962 | G58: =F58*(1+('Scenario Input'!$AJ$15/100)) -> 100.2182823 | H58: =G58*(1+('Scenario Input'!$AM$15/100)) -> 103.1826035 | I58: =H58*(1+('Scenario Input'!$AP$15/100)) -> 106.2346052 | J58: =I58*(1+('Scenario Input'!$AS$15/100)) -> 109.376881
A59: 58 | B59: AT&T California, 70, Frontier - Citizens | C59: 89.2048131 | D59: =C59*(1+('Scenario Input'!$AA$15/100)) -> 93.3604601 | E59: =D59*(1+('Scenario Input'!$AD$15/100)) -> 95.76041381 | F59: =E59*(1+('Scenario Input'!$AG$15/100)) -> 97.97896962 | G59: =F59*(1+('Scenario Input'!$AJ$15/100)) -> 100.2182823 | H59: =G59*(1+('Scenario Input'!$AM$15/100)) -> 103.1826035 | I59: =H59*(1+('Scenario Input'!$AP$15/100)) -> 106.2346052 | J59: =I59*(1+('Scenario Input'!$AS$15/100)) -> 109.376881
A60: 59 | B60: AT&T California, 70, Kerman | C60: 89.29132522 | D60: =C60*(1+('Scenario Input'!$AA$15/100)) -> 93.45100243 | E60: =D60*(1+('Scenario Input'!$AD$15/100)) -> 95.85328365 | F60: =E60*(1+('Scenario Input'!$AG$15/100)) -> 98.07399105 | G60: =F60*(1+('Scenario Input'!$AJ$15/100)) -> 100.3154755 | H60: =G60*(1+('Scenario Input'!$AM$15/100)) -> 103.2826714 | I60: =H60*(1+('Scenario Input'!$AP$15/100)) -> 106.3376331 | J60: =I60*(1+('Scenario Input'!$AS$15/100)) -> 109.4829563
A61: 60 | B61: AT&T California, 70, Ponderosa | C61: 91.90831695 | D61: =C61*(1+('Scenario Input'!$AA$15/100)) -> 96.18990791 | E61: =D61*(1+('Scenario Input'!$AD$15/100)) -> 98.66259631 | F61: =E61*(1+('Scenario Input'!$AG$15/100)) -> 100.9483892 | G61: =F61*(1+('Scenario Input'!$AJ$15/100)) -> 103.2555681 | H61: =G61*(1+('Scenario Input'!$AM$15/100)) -> 106.3097281 | I61: =H61*(1+('Scenario Input'!$AP$15/100)) -> 109.4542259 | J61: =I61*(1+('Scenario Input'!$AS$15/100)) -> 112.6917338
A62: 61 | B62: AT&T California, 70, TDS Telecom - Horn | C62: 82.22977316 | D62: =C62*(1+('Scenario Input'!$AA$15/100)) -> 86.06048474 | E62: =D62*(1+('Scenario Input'!$AD$15/100)) -> 88.27278296 | F62: =E62*(1+('Scenario Input'!$AG$15/100)) -> 90.31786702 | G62: =F62*(1+('Scenario Input'!$AJ$15/100)) -> 92.38208495 | H62: =G62*(1+('Scenario Input'!$AM$15/100)) -> 95.11462197 | I62: =H62*(1+('Scenario Input'!$AP$15/100)) -> 97.92798375 | J62: =I62*(1+('Scenario Input'!$AS$15/100)) -> 100.824561
A63: 62 | B63: AT&T California, 70, Volcano | C63: 90.82691541 | D63: =C63*(1+('Scenario Input'!$AA$15/100)) -> 95.05812879 | E63: =D63*(1+('Scenario Input'!$AD$15/100)) -> 97.50172331 | F63: =E63*(1+('Scenario Input'!$AG$15/100)) -> 99.76062139 | G63: =F63*(1+('Scenario Input'!$AJ$15/100)) -> 102.0406538 | H63: =G63*(1+('Scenario Input'!$AM$15/100)) -> 105.0588782 | I63: =H63*(1+('Scenario Input'!$AP$15/100)) -> 108.1663776 | J63: =I63*(1+('Scenario Input'!$AS$15/100)) -> 111.3657927
A64: 63 | B64: Atherton Fiber, AT&T California | C64: 91.37843019 | D64: =C64*(1+('Scenario Input'!$AA$15/100)) -> 95.63533614 | E64: =D64*(1+('Scenario Input'!$AD$15/100)) -> 98.09376854 | F64: =E64*(1+('Scenario Input'!$AG$15/100)) -> 100.366383 | G64: =F64*(1+('Scenario Input'!$AJ$15/100)) -> 102.6602601 | H64: =G64*(1+('Scenario Input'!$AM$15/100)) -> 105.6968116 | I64: =H64*(1+('Scenario Input'!$AP$15/100)) -> 108.8231803 | J64: =I64*(1+('Scenario Input'!$AS$15/100)) -> 112.0420226
A65: 64 | B65: AVISP, | C65: 323.3390607 | D65: =C65*(1+('Scenario Input'!$AA$15/100)) -> 338.4019587 | E65: =D65*(1+('Scenario Input'!$AD$15/100)) -> 347.1010272 | F65: =E65*(1+('Scenario Input'!$AG$15/100)) -> 355.142586 | G65: =F65*(1+('Scenario Input'!$AJ$15/100)) -> 363.2593819 | H65: =G65*(1+('Scenario Input'!$AM$15/100)) -> 374.0041027 | I65: =H65*(1+('Scenario Input'!$AP$15/100)) -> 385.0666378 | J65: =I65*(1+('Scenario Input'!$AS$15/100)) -> 396.4563878
A66: 65 | B66: AVISP, AT&T California | C66: 355.2404061 | D66: =C66*(1+('Scenario Input'!$AA$15/100)) -> 371.7894429 | E66: =D66*(1+('Scenario Input'!$AD$15/100)) -> 381.3467807 | F66: =E66*(1+('Scenario Input'!$AG$15/100)) -> 390.1817374 | G66: =F66*(1+('Scenario Input'!$AJ$15/100)) -> 399.0993544 | H66: =G66*(1+('Scenario Input'!$AM$15/100)) -> 410.904173 | I66: =H66*(1+('Scenario Input'!$AP$15/100)) -> 423.0581623 | J66: =I66*(1+('Scenario Input'!$AS$15/100)) -> 435.5716501
A67: 66 | B67: AVISP, Frontier | C67: 347.6705954 | D67: =C67*(1+('Scenario Input'!$AA$15/100)) -> 363.866989 | E67: =D67*(1+('Scenario Input'!$AD$15/100)) -> 373.2206697 | F67: =E67*(1+('Scenario Input'!$AG$15/100)) -> 381.8673625 | G67: =F67*(1+('Scenario Input'!$AJ$15/100)) -> 390.5949541 | H67: =G67*(1+('Scenario Input'!$AM$15/100)) -> 402.1482242 | I67: =H67*(1+('Scenario Input'!$AP$15/100)) -> 414.0432243 | J67: =I67*(1+('Scenario Input'!$AS$15/100)) -> 426.2900624
A68: 67 | B68: Ayera Technologies Inc, | C68: 74.61670631 | D68: =C68*(1+('Scenario Input'!$AA$15/100)) -> 78.09275969 | E68: =D68*(1+('Scenario Input'!$AD$15/100)) -> 80.10023704 | F68: =E68*(1+('Scenario Input'!$AG$15/100)) -> 81.95598138 | G68: =F68*(1+('Scenario Input'!$AJ$15/100)) -> 83.82908813 | H68: =G68*(1+('Scenario Input'!$AM$15/100)) -> 86.30863909 | I68: =H68*(1+('Scenario Input'!$AP$15/100)) -> 88.86153181 | J68: =I68*(1+('Scenario Input'!$AS$15/100)) -> 91.48993563
A69: 68 | B69: Ayera Technologies Inc, AT&T California | C69: 106.5180518 | D69: =C69*(1+('Scenario Input'!$AA$15/100)) -> 111.4802439 | E69: =D69*(1+('Scenario Input'!$AD$15/100)) -> 114.3459906 | F69: =E69*(1+('Scenario Input'!$AG$15/100)) -> 116.9951328 | G69: =F69*(1+('Scenario Input'!$AJ$15/100)) -> 119.6690606 | H69: =G69*(1+('Scenario Input'!$AM$15/100)) -> 123.2087094 | I69: =H69*(1+('Scenario Input'!$AP$15/100)) -> 126.8530563 | J69: =I69*(1+('Scenario Input'!$AS$15/100)) -> 130.605198
A70: 69 | B70: Ayera Technologies Inc, Frontier | C70: 98.94824098 | D70: =C70*(1+('Scenario Input'!$AA$15/100)) -> 103.55779 | E70: =D70*(1+('Scenario Input'!$AD$15/100)) -> 106.2198795 | F70: =E70*(1+('Scenario Input'!$AG$15/100)) -> 108.6807579 | G70: =F70*(1+('Scenario Input'!$AJ$15/100)) -> 111.1646603 | H70: =G70*(1+('Scenario Input'!$AM$15/100)) -> 114.4527605 | I70: =H70*(1+('Scenario Input'!$AP$15/100)) -> 117.8381183 | J70: =I70*(1+('Scenario Input'!$AS$15/100)) -> 121.3236103
A71: 70 | B71: Beamspeed LLC, | C71: 81.10511556 | D71: =C71*(1+('Scenario Input'!$AA$15/100)) -> 84.88343445 | E71: =D71*(1+('Scenario Input'!$AD$15/100)) -> 87.06547504 | F71: =E71*(1+('Scenario Input'!$AG$15/100)) -> 89.08258846 | G71: =F71*(1+('Scenario Input'!$AJ$15/100)) -> 91.11857405 | H71: =G71*(1+('Scenario Input'!$AM$15/100)) -> 93.81373814 | I71: =H71*(1+('Scenario Input'!$AP$15/100)) -> 96.58862153 | J71: =I71*(1+('Scenario Input'!$AS$15/100)) -> 99.44558221
A72: 71 | B72: Beamspeed LLC, AT&T California | C72: 113.006461 | D72: =C72*(1+('Scenario Input'!$AA$15/100)) -> 118.2709187 | E72: =D72*(1+('Scenario Input'!$AD$15/100)) -> 121.3112286 | F72: =E72*(1+('Scenario Input'!$AG$15/100)) -> 124.1217399 | G72: =F72*(1+('Scenario Input'!$AJ$15/100)) -> 126.9585465 | H72: =G72*(1+('Scenario Input'!$AM$15/100)) -> 130.7138085 | I72: =H72*(1+('Scenario Input'!$AP$15/100)) -> 134.580146 | J72: =I72*(1+('Scenario Input'!$AS$15/100)) -> 138.5608445
A73: 72 | B73: Beamspeed LLC, TDS Telecom - WH | C73: 100.0296425 | D73: =C73*(1+('Scenario Input'!$AA$15/100)) -> 104.6895692 | E73: =D73*(1+('Scenario Input'!$AD$15/100)) -> 107.3807525 | F73: =E73*(1+('Scenario Input'!$AG$15/100)) -> 109.8685258 | G73: =F73*(1+('Scenario Input'!$AJ$15/100)) -> 112.3795747 | H73: =G73*(1+('Scenario Input'!$AM$15/100)) -> 115.7036104 | I73: =H73*(1+('Scenario Input'!$AP$15/100)) -> 119.1259666 | J73: =I73*(1+('Scenario Input'!$AS$15/100)) -> 122.6495514
A74: 73 | B74: Cal-Ore Communications Inc., AT&T California | C74: 117.3320672 | D74: =C74*(1+('Scenario Input'!$AA$15/100)) -> 122.7980352 | E74: =D74*(1+('Scenario Input'!$AD$15/100)) -> 125.9547206 | F74: =E74*(1+('Scenario Input'!$AG$15/100)) -> 128.8728113 | G74: =F74*(1+('Scenario Input'!$AJ$15/100)) -> 131.8182038 | H74: =G74*(1+('Scenario Input'!$AM$15/100)) -> 135.7172078 | I74: =H74*(1+('Scenario Input'!$AP$15/100)) -> 139.7315391 | J74: =I74*(1+('Scenario Input'!$AS$15/100)) -> 143.8646089
A75: 74 | B75: Cal-Ore Communications Inc., Cal-Ore | C75: 112.4657602 | D75: =C75*(1+('Scenario Input'!$AA$15/100)) -> 117.7050291 | E75: =D75*(1+('Scenario Input'!$AD$15/100)) -> 120.7307921 | F75: =E75*(1+('Scenario Input'!$AG$15/100)) -> 123.527856 | G75: =F75*(1+('Scenario Input'!$AJ$15/100)) -> 126.3510894 | H75: =G75*(1+('Scenario Input'!$AM$15/100)) -> 130.0883836 | I75: =H75*(1+('Scenario Input'!$AP$15/100)) -> 133.9362219 | J75: =I75*(1+('Scenario Input'!$AS$15/100)) -> 137.897874
A76: 75 | B76: Cal-Ore Communications Inc., 12, | C76: 54.01600696 | D76: =C76*(1+('Scenario Input'!$AA$15/100)) -> 56.53236734 | E76: =D76*(1+('Scenario Input'!$AD$15/100)) -> 57.98560638 | F76: =E76*(1+('Scenario Input'!$AG$15/100)) -> 59.32900391 | G76: =F76*(1+('Scenario Input'!$AJ$15/100)) -> 60.68497032 | H76: =G76*(1+('Scenario Input'!$AM$15/100)) -> 62.4799496 | I76: =H76*(1+('Scenario Input'!$AP$15/100)) -> 64.32802194 | J76: =I76*(1+('Scenario Input'!$AS$15/100)) -> 66.23075775
A77: 76 | B77: Cal-Ore Communications Inc., 12, AT&T California | C77: 85.91735241 | D77: =C77*(1+('Scenario Input'!$AA$15/100)) -> 89.91985156 | E77: =D77*(1+('Scenario Input'!$AD$15/100)) -> 92.23135989 | F77: =E77*(1+('Scenario Input'!$AG$15/100)) -> 94.36815537 | G77: =F77*(1+('Scenario Input'!$AJ$15/100)) -> 96.52494278 | H77: =G77*(1+('Scenario Input'!$AM$15/100)) -> 99.38001993 | I77: =H77*(1+('Scenario Input'!$AP$15/100)) -> 102.3195464 | J77: =I77*(1+('Scenario Input'!$AS$15/100)) -> 105.3460201
A78: 77 | B78: Cal-Ore Communications Inc., 12, Cal-Ore | C78: 81.05104548 | D78: =C78*(1+('Scenario Input'!$AA$15/100)) -> 84.82684549 | E78: =D78*(1+('Scenario Input'!$AD$15/100)) -> 87.00743139 | F78: =E78*(1+('Scenario Input'!$AG$15/100)) -> 89.02320006 | G78: =F78*(1+('Scenario Input'!$AJ$15/100)) -> 91.05782834 | H78: =G78*(1+('Scenario Input'!$AM$15/100)) -> 93.75119565 | I78: =H78*(1+('Scenario Input'!$AP$15/100)) -> 96.52422911 | J78: =I78*(1+('Scenario Input'!$AS$15/100)) -> 99.37928516
A79: 78 | B79: Cal-Ore Communications Inc., 70, | C79: 75.64403778 | D79: =C79*(1+('Scenario Input'!$AA$15/100)) -> 79.16794986 | E79: =D79*(1+('Scenario Input'!$AD$15/100)) -> 81.20306639 | F79: =E79*(1+('Scenario Input'!$AG$15/100)) -> 83.08436083 | G79: =F79*(1+('Scenario Input'!$AJ$15/100)) -> 84.98325674 | H79: =G79*(1+('Scenario Input'!$AM$15/100)) -> 87.49694644 | I79: =H79*(1+('Scenario Input'!$AP$15/100)) -> 90.08498768 | J79: =I79*(1+('Scenario Input'!$AS$15/100)) -> 92.74957968
A80: 79 | B80: Cal-Ore Communications Inc., 70, AT&T California | C80: 107.5453832 | D80: =C80*(1+('Scenario Input'!$AA$15/100)) -> 112.5554341 | E80: =D80*(1+('Scenario Input'!$AD$15/100)) -> 115.4488199 | F80: =E80*(1+('Scenario Input'!$AG$15/100)) -> 118.1235123 | G80: =F80*(1+('Scenario Input'!$AJ$15/100)) -> 120.8232292 | H80: =G80*(1+('Scenario Input'!$AM$15/100)) -> 124.3970168 | I80: =H80*(1+('Scenario Input'!$AP$15/100)) -> 128.0765121 | J80: =I80*(1+('Scenario Input'!$AS$15/100)) -> 131.864842
A81: 80 | B81: Cal-Ore Communications Inc., 70, Cal-Ore | C81: 102.6790763 | D81: =C81*(1+('Scenario Input'!$AA$15/100)) -> 107.462428 | E81: =D81*(1+('Scenario Input'!$AD$15/100)) -> 110.2248914 | F81: =E81*(1+('Scenario Input'!$AG$15/100)) -> 112.778557 | G81: =F81*(1+('Scenario Input'!$AJ$15/100)) -> 115.3561148 | H81: =G81*(1+('Scenario Input'!$AM$15/100)) -> 118.7681925 | I81: =H81*(1+('Scenario Input'!$AP$15/100)) -> 122.2811949 | J81: =I81*(1+('Scenario Input'!$AS$15/100)) -> 125.8981071
A82: 81 | B82: Cal.net Inc., | C82: 172.9701764 | D82: =C82*(1+('Scenario Input'!$AA$15/100)) -> 181.0280712 | E82: =D82*(1+('Scenario Input'!$AD$15/100)) -> 185.6816364 | F82: =E82*(1+('Scenario Input'!$AG$15/100)) -> 189.983467 | G82: =F82*(1+('Scenario Input'!$AJ$15/100)) -> 194.3255456 | H82: =G82*(1+('Scenario Input'!$AM$15/100)) -> 200.0734322 | I82: =H82*(1+('Scenario Input'!$AP$15/100)) -> 205.9913335 | J82: =I82*(1+('Scenario Input'!$AS$15/100)) -> 212.0842783
A83: 82 | B83: Cal.net Inc., AT&T California | C83: 204.8715219 | D83: =C83*(1+('Scenario Input'!$AA$15/100)) -> 214.4155554 | E83: =D83*(1+('Scenario Input'!$AD$15/100)) -> 219.9273899 | F83: =E83*(1+('Scenario Input'!$AG$15/100)) -> 225.0226184 | G83: =F83*(1+('Scenario Input'!$AJ$15/100)) -> 230.1655181 | H83: =G83*(1+('Scenario Input'!$AM$15/100)) -> 236.9735025 | I83: =H83*(1+('Scenario Input'!$AP$15/100)) -> 243.982858 | J83: =I83*(1+('Scenario Input'!$AS$15/100)) -> 251.1995407
A84: 83 | B84: Cal.net Inc., Calaveras | C84: 200.005215 | D84: =C84*(1+('Scenario Input'!$AA$15/100)) -> 209.3225493 | E84: =D84*(1+('Scenario Input'!$AD$15/100)) -> 214.7034614 | F84: =E84*(1+('Scenario Input'!$AG$15/100)) -> 219.6776631 | G84: =F84*(1+('Scenario Input'!$AJ$15/100)) -> 224.6984036 | H84: =G84*(1+('Scenario Input'!$AM$15/100)) -> 231.3446783 | I84: =H84*(1+('Scenario Input'!$AP$15/100)) -> 238.1875407 | J84: =I84*(1+('Scenario Input'!$AS$15/100)) -> 245.2328057
A85: 84 | B85: Cal.net Inc., Frontier | C85: 197.3017111 | D85: =C85*(1+('Scenario Input'!$AA$15/100)) -> 206.4931015 | E85: =D85*(1+('Scenario Input'!$AD$15/100)) -> 211.8012789 | F85: =E85*(1+('Scenario Input'!$AG$15/100)) -> 216.7082435 | G85: =F85*(1+('Scenario Input'!$AJ$15/100)) -> 221.6611178 | H85: =G85*(1+('Scenario Input'!$AM$15/100)) -> 228.2175536 | I85: =H85*(1+('Scenario Input'!$AP$15/100)) -> 234.96792 | J85: =I85*(1+('Scenario Input'!$AS$15/100)) -> 241.917953
A86: 85 | B86: Cal.net Inc., Frontier - Citizens | C86: 197.3017111 | D86: =C86*(1+('Scenario Input'!$AA$15/100)) -> 206.4931015 | E86: =D86*(1+('Scenario Input'!$AD$15/100)) -> 211.8012789 | F86: =E86*(1+('Scenario Input'!$AG$15/100)) -> 216.7082435 | G86: =F86*(1+('Scenario Input'!$AJ$15/100)) -> 221.6611178 | H86: =G86*(1+('Scenario Input'!$AM$15/100)) -> 228.2175536 | I86: =H86*(1+('Scenario Input'!$AP$15/100)) -> 234.96792 | J86: =I86*(1+('Scenario Input'!$AS$15/100)) -> 241.917953
A87: 86 | B87: Cal.net Inc., Surewest | C87: 198.0803202 | D87: =C87*(1+('Scenario Input'!$AA$15/100)) -> 207.3079825 | E87: =D87*(1+('Scenario Input'!$AD$15/100)) -> 212.6371075 | F87: =E87*(1+('Scenario Input'!$AG$15/100)) -> 217.5634364 | G87: =F87*(1+('Scenario Input'!$AJ$15/100)) -> 222.5358561 | H87: =G87*(1+('Scenario Input'!$AM$15/100)) -> 229.1181655 | I87: =H87*(1+('Scenario Input'!$AP$15/100)) -> 235.8951707 | J87: =I87*(1+('Scenario Input'!$AS$15/100)) -> 242.8726306
A88: 87 | B88: Calaveras Telephone Company, AT&T California | C88: 105.3825801 | D88: =C88*(1+('Scenario Input'!$AA$15/100)) -> 110.2918758 | E88: =D88*(1+('Scenario Input'!$AD$15/100)) -> 113.1270739 | F88: =E88*(1+('Scenario Input'!$AG$15/100)) -> 115.7479766 | G88: =F88*(1+('Scenario Input'!$AJ$15/100)) -> 118.3934006 | H88: =G88*(1+('Scenario Input'!$AM$15/100)) -> 121.8953171 | I88: =H88*(1+('Scenario Input'!$AP$15/100)) -> 125.5008156 | J88: =I88*(1+('Scenario Input'!$AS$15/100)) -> 129.2129598
A89: 88 | B89: Calaveras Telephone Company, Calaveras | C89: 100.5162732 | D89: =C89*(1+('Scenario Input'!$AA$15/100)) -> 105.1988698 | E89: =D89*(1+('Scenario Input'!$AD$15/100)) -> 107.9031454 | F89: =E89*(1+('Scenario Input'!$AG$15/100)) -> 110.4030213 | G89: =F89*(1+('Scenario Input'!$AJ$15/100)) -> 112.9262861 | H89: =G89*(1+('Scenario Input'!$AM$15/100)) -> 116.2664928 | I89: =H89*(1+('Scenario Input'!$AP$15/100)) -> 119.7054983 | J89: =I89*(1+('Scenario Input'!$AS$15/100)) -> 123.2462249
A90: 89 | B90: Calaveras Telephone Company, Frontier | C90: 97.81276936 | D90: =C90*(1+('Scenario Input'!$AA$15/100)) -> 102.3694219 | E90: =D90*(1+('Scenario Input'!$AD$15/100)) -> 105.0009629 | F90: =E90*(1+('Scenario Input'!$AG$15/100)) -> 107.4336017 | G90: =F90*(1+('Scenario Input'!$AJ$15/100)) -> 109.8890003 | H90: =G90*(1+('Scenario Input'!$AM$15/100)) -> 113.1393682 | I90: =H90*(1+('Scenario Input'!$AP$15/100)) -> 116.4858776 | J90: =I90*(1+('Scenario Input'!$AS$15/100)) -> 119.9313721
A91: 90 | B91: California Broadband Services, AT&T California | C91: 172.4294757 | D91: =C91*(1+('Scenario Input'!$AA$15/100)) -> 180.4621816 | E91: =D91*(1+('Scenario Input'!$AD$15/100)) -> 185.1011999 | F91: =E91*(1+('Scenario Input'!$AG$15/100)) -> 189.3895831 | G91: =F91*(1+('Scenario Input'!$AJ$15/100)) -> 193.7180884 | H91: =G91*(1+('Scenario Input'!$AM$15/100)) -> 199.4480073 | I91: =H91*(1+('Scenario Input'!$AP$15/100)) -> 205.3474094 | J91: =I91*(1+('Scenario Input'!$AS$15/100)) -> 211.4213078
A92: 91 | B92: California Broadband Services, Frontier | C92: 164.8596649 | D92: =C92*(1+('Scenario Input'!$AA$15/100)) -> 172.5397278 | E92: =D92*(1+('Scenario Input'!$AD$15/100)) -> 176.9750889 | F92: =E92*(1+('Scenario Input'!$AG$15/100)) -> 181.0752081 | G92: =F92*(1+('Scenario Input'!$AJ$15/100)) -> 185.2136882 | H92: =G92*(1+('Scenario Input'!$AM$15/100)) -> 190.6920584 | I92: =H92*(1+('Scenario Input'!$AP$15/100)) -> 196.3324714 | J92: =I92*(1+('Scenario Input'!$AS$15/100)) -> 202.1397201
A93: 92 | B93: California Broadband Services, Frontier - Citizens | C93: 164.8596649 | D93: =C93*(1+('Scenario Input'!$AA$15/100)) -> 172.5397278 | E93: =D93*(1+('Scenario Input'!$AD$15/100)) -> 176.9750889 | F93: =E93*(1+('Scenario Input'!$AG$15/100)) -> 181.0752081 | G93: =F93*(1+('Scenario Input'!$AJ$15/100)) -> 185.2136882 | H93: =G93*(1+('Scenario Input'!$AM$15/100)) -> 190.6920584 | I93: =H93*(1+('Scenario Input'!$AP$15/100)) -> 196.3324714 | J93: =I93*(1+('Scenario Input'!$AS$15/100)) -> 202.1397201
A94: 93 | B94: CalNeva Broadband, | C94: 32.38797615 | D94: =C94*(1+('Scenario Input'!$AA$15/100)) -> 33.89678482 | E94: =D94*(1+('Scenario Input'!$AD$15/100)) -> 34.76814637 | F94: =E94*(1+('Scenario Input'!$AG$15/100)) -> 35.57364699 | G94: =F94*(1+('Scenario Input'!$AJ$15/100)) -> 36.38668391 | H94: =G94*(1+('Scenario Input'!$AM$15/100)) -> 37.46295276 | I94: =H94*(1+('Scenario Input'!$AP$15/100)) -> 38.5710562 | J94: =I94*(1+('Scenario Input'!$AS$15/100)) -> 39.71193583
A95: 94 | B95: CalNeva Broadband, AT&T California | C95: 64.2893216 | D95: =C95*(1+('Scenario Input'!$AA$15/100)) -> 67.28426904 | E95: =D95*(1+('Scenario Input'!$AD$15/100)) -> 69.01389988 | F95: =E95*(1+('Scenario Input'!$AG$15/100)) -> 70.61279845 | G95: =F95*(1+('Scenario Input'!$AJ$15/100)) -> 72.22665637 | H95: =G95*(1+('Scenario Input'!$AM$15/100)) -> 74.3630231 | I95: =H95*(1+('Scenario Input'!$AP$15/100)) -> 76.56258066 | J95: =I95*(1+('Scenario Input'!$AS$15/100)) -> 78.82719817
A96: 95 | B96: Catalina Broadband Solutions, | C96: 86.45805318 | D96: =C96*(1+('Scenario Input'!$AA$15/100)) -> 90.48574112 | E96: =D96*(1+('Scenario Input'!$AD$15/100)) -> 92.81179639 | F96: =E96*(1+('Scenario Input'!$AG$15/100)) -> 94.96203929 | G96: =F96*(1+('Scenario Input'!$AJ$15/100)) -> 97.13239994 | H96: =G96*(1+('Scenario Input'!$AM$15/100)) -> 100.0054449 | I96: =H96*(1+('Scenario Input'!$AP$15/100)) -> 102.9634705 | J96: =I96*(1+('Scenario Input'!$AS$15/100)) -> 106.0089906
A97: 96 | B97: Central Coast Internet, | C97: 297.3313536 | D97: =C97*(1+('Scenario Input'!$AA$15/100)) -> 311.1826707 | E97: =D97*(1+('Scenario Input'!$AD$15/100)) -> 319.1820315 | F97: =E97*(1+('Scenario Input'!$AG$15/100)) -> 326.5767693 | G97: =F97*(1+('Scenario Input'!$AJ$15/100)) -> 334.0406925 | H97: =G97*(1+('Scenario Input'!$AM$15/100)) -> 343.921164 | I97: =H97*(1+('Scenario Input'!$AP$15/100)) -> 354.0938865 | J97: =I97*(1+('Scenario Input'!$AS$15/100)) -> 364.5675044
A98: 97 | B98: Central Coast Internet, AT&T California | C98: 329.2326991 | D98: =C98*(1+('Scenario Input'!$AA$15/100)) -> 344.5701549 | E98: =D98*(1+('Scenario Input'!$AD$15/100)) -> 353.427785 | F98: =E98*(1+('Scenario Input'!$AG$15/100)) -> 361.6159207 | G98: =F98*(1+('Scenario Input'!$AJ$15/100)) -> 369.8806649 | H98: =G98*(1+('Scenario Input'!$AM$15/100)) -> 380.8212344 | I98: =H98*(1+('Scenario Input'!$AP$15/100)) -> 392.085411 | J98: =I98*(1+('Scenario Input'!$AS$15/100)) -> 403.6827667
A99: 98 | B99: Charter Communications Inc, | C99: 19.45441372 | D99: =C99*(1+('Scenario Input'!$AA$15/100)) -> 20.36070648 | E99: =D99*(1+('Scenario Input'!$AD$15/100)) -> 20.88410528 | F99: =E99*(1+('Scenario Input'!$AG$15/100)) -> 21.36794355 | G99: =F99*(1+('Scenario Input'!$AJ$15/100)) -> 21.85630863 | H99: =G99*(1+('Scenario Input'!$AM$15/100)) -> 22.50278865 | I99: =H99*(1+('Scenario Input'!$AP$15/100)) -> 23.16839068 | J99: =I99*(1+('Scenario Input'!$AS$15/100)) -> 23.85368032
A100: 99 | B100: Charter Communications Inc, AT&T California | C100: 51.35575917 | D100: =C100*(1+('Scenario Input'!$AA$15/100)) -> 53.74819069 | E100: =D100*(1+('Scenario Input'!$AD$15/100)) -> 55.12985879 | F100: =E100*(1+('Scenario Input'!$AG$15/100)) -> 56.40709501 | G100: =F100*(1+('Scenario Input'!$AJ$15/100)) -> 57.69628109 | H100: =G100*(1+('Scenario Input'!$AM$15/100)) -> 59.40285899 | I100: =H100*(1+('Scenario Input'!$AP$15/100)) -> 61.15991515 | J100: =I100*(1+('Scenario Input'!$AS$15/100)) -> 62.96894266
A101: 100 | B101: Charter Communications Inc, Frontier | C101: 43.78594838 | D101: =C101*(1+('Scenario Input'!$AA$15/100)) -> 45.82573681 | E101: =D101*(1+('Scenario Input'!$AD$15/100)) -> 47.00374779 | F101: =E101*(1+('Scenario Input'!$AG$15/100)) -> 48.09272009 | G101: =F101*(1+('Scenario Input'!$AJ$15/100)) -> 49.19188085 | H101: =G101*(1+('Scenario Input'!$AM$15/100)) -> 50.6469101 | I101: =H101*(1+('Scenario Input'!$AP$15/100)) -> 52.14497714 | J101: =I101*(1+('Scenario Input'!$AS$15/100)) -> 53.68735498
A102: 101 | B102: Charter Communications Inc, Frontier - Citizens | C102: 43.78594838 | D102: =C102*(1+('Scenario Input'!$AA$15/100)) -> 45.82573681 | E102: =D102*(1+('Scenario Input'!$AD$15/100)) -> 47.00374779 | F102: =E102*(1+('Scenario Input'!$AG$15/100)) -> 48.09272009 | G102: =F102*(1+('Scenario Input'!$AJ$15/100)) -> 49.19188085 | H102: =G102*(1+('Scenario Input'!$AM$15/100)) -> 50.6469101 | I102: =H102*(1+('Scenario Input'!$AP$15/100)) -> 52.14497714 | J102: =I102*(1+('Scenario Input'!$AS$15/100)) -> 53.68735498
A103: 102 | B103: Charter Communications Inc, TDS Telecom - HV | C103: 37.67602968 | D103: =C103*(1+('Scenario Input'!$AA$15/100)) -> 39.43118475 | E103: =D103*(1+('Scenario Input'!$AD$15/100)) -> 40.44481534 | F103: =E103*(1+('Scenario Input'!$AG$15/100)) -> 41.38183176 | G103: =F103*(1+('Scenario Input'!$AJ$15/100)) -> 42.32761493 | H103: =G103*(1+('Scenario Input'!$AM$15/100)) -> 43.57960849 | I103: =H103*(1+('Scenario Input'!$AP$15/100)) -> 44.86863432 | J103: =I103*(1+('Scenario Input'!$AS$15/100)) -> 46.19578779
A104: 103 | B104: Charter Communications Inc, TDS Telecom - WH | C104: 38.37894068 | D104: =C104*(1+('Scenario Input'!$AA$15/100)) -> 40.16684118 | E104: =D104*(1+('Scenario Input'!$AD$15/100)) -> 41.19938279 | F104: =E104*(1+('Scenario Input'!$AG$15/100)) -> 42.15388086 | G104: =F104*(1+('Scenario Input'!$AJ$15/100)) -> 43.11730924 | H104: =G104*(1+('Scenario Input'!$AM$15/100)) -> 44.39266089 | I104: =H104*(1+('Scenario Input'!$AP$15/100)) -> 45.70573571 | J104: =I104*(1+('Scenario Input'!$AS$15/100)) -> 47.0576495
A105: 104 | B105: Charter Communications Inc, Volcano | C105: 45.4080507 | D105: =C105*(1+('Scenario Input'!$AA$15/100)) -> 47.5234055 | E105: =D105*(1+('Scenario Input'!$AD$15/100)) -> 48.74505729 | F105: =E105*(1+('Scenario Input'!$AG$15/100)) -> 49.87437186 | G105: =F105*(1+('Scenario Input'!$AJ$15/100)) -> 51.01425233 | H105: =G105*(1+('Scenario Input'!$AM$15/100)) -> 52.52318486 | I105: =H105*(1+('Scenario Input'!$AP$15/100)) -> 54.07674957 | J105: =I105*(1+('Scenario Input'!$AS$15/100)) -> 55.67626663
A106: 105 | B106: City of Lompoc (LompocNet), Frontier | C106: 63.25117612 | D106: =C106*(1+('Scenario Input'!$AA$15/100)) -> 66.19776108 | E106: =D106*(1+('Scenario Input'!$AD$15/100)) -> 67.8994618 | F106: =E106*(1+('Scenario Input'!$AG$15/100)) -> 69.47254132 | G106: =F106*(1+('Scenario Input'!$AJ$15/100)) -> 71.06033862 | H106: =G106*(1+('Scenario Input'!$AM$15/100)) -> 73.16220725 | I106: =H106*(1+('Scenario Input'!$AP$15/100)) -> 75.32624631 | J106: =I106*(1+('Scenario Input'!$AS$15/100)) -> 77.55429471
A107: 106 | B107: ColfaxNet, | C107: 162.2102311 | D107: =C107*(1+('Scenario Input'!$AA$15/100)) -> 169.7668689 | E107: =D107*(1+('Scenario Input'!$AD$15/100)) -> 174.1309501 | F107: =E107*(1+('Scenario Input'!$AG$15/100)) -> 178.1651769 | G107: =F107*(1+('Scenario Input'!$AJ$15/100)) -> 182.2371481 | H107: =G107*(1+('Scenario Input'!$AM$15/100)) -> 187.6274763 | I107: =H107*(1+('Scenario Input'!$AP$15/100)) -> 193.1772431 | J107: =I107*(1+('Scenario Input'!$AS$15/100)) -> 198.8911644
A108: 107 | B108: ColfaxNet, AT&T California | C108: 194.1115766 | D108: =C108*(1+('Scenario Input'!$AA$15/100)) -> 203.1543531 | E108: =D108*(1+('Scenario Input'!$AD$15/100)) -> 208.3767036 | F108: =E108*(1+('Scenario Input'!$AG$15/100)) -> 213.2043284 | G108: =F108*(1+('Scenario Input'!$AJ$15/100)) -> 218.0771206 | H108: =G108*(1+('Scenario Input'!$AM$15/100)) -> 224.5275466 | I108: =H108*(1+('Scenario Input'!$AP$15/100)) -> 231.1687675 | J108: =I108*(1+('Scenario Input'!$AS$15/100)) -> 238.0064268
A109: 108 | B109: ColfaxNet, Foresthill | C109: 189.2452696 | D109: =C109*(1+('Scenario Input'!$AA$15/100)) -> 198.061347 | E109: =D109*(1+('Scenario Input'!$AD$15/100)) -> 203.1527751 | F109: =E109*(1+('Scenario Input'!$AG$15/100)) -> 207.8593731 | G109: =F109*(1+('Scenario Input'!$AJ$15/100)) -> 212.6100061 | H109: =G109*(1+('Scenario Input'!$AM$15/100)) -> 218.8987223 | I109: =H109*(1+('Scenario Input'!$AP$15/100)) -> 225.3734502 | J109: =I109*(1+('Scenario Input'!$AS$15/100)) -> 232.0396918
A110: 109 | B110: ColfaxNet, Frontier | C110: 186.5417658 | D110: =C110*(1+('Scenario Input'!$AA$15/100)) -> 195.2318992 | E110: =D110*(1+('Scenario Input'!$AD$15/100)) -> 200.2505926 | F110: =E110*(1+('Scenario Input'!$AG$15/100)) -> 204.8899534 | G110: =F110*(1+('Scenario Input'!$AJ$15/100)) -> 209.5727203 | H110: =G110*(1+('Scenario Input'!$AM$15/100)) -> 215.7715977 | I110: =H110*(1+('Scenario Input'!$AP$15/100)) -> 222.1538295 | J110: =I110*(1+('Scenario Input'!$AS$15/100)) -> 228.7248391
A111: 110 | B111: Com-Pair Services, | C111: 108.1401541 | D111: =C111*(1+('Scenario Input'!$AA$15/100)) -> 113.1779126 | E111: =D111*(1+('Scenario Input'!$AD$15/100)) -> 116.0873001 | F111: =E111*(1+('Scenario Input'!$AG$15/100)) -> 118.7767846 | G111: =F111*(1+('Scenario Input'!$AJ$15/100)) -> 121.4914321 | H111: =G111*(1+('Scenario Input'!$AM$15/100)) -> 125.0849842 | I111: =H111*(1+('Scenario Input'!$AP$15/100)) -> 128.7848287 | J111: =I111*(1+('Scenario Input'!$AS$15/100)) -> 132.5941096
A112: 111 | B112: Com-Pair Services, AT&T California | C112: 140.0414995 | D112: =C112*(1+('Scenario Input'!$AA$15/100)) -> 146.5653968 | E112: =D112*(1+('Scenario Input'!$AD$15/100)) -> 150.3330536 | F112: =E112*(1+('Scenario Input'!$AG$15/100)) -> 153.8159361 | G112: =F112*(1+('Scenario Input'!$AJ$15/100)) -> 157.3314045 | H112: =G112*(1+('Scenario Input'!$AM$15/100)) -> 161.9850545 | I112: =H112*(1+('Scenario Input'!$AP$15/100)) -> 166.7763532 | J112: =I112*(1+('Scenario Input'!$AS$15/100)) -> 171.709372
A113: 112 | B113: Com-Pair Services, Ducor | C113: 135.1751926 | D113: =C113*(1+('Scenario Input'!$AA$15/100)) -> 141.4723907 | E113: =D113*(1+('Scenario Input'!$AD$15/100)) -> 145.1091251 | F113: =E113*(1+('Scenario Input'!$AG$15/100)) -> 148.4709808 | G113: =F113*(1+('Scenario Input'!$AJ$15/100)) -> 151.8642901 | H113: =G113*(1+('Scenario Input'!$AM$15/100)) -> 156.3562302 | I113: =H113*(1+('Scenario Input'!$AP$15/100)) -> 160.9810359 | J113: =I113*(1+('Scenario Input'!$AS$15/100)) -> 165.742637
A114: 113 | B114: Com-Pair Services, Frontier | C114: 132.4716887 | D114: =C114*(1+('Scenario Input'!$AA$15/100)) -> 138.6429429 | E114: =D114*(1+('Scenario Input'!$AD$15/100)) -> 142.2069426 | F114: =E114*(1+('Scenario Input'!$AG$15/100)) -> 145.5015611 | G114: =F114*(1+('Scenario Input'!$AJ$15/100)) -> 148.8270043 | H114: =G114*(1+('Scenario Input'!$AM$15/100)) -> 153.2291056 | I114: =H114*(1+('Scenario Input'!$AP$15/100)) -> 157.7614152 | J114: =I114*(1+('Scenario Input'!$AS$15/100)) -> 162.4277843
A115: 114 | B115: Com-Pair Services, Frontier - Citizens | C115: 132.4716887 | D115: =C115*(1+('Scenario Input'!$AA$15/100)) -> 138.6429429 | E115: =D115*(1+('Scenario Input'!$AD$15/100)) -> 142.2069426 | F115: =E115*(1+('Scenario Input'!$AG$15/100)) -> 145.5015611 | G115: =F115*(1+('Scenario Input'!$AJ$15/100)) -> 148.8270043 | H115: =G115*(1+('Scenario Input'!$AM$15/100)) -> 153.2291056 | I115: =H115*(1+('Scenario Input'!$AP$15/100)) -> 157.7614152 | J115: =I115*(1+('Scenario Input'!$AS$15/100)) -> 162.4277843
A116: 115 | B116: Com-Pair Services, TDS Telecom - HV | C116: 126.36177 | D116: =C116*(1+('Scenario Input'!$AA$15/100)) -> 132.2483909 | E116: =D116*(1+('Scenario Input'!$AD$15/100)) -> 135.6480101 | F116: =E116*(1+('Scenario Input'!$AG$15/100)) -> 138.7906728 | G116: =F116*(1+('Scenario Input'!$AJ$15/100)) -> 141.9627384 | H116: =G116*(1+('Scenario Input'!$AM$15/100)) -> 146.161804 | I116: =H116*(1+('Scenario Input'!$AP$15/100)) -> 150.4850723 | J116: =I116*(1+('Scenario Input'!$AS$15/100)) -> 154.9362171
A117: 116 | B117: Comcast Cable Communications Management, LLC, | C117: 64.88409245 | D117: =C117*(1+('Scenario Input'!$AA$15/100)) -> 67.90674756 | E117: =D117*(1+('Scenario Input'!$AD$15/100)) -> 69.65238003 | F117: =E117*(1+('Scenario Input'!$AG$15/100)) -> 71.26607076 | G117: =F117*(1+('Scenario Input'!$AJ$15/100)) -> 72.89485924 | H117: =G117*(1+('Scenario Input'!$AM$15/100)) -> 75.05099051 | I117: =H117*(1+('Scenario Input'!$AP$15/100)) -> 77.27089722 | J117: =I117*(1+('Scenario Input'!$AS$15/100)) -> 79.55646577
A118: 117 | B118: Comcast Cable Communications Management, LLC, AT&T California | C118: 96.7854379 | D118: =C118*(1+('Scenario Input'!$AA$15/100)) -> 101.2942318 | E118: =D118*(1+('Scenario Input'!$AD$15/100)) -> 103.8981335 | F118: =E118*(1+('Scenario Input'!$AG$15/100)) -> 106.3052222 | G118: =F118*(1+('Scenario Input'!$AJ$15/100)) -> 108.7348317 | H118: =G118*(1+('Scenario Input'!$AM$15/100)) -> 111.9510608 | I118: =H118*(1+('Scenario Input'!$AP$15/100)) -> 115.2624217 | J118: =I118*(1+('Scenario Input'!$AS$15/100)) -> 118.6717281
A119: 118 | B119: Comcast Cable Communications Management, LLC, Calaveras | C119: 91.91913096 | D119: =C119*(1+('Scenario Input'!$AA$15/100)) -> 96.20122571 | E119: =D119*(1+('Scenario Input'!$AD$15/100)) -> 98.67420504 | F119: =E119*(1+('Scenario Input'!$AG$15/100)) -> 100.9602669 | G119: =F119*(1+('Scenario Input'!$AJ$15/100)) -> 103.2677173 | H119: =G119*(1+('Scenario Input'!$AM$15/100)) -> 106.3222366 | I119: =H119*(1+('Scenario Input'!$AP$15/100)) -> 109.4671044 | J119: =I119*(1+('Scenario Input'!$AS$15/100)) -> 112.7049932
A120: 119 | B120: Comcast Cable Communications Management, LLC, Frontier | C120: 89.21562711 | D120: =C120*(1+('Scenario Input'!$AA$15/100)) -> 93.37177789 | E120: =D120*(1+('Scenario Input'!$AD$15/100)) -> 95.77202254 | F120: =E120*(1+('Scenario Input'!$AG$15/100)) -> 97.9908473 | G120: =F120*(1+('Scenario Input'!$AJ$15/100)) -> 100.2304315 | H120: =G120*(1+('Scenario Input'!$AM$15/100)) -> 103.195112 | I120: =H120*(1+('Scenario Input'!$AP$15/100)) -> 106.2474837 | J120: =I120*(1+('Scenario Input'!$AS$15/100)) -> 109.3901404
A121: 120 | B121: Comcast Cable Communications Management, LLC, Frontier - Citizens | C121: 89.21562711 | D121: =C121*(1+('Scenario Input'!$AA$15/100)) -> 93.37177789 | E121: =D121*(1+('Scenario Input'!$AD$15/100)) -> 95.77202254 | F121: =E121*(1+('Scenario Input'!$AG$15/100)) -> 97.9908473 | G121: =F121*(1+('Scenario Input'!$AJ$15/100)) -> 100.2304315 | H121: =G121*(1+('Scenario Input'!$AM$15/100)) -> 103.195112 | I121: =H121*(1+('Scenario Input'!$AP$15/100)) -> 106.2474837 | J121: =I121*(1+('Scenario Input'!$AS$15/100)) -> 109.3901404
A122: 121 | B122: Comcast Cable Communications Management, LLC, Kerman | C122: 89.30213924 | D122: =C122*(1+('Scenario Input'!$AA$15/100)) -> 93.46232022 | E122: =D122*(1+('Scenario Input'!$AD$15/100)) -> 95.86489238 | F122: =E122*(1+('Scenario Input'!$AG$15/100)) -> 98.08586873 | G122: =F122*(1+('Scenario Input'!$AJ$15/100)) -> 100.3276246 | H122: =G122*(1+('Scenario Input'!$AM$15/100)) -> 103.2951799 | I122: =H122*(1+('Scenario Input'!$AP$15/100)) -> 106.3505115 | J122: =I122*(1+('Scenario Input'!$AS$15/100)) -> 109.4962157
A123: 122 | B123: Comcast Cable Communications Management, LLC, Ponderosa | C123: 91.91913096 | D123: =C123*(1+('Scenario Input'!$AA$15/100)) -> 96.20122571 | E123: =D123*(1+('Scenario Input'!$AD$15/100)) -> 98.67420504 | F123: =E123*(1+('Scenario Input'!$AG$15/100)) -> 100.9602669 | G123: =F123*(1+('Scenario Input'!$AJ$15/100)) -> 103.2677173 | H123: =G123*(1+('Scenario Input'!$AM$15/100)) -> 106.3222366 | I123: =H123*(1+('Scenario Input'!$AP$15/100)) -> 109.4671044 | J123: =I123*(1+('Scenario Input'!$AS$15/100)) -> 112.7049932
A124: 123 | B124: Comcast Cable Communications Management, LLC, Surewest | C124: 89.99423622 | D124: =C124*(1+('Scenario Input'!$AA$15/100)) -> 94.18665886 | E124: =D124*(1+('Scenario Input'!$AD$15/100)) -> 96.6078511 | F124: =E124*(1+('Scenario Input'!$AG$15/100)) -> 98.84604015 | G124: =F124*(1+('Scenario Input'!$AJ$15/100)) -> 101.1051698 | H124: =G124*(1+('Scenario Input'!$AM$15/100)) -> 104.0957238 | I124: =H124*(1+('Scenario Input'!$AP$15/100)) -> 107.1747344 | J124: =I124*(1+('Scenario Input'!$AS$15/100)) -> 110.344818
A125: 124 | B125: Comcast Cable Communications Management, LLC, Volcano | C125: 90.83772942 | D125: =C125*(1+('Scenario Input'!$AA$15/100)) -> 95.06944658 | E125: =D125*(1+('Scenario Input'!$AD$15/100)) -> 97.51333204 | F125: =E125*(1+('Scenario Input'!$AG$15/100)) -> 99.77249907 | G125: =F125*(1+('Scenario Input'!$AJ$15/100)) -> 102.0528029 | H125: =G125*(1+('Scenario Input'!$AM$15/100)) -> 105.0713867 | I125: =H125*(1+('Scenario Input'!$AP$15/100)) -> 108.1792561 | J125: =I125*(1+('Scenario Input'!$AS$15/100)) -> 111.3790521
A126: 125 | B126: Conifer, | C126: 97.27206859 | D126: =C126*(1+('Scenario Input'!$AA$15/100)) -> 101.8035324 | E126: =D126*(1+('Scenario Input'!$AD$15/100)) -> 104.4205264 | F126: =E126*(1+('Scenario Input'!$AG$15/100)) -> 106.8397178 | G126: =F126*(1+('Scenario Input'!$AJ$15/100)) -> 109.2815431 | H126: =G126*(1+('Scenario Input'!$AM$15/100)) -> 112.5139433 | I126: =H126*(1+('Scenario Input'!$AP$15/100)) -> 115.8419534 | J126: =I126*(1+('Scenario Input'!$AS$15/100)) -> 119.2684016
A127: 126 | B127: Conifer, AT&T California | C127: 129.173414 | D127: =C127*(1+('Scenario Input'!$AA$15/100)) -> 135.1910166 | E127: =D127*(1+('Scenario Input'!$AD$15/100)) -> 138.6662799 | F127: =E127*(1+('Scenario Input'!$AG$15/100)) -> 141.8788692 | G127: =F127*(1+('Scenario Input'!$AJ$15/100)) -> 145.1215156 | H127: =G127*(1+('Scenario Input'!$AM$15/100)) -> 149.4140136 | I127: =H127*(1+('Scenario Input'!$AP$15/100)) -> 153.8334779 | J127: =I127*(1+('Scenario Input'!$AS$15/100)) -> 158.3836639
A128: 127 | B128: Conifer, Calaveras | C128: 124.3071071 | D128: =C128*(1+('Scenario Input'!$AA$15/100)) -> 130.0980105 | E128: =D128*(1+('Scenario Input'!$AD$15/100)) -> 133.4423514 | F128: =E128*(1+('Scenario Input'!$AG$15/100)) -> 136.5339139 | G128: =F128*(1+('Scenario Input'!$AJ$15/100)) -> 139.6544012 | H128: =G128*(1+('Scenario Input'!$AM$15/100)) -> 143.7851893 | I128: =H128*(1+('Scenario Input'!$AP$15/100)) -> 148.0381606 | J128: =I128*(1+('Scenario Input'!$AS$15/100)) -> 152.416929
A129: 128 | B129: Conifer, Frontier | C129: 121.6036033 | D129: =C129*(1+('Scenario Input'!$AA$15/100)) -> 127.2685627 | E129: =D129*(1+('Scenario Input'!$AD$15/100)) -> 130.5401689 | F129: =E129*(1+('Scenario Input'!$AG$15/100)) -> 133.5644943 | G129: =F129*(1+('Scenario Input'!$AJ$15/100)) -> 136.6171154 | H129: =G129*(1+('Scenario Input'!$AM$15/100)) -> 140.6580647 | I129: =H129*(1+('Scenario Input'!$AP$15/100)) -> 144.8185399 | J129: =I129*(1+('Scenario Input'!$AS$15/100)) -> 149.1020763
A130: 129 | B130: Conifer, Frontier - Citizens | C130: 121.6036033 | D130: =C130*(1+('Scenario Input'!$AA$15/100)) -> 127.2685627 | E130: =D130*(1+('Scenario Input'!$AD$15/100)) -> 130.5401689 | F130: =E130*(1+('Scenario Input'!$AG$15/100)) -> 133.5644943 | G130: =F130*(1+('Scenario Input'!$AJ$15/100)) -> 136.6171154 | H130: =G130*(1+('Scenario Input'!$AM$15/100)) -> 140.6580647 | I130: =H130*(1+('Scenario Input'!$AP$15/100)) -> 144.8185399 | J130: =I130*(1+('Scenario Input'!$AS$15/100)) -> 149.1020763
A131: 130 | B131: Conifer, TDS Telecom - Horn | C131: 114.6285633 | D131: =C131*(1+('Scenario Input'!$AA$15/100)) -> 119.9685874 | E131: =D131*(1+('Scenario Input'!$AD$15/100)) -> 123.0525381 | F131: =E131*(1+('Scenario Input'!$AG$15/100)) -> 125.9033917 | G131: =F131*(1+('Scenario Input'!$AJ$15/100)) -> 128.780918 | H131: =G131*(1+('Scenario Input'!$AM$15/100)) -> 132.5900832 | I131: =H131*(1+('Scenario Input'!$AP$15/100)) -> 136.5119184 | J131: =I131*(1+('Scenario Input'!$AS$15/100)) -> 140.5497562
A132: 131 | B132: ConnectAnza, | C132: 52.9886755 | D132: =C132*(1+('Scenario Input'!$AA$15/100)) -> 55.45717717 | E132: =D132*(1+('Scenario Input'!$AD$15/100)) -> 56.88277703 | F132: =E132*(1+('Scenario Input'!$AG$15/100)) -> 58.20062446 | G132: =F132*(1+('Scenario Input'!$AJ$15/100)) -> 59.53080172 | H132: =G132*(1+('Scenario Input'!$AM$15/100)) -> 61.29164225 | I132: =H132*(1+('Scenario Input'!$AP$15/100)) -> 63.10456606 | J132: =I132*(1+('Scenario Input'!$AS$15/100)) -> 64.97111371
A133: 132 | B133: ConnectAnza, Frontier | C133: 77.32021016 | D133: =C133*(1+('Scenario Input'!$AA$15/100)) -> 80.92220751 | E133: =D133*(1+('Scenario Input'!$AD$15/100)) -> 83.00241954 | F133: =E133*(1+('Scenario Input'!$AG$15/100)) -> 84.92540099 | G133: =F133*(1+('Scenario Input'!$AJ$15/100)) -> 86.86637393 | H133: =G133*(1+('Scenario Input'!$AM$15/100)) -> 89.43576369 | I133: =H133*(1+('Scenario Input'!$AP$15/100)) -> 92.08115252 | J133: =I133*(1+('Scenario Input'!$AS$15/100)) -> 94.80478838
A134: 133 | B134: ConnectTo Communications, AT&T California | C134: 58.92556996 | D134: =C134*(1+('Scenario Input'!$AA$15/100)) -> 61.67064457 | E134: =D134*(1+('Scenario Input'!$AD$15/100)) -> 63.2559698 | F134: =E134*(1+('Scenario Input'!$AG$15/100)) -> 64.72146993 | G134: =F134*(1+('Scenario Input'!$AJ$15/100)) -> 66.20068134 | H134: =G134*(1+('Scenario Input'!$AM$15/100)) -> 68.15880788 | I134: =H134*(1+('Scenario Input'!$AP$15/100)) -> 70.17485316 | J134: =I134*(1+('Scenario Input'!$AS$15/100)) -> 72.25053033
A135: 134 | B135: ConnectTo Communications, Frontier | C135: 51.35575917 | D135: =C135*(1+('Scenario Input'!$AA$15/100)) -> 53.74819069 | E135: =D135*(1+('Scenario Input'!$AD$15/100)) -> 55.12985879 | F135: =E135*(1+('Scenario Input'!$AG$15/100)) -> 56.40709501 | G135: =F135*(1+('Scenario Input'!$AJ$15/100)) -> 57.69628109 | H135: =G135*(1+('Scenario Input'!$AM$15/100)) -> 59.40285899 | I135: =H135*(1+('Scenario Input'!$AP$15/100)) -> 61.15991515 | J135: =I135*(1+('Scenario Input'!$AS$15/100)) -> 62.96894266
A136: 135 | B136: Consolidated Communications, 11, AT&T California | C136: 116.1965956 | D136: =C136*(1+('Scenario Input'!$AA$15/100)) -> 121.6096671 | E136: =D136*(1+('Scenario Input'!$AD$15/100)) -> 124.7358039 | F136: =E136*(1+('Scenario Input'!$AG$15/100)) -> 127.6256551 | G136: =F136*(1+('Scenario Input'!$AJ$15/100)) -> 130.5425438 | H136: =G136*(1+('Scenario Input'!$AM$15/100)) -> 134.4038155 | I136: =H136*(1+('Scenario Input'!$AP$15/100)) -> 138.3792984 | J136: =I136*(1+('Scenario Input'!$AS$15/100)) -> 142.4723708
A137: 136 | B137: Consolidated Communications, 11, Surewest | C137: 109.4053939 | D137: =C137*(1+('Scenario Input'!$AA$15/100)) -> 114.5020942 | E137: =D137*(1+('Scenario Input'!$AD$15/100)) -> 117.4455215 | F137: =E137*(1+('Scenario Input'!$AG$15/100)) -> 120.166473 | G137: =F137*(1+('Scenario Input'!$AJ$15/100)) -> 122.9128818 | H137: =G137*(1+('Scenario Input'!$AM$15/100)) -> 126.5484785 | I137: =H137*(1+('Scenario Input'!$AP$15/100)) -> 130.2916112 | J137: =I137*(1+('Scenario Input'!$AS$15/100)) -> 134.1454607
A138: 137 | B138: Consolidated Communications, 12, Surewest | C138: 114.8124016 | D138: =C138*(1+('Scenario Input'!$AA$15/100)) -> 120.1609898 | E138: =D138*(1+('Scenario Input'!$AD$15/100)) -> 123.2498865 | F138: =E138*(1+('Scenario Input'!$AG$15/100)) -> 126.1053122 | G138: =F138*(1+('Scenario Input'!$AJ$15/100)) -> 128.9874534 | H138: =G138*(1+('Scenario Input'!$AM$15/100)) -> 132.8027277 | I138: =H138*(1+('Scenario Input'!$AP$15/100)) -> 136.7308526 | J138: =I138*(1+('Scenario Input'!$AS$15/100)) -> 140.7751662
A139: 138 | B139: Consolidated Communications, 50, AT&T California | C139: 69.75039938 | D139: =C139*(1+('Scenario Input'!$AA$15/100)) -> 72.99975362 | E139: =D139*(1+('Scenario Input'!$AD$15/100)) -> 74.87630853 | F139: =E139*(1+('Scenario Input'!$AG$15/100)) -> 76.61102607 | G139: =F139*(1+('Scenario Input'!$AJ$15/100)) -> 78.36197369 | H139: =G139*(1+('Scenario Input'!$AM$15/100)) -> 80.6798148 | I139: =H139*(1+('Scenario Input'!$AP$15/100)) -> 83.06621451 | J139: =I139*(1+('Scenario Input'!$AS$15/100)) -> 85.5232007
A140: 139 | B140: Consolidated Communications, 50, Frontier - Citizens | C140: 62.18058859 | D140: =C140*(1+('Scenario Input'!$AA$15/100)) -> 65.07729974 | E140: =D140*(1+('Scenario Input'!$AD$15/100)) -> 66.75019753 | F140: =E140*(1+('Scenario Input'!$AG$15/100)) -> 68.29665115 | G140: =F140*(1+('Scenario Input'!$AJ$15/100)) -> 69.85757344 | H140: =G140*(1+('Scenario Input'!$AM$15/100)) -> 71.92386591 | I140: =H140*(1+('Scenario Input'!$AP$15/100)) -> 74.0512765 | J140: =I140*(1+('Scenario Input'!$AS$15/100)) -> 76.24161303
A141: 140 | B141: Consolidated Communications, 50, Surewest | C141: 62.9591977 | D141: =C141*(1+('Scenario Input'!$AA$15/100)) -> 65.89218071 | E141: =D141*(1+('Scenario Input'!$AD$15/100)) -> 67.58602609 | F141: =E141*(1+('Scenario Input'!$AG$15/100)) -> 69.151844 | G141: =F141*(1+('Scenario Input'!$AJ$15/100)) -> 70.73231175 | H141: =G141*(1+('Scenario Input'!$AM$15/100)) -> 72.82447779 | I141: =H141*(1+('Scenario Input'!$AP$15/100)) -> 74.97852727 | J141: =I141*(1+('Scenario Input'!$AS$15/100)) -> 77.19629062
A142: 141 | B142: Consolidated Smart Broadband Systems LLC, AT&T California | C142: 58.92556996 | D142: =C142*(1+('Scenario Input'!$AA$15/100)) -> 61.67064457 | E142: =D142*(1+('Scenario Input'!$AD$15/100)) -> 63.2559698 | F142: =E142*(1+('Scenario Input'!$AG$15/100)) -> 64.72146993 | G142: =F142*(1+('Scenario Input'!$AJ$15/100)) -> 66.20068134 | H142: =G142*(1+('Scenario Input'!$AM$15/100)) -> 68.15880788 | I142: =H142*(1+('Scenario Input'!$AP$15/100)) -> 70.17485316 | J142: =I142*(1+('Scenario Input'!$AS$15/100)) -> 72.25053033
A143: 142 | B143: Consolidated Smart Broadband Systems LLC, Frontier | C143: 51.35575917 | D143: =C143*(1+('Scenario Input'!$AA$15/100)) -> 53.74819069 | E143: =D143*(1+('Scenario Input'!$AD$15/100)) -> 55.12985879 | F143: =E143*(1+('Scenario Input'!$AG$15/100)) -> 56.40709501 | G143: =F143*(1+('Scenario Input'!$AJ$15/100)) -> 57.69628109 | H143: =G143*(1+('Scenario Input'!$AM$15/100)) -> 59.40285899 | I143: =H143*(1+('Scenario Input'!$AP$15/100)) -> 61.15991515 | J143: =I143*(1+('Scenario Input'!$AS$15/100)) -> 62.96894266
A144: 143 | B144: Cox Communications, | C144: 54.05926302 | D144: =C144*(1+('Scenario Input'!$AA$15/100)) -> 56.57763851 | E144: =D144*(1+('Scenario Input'!$AD$15/100)) -> 58.0320413 | F144: =E144*(1+('Scenario Input'!$AG$15/100)) -> 59.37651462 | G144: =F144*(1+('Scenario Input'!$AJ$15/100)) -> 60.73356689 | H144: =G144*(1+('Scenario Input'!$AM$15/100)) -> 62.52998359 | I144: =H144*(1+('Scenario Input'!$AP$15/100)) -> 64.37953587 | J144: =I144*(1+('Scenario Input'!$AS$15/100)) -> 66.2837954
A145: 144 | B145: Cox Communications, AT&T California | C145: 85.96060847 | D145: =C145*(1+('Scenario Input'!$AA$15/100)) -> 89.96512272 | E145: =D145*(1+('Scenario Input'!$AD$15/100)) -> 92.27779481 | F145: =E145*(1+('Scenario Input'!$AG$15/100)) -> 94.41566608 | G145: =F145*(1+('Scenario Input'!$AJ$15/100)) -> 96.57353935 | H145: =G145*(1+('Scenario Input'!$AM$15/100)) -> 99.43005393 | I145: =H145*(1+('Scenario Input'!$AP$15/100)) -> 102.3710603 | J145: =I145*(1+('Scenario Input'!$AS$15/100)) -> 105.3990577
A146: 145 | B146: Cox Communications, Frontier | C146: 78.39079769 | D146: =C146*(1+('Scenario Input'!$AA$15/100)) -> 82.04266884 | E146: =D146*(1+('Scenario Input'!$AD$15/100)) -> 84.15168381 | F146: =E146*(1+('Scenario Input'!$AG$15/100)) -> 86.10129116 | G146: =F146*(1+('Scenario Input'!$AJ$15/100)) -> 88.06913911 | H146: =G146*(1+('Scenario Input'!$AM$15/100)) -> 90.67410504 | I146: =H146*(1+('Scenario Input'!$AP$15/100)) -> 93.35612233 | J146: =I146*(1+('Scenario Input'!$AS$15/100)) -> 96.11747006
A147: 146 | B147: Cruzio, AT&T California | C147: 112.9523909 | D147: =C147*(1+('Scenario Input'!$AA$15/100)) -> 118.2143297 | E147: =D147*(1+('Scenario Input'!$AD$15/100)) -> 121.2531849 | F147: =E147*(1+('Scenario Input'!$AG$15/100)) -> 124.0623515 | G147: =F147*(1+('Scenario Input'!$AJ$15/100)) -> 126.8978008 | H147: =G147*(1+('Scenario Input'!$AM$15/100)) -> 130.651266 | I147: =H147*(1+('Scenario Input'!$AP$15/100)) -> 134.5157536 | J147: =I147*(1+('Scenario Input'!$AS$15/100)) -> 138.4945475
A148: 147 | B148: Cruzio, Frontier | C148: 105.3825801 | D148: =C148*(1+('Scenario Input'!$AA$15/100)) -> 110.2918758 | E148: =D148*(1+('Scenario Input'!$AD$15/100)) -> 113.1270739 | F148: =E148*(1+('Scenario Input'!$AG$15/100)) -> 115.7479766 | G148: =F148*(1+('Scenario Input'!$AJ$15/100)) -> 118.3934006 | H148: =G148*(1+('Scenario Input'!$AM$15/100)) -> 121.8953171 | I148: =H148*(1+('Scenario Input'!$AP$15/100)) -> 125.5008156 | J148: =I148*(1+('Scenario Input'!$AS$15/100)) -> 129.2129598
A149: 148 | B149: DigitalPath Inc., | C149: 65.96549399 | D149: =C149*(1+('Scenario Input'!$AA$15/100)) -> 69.03852668 | E149: =D149*(1+('Scenario Input'!$AD$15/100)) -> 70.81325303 | F149: =E149*(1+('Scenario Input'!$AG$15/100)) -> 72.45383861 | G149: =F149*(1+('Scenario Input'!$AJ$15/100)) -> 74.10977356 | H149: =G149*(1+('Scenario Input'!$AM$15/100)) -> 76.30184035 | I149: =H149*(1+('Scenario Input'!$AP$15/100)) -> 78.55874551 | J149: =I149*(1+('Scenario Input'!$AS$15/100)) -> 80.88240687
A150: 149 | B150: DigitalPath Inc., AT&T California | C150: 97.86683944 | D150: =C150*(1+('Scenario Input'!$AA$15/100)) -> 102.4260109 | E150: =D150*(1+('Scenario Input'!$AD$15/100)) -> 105.0590065 | F150: =E150*(1+('Scenario Input'!$AG$15/100)) -> 107.4929901 | G150: =F150*(1+('Scenario Input'!$AJ$15/100)) -> 109.949746 | H150: =G150*(1+('Scenario Input'!$AM$15/100)) -> 113.2019107 | I150: =H150*(1+('Scenario Input'!$AP$15/100)) -> 116.55027 | J150: =I150*(1+('Scenario Input'!$AS$15/100)) -> 119.9976692
A151: 150 | B151: DigitalPath Inc., Ducor | C151: 93.0005325 | D151: =C151*(1+('Scenario Input'!$AA$15/100)) -> 97.33300483 | E151: =D151*(1+('Scenario Input'!$AD$15/100)) -> 99.83507804 | F151: =E151*(1+('Scenario Input'!$AG$15/100)) -> 102.1480348 | G151: =F151*(1+('Scenario Input'!$AJ$15/100)) -> 104.4826316 | H151: =G151*(1+('Scenario Input'!$AM$15/100)) -> 107.5730864 | I151: =H151*(1+('Scenario Input'!$AP$15/100)) -> 110.7549527 | J151: =I151*(1+('Scenario Input'!$AS$15/100)) -> 114.0309343
A152: 151 | B152: DigitalPath Inc., Frontier | C152: 90.29702865 | D152: =C152*(1+('Scenario Input'!$AA$15/100)) -> 94.50355702 | E152: =D152*(1+('Scenario Input'!$AD$15/100)) -> 96.93289554 | F152: =E152*(1+('Scenario Input'!$AG$15/100)) -> 99.17861515 | G152: =F152*(1+('Scenario Input'!$AJ$15/100)) -> 101.4453458 | H152: =G152*(1+('Scenario Input'!$AM$15/100)) -> 104.4459618 | I152: =H152*(1+('Scenario Input'!$AP$15/100)) -> 107.535332 | J152: =I152*(1+('Scenario Input'!$AS$15/100)) -> 110.7160815
A153: 152 | B153: DigitalPath Inc., Frontier - Citizens | C153: 90.29702865 | D153: =C153*(1+('Scenario Input'!$AA$15/100)) -> 94.50355702 | E153: =D153*(1+('Scenario Input'!$AD$15/100)) -> 96.93289554 | F153: =E153*(1+('Scenario Input'!$AG$15/100)) -> 99.17861515 | G153: =F153*(1+('Scenario Input'!$AJ$15/100)) -> 101.4453458 | H153: =G153*(1+('Scenario Input'!$AM$15/100)) -> 104.4459618 | I153: =H153*(1+('Scenario Input'!$AP$15/100)) -> 107.535332 | J153: =I153*(1+('Scenario Input'!$AS$15/100)) -> 110.7160815
A154: 153 | B154: DigitalPath Inc., TDS Telecom - HV | C154: 84.18710995 | D154: =C154*(1+('Scenario Input'!$AA$15/100)) -> 88.10900496 | E154: =D154*(1+('Scenario Input'!$AD$15/100)) -> 90.37396309 | F154: =E154*(1+('Scenario Input'!$AG$15/100)) -> 92.46772682 | G154: =F154*(1+('Scenario Input'!$AJ$15/100)) -> 94.58107987 | H154: =G154*(1+('Scenario Input'!$AM$15/100)) -> 97.37866019 | I154: =H154*(1+('Scenario Input'!$AP$15/100)) -> 100.2589891 | J154: =I154*(1+('Scenario Input'!$AS$15/100)) -> 103.2245143
A155: 154 | B155: Dillon Beach Internet Service LLC, | C155: 64.88409245 | D155: =C155*(1+('Scenario Input'!$AA$15/100)) -> 67.90674756 | E155: =D155*(1+('Scenario Input'!$AD$15/100)) -> 69.65238003 | F155: =E155*(1+('Scenario Input'!$AG$15/100)) -> 71.26607076 | G155: =F155*(1+('Scenario Input'!$AJ$15/100)) -> 72.89485924 | H155: =G155*(1+('Scenario Input'!$AM$15/100)) -> 75.05099051 | I155: =H155*(1+('Scenario Input'!$AP$15/100)) -> 77.27089722 | J155: =I155*(1+('Scenario Input'!$AS$15/100)) -> 79.55646577
A156: 155 | B156: Dillon Beach Internet Service LLC, AT&T California | C156: 96.7854379 | D156: =C156*(1+('Scenario Input'!$AA$15/100)) -> 101.2942318 | E156: =D156*(1+('Scenario Input'!$AD$15/100)) -> 103.8981335 | F156: =E156*(1+('Scenario Input'!$AG$15/100)) -> 106.3052222 | G156: =F156*(1+('Scenario Input'!$AJ$15/100)) -> 108.7348317 | H156: =G156*(1+('Scenario Input'!$AM$15/100)) -> 111.9510608 | I156: =H156*(1+('Scenario Input'!$AP$15/100)) -> 115.2624217 | J156: =I156*(1+('Scenario Input'!$AS$15/100)) -> 118.6717281
A157: 156 | B157: DM-Tech, | C157: 81.05104548 | D157: =C157*(1+('Scenario Input'!$AA$15/100)) -> 84.82684549 | E157: =D157*(1+('Scenario Input'!$AD$15/100)) -> 87.00743139 | F157: =E157*(1+('Scenario Input'!$AG$15/100)) -> 89.02320006 | G157: =F157*(1+('Scenario Input'!$AJ$15/100)) -> 91.05782834 | H157: =G157*(1+('Scenario Input'!$AM$15/100)) -> 93.75119565 | I157: =H157*(1+('Scenario Input'!$AP$15/100)) -> 96.52422911 | J157: =I157*(1+('Scenario Input'!$AS$15/100)) -> 99.37928516
A158: 157 | B158: DM-Tech, AT&T California | C158: 112.9523909 | D158: =C158*(1+('Scenario Input'!$AA$15/100)) -> 118.2143297 | E158: =D158*(1+('Scenario Input'!$AD$15/100)) -> 121.2531849 | F158: =E158*(1+('Scenario Input'!$AG$15/100)) -> 124.0623515 | G158: =F158*(1+('Scenario Input'!$AJ$15/100)) -> 126.8978008 | H158: =G158*(1+('Scenario Input'!$AM$15/100)) -> 130.651266 | I158: =H158*(1+('Scenario Input'!$AP$15/100)) -> 134.5157536 | J158: =I158*(1+('Scenario Input'!$AS$15/100)) -> 138.4945475
A159: 158 | B159: DM-Tech, Ducor | C159: 108.086084 | D159: =C159*(1+('Scenario Input'!$AA$15/100)) -> 113.1213236 | E159: =D159*(1+('Scenario Input'!$AD$15/100)) -> 116.0292564 | F159: =E159*(1+('Scenario Input'!$AG$15/100)) -> 118.7173962 | G159: =F159*(1+('Scenario Input'!$AJ$15/100)) -> 121.4306864 | H159: =G159*(1+('Scenario Input'!$AM$15/100)) -> 125.0224417 | I159: =H159*(1+('Scenario Input'!$AP$15/100)) -> 128.7204363 | J159: =I159*(1+('Scenario Input'!$AS$15/100)) -> 132.5278126
A160: 159 | B160: Ducor Telephone Company, | C160: 97.27206859 | D160: =C160*(1+('Scenario Input'!$AA$15/100)) -> 101.8035324 | E160: =D160*(1+('Scenario Input'!$AD$15/100)) -> 104.4205264 | F160: =E160*(1+('Scenario Input'!$AG$15/100)) -> 106.8397178 | G160: =F160*(1+('Scenario Input'!$AJ$15/100)) -> 109.2815431 | H160: =G160*(1+('Scenario Input'!$AM$15/100)) -> 112.5139433 | I160: =H160*(1+('Scenario Input'!$AP$15/100)) -> 115.8419534 | J160: =I160*(1+('Scenario Input'!$AS$15/100)) -> 119.2684016
A161: 160 | B161: Ducor Telephone Company, AT&T California | C161: 129.173414 | D161: =C161*(1+('Scenario Input'!$AA$15/100)) -> 135.1910166 | E161: =D161*(1+('Scenario Input'!$AD$15/100)) -> 138.6662799 | F161: =E161*(1+('Scenario Input'!$AG$15/100)) -> 141.8788692 | G161: =F161*(1+('Scenario Input'!$AJ$15/100)) -> 145.1215156 | H161: =G161*(1+('Scenario Input'!$AM$15/100)) -> 149.4140136 | I161: =H161*(1+('Scenario Input'!$AP$15/100)) -> 153.8334779 | J161: =I161*(1+('Scenario Input'!$AS$15/100)) -> 158.3836639
A162: 161 | B162: Ducor Telephone Company, Ducor | C162: 124.3071071 | D162: =C162*(1+('Scenario Input'!$AA$15/100)) -> 130.0980105 | E162: =D162*(1+('Scenario Input'!$AD$15/100)) -> 133.4423514 | F162: =E162*(1+('Scenario Input'!$AG$15/100)) -> 136.5339139 | G162: =F162*(1+('Scenario Input'!$AJ$15/100)) -> 139.6544012 | H162: =G162*(1+('Scenario Input'!$AM$15/100)) -> 143.7851893 | I162: =H162*(1+('Scenario Input'!$AP$15/100)) -> 148.0381606 | J162: =I162*(1+('Scenario Input'!$AS$15/100)) -> 152.416929
A163: 162 | B163: eastsierra.net, Frontier | C163: 71.37250169 | D163: =C163*(1+('Scenario Input'!$AA$15/100)) -> 74.69742231 | E163: =D163*(1+('Scenario Input'!$AD$15/100)) -> 76.61761803 | F163: =E163*(1+('Scenario Input'!$AG$15/100)) -> 78.39267784 | G163: =F163*(1+('Scenario Input'!$AJ$15/100)) -> 80.18434517 | H163: =G163*(1+('Scenario Input'!$AM$15/100)) -> 82.55608956 | I163: =H163*(1+('Scenario Input'!$AP$15/100)) -> 84.99798694 | J163: =I163*(1+('Scenario Input'!$AS$15/100)) -> 87.51211235
A164: 163 | B164: Esparto Broadband Inc, AT&T California | C164: 83.80861941 | D164: =C164*(1+('Scenario Input'!$AA$15/100)) -> 87.71288226 | E164: =D164*(1+('Scenario Input'!$AD$15/100)) -> 89.96765754 | F164: =E164*(1+('Scenario Input'!$AG$15/100)) -> 92.05200807 | G164: =F164*(1+('Scenario Input'!$AJ$15/100)) -> 94.15585986 | H164: =G164*(1+('Scenario Input'!$AM$15/100)) -> 96.94086274 | I164: =H164*(1+('Scenario Input'!$AP$15/100)) -> 99.80824225 | J164: =I164*(1+('Scenario Input'!$AS$15/100)) -> 102.760435
A165: 164 | B165: Esparto Broadband Inc, Frontier | C165: 76.23880862 | D165: =C165*(1+('Scenario Input'!$AA$15/100)) -> 79.79042838 | E165: =D165*(1+('Scenario Input'!$AD$15/100)) -> 81.84154654 | F165: =E165*(1+('Scenario Input'!$AG$15/100)) -> 83.73763315 | G165: =F165*(1+('Scenario Input'!$AJ$15/100)) -> 85.65145961 | H165: =G165*(1+('Scenario Input'!$AM$15/100)) -> 88.18491385 | I165: =H165*(1+('Scenario Input'!$AP$15/100)) -> 90.79330424 | J165: =I165*(1+('Scenario Input'!$AS$15/100)) -> 93.47884728
A166: 165 | B166: Esparto Broadband Inc, Frontier - Citizens | C166: 76.23880862 | D166: =C166*(1+('Scenario Input'!$AA$15/100)) -> 79.79042838 | E166: =D166*(1+('Scenario Input'!$AD$15/100)) -> 81.84154654 | F166: =E166*(1+('Scenario Input'!$AG$15/100)) -> 83.73763315 | G166: =F166*(1+('Scenario Input'!$AJ$15/100)) -> 85.65145961 | H166: =G166*(1+('Scenario Input'!$AM$15/100)) -> 88.18491385 | I166: =H166*(1+('Scenario Input'!$AP$15/100)) -> 90.79330424 | J166: =I166*(1+('Scenario Input'!$AS$15/100)) -> 93.47884728
A167: 166 | B167: Etheric Networks, Inc., | C167: 107.0587525 | D167: =C167*(1+('Scenario Input'!$AA$15/100)) -> 112.0461335 | E167: =D167*(1+('Scenario Input'!$AD$15/100)) -> 114.9264271 | F167: =E167*(1+('Scenario Input'!$AG$15/100)) -> 117.5890168 | G167: =F167*(1+('Scenario Input'!$AJ$15/100)) -> 120.2765178 | H167: =G167*(1+('Scenario Input'!$AM$15/100)) -> 123.8341343 | I167: =H167*(1+('Scenario Input'!$AP$15/100)) -> 127.4969804 | J167: =I167*(1+('Scenario Input'!$AS$15/100)) -> 131.2681685
A168: 167 | B168: Etheric Networks, Inc., AT&T California | C168: 138.960098 | D168: =C168*(1+('Scenario Input'!$AA$15/100)) -> 145.4336177 | E168: =D168*(1+('Scenario Input'!$AD$15/100)) -> 149.1721806 | F168: =E168*(1+('Scenario Input'!$AG$15/100)) -> 152.6281682 | G168: =F168*(1+('Scenario Input'!$AJ$15/100)) -> 156.1164902 | H168: =G168*(1+('Scenario Input'!$AM$15/100)) -> 160.7342047 | I168: =H168*(1+('Scenario Input'!$AP$15/100)) -> 165.4885049 | J168: =I168*(1+('Scenario Input'!$AS$15/100)) -> 170.3834309
A169: 168 | B169: Etheric Networks, Inc., Frontier | C169: 131.3902872 | D169: =C169*(1+('Scenario Input'!$AA$15/100)) -> 137.5111638 | E169: =D169*(1+('Scenario Input'!$AD$15/100)) -> 141.0460696 | F169: =E169*(1+('Scenario Input'!$AG$15/100)) -> 144.3137933 | G169: =F169*(1+('Scenario Input'!$AJ$15/100)) -> 147.61209 | H169: =G169*(1+('Scenario Input'!$AM$15/100)) -> 151.9782558 | I169: =H169*(1+('Scenario Input'!$AP$15/100)) -> 156.4735669 | J169: =I169*(1+('Scenario Input'!$AS$15/100)) -> 161.1018432
A170: 169 | B170: FlashByte Digital, LLC, | C170: 107.0587525 | D170: =C170*(1+('Scenario Input'!$AA$15/100)) -> 112.0461335 | E170: =D170*(1+('Scenario Input'!$AD$15/100)) -> 114.9264271 | F170: =E170*(1+('Scenario Input'!$AG$15/100)) -> 117.5890168 | G170: =F170*(1+('Scenario Input'!$AJ$15/100)) -> 120.2765178 | H170: =G170*(1+('Scenario Input'!$AM$15/100)) -> 123.8341343 | I170: =H170*(1+('Scenario Input'!$AP$15/100)) -> 127.4969804 | J170: =I170*(1+('Scenario Input'!$AS$15/100)) -> 131.2681685
